Workbook

Sheet Base (hidden)
A1: CENTRO ESPECIALIZADO EN SALUD RENAL
A2: GRUPO 00 | B2: GRUPO 01 | C2: GRUPO 03 | D2: GRUPO 03 | E2: ESPACIO | F2: TIPO INFRAESTRUCTURA | G2: Cant | H2: ANEXO | I2: Obs | J2: TIPO | K2: EQUIPAMIENTO | L2: Cant * Esp | M2: ANEXO | N2: TIPO | O2: Obs
A3: ADMINISTRATIVO | B3: ADMISIÓN Y ESTADÍSTICA | C3: Área Técnica | D3: AMBIENTES | E3: Admisión, Información y Recepción | F3: AMBIENTE | G3: 1 | I3: Para construcciones nuevas deseable 6 m2 | J3: Requerido | K3: Mostrador / escritorio/Mesa de despacho | L3: 1 | M3: EQ_01
K4: Armario/Archivador | L4: 1 | O4: Puede estar incorporado en el Mostrador/escritorio o Mesa de despacho lo que se requiere es que tengan donde almacenar documentos temporalmente
K5: Computador completo (Portátil o de escritorio) | L5: 1 | M5: EQ_02
K6: Basurero | L6: 1 | O6: Recipiente para desechos comunes
K7: Silla | L7: 1
K8: Tablero de avisos | L8: 1 | O8: Puede ser remplazado cuando hay acceso directo al sistema audiovisual de la sala de espera de consulta externa
K9: Teléfono | L9: 1
E10: Archivo | F10: AMBIENTE | G10: 1 | I10: Para construcciones nuevas calcular según la demanda (cantidad y tipo de elementos a archivar) / Puede estar compartido con otro ambiente de tipo administrativo | J10: Requerido | K10: Armario/Archivador | L10: 1
K11: Escalera pata de gallo / Gradilla | L11: 1 | N11: Condición | O11: Será requerido si tiene armarios o archivadores altos que no sean accesibles al operador/funcionario
K12: Escritorio/ Mesa de despacho | L12: 1 | M12: EQ_01 | N12: Condición | O12: Se activará cuando el servicio posea otra zona administrativa responsable del manejo exclusivo del archivo
K13: Computador completo (Portátil o de Escritorio) | L13: 1 | M13: EQ_02 | N13: Condición
K14: Silla | L14: 1 | N14: Condición
K15: Basurero | L15: 1 | O15: Recipiente para desechos comunes
K16: Extintor de incendios portátil | L16: 1 | O16: Se verificará según la normativa y que este accesible para este ambiente aunque este compartido con otro
D17: INSTALACIONES | E17: Estructura General | F17: INSTALACIÓN | G17: 1 | H17: EG_01 | J17: Requerido
E18: Instalaciones Generales | F18: INSTALACIÓN | G18: 1 | H18: IG_01 | J18: Requerido
A19: ASISTENCIAL | B19: CONSULTA EXTERNA | C19: Área de Atención de Consulta | D19: AMBIENTES | E19: Sala de Espera | F19: AMBIENTE | G19: 1 | I19: Para construcciones nuevas deseable, 1 familiar por paciente y 1 paciente por puesto de diálisis, 1m2 por persona | J19: Requerido | K19: Banca/sillas | L19: 2 | O19: Mínimo contar con 6 puestos para la sala de espera (bancas en tándem o sillas o sillones)
K20: Basurero | L20: 1 | O20: Recipiente para desechos comunes
K21: Reloj de pared | L21: 1
K22: Extintor de incendios portátil | L22: 1 | O22: El mismo que cubrirá toda el servicio de consulta externa / Se verificará según la normativa y que este accesible para este ambiente aunque este compartido con otro
K23: Sistema Audiovisual de Información | L23: 1 | M23: EQ_03
E24: Baños/Baterías Sanitarias | F24: AMBIENTE | G24: 1 | I24: Para construcciones nuevas deseable 4m2 | J24: Requerido | K24: Inodoro | L24: 1
K25: Dispensador de papel higiénico | L25: 1
K26: Lavabo | L26: 1
K27: Dispensador de jabón | L27: 1
K28: Dispensador de papel toalla | L28: 1 | O28: Se justifica si cuenta con secador de manos
K29: Espejo empotrado | L29: 1
K30: Barras de apoyo | L30: 1 | N30: Deseable
K31: Gancho doble | L31: 1
K32: Basurero | L32: 2 | O32: Recipiente para desechos comunes e infecciosos. Se justifica recipiente de desechos comunes si cuenta con secador de manos
E33: Enfermería (Se vuelve requerido en el caso de contar con más de 5 consultorios para profesionales médicos) | F33: AMBIENTE | G33: 1 | I33: Para construcciones nuevas deseable 16m2 | J33: Condición | K33: Escritorio/Mesa de despacho | L33: 1 | M33: EQ_01
K34: Computador completo (Portátil o de Escritorio) | L34: 1 | M34: EQ_02 | N34: Condición
K35: Armario/Vitrina/Archivador | L35: 1
K36: Báscula + tallímetro | L36: 1
K37: Cinta métrica | L37: 1
K38: Set de recipientes para el manejo de desechos peligrosos y no peligrosos | L38: 1 | M38: EQ_07
K39: Camilla de exploración | L39: 1 | N39: Condición
K40: Escabel | L40: 1 | N40: Condición | O40: Requerido en el caso de contar con camila de exploración que no sea de altura regulable
K41: Coche de curaciones | L41: 1 | M41: EQ_08
K42: Lámpara examen rodable | L42: 1
K43: Mesa auxiliar | L43: 1
K44: Dispensador de papel toalla | L44: 1
K45: Dispensador de jabón | L45: 1
K46: Lavabo | L46: 1
K47: Estetoscopio para adultos | L47: 1
K48: Tensiómetro para adultos | L48: 1
K49: Tensiómetro pediátrico | L49: 1 | N49: Condición | O49: Se justifica cuando el tensiómetro para adultos cuenta con brazaletes para tallas pediátricas / Será requerido en el caso de ofertar prestación pediátrica
K50: Estetoscopio pediátrico | L50: 1 | N50: Condición | O50: Será requerido en el caso de ofertar prestación pediátrica
K51: Termómetro | L51: 1 | O51: Deseable que sea digital
K52: Silla confidente | L52: 1
K53: Silla | L53: 1
E54: Consultorio Médico | F54: AMBIENTE | G54: 1 | I54: Para construcciones nuevas deseable 16m2 | J54: Requerido | K54: Escritorio/Mesa de despacho | L54: 1 | M54: EQ_01
K55: Computador completo (portátil o de escritorio) | L55: 1 | M55: EQ_02
K56: Armario/Archivador/Vitrina | L56: 1
K57: Báscula + tallímetro | L57: 1 | O57: Se justifica si el servicio cuenta con enfermería
K58: Camilla de exploración | L58: 1
K59: Escabel | L59: 1 | N59: Condición | O59: Requerido en el caso de que la camilla de exploración que no sea de altura regulable
K60: Perchero de pie/Gancho doble | L60: 1 | N60: Deseable
K61: Set de diagnóstico | L61: 1 | M61: EQ_10
K62: Coche de curaciones | L62: 1 | M62: EQ_09 | N62: Condición | O62: Será requerido en el caso de no contar con este en enfermermería
K63: Dispensador de papel toalla | L63: 1 | O63: Este equipamiento puede encontrarse dentro de un baño que esté dentro del consultorio
K64: Dispensador de jabón | L64: 1
K65: Lavabo | L65: 1
K66: Tensiómetro para adultos | L66: 1
K67: Estetoscopio para adultos | L67: 1
K68: Tensiómetro pediátrico | L68: 1 | N68: Condición | O68: Se justifica cuando el tensiómetro para adultos cuenta con brazaletes para tallas pediátricas / Será requerido en el caso de ofertar prestación pediátrica
K69: Estetoscopio pediátrico | L69: 1 | N69: Condición | O69: Será requerido en el caso de ofertar prestación pediátrica
K70: Termómetro | L70: 1 | O70: Deseable que sea digital
K71: Negatoscopio / Equipo para visualización de imágenes | L71: 1
K72: Lámpara de examen rodable | L72: 1
K73: Set de recipientes para el manejo de desechos peligrosos y no peligrosos | L73: 1 | M73: EQ_07
K74: Silla confidente | L74: 2
K75: Silla | L75: 1
E76: Consultorio de Psicología (Puede compartir con la Oficina de Trabajo Social y el Consultorio de Nutrición, pero debe asegurarse la privacidad del paciente mediante horarios diferenciados en cada prestación) | F76: AMBIENTE | G76: 1 | I76: Para construcciones nuevas deseable 12m2 | J76: Requerido | K76: Escritorio/Mesa de despacho | L76: 1 | M76: EQ_01
K77: Computador completo (Portátil o de escritorio) | L77: 1 | M77: EQ_02
K78: Armario/Vitrina/Archivador | L78: 1
K79: Basurero | L79: 1 | O79: Recipiente para desechos comunes
K80: Dispensador para solución hidroalcohólica | L80: 1
K81: Silla confidente | L81: 2
K82: Silla | L82: 1
E83: Consultorio de Nutrición (Puede compartir con la Oficina de Trabajo Social y el Consultorio de Psicología, pero debe asegurarse la privacidad del paciente mediante horarios diferenciados en cada prestación) | F83: AMBIENTE | G83: 1 | I83: Para construcciones nuevas deseable 12m2 | J83: Requerido | K83: Escritorio/Mesa de despacho | L83: 1 | M83: EQ_01
K84: Computador completo (Portátil o de escritorio) | L84: 1 | M84: EQ_02
K85: Armario/Vitrina/Archivador | L85: 1
K86: Plicómetro | L86: 1
K87: Cinta métrica | L87: 1
K88: Báscula + tallimetro | L88: 1
K89: Balanza de impedancia | L89: 1 | N89: Condición | O89: Si cuenta con este ítem, se justifica no tener la balanza
K90: Silla confidente | L90: 2
K91: Silla | L91: 1
K92: Basurero | L92: 1 | O92: Recipiente para desechos comunes
K93: Dispensador para solución hidroalcohólica | L93: 1
D94: INSTALACIONES | E94: Estructura General | F94: INSTALACIÓN | G94: 1 | H94: EG_01 | J94: Requerido
E95: Instalaciones Generales | F95: INSTALACIÓN | G95: 1 | H95: IG_01 | J95: Requerido
A96: APOYO TERAPÉUTICO | B96: ATENCIÓN DE APOYO TERAPÉUTICO | C96: Área de Procedimientos | D96: AMBIENTES | E96: Área de Lavado de Manos | F96: AMBIENTE | G96: 1 | I96: Será requerido en el caso de realizar y reparar accesos vasculares y/o insertar catéteres peritoneales | J96: Condición | K96: Lavabo quirúrgico | L96: 1
K97: Dispensador de jabón | L97: 1
E98: Sala de procedimientos (Debe existir acuerdo con un establecimiento que cuente con atención en centro quirúrgico para realización y reparación de accesos vasculares y/o inserción de catéteres peritoneales, en caso de no haber convenio se hará requerido) | F98: AMBIENTE | G98: 1 | I98: Para construcciones nuevas deseable 16m2 | J98: Condición | K98: Camilla de exploración/Mesa de operaciones | L98: 1 | O98: Será requerida la mesa de operaciones si se realizan y reparan accesos vasculares y/o insertan catéteres peritoneales
K99: Porta sueros | L99: 1
K100: Tensiómetro para adultos | L100: 1
K101: Estetoscopio para adultos | L101: 1
K102: Tensiómetro pediátrico | L102: 1 | N102: Condición | O102: Se justifica cuando el tensiómetro para adultos cuenta con brazaletes para tallas pediátricas / Será requerido en el caso de ofertar prestación pediátrica
K103: Estetoscopio pediátrico | L103: 1 | N103: Condición | O103: Será requerido en el caso de ofertar prestación pediátrica
K104: Coche de paro completo y reanimación | L104: 1 | M104: EQ_09 | N104: Condición | O104: Será requerido si se realizan y reparan accesos vasculares y/o insertan catéteres peritoneales/Se justifica si hay acceso directo a la sala de tratamiento de diálisis
K105: Desfibrilador | L105: 1 | N105: Condición | O105: Será requerido si se realizan y reparan accesos vasculares y/o insertan catéteres peritoneales/Se justifica si hay acceso directo a la sala de tratamiento de diálisis
K106: Electrocardiógrafo | L106: 1 | N106: Condición | O106: Será requerido si se realizan y reparan accesos vasculares y/o insertan catéteres peritoneales/Se justifica si hay acceso directo a la sala de tratamiento de diálisis
K107: Equipo de oxígeno portátil | L107: 1 | N107: Condición | O107: Será requerido si se realizan y reparan accesos vasculares y/o insertan catéteres peritoneales/Se justifica si hay acceso directo a la sala de tratamiento de diálisis/Se justifica si posee red centralizada de gases medicinales
K108: Aspirador de secreciones portátil | L108: 1 | N108: Condición | O108: Será requerido si se realizan y reparan accesos vasculares y/o insertan catéteres peritoneales/Se justifica si hay acceso directo a la sala de tratamiento de diálisis/Se justifica si posee red centralizada de gases medicinales
K109: Lámpara quirúrgica básica cielítica portátil o fija/Lámpara de examen rodable | L109: 1 | O109: Será requerido la lámpara quirúrgica si se realizan y reparan accesos vasculares y/o insertan catéteres peritoneales
K110: Monitor de parámetros vitales | L110: 1 | N110: Condición | O110: Será requerido si se realizan y reparan accesos vasculares y/o insertan catéteres peritoneales
K111: Silla/taburete giratorio | L111: 1
K112: Coche de curaciones | L112: 1 | M112: EQ_08
K113: Mesa mayo | L113: 1
K114: Equipo de cirugía general - cirugía mayor | L114: 1 | M114: EQ_30 | N114: Condición | O114: Será requerido en el caso de que realice inserción de catéteres
K115: Equipo de cirugía para accesos vasculares | L115: 1 | M115: EQ_23 | N115: Condición | O115: Será requerido en el caso de que realice y repare accesos vasculares
K116: Mesa para instrumental | L116: 1 | N116: Condición
K117: Soporte bajo rodado, una cubeta acero inoxidable | L117: 1 | N117: Condición | O117: Será requerido si se realizan y reparan accesos vasculares y/o insertan catéteres peritoneales
K118: Set de recipientes para el manejo de desechos peligrosos y no peligrosos | L118: 1 | M118: EQ_07
K119: Flujómetro para O2 con humidificador | L119: 1 | N119: Condición | O119: Será requerido si se realizan y reparan accesos vasculares y/o insertan catéteres peritoneales
E120: Zona de esterilización | F120: AMBIENTE | G120: 1 | I120: Se convierte en Requerido si existe la Sala de Procedimientos. Puede estar externalizado, pero se debe demostrar la gestión | J120: Condición | K120: Esterilizador a vapor / calor seco | L120: 1
K121: Dispensador de papel toalla | L121: 1
K122: Dispensador de jabón | L122: 1
K123: Basurero | L123: 1 | O123: Recipiente para desechos comunes
K124: Mesón con fregadero | L124: 1
D125: INSTALACIONES | E125: Estructura General | F125: INSTALACIÓN | G125: 1 | H125: EG_01 | J125: Condición
E126: Instalaciones Generales | F126: INSTALACIÓN | G126: 1 | H126: IG_01 | J126: Condición
C127: Área de Soporte y Suministros (Esta área funcional debe estar centralizada y no debe estar en contacto con las áreas de tratamiento) | D127: AMBIENTES | E127: Cuarto de limpieza | F127: AMBIENTE | G127: 1 | I127: Para construcciones nuevas deseable 2m2 | J127: Requerido | K127: Coche de limpieza | L127: 1
K128: Stock de Insumos de Limpieza | L128: 1 | M128: EQ_05
K129: Estantería | L129: 1
K130: Lavadero con poza profunda para el preparado y enjuague de los útiles de limpieza | L130: 1
E131: Almacenamiento intermedio o temporal de desechos | F131: AMBIENTE | G131: 1 | I131: Para construcciones nuevas deseable 4m2/Será requerido en los establecimientos cuya generación supere los 65 Kg/día de desechos sanitarios y si se realizan y reparan accesos vasculares y/o insertan catéteres peritoneales | J131: Condición | K131: Set de recipientes para el manejo de desechos peligrosos y no peligrosos | L131: 1 | M131: EQ_07
E132: Lencería | F132: AMBIENTE | G132: 1 | I132: Para construcciones nuevas 4m2/Será requerido en el caso de contar con lencería que deba ser almacenada | J132: Condición | K132: Estantería | L132: 1
K133: Coche de ropa limpia | L133: 1
D134: INSTALACIONES | E134: Estructura General | F134: INSTALACIÓN | G134: 1 | H134: EG_01 | J134: Requerido
E135: Instalaciones Generales | F135: INSTALACIÓN | G135: 1 | H135: IG_01 | J135: Requerido
C136: Área de Tratamiento de Hemodiálisis | D136: AMBIENTES | E136: Estación de enfermería | F136: AMBIENTE | G136: 1 | I136: Para construcciones nuevas deseable 6m2 | J136: Requerido | K136: Mostrador/Escritorio | L136: 1 | M136: EQ_01
K137: Computador completo (Portátil o de escritorio) | L137: 1 | M137: EQ_02
K138: Coche de curaciones | L138: 1 | M138: EQ_08
K139: Coche de paro completo y reanimación | L139: 1 | M139: EQ_09
K140: Desfibrilador | L140: 1
K141: Electrocardiógrafo | L141: 1 | O141: Se justifica si está incluido en el desfibrilador
K142: Equipo de oxígeno portátil | L142: 1
K143: Estetoscopio para adultos | L143: 1
K144: Tensiómetro para adultos | L144: 1
K145: Tensiómetro pediátrico | L145: 1 | N145: Condición | O145: Se justifica cuando el tensiómetro para adultos cuenta con brazaletes para tallas pediátricas / Será requerido en el caso de ofertar prestación pediátrica
K146: Estetoscopio pediátrico | L146: 1 | N146: Condición | O146: Será requerido en el caso de ofertar prestación pediátrica
K147: Aspirador de secreciones portátil | L147: 1
K148: Set de recipientes para el manejo de desechos peligrosos y no peligrosos | L148: 1 | M148: EQ_07
K149: Silla | L149: 1
K150: Teléfono | L150: 1
E151: Sala de Hemodiálisis - No Contaminados - Compartido | F151: AMBIENTE | G151: 1 | J151: Requerido | K151: Mesa auxiliar | L151: 1 | O151: Se justifica si tiene incorporada en el sillón
K152: Lavabo | L152: 1
K153: Dispensador de papel toalla | L153: 1
K154: Dispensador de jabón | L154: 1
K155: Basurero | L155: 1 | O155: Recipiente para desechos comunes
K156: Sistema Audiovisual de Información | L156: 1 | M156: EQ_03 | O156: Será requerido que todos los usuarios tengan visibilidad adecuada
K157: Balanza electrónica | L157: 1 | O157: Con peso de precisión de usuarios que permita el pesado de personas con discapacidad
K158: Flujómetro para O2 con humidificador | L158: 1 | O158: Se justifica si el equipamiento se acopla a red centralizada o a tanque
K159: Máquina de hemodiálisis de resguardo/Back up | L159: 1 | O159: Será requerida una por cada 6 puestos
E160: Sala de Hemodiálisis - No Contaminados - Por puestos | F160: AMBIENTE | G160: 1 | I160: Para construcciones nuevas deseable 6 m2 por puesto cuando es sillón | J160: Requerido | K160: Sillón para diálisis | L160: 1 | O160: Debe alcanzar la posición de Trendelenburg
K161: Máquina de hemodiálisis | L161: 1
K162: Máquina de Hemodialfiltración | L162: 1 | N162: Condición
K163: Set de recipientes para el manejo de desechos peligrosos y no peligrosos | L163: 1 | M163: EQ_07 | O163: Se requiere recipientes para manejo de desechos peligrosos-infecciosos y peligrosos-cortopunzntes/Se justifica el recipiente para desechos peligrosos - cortopunzantes si se encuentra centralizado en la estación de enfermería
E164: Sala de Hemodiálisis - Contaminados - Compartido | F164: AMBIENTE | G164: 1 | J164: Condición | K164: Mesa auxiliar | L164: 1 | O164: Se justifica si tiene incorporada en el sillón
K165: Lavabo | L165: 1
K166: Dispensador de papel toalla | L166: 1
K167: Dispensador de jabón | L167: 1
K168: Basurero | L168: 1 | O168: Recipiente para desechos comunes
K169: Sistema Audiovisual de Información | L169: 1 | M169: EQ_03 | O169: Será requerido que todos los usuarios tengan visibilidad adecuada
K170: Balanza electrónica | L170: 1 | O170: Con peso de precisión de usuarios que permita el pesado de personas con discapacidad
K171: Flujómetro para O2 con humidificador | L171: 1 | O171: Se justifica si el equipamiento se acopla a red centralizada o a tanque
K172: Máquina de hemodiálisis de resguardo/Back up | L172: 1 | O172: Será requerida una por cada 6 puestos
E173: Sala de Hemodiálisis - Contaminados - Por puestos | F173: AMBIENTE | G173: 1 | I173: Para construcciones nuevas deseable 6 m2 por puesto cuando es sillón y 8m2 cuando es camilla | J173: Condición | K173: Sillón para diálisis | L173: 1 | O173: Debe alcanzar la posición de Trendelenburg
K174: Máquina de hemodiálisis | L174: 1
K175: Máquina de Hemodialfiltración (doble ósmosis inversa) | L175: 1 | N175: Condición
K176: Set de recipientes para el manejo de desechos peligrosos y no peligrosos | L176: 1 | M176: EQ_07 | O176: Se requiere recipientes para manejo de desechos peligrosos-infecciosos y peligrosos-cortopunzntes/Se justifica el recipiente para desechos peligrosos - cortopunzantes si se encuentra centralizado en la estación de enfermería
D177: INSTALACIONES | E177: Estructura General | F177: INSTALACIÓN | G177: 1 | H177: EG_01 | J177: Requerido
E178: Instalaciones Generales | F178: INSTALACIÓN | G178: 1 | H178: IG_01 | J178: Requerido
C179: Área Técnica de Apoyo | D179: AMBIENTES | E179: Limpio | F179: AMBIENTE | G179: 1 | I179: Para construcciones nuevas deseable 6m2 | J179: Requerido | K179: Mesón con lavabo | L179: 1
K180: Dispensador de papel toalla | L180: 1
K181: Dispensador de jabón | L181: 1
K182: Armario/Vitrina/Estantería | L182: 1
K183: Basurero | L183: 1 | O183: Recipiente para desechos comunes
E184: Usado | F184: AMBIENTE | G184: 1 | I184: Para construcciones nuevas deseable 6m2 | J184: Requerido | K184: Estantería | L184: 1
K185: Basurero | L185: 2 | O185: Recipientes para desechos comunes y peligrosos
K186: Fregadero | L186: 1
D187: INSTALACIONES | E187: Estructura General | F187: INSTALACIÓN | G187: 1 | H187: EG_01 | J187: Requerido
E188: Instalaciones Generales | F188: INSTALACIÓN | G188: 1 | H188: IG_01 | J188: Requerido
C189: Área de Diálisis Peritoneal | D189: AMBIENTES | E189: Sala de entrenamiento | F189: AMBIENTE | G189: 1 | I189: Para construcciones nuevas deseable 20m2 | J189: Condición | K189: Silla | L189: 2
K190: Coche de curaciones | L190: 1 | M190: EQ_08
K191: Mesa auxiliar para equipos | L191: 1
K192: Camilla/Sillón reclinable | L192: 1 | N192: Condición
K193: Mesón con doble Lavabo | L193: 1
K194: Porta sueros | L194: 1
K195: Máquina Cicladora | L195: 2 | O195: Una máquina es de reserva
K196: Set de recipientes para el manejo de desechos peligrosos y no peligrosos | L196: 1 | M196: EQ_07 | O196: Se justifica el recipiente de desechos peligrosos - cortopunzantes
K197: Sistema Audiovisual de Información | L197: 1 | M197: EQ_03
K198: Camilla/Sillón Reclinable | L198: 1
E199: Área de recambios | F199: AMBIENTE | G199: 1 | I199: Para construcciones nuevas deseable 8m2 | J199: Condición | K199: Silla | L199: 1
K200: Porta sueros | L200: 1
... 327 more rows

Sheet BaseTalentoHumano (hidden)
A1: CENTRO ESPECIALIZADO EN SALUD RENAL
A2: GRUPO 00 | B2: GRUPO 01 | C2: GRUPO 02 | D2: Personal | E2: Tipo Personal | F2: Cant Mínima | G2: Por Puestos; Pacientes;Servicios; Turnos | H2: ANEXO | I2: Observaciones | J2: TIPO
A3: ADMINISTRATIVO | B3: ADMISIÓN Y ESTADISTICA | C3: Recepción, Admisión e Información | D3: Analista de Admisiones y Estadísticas | E3: ADMINISTRATIVO | F3: 1 | J3: Requerido
A4: ASISTENCIAL | B4: CONSULTA EXTERNA | C4: Área de Atención de Consulta | D4: Licenciada/o en Enfermería | E4: ASISTENCIAL | F4: 1 | I4: Requerida en el caso de haber más de 5 consultorios médicos | J4: Condición
D5: Médico Especialista en Nefrología | E5: ASISTENCIAL | F5: 1 | I5: Puede ser el mismo director médico | J5: Requerido
D6: Psicologo Clínico | E6: ASISTENCIAL | F6: 1 | J6: Requerido
D7: Nutricionista | E7: ASISTENCIAL | F7: 1 | J7: Requerido
A8: APOYO TERAPÉUTICO | B8: ATENCIÓN DE APOYO TERAPÉUTICO | C8: Área de Procedimientos | D8: Médico Especialista en Cirugía Vascular | E8: ASISTENCIAL | F8: 1 | I8: Será requerido en el caso de que realice y repare accesos vasculares | J8: Condición
D9: Médico Especialista en Cirugía Digestiva o en Cirugía General con experiencia en colocación de catéteres peritoneales | E9: ASISTENCIAL | F9: 1 | I9: Será requerido en el caso de que realice inserción de catéteres | J9: Condición
D10: Licenciada/o en Enfermería con experiencia en instrumentación | E10: ASISTENCIAL | F10: 1 | I10: Será requerido en el caso de que realice inserción de catéteres | J10: Condición
D11: Auxiliar o Asistente de Enfermería | E11: ASISTENCIAL | F11: 1 | I11: Será requerido en el caso de que realice inserción de catéteres | J11: Condición
C12: Área de Tratamiento de Hemodiálisis | D12: Médico Tratante especialista en Nefrología o cualquier Médico con experiencia mínima de 2 años en servicios de diálisis y/o emergencia y/o terapia intensiva y/o formación en diálisis certificada por Universidades acreditadas, notarizados) (1 profesional por turno) | E12: ASISTENCIAL | F12: 1 | J12: Requerido
D13: Licenciada/o en Enfermería con experiencia mínima de 1 año en servicios de diálisis y/o emergencia y/o terapia intensiva y/o formación en diálisis certificada por Universidades acreditadas, notarizados) (1 profesional por cada 7 puestos) | E13: ASISTENCIAL | F13: 1 | G13: 7 | J13: Requerido
D14: Auxiliar o Asistente de Enfermería (1 por cada 14 puestos) (personal de enfermería con experiencia en diálisis) | E14: ASISTENCIAL | F14: 1 | G14: 14 | J14: Requerido
C15: Área de Diálisis Peritoneal | D15: Licenciada/o en Enfermería con experiencia mínima de 1 año en servicios de diálisis y/o emergencia y/o terapia intensiva y/o formación en diálisis certificada por Universidades acreditadas, notarizados) (1 profesional por cada 50 pacientes) | E15: ASISTENCIAL | F15: 1 | G15: 50 | I15: Será requerida en el caso de contar con la prestación | J15: Condición
A16: APOYO DIAGNÓSTICO | B16: DIAGNÓSTICO EN LABORATORIO (LABORATORIO DE ANÁLISIS CLÍNICO) | C16: Área de Análisis | D16: Tecnólogo /Licenciado en Laboratorio Clínico | E16: ASISTENCIAL | F16: 1 | J16: Condición
D17: Auxiliar de Laboratorio | E17: ADMINISTRATIVO | F17: 1 | J17: Condición
A18: APOYO TERAPÉUTICO | B18: DOTACIÓN DE MEDICAMENTOS Y DISPOSITIVOS MÉDICOS (FARMACIA) | C18: Dispensación | D18: Químico / Bioquímico/Farmacéutico | E18: ADMINISTRATIVO | F18: 1 | J18: Requerido
D19: Asistente de Farmacia | E19: ASISTENCIAL | F19: 1 | J19: Requerido
A20: ADMINISTRATIVO | B20: ADMINISTRACIÓN TÉCNICA | C20: Área Técnica | D20: Director Médico (Médico espcialista en Nefrología) | E20: ADMINISTRATIVO | F20: 1 | I20: Puede ser el mismo encargado de dar la prestación de consulta externa | J20: Requerido
D21: Secretaria | E21: ADMINISTRATIVO | F21: 1 | I21: Puede ser el mismo Analista de Admisión y Estadísticas | J21: Requerido
D22: Trabajador Social | E22: ASISTENCIAL | F22: 1 | J22: Requerido
D23: Jefe de Enfermería (Lcda. (o) en Enfermería con experiencia mínima de 2 años en servicios de diálisis y/o emergencia y/o terapia intensiva y/o formación en diálisis certificada por Universidades acreditadas, notarizados) | E23: ADMINISTRATIVO | F23: 1 | J23: Requerido
A24: GENERAL | B24: SERVICIOS INTERNOS DE APOYO | C24: Área de Apoyo y almacenamiento ( suministros e insumos) para el establecimiento | D24: Auxiliar de Servicios | E24: ADMINISTRATIVO | F24: 1 | J24: Requerido
C25: Limpieza | D25: Auxiliar de Servicios | E25: ADMINISTRATIVO | F25: 1 | J25: Requerido

Sheet BaseNorma (hidden)
A3: CENTRO ESPECIALIZADO EN SALUD RENAL
A4: GRUPO 00 | B4: GRUPO 01 | C4: GRUPO 02 | D4: Personal | E4: Cant Mínima | F4: Factor | G4: Observaciones | H4: TIPO
A5: ADMINISTRATIVO | B5: ADMISIÓN Y ESTADISTICA | C5: Admisión, Información y Recepción | D5: Instructivo para el Llenado del Registro Diario Automatizado de Consultas y Atenciones Ambulatorias (RDACAA). 2013 | E5: 1 | G5: Será requerido para Establecimientos del MSP | H5: Condición
D6: Manual de Instalación del Tarjetero índice | E6: 1 | G6: Será requerido para Establecimientos del MSP | H6: Condición
D7: Manual del Usuario del Tarjetero Indice | E7: 1 | G7: Será requerido para Establecimientos del MSP | H7: Condición
D8: Manual de Manejo, Archivo de las Historias Clínicas | E8: 1 | H8: Requerido
D9: Norma Técnica: Subsistema de Referencia, Derivación, Contrareferencia, Referencia inversa y Transferencia del Sistema Nacional de Salud. 2014 | E9: 1 | H9: Requerido
D10: Políticas Uso de Servicios de Red y Servicios Informáticos del Ministerio de Salud Pública | E10: 1 | G10: Será requerido para Establecimientos del MSP | H10: Condición
D11: Modelo de Gestión de requerimientos e inconformidades ciudadanas para mejorar los servicios de salud a nivel nacional | E11: 1 | H11: Requerido
D12: Reglamento de Señalización de Seguridad para Establecimientos de Salud | E12: 1 | H12: Requerido
D13: Registro de Indicadores de Morbilidad y Mortalidad | E13: 1 | H13: Requerido
D14: Acuerdo Ministerial 5212: Tipología Sustitutiva para Homologar los Establecimientos de Salud por Niveles de Atención y Servicios de Apoyo del Sistema Nacional de Salud | E14: 1 | H14: Requerido
D15: Manual de Normas de Bioseguridad para la Red de Servicios de Salud en el Ecuador | E15: 1 | H15: Requerido
D16: Norma Técnica: Atención Integral en Violencia de Género. 2014 | E16: 1 | H16: Requerido
D17: Protocolos de Procedimientos de Limpieza | E17: 1 | H17: Requerido
D18: Registro de limpieza del área funcional del Establecimiento | E18: 1 | H18: Requerido
D19: Registro de Mantenimiento de Equipos: Preventivo y/o Correctivo | E19: 1 | H19: Requerido
D20: Acuerdo Ministerial 115: Manual de Seguridad del Paciente- Usuario | E20: 1 | H20: Requerido
D21: Acuerdo Ministerial 5186: Reglamento Interministerial para la Gestión Integral de Desechos Sanitarios | E21: 1 | H21: Requerido
D22: Registro de Sistema de Información y Análisis Estadístico que Incluya: Consultas, Interconsultas, Procedimientos, Índice de Infecciones, Morbimortalidad, Manejo de Accesos Vasculare y/o Catéteres Peritoneales, Anemia, Hipertensión Arterial, Enfermedad Ósea, Nutrición, Atención Psicológica, Trabajo Social y Complicaciones de la hemodiálisis y/o Diálisis Peritoneal | E22: 1 | H22: Requerido
A23: ASISTENCIAL | B23: CONSULTA EXTERNA | C23: Enfermería (En el caso de contar con la prestación, las condiciones se vuelven requeridas) | D23: Instructivo para el Llenado del Registro Diario Automatizado de Consultas y Atenciones Ambulatorias (RDACAA). 2013 | E23: 1 | G23: Será requerido para Establecimientos del MSP | H23: Condición
D24: Clasificación Estadística Internacional de Enfermedades y Problemas Relacionados con la Salud. Décima Revisión - CIE10 | E24: 1 | H24: Condición
D25: Reglamento a la Ley Organica de Salud | E25: 1 | H25: Condición
D26: Guía para la adecuación cultural de los servicios de salud. 2006 | E26: 1 | H26: Condición
D27: Manual del modelo de atención integral en salud - MAIS. 2013 | E27: 1 | H27: Condición
D28: Ley Derechos y Amparo al Paciente | E28: 1 | H28: Condición
D29: Cuadro nacional de medicamentos básicos y registro terapéutico. 9na revisión | E29: 1 | H29: Condición
D30: Acuerdo Ministerial 4693: Reforma a la 9na. Revisión del Cuadro Nacional de Medicamentos Básicos y Registro Terapéutico | E30: 1 | H30: Condición
D31: Modelo de gestión de aplicación de consentimiento informado en práctica asistencial. 2015 | E31: 1 | H31: Condición
D32: Guía de Práctica Clínica: Cuidados Paliativos. 2014 | E32: 1 | H32: Condición
D33: Norma de atención Cuidados Paliativos. 2015 | E33: 1 | H33: Condición
D34: Guía de cuidados paliativos para el ciudadano | E34: 1 | H34: Condición
D35: Manual de procedimientos de Enfermería | E35: 1 | H35: Condición
D36: Guía de Práctica Clínica: Lupus eritematoso sistémico (LES). 2013 | E36: 1 | H36: Condición
D37: Guía de Práctica Clínica: Transfusión de sangre y sus componentes. 2013 | E37: 1 | H37: Condición
D38: Guía de Práctica Clínica: Prevención, Diagnóstico, Tratamiento y Control de la Tuberculosis. 2015 | E38: 1 | H38: Condición
D39: Manual de Normas y Procedimientos para el Control de la Tuberculosis en Ecuador. 2010 | E39: 1 | H39: Condición
D40: Guía de atención integral de adultos y Adolescentes con infección por VIH/SIDA. 2012 | E40: 1 | G40: Será requerido en el caso de ofertar la prestación | H40: Condición
D41: Normas y protocolos de atención integral de salud de las y los adultos mayores - 1. 2010 | E41: 1 | H41: Condición
D42: Normas y protocolos de atención integral de salud de las y los adultos mayores - 2. 2010 | E42: 1 | H42: Condición
D43: Normas y protocolos de atención integral de salud de las y los adultos mayores - 3. 2010 | E43: 1 | H43: Condición
D44: Manual para cuidadores de la persona adulta mayor dependiente | E44: 1 | H44: Condición
D45: Normas de atención integral a la niñez. 2011 | E45: 1 | G45: Será requerido en el caso de ofertar la prestación | H45: Condición
D46: Normas y procedimientos para la atención integral de salud a adolescentes. 2009 | E46: 1 | G46: Será requerido en el caso de ofertar la prestación | H46: Condición
D47: Guía de Supervisión: Salud de Adolescentes. 2014 | E47: 1 | G47: Será requerido en el caso de ofertar la prestación | H47: Condición
D48: Promoción de la Salud Mental: Manejo del Estrés | E48: 1 | H48: Condición
D49: Guía de Abordaje del Tabaquismo en Atención Primaria de Salud | E49: 1 | H49: Condición
D50: Manual de procedimientos de antropometría y determinación de la presión arterial. 2012 | E50: 1 | H50: Condición
D51: Acuerdo Ministerial 114: Vigilancia epidemiológica de las enfermedades crónicas no transmisibles | E51: 1 | H51: Requerido
D52: Acuerdo Ministerial 1124: Instructivo para el uso de la Receta Médica. | E52: 1 | G52: Será requerido para Establecimientos del MSP | H52: Condición
D53: Acuerdo Ministerial 4912: Reforma al Reglamento para la Gestión del Suministro de Medicamentos y Control Administrativo Financiero, y el Instructivo para el uso de la Receta Médica. | E53: 1 | G53: Será requerido para Establecimientos del MSP | H53: Condición
D54: Acuerdo Ministerial 115: Manual de Seguridad del Paciente- Usuario | E54: 1 | H54: Requerido
D55: Acuerdo Ministerial 5186: Reglamento Interministerial para la Gestión Integral de Desechos Sanitarios | E55: 1 | H55: Condición
D56: Manual de lencería sanitaria para los establecimientos de salud pertenecientes al MSP. 2014 | E56: 1 | G56: Será requerido para Establecimientos del MSP | H56: Condición
D57: Manual de Normas de Bioseguridad para la Red de Servicios de Salud en el Ecuador | E57: 1 | H57: Condición
D58: Protocolos de Procedimientos de Limpieza, Desinfección y Esterilización | E58: 1 | H58: Condición
D59: Registro de limpieza y desinfección del área funcional del Establecimiento | E59: 1 | H59: Condición
D60: Registro de Mantenimiento de Equipos: Preventivo y/o Correctivo | E60: 1 | H60: Condición
C61: Consultorio Médico | D61: Instructivo para el Llenado del Registro Diario Automatizado de Consultas y Atenciones Ambulatorias (RDACAA). 2013 | E61: 1 | G61: Será requerido para Establecimientos del MSP | H61: Condición
D62: Clasificación Estadística Internacional de Enfermedades y Problemas Relacionados con la Salud. Décima Revisión - CIE10 | E62: 1 | H62: Requerido
D63: Reglamento a la Ley Organica de Salud | E63: 1 | H63: Requerido
D64: Guía para la adecuación cultural de los servicios de salud. 2006 | E64: 1 | H64: Requerido
D65: Manual del modelo de atención integral en salud - MAIS. 2013 | E65: 1 | H65: Requerido
D66: Ley Derechos y Amparo al Paciente | E66: 1 | H66: Requerido
D67: Ley de sustancias estupefacientes y Psicotrópicas | E67: 1 | H67: Requerido
D68: Cuadro nacional de medicamentos básicos y registro terapéutico. 9na revisión | E68: 1 | H68: Requerido
D69: Acuerdo Ministerial 4693: Reforma a la 9na. Revisión del Cuadro Nacional de Medicamentos Básicos y Registro Terapéutico | E69: 1 | H69: Requerido
D70: Norma Técnica: Subsistema de Referencia, Derivación, Contrareferencia, Referencia inversa y Transferencia del Sistema Nacional de Salud. 2014 | E70: 1 | H70: Requerido
D71: Registro de Evolución de la Atención Médica y Procedimientos Efectuados | E71: 1 | H71: Requerido
D72: Registro de Indicadores para la Satisfacción del Usuario | E72: 1 | H72: Requerido
D73: Guía de Práctica Clínica: Cuidados Paliativos. 2014 | E73: 1 | H73: Requerido
D74: Guía de Práctica Clínica: Lupus eritematoso sistémico (LES). 2013 | E74: 1 | H74: Requerido
D75: Guía de Práctica Clínica: Transfusión de sangre y sus componentes. 2013 | E75: 1 | H75: Requerido
D76: Guía de atención integral de adultos y Adolescentes con infección por VIH/SIDA. 2012 | E76: 1 | G76: Será requerido en el caso de ofertar la prestación | H76: Condición
D77: Guía de Práctica Clínica: Prevención, Diagnóstico, Tratamiento y Control de la Tuberculosis. 2015 | E77: 1 | H77: Requerido
D78: Protocolo: Atención integral del consumo nocivo de alcohol, tabaco y otras drogas. 2016 | E78: 1 | H78: Requerido
D79: Manual de Normas y Procedimientos para el Control de la Tuberculosis en Ecuador. 2010 | E79: 1 | H79: Requerido
D80: Normas y protocolos para la alimentación y nutrición en la atención integral a personas que viven con VIH/SIDA. 2010 | E80: 1 | G80: Será requerido en el caso de ofertar la prestación | H80: Condición
D81: Norma de atención Cuidados Paliativos. 2015 | E81: 1 | H81: Requerido
D82: Guía de cuidados paliativos para el ciudadano | E82: 1 | H82: Requerido
D83: Normas y protocolos de atención integral de salud de las y los adultos mayores - 1. 2010 | E83: 1 | H83: Requerido
D84: Normas y protocolos de atención integral de salud de las y los adultos mayores - 2. 2010 | E84: 1 | H84: Requerido
D85: Normas y protocolos de atención integral de salud de las y los adultos mayores - 3. 2010 | E85: 1 | H85: Requerido
D86: Normas y procedimientos para la atención integral de salud a adolescentes. 2009 | E86: 1 | G86: Será requerido en el caso de ofertar la prestación | H86: Condición
D87: Guía de Supervisión: Salud de Adolescentes. 2014 | E87: 1 | G87: Será requerido en el caso de ofertar la prestación | H87: Condición
D88: Manual de procedimientos de antropometría y determinación de la presión arterial. 2012 | E88: 1 | H88: Requerido
D89: Acuerdo Ministerial 1124: Instructivo para el uso de la Receta Médica. | E89: 1 | G89: Será requerido para Establecimientos del MSP | H89: Condición
D90: Acuerdo Ministerial 4912: Reforma al Reglamento para la Gestión del Suministro de Medicamentos y Control Administrativo Financiero, y el Instructivo para el uso de la Receta Médica. | E90: 1 | G90: Será requerido para Establecimientos del MSP | H90: Condición
D91: Acuerdo Ministerial 115: Manual de Seguridad del Paciente- Usuario | E91: 1 | H91: Requerido
D92: Acuerdo Ministerial 5186: Reglamento Interministerial para la Gestión Integral de Desechos Sanitarios | E92: 1 | H92: Requerido
D93: Manual de Normas de Bioseguridad para la Red de Servicios de Salud en el Ecuador | E93: 1 | H93: Requerido
D94: Protocolos de Procedimientos de Limpieza, Desinfección y Esterilización | E94: 1 | H94: Requerido
D95: Registro de limpieza y desinfección del área funcional del Establecimiento | E95: 1 | H95: Requerido
D96: Registro de Mantenimiento de Equipos: Preventivo y/o Correctivo | E96: 1 | H96: Requerido
C97: Consultorio de Psicología | D97: Instructivo para el Llenado del Registro Diario Automatizado de Consultas y Atenciones Ambulatorias (RDACAA). 2013 | E97: 1 | G97: Será requerido para Establecimientos del MSP | H97: Condición
D98: Clasificación Estadística Internacional de Enfermedades y Problemas Relacionados con la Salud. Décima Revisión - CIE10 | E98: 1 | H98: Requerido
D99: Reglamento a la Ley Organica de Salud | E99: 1 | H99: Requerido
D100: Guía para la adecuación cultural de los servicios de salud. 2006 | E100: 1 | H100: Requerido
D101: Manual del modelo de atención integral en salud - MAIS. 2013 | E101: 1 | H101: Requerido
D102: Ley Derechos y Amparo al Paciente | E102: 1 | H102: Requerido
D103: Ley de sustancias estupefacientes y Psicotrópicas | E103: 1 | H103: Requerido
D104: Cuadro nacional de medicamentos básicos y registro terapéutico. 9na revisión | E104: 1 | H104: Requerido
D105: Acuerdo Ministerial 4693: Reforma a la 9na. Revisión del Cuadro Nacional de Medicamentos Básicos y Registro Terapéutico | E105: 1 | H105: Requerido
D106: Norma Técnica: Subsistema de Referencia, Derivación, Contrareferencia, Referencia inversa y Transferencia del Sistema Nacional de Salud. 2014 | E106: 1 | H106: Requerido
D107: Fundamentos de la Prevención en Materia de Drogas | E107: 1 | G107: Será requerido para Establecimientos del MSP | H107: Condición
D108: Guía de Abordaje del Tabaquismo en Atención Primaria de Salud | E108: 1 | G108: Será requerido para Establecimientos del MSP | H108: Condición
D109: Protocolo: Atención integral del consumo nocivo de alcohol, tabaco y otras drogas. 2016 | E109: 1 | H109: Requerido
D110: Guía de Práctica Clínica: Lupus eritematoso sistémico (LES). 2013 | E110: 1 | H110: Requerido
D111: Plan Estratégico Nacional de Salud Mental 2015 - 2017 | E111: 1 | H111: Requerido
D112: Modelo de Atención de Salud Mental, en el Marco del Modelo de Atención Integral de Salud (MAIS) - con enfoque familiar, comunitario e intercultural | E112: 1 | H112: Requerido
D113: Acuerdo Ministerial 1124: Instructivo para el uso de la Receta Médica. | E113: 1 | G113: Será requerido para Establecimientos del MSP | H113: Condición
D114: Acuerdo Ministerial 4912: Reforma al Reglamento para la Gestión del Suministro de Medicamentos y Control Administrativo Financiero, y el Instructivo para el uso de la Receta Médica. | E114: 1 | G114: Será requerido para Establecimientos del MSP | H114: Condición
D115: Acuerdo Ministerial 115: Manual de Seguridad del Paciente- Usuario | E115: 1 | H115: Requerido
D116: Acuerdo Ministerial 5186: Reglamento Interministerial para la Gestión Integral de Desechos Sanitarios | E116: 1 | H116: Requerido
D117: Manual de Normas de Bioseguridad para la Red de Servicios de Salud en el Ecuador | E117: 1 | H117: Requerido
D118: Protocolos de Procedimientos de Limpieza, Desinfección y Esterilización | E118: 1 | H118: Requerido
D119: Registro de limpieza y desinfección del área funcional del Establecimiento | E119: 1 | H119: Requerido
D120: Registro de Mantenimiento de Equipos: Preventivo y/o Correctivo | E120: 1 | H120: Requerido
C121: Consultorio de Nutrición | D121: Instructivo para el Llenado del Registro Diario Automatizado de Consultas y Atenciones Ambulatorias (RDACAA). 2013 | E121: 1 | G121: Será requerido para Establecimientos del MSP | H121: Condición
D122: Clasificación Estadística Internacional de Enfermedades y Problemas Relacionados con la Salud. Décima Revisión - CIE10 | E122: 1 | H122: Requerido
D123: Reglamento a la Ley Organica de Salud | E123: 1 | H123: Requerido
D124: Guía para la adecuación cultural de los servicios de salud. 2006 | E124: 1 | H124: Requerido
D125: Manual del modelo de atención integral en salud - MAIS. 2013 | E125: 1 | H125: Requerido
D126: Ley Derechos y Amparo al Paciente | E126: 1 | H126: Requerido
D127: Cuadro nacional de medicamentos básicos y registro terapéutico. 9na revisión | E127: 1 | H127: Requerido
D128: Acuerdo Ministerial 4693: Reforma a la 9na. Revisión del Cuadro Nacional de Medicamentos Básicos y Registro Terapéutico | E128: 1 | H128: Requerido
D129: Norma Técnica: Subsistema de Referencia, Derivación, Contrareferencia, Referencia inversa y Transferencia del Sistema Nacional de Salud. 2014 | E129: 1 | H129: Requerido
D130: Normas y protocolos para la alimentación y nutrición en la atención integral a personas que viven con VIH/SIDA. 2010 | E130: 1 | G130: Será requerido en el caso de ofertar la prestación | H130: Condición
D131: Introducción a la Guía de actividad Física dirigido al personal de salud I. 2011 | E131: 1 | H131: Requerido
D132: Guía de actividad Física dirigido al personal de salud II. 2011 | E132: 1 | H132: Requerido
D133: Manual de procedimientos de antropometría y determinación de la presión arterial. 2012 | E133: 1 | H133: Requerido
D134: Acuerdo Ministerial 1124: Instructivo para el uso de la Receta Médica. | E134: 1 | G134: Será requerido para Establecimientos del MSP | H134: Condición
D135: Acuerdo Ministerial 4912: Reforma al Reglamento para la Gestión del Suministro de Medicamentos y Control Administrativo Financiero, y el Instructivo para el uso de la Receta Médica. | E135: 1 | G135: Será requerido para Establecimientos del MSP | H135: Condición
D136: Acuerdo Ministerial 115: Manual de Seguridad del Paciente- Usuario | E136: 1 | H136: Requerido
D137: Acuerdo Ministerial 5186: Reglamento Interministerial para la Gestión Integral de Desechos Sanitarios | E137: 1 | H137: Requerido
D138: Manual de Normas de Bioseguridad para la Red de Servicios de Salud en el Ecuador | E138: 1 | H138: Requerido
D139: Protocolos de Procedimientos de Limpieza, Desinfección y Esterilización | E139: 1 | H139: Requerido
D140: Registro de limpieza y desinfección del área funcional del Establecimiento | E140: 1 | H140: Requerido
D141: Registro de Mantenimiento de Equipos: Preventivo y/o Correctivo | E141: 1 | H141: Requerido
A142: APOYO TERAPÉUTICO | B142: ATENCIÓN DE APOYO TERAPÉUTICO | C142: Área de Procedimientos | D142: Instructivo para el Llenado del Registro Diario Automatizado de Consultas y Atenciones Ambulatorias (RDACAA). 2013 | E142: 1 | G142: Será requerido para Establecimientos del MSP | H142: Condición
D143: Norma Técnica: Subsistema de Referencia, Derivación, Contrareferencia, Referencia inversa y Transferencia del Sistema Nacional de Salud. 2014 | E143: 1 | H143: Condición
D144: Modelo de gestión de aplicación de consentimiento informado en práctica asistencial. 2015 | E144: 1 | H144: Condición
D145: Lista de Verificación de la Seguridad de la Cirugía | E145: 1 | H145: Condición
D146: Manual de Aplicación de la lista OMS de verificación de la seguridad de la cirugía. 2009 | E146: 1 | H146: Condición
D147: La Cirugía Segura Salva Vidas. 2013 | E147: 1 | H147: Condición
D148: Acuerdo Ministerial 115: Manual de Seguridad del Paciente- Usuario | E148: 1 | H148: Requerido
D149: Acuerdo Ministerial 5186: Reglamento Interministerial para la Gestión Integral de Desechos Sanitarios | E149: 1 | H149: Condición
D150: Manual de Normas de Bioseguridad para la Red de Servicios de Salud en el Ecuador | E150: 1 | H150: Condición
D151: Protocolos de Procedimientos de Limpieza, Desinfección y Esterilización | E151: 1 | H151: Condición
D152: Registro de limpieza y desinfección del área funcional del Establecimiento | E152: 1 | H152: Condición
D153: Registro de Mantenimiento de Equipos: Preventivo y/o Correctivo | E153: 1 | H153: Condición
C154: Área de Tratamiento de Hemodiálisis | D154: Instructivo para el Llenado del Registro Diario Automatizado de Consultas y Atenciones Ambulatorias (RDACAA). 2013 | E154: 1 | G154: Será requerido para Establecimientos del MSP | H154: Condición
D155: Clasificación Estadística Internacional de Enfermedades y Problemas Relacionados con la Salud. Décima Revisión - CIE10 | E155: 1 | H155: Requerido
D156: Reglamento a la Ley Organica de Salud | E156: 1 | H156: Requerido
D157: Guía para la adecuación cultural de los servicios de salud. 2006 | E157: 1 | H157: Requerido
D158: Manual del modelo de atención integral en salud - MAIS. 2013 | E158: 1 | H158: Requerido
D159: Ley Derechos y Amparo al Paciente | E159: 1 | H159: Requerido
D160: Ley de sustancias estupefacientes y Psicotrópicas | E160: 1 | H160: Requerido
D161: Cuadro nacional de medicamentos básicos y registro terapéutico. 9na revisión | E161: 1 | H161: Requerido
D162: Acuerdo Ministerial 4693: Reforma a la 9na. Revisión del Cuadro Nacional de Medicamentos Básicos y Registro Terapéutico | E162: 1 | H162: Requerido
D163: Norma Técnica: Subsistema de Referencia, Derivación, Contrareferencia, Referencia inversa y Transferencia del Sistema Nacional de Salud. 2014 | E163: 1 | H163: Requerido
D164: Protocolo de procedimientos de Hemodiálisis | E164: 1 | H164: Requerido
D165: Registro de Evolución de la Atención Médica y Procedimientos Efectuados | E165: 1 | H165: Requerido
D166: Registro de Indicadores para la Satisfacción del Usuario | E166: 1 | H166: Requerido
D167: Guía de Práctica Clínica: Transfusión de sangre y sus componentes. 2013 | E167: 1 | H167: Requerido
D168: Guía de atención integral de adultos y Adolescentes con infección por VIH/SIDA. 2012 | E168: 1 | G168: Será requerido en el caso de ofertar la prestación | H168: Condición
D169: Normas y protocolos de atención integral de salud de las y los adultos mayores - 1. 2010 | E169: 1 | H169: Requerido
D170: Normas y protocolos de atención integral de salud de las y los adultos mayores - 2. 2010 | E170: 1 | H170: Requerido
D171: Normas y protocolos de atención integral de salud de las y los adultos mayores - 3. 2010 | E171: 1 | H171: Requerido
D172: Normas y procedimientos para la atención integral de salud a adolescentes. 2009 | E172: 1 | G172: Será requerido en el caso de ofertar la prestación | H172: Condición
D173: Guía de Supervisión: Salud de Adolescentes. 2014 | E173: 1 | G173: Será requerido en el caso de ofertar la prestación | H173: Condición
D174: Manual de procedimientos de antropometría y determinación de la presión arterial. 2012 | E174: 1 | H174: Requerido
D175: Acuerdo Ministerial 115: Manual de Seguridad del Paciente- Usuario | E175: 1 | H175: Requerido
D176: Acuerdo Ministerial 5186: Reglamento Interministerial para la Gestión Integral de Desechos Sanitarios | E176: 1 | H176: Requerido
D177: Manual de Normas de Bioseguridad para la Red de Servicios de Salud en el Ecuador | E177: 1 | H177: Requerido
D178: Protocolos de Procedimientos de Limpieza, Desinfección y Esterilización | E178: 1 | H178: Requerido
D179: Registro de limpieza y desinfección del área funcional del Establecimiento | E179: 1 | H179: Requerido
D180: Registro de Mantenimiento de Equipos: Preventivo y/o Correctivo | E180: 1 | H180: Requerido
C181: Área de Diálisis Peritoneal | D181: Instructivo para el Llenado del Registro Diario Automatizado de Consultas y Atenciones Ambulatorias (RDACAA). 2013 | E181: 1 | G181: Será requerido para Establecimientos del MSP | H181: Condición
D182: Clasificación Estadística Internacional de Enfermedades y Problemas Relacionados con la Salud. Décima Revisión - CIE10 | E182: 1 | H182: Condición
D183: Reglamento a la Ley Organica de Salud | E183: 1 | H183: Condición
D184: Guía para la adecuación cultural de los servicios de salud. 2006 | E184: 1 | H184: Condición
D185: Manual del modelo de atención integral en salud - MAIS. 2013 | E185: 1 | H185: Condición
D186: Ley Derechos y Amparo al Paciente | E186: 1 | H186: Condición
D187: Ley de sustancias estupefacientes y Psicotrópicas | E187: 1 | H187: Condición
D188: Cuadro nacional de medicamentos básicos y registro terapéutico. 9na revisión | E188: 1 | H188: Condición
D189: Acuerdo Ministerial 4693: Reforma a la 9na. Revisión del Cuadro Nacional de Medicamentos Básicos y Registro Terapéutico | E189: 1 | H189: Condición
D190: Norma Técnica: Subsistema de Referencia, Derivación, Contrareferencia, Referencia inversa y Transferencia del Sistema Nacional de Salud. 2014 | E190: 1 | H190: Condición
D191: Protocolo de procedimientos de Diálisis Peritoneal | E191: 1 | H191: Condición
D192: Registro de Evolución de la Atención Médica y Procedimientos Efectuados | E192: 1 | H192: Condición
D193: Registro de Indicadores para la Satisfacción del Usuario | E193: 1 | H193: Condición
D194: Guía de Práctica Clínica: Transfusión de sangre y sus componentes. 2013 | E194: 1 | H194: Condición
D195: Guía de atención integral de adultos y Adolescentes con infección por VIH/SIDA. 2012 | E195: 1 | G195: Será requerido en el caso de ofertar la prestación | H195: Condición
D196: Normas y protocolos de atención integral de salud de las y los adultos mayores - 1. 2010 | E196: 1 | H196: Condición
D197: Normas y protocolos de atención integral de salud de las y los adultos mayores - 2. 2010 | E197: 1 | H197: Condición
D198: Normas y protocolos de atención integral de salud de las y los adultos mayores - 3. 2010 | E198: 1 | H198: Condición
D199: Normas y procedimientos para la atención integral de salud a adolescentes. 2009 | E199: 1 | G199: Será requerido en el caso de ofertar la prestación | H199: Condición
D200: Guía de Supervisión: Salud de Adolescentes. 2014 | E200: 1 | G200: Será requerido en el caso de ofertar la prestación | H200: Condición
D201: Manual de procedimientos de antropometría y determinación de la presión arterial. 2012 | E201: 1 | H201: Condición
D202: Acuerdo Ministerial 115: Manual de Seguridad del Paciente- Usuario | E202: 1 | H202: Requerido
... 91 more rows

Sheet Menu
B3: MATRIZ DE LICENCIAMIENTO
B4: CENTRO ESPECIALIZADO EN SALUD RENAL
B6: ENTIDAD DEL SISTEMA:
B7: ESTABLECIMIENTO DE SALUD:
B8: CÓDIGO/RUC:
D9: REGION:
B10: PROVINCIA:
B11: CANTON:
B12: PARROQUIA:
B13: DISTRIBUCIÓN ZONAL SENPLADES:
B14: DIRECCION:
B15: AREA/DISTRITO:
D16: TELÉFONO:
B17: REPRESENTANTE LEGAL:
B18: CORREO ELECTRÓNICO UNIDAD OPERATIVA:
D19: FECHA:

Sheet Infraestructura
B1: Anx: | C1: Requerido: | D1: m² Util: | E1: Tipo: | F1: BUENO: | G1: MALO: | J1: Calif: | K1: Observaciones:
A2: =Menu!$B$4 -> CENTRO ESPECIALIZADO EN SALUD RENAL | Q2: REQ | S2: COND+ | U2: COND- | W2: DES | Y2: REQ | AA2: COND+ | AC2: COND- | AE2: DES | AG2: REQ | AI2: COND+ | AK2: COND- | AM2: DES | AO2: REQ | AQ2: COND+ | AS2: COND- | AU2: DES | AW2: REQ | AY2: COND+ | BA2: COND- | BC2: DES | BE2: REQ | BG2: COND+ | BI2: COND- | BK2: DES
A3: INFRAESTRUCTURA | Q3: AMBIENTES | Y3: INSTALACIONES | AG3: ESTRUCTURA GENERAL | AO3: TOTAL AMBIENTES | AW3: TOTAL INSTALACIONES | BE3: TOTAL ESTRUCTURA
A4: ADMINISTRATIVO | L4: =ROW(A4) -> 4 | AO4: =SUM(Q5:Q12) -> 20 | AP4: 0 | AQ4: 0 | AR4: 0 | AS4: 0 | AT4: 0 | AU4: 0 | AV4: 0 | AW4: 10 | AX4: 0 | AY4: 0 | AZ4: 0 | BA4: 0 | BB4: 0 | BC4: 0 | BD4: 0 | BE4: 10 | BF4: 0 | BG4: 0 | BH4: 0 | BI4: 0 | BJ4: 0 | BK4: 0 | BL4: 0
A5: ADMISIÓN Y ESTADÍSTICA | L5: =ROW(A5) -> 5 | AO5: =SUM(Q6:Q12) -> 20 | AP5: 0 | AQ5: 0 | AR5: 0 | AS5: 0 | AT5: 0 | AU5: 0 | AV5: 0 | AW5: 10 | AX5: 0 | AY5: 0 | AZ5: 0 | BA5: 0 | BB5: 0 | BC5: 0 | BD5: 0 | BE5: 10 | BF5: 0 | BG5: 0 | BH5: 0 | BI5: 0 | BJ5: 0 | BK5: 0 | BL5: 0
A6: ÁREA TÉCNICA | L6: =ROW(A6) -> 6 | AO6: =SUM(Q7:Q12) -> 20 | AP6: 0 | AQ6: 0 | AR6: 0 | AS6: 0 | AT6: 0 | AU6: 0 | AV6: 0 | AW6: 10 | AX6: 0 | AY6: 0 | AZ6: 0 | BA6: 0 | BB6: 0 | BC6: 0 | BD6: 0 | BE6: 10 | BF6: 0 | BG6: 0 | BH6: 0 | BI6: 0 | BJ6: 0 | BK6: 0 | BL6: 0
A7: AMBIENTES | B7: =B1 -> Anx: | C7: =C$1 -> Requerido: | D7: m² Util: | E7: Tipo: | F7: BUENO: | G7: MALO: | J7: Calif: | K7: Observaciones: | AO7: =SUM(Q8:Q9) -> 20 | AP7: =SUM(R8:R9) -> 0 | AQ7: =SUM(S8:S9) -> 0 | AR7: =SUM(T8:T9) -> 0 | AS7: =SUM(U8:U9) -> 0 | AT7: 0 | AU7: 0 | AV7: 0 | AW7: 0 | AX7: 0 | AY7: 0 | AZ7: 0 | BA7: 0 | BB7: 0 | BC7: 0 | BD7: 0 | BE7: 0 | BF7: 0 | BG7: 0 | BH7: 0 | BI7: 0 | BJ7: 0 | BK7: 0 | BL7: 0
A8: Admisión, Información y Recepción | C8: 1 | D8: - | E8: Requerido | F8: 0 | G8: 0 | H8: =IF(AND(F8>=C8,F8>0),10,0) -> 0 | I8: =IF(AND(G8>=C8,G8>0),10,0) -> 0 | J8: =IF(AND(F8=0,G8=0),0,IF(AND(F8>0,G8>0),10,IF(AND(F8=0,G8>0),-10,IF(AND(F8>0,G8=0),10)))) -> 0 | Q8: =IF(UPPER(E8)="REQUERIDO", 10, "") -> 10 | R8: =IF(UPPER(E8)="REQUERIDO", J8, "") -> 0
A9: Archivo | C9: 1 | D9: - | E9: Requerido | F9: 0 | G9: 0 | H9: =IF(AND(F9>=C9,F9>0),10,0) -> 0 | I9: =IF(AND(G9>=C9,G9>0),10,0) -> 0 | J9: =IF(AND(F9=0,G9=0),0,IF(AND(F9>0,G9>0),10,IF(AND(F9=0,G9>0),-10,IF(AND(F9>0,G9=0),10)))) -> 0 | Q9: =IF(UPPER(E9)="REQUERIDO", 10, "") -> 10 | R9: =IF(UPPER(E9)="REQUERIDO", J9, "") -> 0
A10: INSTALACIONES | B10: =B1 -> Anx: | C10: =C$1 -> Requerido: | D10: m² Util: | E10: Tipo: | F10: BUENO: | G10: MALO: | J10: Calif: | K10: Observaciones: | AO10: =SUM(Q11:Q12) -> 0 | AP10: =SUM(R11:R12) -> 0 | AQ10: =SUM(S11:S12) -> 0 | AR10: =SUM(T11:T12) -> 0 | AS10: =SUM(U11:U12) -> 0 | AT10: 0 | AU10: 0 | AV10: 0 | AW10: 10 | AX10: 0 | AY10: 0 | AZ10: 0 | BA10: 0 | BB10: 0 | BC10: 0 | BD10: 0 | BE10: 10 | BF10: 0 | BG10: 0 | BH10: 0 | BI10: 0 | BJ10: 0 | BK10: 0 | BL10: 0
A11: Estructura General | B11: EG_01 | C11: 1 | D11: . | E11: Requerido | F11: 0 | G11: 0 | H11: =IF(AND(F11>=C11,F11>0),10,0) -> 0 | I11: =IF(AND(G11>=C11,G11>0),10,0) -> 0 | J11: =IF(AND(F11=0,G11=0),0,IF(AND(F11>0,G11>0),10,IF(AND(F11=0,G11>0),-10,IF(AND(F11>0,G11=0),10)))) -> 0 | AG11: =IF(UPPER(E11)="REQUERIDO", 10, "") -> 10 | AH11: =IF(UPPER(E11)="REQUERIDO", J11, "") -> 0
A12: Instalaciones Generales | B12: IG_01 | C12: 1 | D12: - | E12: Requerido | F12: 0 | G12: 0 | H12: 0 | I12: =IF(AND(G12>=C12,G12>0),10,0) -> 0 | J12: =IF(AND(F12=0,G12=0),0,IF(AND(F12>0,G12>0),10,IF(AND(F12=0,G12>0),-10,IF(AND(F12>0,G12=0),10)))) -> 0 | Y12: =IF(UPPER(E12)="REQUERIDO", 10, "") -> 10 | Z12: =IF(UPPER(E12)="REQUERIDO", J12, "") -> 0
A13: ASISTENCIAL | L13: =ROW(A13) -> 13 | AO13: =SUM(Q14:Q25) -> 50 | AP13: =SUM(R14:R25) -> 0 | AQ13: =SUM(S14:S25) -> 10 | AR13: =SUM(T14:T25) -> 0 | AS13: =SUM(U14:U25) -> 10 | AT13: 0 | AU13: 0 | AV13: 0 | AW13: 10 | AX13: 0 | AY13: 0 | AZ13: 0 | BA13: 0 | BB13: 0 | BC13: 0 | BD13: 0 | BE13: 10 | BF13: 0 | BG13: 0 | BH13: 0 | BI13: 0 | BJ13: 0 | BK13: 0 | BL13: =SUM(AN14:AN25) -> 0
A14: CONSULTA EXTERNA | L14: =ROW(A14) -> 14 | AO14: =SUM(Q15:Q25) -> 50 | AP14: =SUM(R15:R25) -> 0 | AQ14: =SUM(S15:S25) -> 10 | AR14: =SUM(T15:T25) -> 0 | AS14: =SUM(U15:U25) -> 10 | AT14: 0 | AU14: 0 | AV14: 0 | AW14: 10 | AX14: 0 | AY14: 0 | AZ14: 0 | BA14: 0 | BB14: 0 | BC14: 0 | BD14: 0 | BE14: 10 | BF14: 0 | BG14: 0 | BH14: 0 | BI14: 0 | BJ14: 0 | BK14: 0 | BL14: 0
A15: AREA DE ATENCIÓN DE CONSULTA | L15: =ROW(A15) -> 15 | AO15: =SUM(Q16:Q25) -> 50 | AP15: =SUM(R16:R25) -> 0 | AQ15: =SUM(S16:S25) -> 10 | AR15: =SUM(T16:T25) -> 0 | AS15: =SUM(U16:U25) -> 10 | AT15: 0 | AU15: 0 | AV15: 0 | AW15: 10 | AX15: 0 | AY15: 0 | AZ15: 0 | BA15: 0 | BB15: 0 | BC15: 0 | BD15: 0 | BE15: 10 | BF15: 0 | BG15: 0 | BH15: 0 | BI15: 0 | BJ15: 0 | BK15: 0 | BL15: 0
A16: AMBIENTES | B16: =B1 -> Anx: | C16: =C$1 -> Requerido: | D16: m² Util: | E16: Tipo: | F16: BUENO: | G16: MALO: | J16: Calif: | K16: Observaciones: | AO16: =SUM(Q17:Q22) -> 50 | AP16: =SUM(R17:R22) -> 0 | AQ16: =SUM(S17:S22) -> 10 | AR16: =SUM(T17:T22) -> 0 | AS16: =SUM(U17:U22) -> 10 | AT16: 0 | AU16: 0 | AV16: 0 | AW16: 0 | AX16: 0 | AY16: 0 | AZ16: 0 | BA16: 0 | BB16: 0 | BC16: 0 | BD16: 0 | BE16: 0 | BF16: 0 | BG16: 0 | BH16: 0 | BI16: 0 | BJ16: 0 | BK16: 0 | BL16: 0
A17: Sala de Espera | C17: 1 | D17: - | E17: Requerido | F17: 0 | G17: 0 | H17: =IF(AND(F17>=C17,F17>0),10,0) -> 0 | I17: =IF(AND(G17>=C17,G17>0),10,0) -> 0 | J17: =IF(AND(F17=0,G17=0),0,IF(AND(F17>0,G17>0),10,IF(AND(F17=0,G17>0),-10,IF(AND(F17>0,G17=0),10)))) -> 0 | Q17: =IF(UPPER(E17)="REQUERIDO", 10, "") -> 10 | R17: =IF(UPPER(E17)="REQUERIDO", J17, "") -> 0
A18: Baños/Baterías Sanitarias | C18: 1 | D18: - | E18: Requerido | F18: 0 | G18: 0 | H18: 0 | I18: 0 | J18: =IF(AND(F18=0,G18=0),0,IF(AND(F18>0,G18>0),10,IF(AND(F18=0,G18>0),-10,IF(AND(F18>0,G18=0),10)))) -> 0 | Q18: 10 | R18: 0
A19: Enfermería (Se vuelve requerido en el caso de contar con más de 5 consultorios para profesionales médicos) | C19: 1 | D19: - | E19: Condición | F19: 0 | G19: 0 | H19: 0 | I19: 0 | J19: 0 | Q19: =IF(UPPER(E19)="REQUERIDO", 10, "") ->  | R19: =IF(UPPER(E19)="REQUERIDO", J19, "") ->  | S19: =IF(UPPER(E19)="CONDICIÓN", 10, 0) -> 10 | T19: =IF(UPPER(E19)="CONDICIÓN", H19, "") -> 0 | U19: =IF(UPPER(E19)="CONDICIÓN", 10, 0) -> 10 | V19: =IF(UPPER(E19)="CONDICIÓN", I19, "") -> 0
A20: Consultorio Médico | C20: 1 | D20: - | E20: Requerido | F20: 0 | G20: 0 | H20: 0 | I20: 0 | J20: 0 | Q20: =IF(UPPER(E20)="REQUERIDO", 10, "") -> 10 | R20: =IF(UPPER(E20)="REQUERIDO", J20, "") -> 0
A21: Consultorio de Psicología (Puede compartir con la Oficina de Trabajo Social y el Consultorio de Nutrición, pero debe asegurarse la privacidad del paciente mediante horarios diferenciados en cada prestación) | C21: 1 | D21: - | E21: Requerido | F21: 0 | G21: 0 | H21: 0 | I21: 0 | J21: 0 | Q21: =IF(UPPER(E21)="REQUERIDO", 10, "") -> 10 | R21: 0
A22: Consultorio de Nutrición (Puede compartir con la Oficina de Trabajo Social y el Consultorio de Psicología, pero debe asegurarse la privacidad del paciente mediante horarios diferenciados en cada prestación) | C22: 1 | D22: - | E22: Requerido | F22: 0 | G22: 0 | H22: 0 | I22: 0 | J22: 0 | Q22: 10 | R22: 0
A23: INSTALACIONES | B23: =B1 -> Anx: | C23: =C$1 -> Requerido: | D23: m² Util: | E23: Tipo: | F23: BUENO: | G23: MALO: | J23: Calif: | K23: Observaciones: | AO23: =SUM(Q24:Q25) -> 0 | AP23: =SUM(R24:R25) -> 0 | AQ23: =SUM(S24:S25) -> 0 | AR23: =SUM(T24:T25) -> 0 | AS23: =SUM(U24:U25) -> 0 | AT23: 0 | AU23: 0 | AV23: 0 | AW23: 10 | AX23: 0 | AY23: 0 | AZ23: 0 | BA23: 0 | BB23: 0 | BC23: 0 | BD23: 0 | BE23: 10 | BF23: 0 | BG23: 0 | BH23: 0 | BI23: 0 | BJ23: 0 | BK23: 0 | BL23: 0
A24: Estructura General | B24: EG_01 | C24: 1 | D24: . | E24: Requerido | F24: 0 | G24: 0 | H24: =IF(AND(F24>=C24,F24>0),10,0) -> 0 | I24: 0 | J24: =IF(AND(F24=0,G24=0),0,IF(AND(F24>0,G24>0),10,IF(AND(F24=0,G24>0),-10,IF(AND(F24>0,G24=0),10)))) -> 0 | AG24: =IF(UPPER(E24)="REQUERIDO", 10, "") -> 10 | AH24: =IF(UPPER(E24)="REQUERIDO", J24, "") -> 0
A25: Instalaciones Generales | B25: IG_01 | C25: 1 | D25: - | E25: Requerido | F25: 0 | G25: 0 | H25: 0 | I25: 0 | J25: 0 | Y25: =IF(UPPER(E25)="REQUERIDO", 10, "") -> 10 | Z25: =IF(UPPER(E25)="REQUERIDO", J25, "") -> 0
A26: APOYO TERAPEÚTICO | L26: =ROW(A26) -> 26 | AO26: =SUM(Q27:Q81) -> 80 | AP26: 0 | AQ26: 100 | AR26: 0 | AS26: 100 | AT26: 0 | AU26: 0 | AV26: 0 | AW26: 40 | AX26: 0 | AY26: 30 | AZ26: 0 | BA26: 10 | BB26: 0 | BC26: 0 | BD26: 0 | BE26: 40 | BF26: 0 | BG26: 30 | BH26: 0 | BI26: 10 | BJ26: 0 | BK26: 0 | BL26: 0
A27: ATENCIÓN DE APOYO TERAPÉUTICO | L27: =ROW(A27) -> 27 | AO27: =SUM(Q28:Q81) -> 80 | AP27: 0 | AQ27: 100 | AR27: 0 | AS27: 100 | AT27: 0 | AU27: 0 | AV27: 0 | AW27: 40 | AX27: 0 | AY27: 30 | AZ27: 0 | BA27: 10 | BB27: 0 | BC27: 0 | BD27: 0 | BE27: 40 | BF27: 0 | BG27: 30 | BH27: 0 | BI27: 10 | BJ27: 0 | BK27: 0 | BL27: 0
A28: ÁREA DE PROCEDIMIENTOS | L28: =ROW(A28) -> 28 | AO28: =SUM(Q29:Q35) -> 0 | AP28: =SUM(R29:R35) -> 0 | AQ28: =SUM(S29:S35) -> 30 | AR28: =SUM(T29:T35) -> 0 | AS28: =SUM(U29:U35) -> 30 | AT28: 0 | AU28: 0 | AV28: 0 | AW28: 0 | AX28: 0 | AY28: 10 | AZ28: 0 | BA28: 10 | BB28: 0 | BC28: 0 | BD28: 0 | BE28: 0 | BF28: 0 | BG28: 10 | BH28: 0 | BI28: 10 | BJ28: 0 | BK28: 0 | BL28: 0
A29: AMBIENTES | B29: =B1 -> Anx: | C29: =C$1 -> Requerido: | D29: m² Util: | E29: Tipo: | F29: BUENO: | G29: MALO: | J29: Calif: | K29: Observaciones: | AO29: =SUM(Q29:Q32) -> 0 | AP29: =SUM(R29:R32) -> 0 | AQ29: =SUM(S29:S32) -> 30 | AR29: =SUM(T29:T32) -> 0 | AS29: =SUM(U29:U32) -> 30 | AT29: 0 | AU29: 0 | AV29: 0 | AW29: 0 | AX29: 0 | AY29: 0 | AZ29: 0 | BA29: 0 | BB29: 0 | BC29: 0 | BD29: 0 | BE29: 0 | BF29: 0 | BG29: 0 | BH29: 0 | BI29: 0 | BJ29: 0 | BK29: 0 | BL29: 0
A30: Área de Lavado de Manos | C30: 1 | D30: - | E30: Condición | F30: 0 | G30: 0 | H30: =IF(AND(F30>=C30,F30>0),10,0) -> 0 | I30: =IF(AND(G30>=C30,G30>0),10,0) -> 0 | J30: =IF(AND(F30=0,G30=0),0,IF(AND(F30>0,G30>0),10,IF(AND(F30=0,G30>0),-10,IF(AND(F30>0,G30=0),10)))) -> 0 | S30: =IF(UPPER(E30)="CONDICIÓN", 10, 0) -> 10 | T30: =IF(UPPER(E30)="CONDICIÓN", H30, "") -> 0 | U30: =IF(UPPER(E30)="CONDICIÓN", 10, 0) -> 10 | V30: =IF(UPPER(E30)="CONDICIÓN", I30, "") -> 0
A31: Sala de procedimientos (Debe existir acuerdo con un establecimiento que cuente con atención en centro quirúrgico para realización y reparación de accesos vasculares y/o inserción de catéteres peritoneales, en caso de no haber convenio se hará requerido) | C31: 1 | D31: - | E31: Condición | F31: 0 | G31: 0 | H31: 0 | I31: 0 | J31: 0 | S31: 10 | T31: 0 | U31: 10 | V31: 0
A32: Zona de esterilización | C32: 1 | D32: - | E32: Condición | F32: 0 | G32: 0 | H32: 0 | I32: 0 | J32: 0 | S32: 10 | T32: =IF(UPPER(E32)="CONDICIÓN", H32, "") -> 0 | U32: 10 | V32: 0
A33: INSTALACIONES | B33: =B1 -> Anx: | C33: =C$1 -> Requerido: | D33: m² Util: | E33: Tipo: | F33: BUENO: | G33: MALO: | J33: Calif: | K33: Observaciones: | AO33: =SUM(Q34:Q35) -> 0 | AP33: =SUM(R34:R35) -> 0 | AQ33: =SUM(S34:S35) -> 0 | AR33: =SUM(T34:T35) -> 0 | AS33: =SUM(U34:U35) -> 0 | AT33: 0 | AU33: 0 | AV33: 0 | AW33: 0 | AX33: 0 | AY33: 10 | AZ33: 0 | BA33: 10 | BB33: 0 | BC33: 0 | BD33: 0 | BE33: 0 | BF33: 0 | BG33: 10 | BH33: 0 | BI33: 10 | BJ33: 0 | BK33: 0 | BL33: 0
A34: Estructura General | B34: EG_01 | C34: 1 | D34: - | E34: Condición | F34: 0 | G34: 0 | H34: =IF(AND(F34>=C34,F34>0),10,0) -> 0 | I34: 0 | J34: 0 | AI34: =IF(UPPER(E34)="CONDICIÓN", 10, 0) -> 10 | AJ34: =IF(UPPER(E34)="CONDICIÓN", H34, "") -> 0 | AK34: =IF(UPPER(E34)="CONDICIÓN", 10, 0) -> 10 | AL34: =IF(UPPER(E34)="CONDICIÓN", I34, "") -> 0
A35: Instalaciones Generales | B35: IG_01 | C35: 1 | D35: - | E35: Condición | F35: 0 | G35: 0 | H35: 0 | I35: 0 | J35: 0 | AA35: =IF(UPPER(E35)="CONDICIÓN", 10, 0) -> 10 | AB35: =IF(UPPER(E35)="CONDICIÓN", H35, "") -> 0 | AC35: =IF(UPPER(E35)="CONDICIÓN", 10, 0) -> 10 | AD35: =IF(UPPER(E35)="CONDICIÓN", I35, "") -> 0
A36: ÁREA DE SOPORTE Y SUMINISTROS | L36: =ROW(A36) -> 36 | AO36: =SUM(Q38:Q44) -> 10 | AP36: =SUM(R38:R44) -> 0 | AQ36: =SUM(S38:S44) -> 20 | AR36: =SUM(T38:T44) -> 0 | AS36: =SUM(U38:U44) -> 20 | AT36: 0 | AU36: 0 | AV36: 0 | AW36: 10 | AX36: 0 | AY36: 0 | AZ36: 0 | BA36: 0 | BB36: 0 | BC36: 0 | BD36: 0 | BE36: 10 | BF36: 0 | BG36: 0 | BH36: 0 | BI36: 0 | BJ36: 0 | BK36: =SUM(AM38:AM44) -> 0 | BL36: 0
A37: (ESTA ÁREA FUNCIONAL DEBE ESTAR CENTRALIZADA Y NO DEBE ESTAR EN CONTACTO CON LAS ÁREAS DE TRATAMIENTO)
A38: AMBIENTES | B38: =B1 -> Anx: | C38: =C$1 -> Requerido: | D38: m² Util: | E38: Tipo: | F38: BUENO: | G38: MALO: | J38: Calif: | K38: Observaciones: | AO38: =SUM(Q39:Q41) -> 10 | AP38: =SUM(R39:R41) -> 0 | AQ38: =SUM(S39:S41) -> 20 | AR38: =SUM(T39:T41) -> 0 | AS38: =SUM(U39:U41) -> 20 | AT38: =SUM(V39:V41) -> 0 | AU38: 0 | AV38: 0 | AW38: 0 | AX38: 0 | AY38: 0 | AZ38: 0 | BA38: 0 | BB38: 0 | BC38: 0 | BD38: 0 | BE38: 0 | BF38: 0 | BG38: 0 | BH38: 0 | BI38: 0 | BJ38: 0 | BK38: 0 | BL38: =SUM(AN39:AN41) -> 0
A39: Cuarto de limpieza | C39: 1 | D39: - | E39: Requerido | F39: 0 | G39: 0 | H39: =IF(AND(F39>=C39,F39>0),10,0) -> 0 | I39: =IF(AND(G39>=C39,G39>0),10,0) -> 0 | J39: =IF(AND(F39=0,G39=0),0,IF(AND(F39>0,G39>0),10,IF(AND(F39=0,G39>0),-10,IF(AND(F39>0,G39=0),10)))) -> 0 | Q39: =IF(UPPER(E39)="REQUERIDO", 10, "") -> 10 | R39: =IF(UPPER(E39)="REQUERIDO", J39, "") -> 0
A40: Almacenamiento intermedio o temporal de desechos | C40: 1 | D40: - | E40: Condición | F40: 0 | G40: 0 | H40: 0 | I40: 0 | J40: 0 | S40: =IF(UPPER(E40)="CONDICIÓN", 10, 0) -> 10 | T40: =IF(UPPER(E40)="CONDICIÓN", H40, "") -> 0 | U40: =IF(UPPER(E40)="CONDICIÓN", 10, 0) -> 10 | V40: =IF(UPPER(E40)="CONDICIÓN", I40, "") -> 0
A41: Lencería | C41: 1 | D41: - | E41: Condición | F41: 0 | G41: 0 | H41: 0 | I41: 0 | J41: 0 | Q41: =IF(UPPER(E41)="REQUERIDO", 10, "") ->  | R41: =IF(UPPER(E41)="REQUERIDO", J41, "") ->  | S41: 10 | T41: 0 | U41: 10 | V41: 0
A42: INSTALACIONES | B42: =B1 -> Anx: | C42: =C$1 -> Requerido: | D42: m² Util: | E42: Tipo: | F42: BUENO: | G42: MALO: | J42: Calif: | K42: Observaciones: | AO42: =SUM(Q43:Q44) -> 0 | AP42: =SUM(R43:R44) -> 0 | AQ42: =SUM(S43:S44) -> 0 | AR42: =SUM(T43:T44) -> 0 | AS42: =SUM(U43:U44) -> 0 | AT42: 0 | AU42: 0 | AV42: 0 | AW42: 10 | AX42: 0 | AY42: 0 | AZ42: 0 | BA42: 0 | BB42: 0 | BC42: 0 | BD42: 0 | BE42: 10 | BF42: 0 | BG42: 0 | BH42: 0 | BI42: 0 | BJ42: 0 | BK42: 0 | BL42: 0
A43: Estructura General | B43: EG_01 | C43: 1 | D43: . | E43: Requerido | F43: 0 | G43: 0 | H43: =IF(AND(F43>=C43,F43>0),10,0) -> 0 | I43: =IF(AND(G43>=C43,G43>0),10,0) -> 0 | J43: 0 | AG43: =IF(UPPER(E43)="REQUERIDO", 10, "") -> 10 | AH43: =IF(UPPER(E43)="REQUERIDO", J43, "") -> 0
A44: Instalaciones Generales | B44: IG_01 | C44: 1 | D44: - | E44: Requerido | F44: 0 | G44: 0 | H44: 0 | I44: 0 | J44: 0 | Y44: =IF(UPPER(E44)="REQUERIDO", 10, "") -> 10 | Z44: =IF(UPPER(E44)="REQUERIDO", J44, "") -> 0
A45: ÁREA DE TRATAMIENTO A PACIENTES DE HEMODIÁLISIS | L45: =ROW(A45) -> 45 | AO45: =SUM(Q46:Q52) -> 30 | AP45: 0 | AQ45: 0 | AR45: 0 | AS45: 0 | AT45: 0 | AU45: 0 | AV45: 0 | AW45: 10 | AX45: 0 | AY45: 0 | AZ45: 0 | BA45: 0 | BB45: 0 | BC45: 0 | BD45: 0 | BE45: 10 | BF45: 0 | BG45: 0 | BH45: 0 | BI45: 0 | BJ45: 0 | BK45: 0 | BL45: 0
A46: AMBIENTES | B46: =B1 -> Anx: | C46: =C$1 -> Requerido: | D46: m² Util: | E46: Tipo: | F46: BUENO: | G46: MALO: | J46: Calif: | K46: Observaciones: | AO46: =SUM(Q47:Q49) -> 30 | AP46: 0 | AQ46: 0 | AR46: 0 | AS46: 0 | AT46: 0 | AU46: 0 | AV46: 0 | AW46: 0 | AX46: 0 | AY46: 0 | AZ46: 0 | BA46: 0 | BB46: 0 | BC46: 0 | BD46: 0 | BE46: 0 | BF46: 0 | BG46: 0 | BH46: 0 | BI46: 0 | BJ46: 0 | BK46: 0 | BL46: 0
A47: Estación de enfermería | C47: 1 | D47: - | E47: Requerido | F47: 0 | G47: 0 | H47: =IF(AND(F47>=C47,F47>0),10,0) -> 0 | I47: =IF(AND(G47>=C47,G47>0),10,0) -> 0 | J47: =IF(AND(F47=0,G47=0),0,IF(AND(F47>0,G47>0),10,IF(AND(F47=0,G47>0),-10,IF(AND(F47>0,G47=0),10)))) -> 0 | Q47: =IF(UPPER(E47)="REQUERIDO", 10, "") -> 10 | R47: =IF(UPPER(E47)="REQUERIDO", J47, "") -> 0
A48: Sala de Hemodiálisis - Compartido | C48: 1 | D48: - | E48: Requerido | F48: 0 | G48: 0 | H48: 0 | I48: 0 | J48: 0 | Q48: 10 | R48: 0
A49: Sala de Hemodiálisis - Por puestos | C49: 1 | D49: - | E49: Requerido | F49: 0 | G49: 0 | H49: 0 | I49: 0 | J49: 0 | Q49: 10 | R49: 0
A50: INSTALACIONES | B50: =B1 -> Anx: | C50: =C$1 -> Requerido: | D50: m² Util: | E50: Tipo: | F50: BUENO: | G50: MALO: | J50: Calif: | K50: Observaciones: | AO50: =SUM(Q51:Q52) -> 0 | AP50: =SUM(R51:R52) -> 0 | AQ50: =SUM(S51:S52) -> 0 | AR50: =SUM(T51:T52) -> 0 | AS50: =SUM(U51:U52) -> 0 | AT50: 0 | AU50: 0 | AV50: 0 | AW50: 10 | AX50: 0 | AY50: 0 | AZ50: 0 | BA50: 0 | BB50: 0 | BC50: 0 | BD50: 0 | BE50: 10 | BF50: 0 | BG50: 0 | BH50: 0 | BI50: 0 | BJ50: 0 | BK50: 0 | BL50: 0
A51: Estructura General | B51: EG_01 | C51: 1 | D51: - | E51: Requerido | F51: 0 | G51: 0 | H51: =IF(AND(F51>=C51,F51>0),10,0) -> 0 | I51: =IF(AND(G51>=C51,G51>0),10,0) -> 0 | J51: 0 | AG51: =IF(UPPER(E51)="REQUERIDO", 10, "") -> 10 | AH51: =IF(UPPER(E51)="REQUERIDO", J51, "") -> 0
A52: Instalaciones Generales | B52: IG_01 | C52: 1 | D52: - | E52: Requerido | F52: 0 | G52: 0 | H52: 0 | I52: 0 | J52: 0 | Y52: =IF(UPPER(E52)="REQUERIDO", 10, "") -> 10 | Z52: =IF(UPPER(E52)="REQUERIDO", J52, "") -> 0
A53: ÁREA TECNICA DE APOYO | L53: =ROW(A53) -> 53 | AO53: =SUM(Q54:Q59) -> 20 | AP53: =SUM(R54:R59) -> 0 | AQ53: =SUM(S54:S59) -> 0 | AR53: =SUM(T54:T59) -> 0 | AS53: =SUM(U54:U59) -> 0 | AT53: 0 | AU53: 0 | AV53: 0 | AW53: 10 | AX53: 0 | AY53: 0 | AZ53: 0 | BA53: 0 | BB53: 0 | BC53: 0 | BD53: 0 | BE53: 10 | BF53: 0 | BG53: 0 | BH53: 0 | BI53: 0 | BJ53: 0 | BK53: 0 | BL53: 0
A54: AMBIENTES | B54: =B1 -> Anx: | C54: =C$1 -> Requerido: | D54: m² Util: | E54: Tipo: | F54: BUENO: | G54: MALO: | J54: Calif: | K54: Observaciones: | AO54: =SUM(Q55:Q56) -> 20 | AP54: =SUM(R55:R56) -> 0 | AQ54: =SUM(S55:S56) -> 0 | AR54: =SUM(T55:T56) -> 0 | AS54: =SUM(U55:U56) -> 0 | AT54: 0 | AU54: 0 | AV54: 0 | AW54: 0 | AX54: 0 | AY54: 0 | AZ54: 0 | BA54: 0 | BB54: 0 | BC54: 0 | BD54: 0 | BE54: 0 | BF54: 0 | BG54: 0 | BH54: 0 | BI54: 0 | BJ54: 0 | BK54: 0 | BL54: 0
A55: Limpio | C55: 1 | D55: - | E55: Requerido | F55: 0 | G55: 0 | H55: =IF(AND(F55>=C55,F55>0),10,0) -> 0 | I55: =IF(AND(G55>=C55,G55>0),10,0) -> 0 | J55: =IF(AND(F55=0,G55=0),0,IF(AND(F55>0,G55>0),10,IF(AND(F55=0,G55>0),-10,IF(AND(F55>0,G55=0),10)))) -> 0 | Q55: =IF(UPPER(E55)="REQUERIDO", 10, "") -> 10 | R55: =IF(UPPER(E55)="REQUERIDO", J55, "") -> 0
A56: Usado | C56: 1 | D56: - | E56: Requerido | F56: 0 | G56: 0 | H56: 0 | I56: 0 | J56: 0 | Q56: 10 | R56: 0
A57: INSTALACIONES | B57: =B1 -> Anx: | C57: =C$1 -> Requerido: | D57: m² Util: | E57: Tipo: | F57: BUENO: | G57: MALO: | J57: Calif: | K57: Observaciones: | AO57: =SUM(Q58:Q59) -> 0 | AP57: =SUM(R58:R59) -> 0 | AQ57: =SUM(S58:S59) -> 0 | AR57: =SUM(T58:T59) -> 0 | AS57: =SUM(U58:U59) -> 0 | AT57: 0 | AU57: 0 | AV57: 0 | AW57: 10 | AX57: 0 | AY57: 0 | AZ57: 0 | BA57: 0 | BB57: 0 | BC57: 0 | BD57: 0 | BE57: 10 | BF57: 0 | BG57: 0 | BH57: 0 | BI57: 0 | BJ57: 0 | BK57: 0 | BL57: 0
A58: Estructura General | B58: EG_01 | C58: 1 | D58: . | E58: Requerido | F58: 0 | G58: 0 | H58: =IF(AND(F58>=C58,F58>0),10,0) -> 0 | I58: =IF(AND(G58>=C58,G58>0),10,0) -> 0 | J58: 0 | AG58: =IF(UPPER(E58)="REQUERIDO", 10, "") -> 10 | AH58: =IF(UPPER(E58)="REQUERIDO", J58, "") -> 0
A59: Instalaciones Generales | B59: IG_01 | C59: 1 | D59: - | E59: Requerido | F59: 0 | G59: 0 | H59: 0 | I59: 0 | J59: 0 | Y59: =IF(UPPER(E59)="REQUERIDO", 10, "") -> 10 | Z59: =IF(UPPER(E59)="REQUERIDO", J59, "") -> 0
A60: ÁREA DE DIÁLISIS PERITONEAL | L60: =ROW(A60) -> 60 | AO60: =SUM(Q61:Q66) -> 0 | AP60: =SUM(R61:R66) -> 0 | AQ60: =SUM(S61:S66) -> 20 | AR60: =SUM(T61:T66) -> 0 | AS60: =SUM(U61:U66) -> 20 | AT60: 0 | AU60: 0 | AV60: 0 | AW60: 0 | AX60: 0 | AY60: =SUM(AA61:AA66) -> 10 | AZ60: =SUM(AB61:AB66) -> 0 | BA60: 0 | BB60: 0 | BC60: 0 | BD60: 0 | BE60: 0 | BF60: 0 | BG60: 10 | BH60: 0 | BI60: 0 | BJ60: 0 | BK60: 0 | BL60: 0
A61: AMBIENTES | B61: =B1 -> Anx: | C61: =C$1 -> Requerido: | D61: m² Util: | E61: Tipo: | F61: BUENO: | G61: MALO: | J61: Calif: | K61: Observaciones: | AO61: =SUM(Q62:Q63) -> 0 | AP61: =SUM(R62:R63) -> 0 | AQ61: =SUM(S62:S63) -> 20 | AR61: =SUM(T62:T63) -> 0 | AS61: =SUM(U62:U63) -> 20 | AT61: 0 | AU61: 0 | AV61: 0 | AW61: 0 | AX61: 0 | AY61: 0 | AZ61: 0 | BA61: 0 | BB61: 0 | BC61: 0 | BD61: 0 | BE61: 0 | BF61: 0 | BG61: 0 | BH61: 0 | BI61: 0 | BJ61: 0 | BK61: 0 | BL61: 0
A62: Sala de entrenamento | C62: 1 | D62: - | E62: Condición | F62: 0 | G62: 0 | H62: =IF(AND(F62>=C62,F62>0),10,0) -> 0 | I62: =IF(AND(G62>=C62,G62>0),10,0) -> 0 | J62: =IF(AND(F62=0,G62=0),0,IF(AND(F62>0,G62>0),10,IF(AND(F62=0,G62>0),-10,IF(AND(F62>0,G62=0),10)))) -> 0 | Q62: =IF(UPPER(E62)="REQUERIDO", 10, "") ->  | R62: =IF(UPPER(E62)="REQUERIDO", J62, "") ->  | S62: =IF(UPPER(E62)="CONDICIÓN", 10, 0) -> 10 | T62: =IF(UPPER(E62)="CONDICIÓN", H62, "") -> 0 | U62: =IF(UPPER(E62)="CONDICIÓN", 10, 0) -> 10 | V62: =IF(UPPER(E62)="CONDICIÓN", I62, "") -> 0
A63: Área de recambios | C63: 1 | D63: - | E63: Condición | F63: 0 | G63: 0 | H63: 0 | I63: 0 | J63: 0 | Q63: =IF(UPPER(E63)="REQUERIDO", 10, "") ->  | R63: =IF(UPPER(E63)="REQUERIDO", J63, "") ->  | S63: 10 | T63: 0 | U63: 10 | V63: 0
A64: INSTALACIONES | B64: =B1 -> Anx: | C64: =C$1 -> Requerido: | D64: m² Util: | E64: Tipo: | F64: BUENO: | G64: MALO: | J64: Calif: | K64: Observaciones: | AO64: =SUM(Q65:Q66) -> 0 | AP64: =SUM(R65:R66) -> 0 | AQ64: =SUM(S65:S66) -> 0 | AR64: =SUM(T65:T66) -> 0 | AS64: =SUM(U65:U66) -> 0 | AT64: 0 | AU64: 0 | AV64: 0 | AW64: 0 | AX64: 0 | AY64: =SUM(AA65:AA66) -> 10 | AZ64: =SUM(AB65:AB66) -> 0 | BA64: 0 | BB64: 0 | BC64: 0 | BD64: 0 | BE64: 0 | BF64: 0 | BG64: =SUM(AI65:AI66) -> 10 | BH64: =SUM(AJ65:AJ66) -> 0 | BI64: 0 | BJ64: 0 | BK64: 0 | BL64: 0
A65: Estructura General | B65: EG_01 | C65: 1 | D65: . | E65: Condición | F65: 0 | G65: 0 | H65: =IF(AND(F65>=C65,F65>0),10,0) -> 0 | I65: =IF(AND(G65>=C65,G65>0),10,0) -> 0 | J65: 0 | AI65: =IF(UPPER(E65)="CONDICIÓN", 10, 0) -> 10 | AJ65: =IF(UPPER(E65)="CONDICIÓN", H65, "") -> 0
A66: Instalaciones Generales | B66: IG_01 | C66: 1 | D66: - | E66: Condición | F66: 0 | G66: 0 | H66: 0 | I66: 0 | J66: 0 | AA66: =IF(UPPER(E66)="CONDICIÓN", 10, 0) -> 10 | AB66: =IF(UPPER(E66)="CONDICIÓN", H66, "") -> 0
A67: ÁREA TECNICA DE APOYO | L67: =ROW(A67) -> 67 | AO67: =SUM(Q68:Q73) -> 0 | AP67: =SUM(R68:R73) -> 0 | AQ67: =SUM(S68:S73) -> 20 | AR67: =SUM(T68:T73) -> 0 | AS67: =SUM(U68:U73) -> 20 | AT67: 0 | AU67: 0 | AV67: 0 | AW67: 0 | AX67: 0 | AY67: =SUM(AA68:AA73) -> 10 | AZ67: =SUM(AB68:AB73) -> 0 | BA67: 0 | BB67: 0 | BC67: 0 | BD67: 0 | BE67: 0 | BF67: 0 | BG67: 10 | BH67: 0 | BI67: 0 | BJ67: 0 | BK67: 0 | BL67: 0
A68: AMBIENTES | B68: =B1 -> Anx: | C68: =C$1 -> Requerido: | D68: m² Util: | E68: Tipo: | F68: BUENO: | G68: MALO: | J68: Calif: | K68: Observaciones: | AO68: =SUM(Q69:Q70) -> 0 | AP68: =SUM(R69:R70) -> 0 | AQ68: =SUM(S69:S70) -> 20 | AR68: =SUM(T69:T70) -> 0 | AS68: =SUM(U69:U70) -> 20 | AT68: 0 | AU68: 0 | AV68: 0 | AW68: 0 | AX68: 0 | AY68: 0 | AZ68: 0 | BA68: 0 | BB68: 0 | BC68: 0 | BD68: 0 | BE68: 0 | BF68: 0 | BG68: 0 | BH68: 0 | BI68: 0 | BJ68: 0 | BK68: 0 | BL68: 0
A69: Limpio | C69: 1 | D69: - | E69: Condición | F69: 0 | G69: 0 | H69: =IF(AND(F69>=C69,F69>0),10,0) -> 0 | I69: =IF(AND(G69>=C69,G69>0),10,0) -> 0 | J69: =IF(AND(F69=0,G69=0),0,IF(AND(F69>0,G69>0),10,IF(AND(F69=0,G69>0),-10,IF(AND(F69>0,G69=0),10)))) -> 0 | Q69: =IF(UPPER(E69)="REQUERIDO", 10, "") ->  | R69: =IF(UPPER(E69)="REQUERIDO", J69, "") ->  | S69: =IF(UPPER(E69)="CONDICIÓN", 10, 0) -> 10 | T69: =IF(UPPER(E69)="CONDICIÓN", H69, "") -> 0 | U69: =IF(UPPER(E69)="CONDICIÓN", 10, 0) -> 10 | V69: =IF(UPPER(E69)="CONDICIÓN", I69, "") -> 0
A70: Usado | C70: 1 | D70: - | E70: Condición | F70: 0 | G70: 0 | H70: 0 | I70: 0 | J70: 0 | Q70: =IF(UPPER(E70)="REQUERIDO", 10, "") ->  | R70: =IF(UPPER(E70)="REQUERIDO", J70, "") ->  | S70: 10 | T70: 0 | U70: 10 | V70: 0
A71: INSTALACIONES | B71: =B1 -> Anx: | C71: =C$1 -> Requerido: | D71: m² Util: | E71: Tipo: | F71: BUENO: | G71: MALO: | J71: Calif: | K71: Observaciones: | AO71: =SUM(Q72:Q73) -> 0 | AP71: =SUM(R72:R73) -> 0 | AQ71: =SUM(S72:S73) -> 0 | AR71: =SUM(T72:T73) -> 0 | AS71: =SUM(U72:U73) -> 0 | AT71: 0 | AU71: 0 | AV71: 0 | AW71: 0 | AX71: 0 | AY71: =SUM(AA72:AA73) -> 10 | AZ71: =SUM(AB72:AB73) -> 0 | BA71: 0 | BB71: 0 | BC71: 0 | BD71: 0 | BE71: 0 | BF71: 0 | BG71: =SUM(AI72:AI73) -> 10 | BH71: =SUM(AJ72:AJ73) -> 0 | BI71: 0 | BJ71: 0 | BK71: 0 | BL71: 0
A72: Estructura General | B72: EG_01 | C72: 1 | D72: . | E72: Condición | F72: 0 | G72: 0 | H72: =IF(AND(F72>=C72,F72>0),10,0) -> 0 | I72: =IF(AND(G72>=C72,G72>0),10,0) -> 0 | J72: 0 | AI72: =IF(UPPER(E72)="CONDICIÓN", 10, 0) -> 10 | AJ72: =IF(UPPER(E72)="CONDICIÓN", H72, "") -> 0
A73: Instalaciones Generales | B73: IG_01 | C73: 1 | D73: - | E73: Condición | F73: 0 | G73: 0 | H73: 0 | I73: 0 | J73: 0 | AA73: =IF(UPPER(E73)="CONDICIÓN", 10, 0) -> 10 | AB73: =IF(UPPER(E73)="CONDICIÓN", H73, "") -> 0
A74: ÁREA PARA LOS USUARIOS | L74: =ROW(A74) -> 74 | AO74: =SUM(Q75:Q81) -> 20 | AP74: =SUM(R75:R81) -> 0 | AQ74: =SUM(S75:S81) -> 10 | AR74: =SUM(T75:T81) -> 0 | AS74: =SUM(U75:U81) -> 10 | AT74: 0 | AU74: 0 | AV74: 0 | AW74: 10 | AX74: 0 | AY74: 0 | AZ74: 0 | BA74: 0 | BB74: 0 | BC74: 0 | BD74: 0 | BE74: 10 | BF74: 0 | BG74: 0 | BH74: 0 | BI74: 0 | BJ74: 0 | BK74: 0 | BL74: 0
A75: AMBIENTES | B75: =B1 -> Anx: | C75: =C$1 -> Requerido: | D75: m² Util: | E75: Tipo: | F75: BUENO: | G75: MALO: | J75: Calif: | K75: Observaciones: | AO75: =SUM(Q76:Q78) -> 20 | AP75: =SUM(R76:R78) -> 0 | AQ75: =SUM(S76:S78) -> 10 | AR75: =SUM(T76:T78) -> 0 | AS75: =SUM(U76:U78) -> 10 | AT75: 0 | AU75: 0 | AV75: 0 | AW75: 0 | AX75: 0 | AY75: 0 | AZ75: 0 | BA75: 0 | BB75: 0 | BC75: 0 | BD75: 0 | BE75: 0 | BF75: 0 | BG75: 0 | BH75: 0 | BI75: 0 | BJ75: 0 | BK75: 0 | BL75: 0
A76: Repostería | C76: 1 | D76: - | E76: Condición | F76: 0 | G76: 0 | H76: =IF(AND(F76>=C76,F76>0),10,0) -> 0 | I76: =IF(AND(G76>=C76,G76>0),10,0) -> 0 | J76: =IF(AND(F76=0,G76=0),0,IF(AND(F76>0,G76>0),10,IF(AND(F76=0,G76>0),-10,IF(AND(F76>0,G76=0),10)))) -> 0 | Q76: =IF(UPPER(E76)="REQUERIDO", 10, "") ->  | R76: =IF(UPPER(E76)="REQUERIDO", J76, "") ->  | S76: =IF(UPPER(E76)="CONDICIÓN", 10, 0) -> 10 | T76: =IF(UPPER(E76)="CONDICIÓN", H76, "") -> 0 | U76: =IF(UPPER(E76)="CONDICIÓN", 10, 0) -> 10 | V76: =IF(UPPER(E76)="CONDICIÓN", I76, "") -> 0
A77: Vestidor de pacientes | C77: 2 | D77: - | E77: Requerido | F77: 0 | G77: 0 | H77: =IF(AND(F77>=C77,C77>0,F77>=1),10,0) -> 0 | I77: =IF(AND(G77>=C77,C77>0,G77>=1),10,0) -> 0 | J77: =IF(AND(OR(F77=0,F77<C77),G77=0),0,IF(AND(OR(F77=0,F77<C77),G77>=C77),-10,IF(C77=0,0,IF(F77>=C77,10,0)))) -> 0 | Q77: =IF(UPPER(E77)="REQUERIDO", 10, "") -> 10 | R77: =IF(UPPER(E77)="REQUERIDO", J77, "") -> 0
A78: Baño de vestidor | C78: 2 | D78: - | E78: Requerido | F78: 0 | G78: 0 | H78: =IF(AND(F78>=C78,F78>0),10,0) -> 0 | I78: 0 | J78: =IF(AND(OR(F78=0,F78<C78),G78=0),0,IF(AND(OR(F78=0,F78<C78),G78>=C78),-10,IF(C78=0,0,IF(F78>=C78,10,0)))) -> 0 | Q78: 10 | R78: 0
A79: INSTALACIONES | B79: =B1 -> Anx: | C79: =C$1 -> Requerido: | D79: m² Util: | E79: Tipo: | F79: BUENO: | G79: MALO: | J79: Calif: | K79: Observaciones: | AO79: =SUM(Q80:Q81) -> 0 | AP79: =SUM(R80:R81) -> 0 | AQ79: =SUM(S80:S81) -> 0 | AR79: =SUM(T80:T81) -> 0 | AS79: =SUM(U80:U81) -> 0 | AT79: 0 | AU79: 0 | AV79: 0 | AW79: 10 | AX79: 0 | AY79: 0 | AZ79: 0 | BA79: 0 | BB79: 0 | BC79: 0 | BD79: 0 | BE79: 10 | BF79: 0 | BG79: 0 | BH79: 0 | BI79: 0 | BJ79: 0 | BK79: 0 | BL79: 0
A80: Estructura General | B80: EG_01 | C80: 1 | D80: . | E80: Requerido | F80: 0 | G80: 0 | H80: =IF(AND(F80>=C80,F80>0),10,0) -> 0 | I80: =IF(AND(G80>=C80,G80>0),10,0) -> 0 | J80: 0 | AG80: =IF(UPPER(E80)="REQUERIDO", 10, "") -> 10 | AH80: =IF(UPPER(E80)="REQUERIDO", J80, "") -> 0
A81: Instalaciones Generales | B81: IG_01 | C81: 1 | D81: - | E81: Requerido | F81: 0 | G81: 0 | H81: 0 | I81: 0 | J81: 0 | Y81: =IF(UPPER(E81)="REQUERIDO", 10, "") -> 10 | Z81: =IF(UPPER(E81)="REQUERIDO", J81, "") -> 0
A82: APOYO DIAGNÓSTICO | L82: =ROW(A82) -> 82 | AO82: =SUM(Q83:Q118) -> 10 | AP82: =SUM(R83:R118) -> 0 | AQ82: =SUM(S83:S118) -> 130 | AR82: =SUM(T83:T118) -> 0 | AS82: =SUM(U83:U118) -> 130 | AT82: 0 | AU82: 0 | AV82: 0 | AW82: 10 | AX82: 0 | AY82: =SUM(AA83:AA118) -> 30 | AZ82: =SUM(AB83:AB118) -> 0 | BA82: 20 | BB82: 0 | BC82: 0 | BD82: 0 | BE82: 10 | BF82: 0 | BG82: 30 | BH82: 0 | BI82: 20 | BJ82: 0 | BK82: 0 | BL82: 0
A83: DIAGNÓSTICO EN LABORATORIO (LABORATORIO DE ANÁLISIS CLÍNICO) | L83: =ROW(A83) -> 83 | AO83: =SUM(Q85:Q118) -> 10 | AP83: =SUM(R85:R118) -> 0 | AQ83: =SUM(S85:S118) -> 130 | AR83: =SUM(T85:T118) -> 0 | AS83: =SUM(U85:U118) -> 130 | AT83: 0 | AU83: 0 | AV83: 0 | AW83: 10 | AX83: 0 | AY83: =SUM(AA85:AA118) -> 30 | AZ83: =SUM(AB85:AB118) -> 0 | BA83: 20 | BB83: 0 | BC83: 0 | BD83: 0 | BE83: 10 | BF83: 0 | BG83: 30 | BH83: 0 | BI83: 20 | BJ83: 0 | BK83: 0 | BL83: 0
A84: (En el caso de no contar con el servicio dentro del establecimiento debe existir un convenio con un Laboratorio de Análisis Clínico con permiso de funcionamiento emitido por el MSP; debe cumplir con las normas de transporte y conservación de muestras)
A85: ÁREA DE PREANÁLISIS | L85: =ROW(A85) -> 85 | AO85: =SUM(Q86:Q88) -> 10 | AP85: =SUM(R86:R88) -> 0 | AQ85: =SUM(S86:S88) -> 10 | AR85: =SUM(T86:T88) -> 0 | AS85: =SUM(U86:U88) -> 10 | AT85: 0 | AU85: 0 | AV85: 0 | AW85: 0 | AX85: 0 | AY85: 0 | AZ85: 0 | BA85: 0 | BB85: 0 | BC85: 0 | BD85: 0 | BE85: 0 | BF85: 0 | BG85: 0 | BH85: 0 | BI85: 0 | BJ85: 0 | BK85: 0 | BL85: 0
A86: AMBIENTES | B86: =B1 -> Anx: | C86: =C$1 -> Requerido: | D86: m² Util: | E86: Tipo: | F86: BUENO: | G86: MALO: | J86: Calif: | K86: Observaciones: | AO86: =SUM(Q87:Q88) -> 10 | AP86: =SUM(R87:R88) -> 0 | AQ86: =SUM(S87:S88) -> 10 | AR86: =SUM(T87:T88) -> 0 | AS86: =SUM(U87:U88) -> 10 | AT86: 0 | AU86: 0 | AV86: 0 | AW86: 0 | AX86: 0 | AY86: 0 | AZ86: 0 | BA86: 0 | BB86: 0 | BC86: 0 | BD86: 0 | BE86: 0 | BF86: 0 | BG86: 0 | BH86: 0 | BI86: 0 | BJ86: 0 | BK86: 0 | BL86: 0
A87: Toma de muestras | C87: 1 | D87: - | E87: Condición | F87: 0 | G87: 0 | H87: =IF(AND(F87>=C87,F87>0),10,0) -> 0 | I87: =IF(AND(G87>=C87,G87>0),10,0) -> 0 | J87: =IF(AND(F87=0,G87=0),0,IF(AND(F87>0,G87>0),10,IF(AND(F87=0,G87>0),-10,IF(AND(F87>0,G87=0),10)))) -> 0 | S87: =IF(UPPER(E87)="CONDICIÓN", 10, 0) -> 10 | T87: =IF(UPPER(E87)="CONDICIÓN", H87, "") -> 0 | U87: =IF(UPPER(E87)="CONDICIÓN", 10, 0) -> 10 | V87: =IF(UPPER(E87)="CONDICIÓN", I87, "") -> 0
A88: Pre analisis | C88: 1 | D88: - | E88: Requerido | F88: 0 | G88: 0 | H88: 0 | I88: 0 | J88: 0 | Q88: =IF(UPPER(E88)="REQUERIDO", 10, "") -> 10 | R88: =IF(UPPER(E88)="REQUERIDO", J88, "") -> 0
A89: INSTALACIONES | B89: =B1 -> Anx: | C89: =C$1 -> Requerido: | D89: m² Util: | E89: Tipo: | F89: BUENO: | G89: MALO: | J89: Calif: | K89: Observaciones: | AO89: =SUM(Q90:Q91) -> 0 | AP89: =SUM(R90:R91) -> 0 | AQ89: =SUM(S90:S91) -> 0 | AR89: =SUM(T90:T91) -> 0 | AS89: =SUM(U90:U91) -> 0 | AT89: 0 | AU89: 0 | AV89: 0 | AW89: =SUM(Y90:Y91) -> 10 | AX89: =SUM(Z90:Z91) -> 0 | AY89: 0 | AZ89: 0 | BA89: 0 | BB89: 0 | BC89: 0 | BD89: 0 | BE89: =SUM(AG90:AG91) -> 10 | BF89: =SUM(AH90:AH91) -> 0 | BG89: 0 | BH89: 0 | BI89: 0 | BJ89: 0 | BK89: 0 | BL89: 0
A90: Estructura General | B90: EG_01 | C90: 1 | D90: - | E90: Requerido | F90: 0 | G90: 0 | H90: =IF(AND(F90>=C90,F90>0),10,0) -> 0 | I90: =IF(AND(G90>=C90,G90>0),10,0) -> 0 | J90: 0 | AG90: =IF(UPPER(E90)="REQUERIDO", 10, "") -> 10 | AH90: =IF(UPPER(E90)="REQUERIDO", J90, "") -> 0
A91: Instalaciones Generales | B91: IG_01 | C91: 1 | D91: - | E91: Requerido | F91: 0 | G91: 0 | H91: 0 | I91: 0 | J91: 0 | Y91: =IF(UPPER(E91)="REQUERIDO", 10, "") -> 10 | Z91: =IF(UPPER(E91)="REQUERIDO", J91, "") -> 0
A92: ÁREA DE ANÁLISIS | L92: =ROW(A92) -> 92 | AO92: =SUM(Q93:Q103) -> 0 | AP92: =SUM(R93:R103) -> 0 | AQ92: =SUM(S93:S103) -> 70 | AR92: =SUM(T93:T103) -> 0 | AS92: =SUM(U93:U103) -> 70 | AT92: 0 | AU92: 0 | AV92: 0 | AW92: 0 | AX92: 0 | AY92: 10 | AZ92: 0 | BA92: 10 | BB92: 0 | BC92: 0 | BD92: 0 | BE92: 0 | BF92: 0 | BG92: 10 | BH92: 0 | BI92: 10 | BJ92: 0 | BK92: 0 | BL92: =SUM(AN93:AN103) -> 0
A93: AMBIENTES | B93: =B1 -> Anx: | C93: =C$1 -> Requerido: | D93: m² Util: | E93: Tipo: | F93: BUENO: | G93: MALO: | J93: Calif: | K93: Observaciones: | AO93: =SUM(Q94:Q100) -> 0 | AP93: =SUM(R94:R100) -> 0 | AQ93: =SUM(S94:S100) -> 70 | AR93: =SUM(T94:T100) -> 0 | AS93: =SUM(U94:U100) -> 70 | AT93: 0 | AU93: 0 | AV93: 0 | AW93: 0 | AX93: 0 | AY93: 0 | AZ93: 0 | BA93: 0 | BB93: 0 | BC93: 0 | BD93: 0 | BE93: 0 | BF93: 0 | BG93: 0 | BH93: 0 | BI93: 0 | BJ93: 0 | BK93: 0 | BL93: =SUM(AN94:AN100) -> 0
A94: Hematología | C94: 1 | D94: - | E94: Condición | F94: 0 | G94: 0 | H94: =IF(AND(F94>=C94,F94>0),10,0) -> 0 | I94: =IF(AND(G94>=C94,G94>0),10,0) -> 0 | J94: =IF(AND(F94=0,G94=0),0,IF(AND(F94>0,G94>0),10,IF(AND(F94=0,G94>0),-10,IF(AND(F94>0,G94=0),10)))) -> 0 | S94: =IF(UPPER(E94)="CONDICIÓN", 10, 0) -> 10 | T94: =IF(UPPER(E94)="CONDICIÓN", H94, "") -> 0 | U94: =IF(UPPER(E94)="CONDICIÓN", 10, 0) -> 10 | V94: =IF(UPPER(E94)="CONDICIÓN", I94, "") -> 0
A95: Química Clínica | C95: 1 | D95: - | E95: Condición | F95: 0 | G95: 0 | H95: 0 | I95: 0 | J95: 0 | S95: 10 | T95: 0 | U95: 10 | V95: 0
A96: Hemostasia | C96: 1 | D96: - | E96: Condición | F96: 0 | G96: 0 | H96: 0 | I96: 0 | J96: 0 | S96: 10 | T96: 0 | U96: 10 | V96: 0
A97: Uroanálisis y Coproanálisis | C97: 1 | D97: - | E97: Condición | F97: 0 | G97: 0 | H97: 0 | I97: 0 | J97: 0 | S97: 10 | T97: 0 | U97: 10 | V97: 0
A98: Microbiología de mediana complejidad | C98: 1 | D98: - | E98: Condición | F98: 0 | G98: 0 | H98: 0 | I98: 0 | J98: 0 | S98: 10 | T98: 0 | U98: 10 | V98: 0
A99: Inmunología e Inmunoquímica | C99: 1 | D99: - | E99: Condición | F99: 0 | G99: 0 | H99: 0 | I99: 0 | J99: 0 | S99: 10 | T99: 0 | U99: 10 | V99: 0
A100: Área para Bioseguridad laboral | C100: 1 | D100: - | E100: Condición | F100: 0 | G100: 0 | H100: 0 | I100: 0 | J100: 0 | S100: 10 | T100: 0 | U100: 10 | V100: 0
A101: INSTALACIONES | B101: =B1 -> Anx: | C101: =C$1 -> Requerido: | D101: m² Util: | E101: Tipo: | F101: BUENO: | G101: MALO: | J101: Calif: | K101: Observaciones: | AO101: =SUM(Q102:Q103) -> 0 | AP101: =SUM(R102:R103) -> 0 | AQ101: =SUM(S102:S103) -> 0 | AR101: =SUM(T102:T103) -> 0 | AS101: =SUM(U102:U103) -> 0 | AT101: 0 | AU101: 0 | AV101: 0 | AW101: 0 | AX101: 0 | AY101: 10 | AZ101: 0 | BA101: 10 | BB101: 0 | BC101: 0 | BD101: 0 | BE101: 0 | BF101: 0 | BG101: 10 | BH101: 0 | BI101: 10 | BJ101: 0 | BK101: 0 | BL101: 0
A102: Estructura General | B102: EG_01 | C102: 1 | D102: - | E102: Condición | F102: 0 | G102: 0 | H102: =IF(AND(F102>=C102,F102>0),10,0) -> 0 | I102: =IF(AND(G102>=C102,G102>0),10,0) -> 0 | J102: 0 | AI102: =IF(UPPER(E102)="CONDICIÓN", 10, 0) -> 10 | AJ102: =IF(UPPER(E102)="CONDICIÓN", H102, "") -> 0 | AK102: =IF(UPPER(E102)="CONDICIÓN", 10, 0) -> 10 | AL102: =IF(UPPER(E102)="CONDICIÓN", I102, "") -> 0
A103: Instalaciones Generales | B103: IG_01 | C103: 1 | D103: - | E103: Condición | F103: 0 | G103: 0 | H103: 0 | I103: 0 | J103: 0 | AA103: =IF(UPPER(E103)="CONDICIÓN", 10, 0) -> 10 | AB103: =IF(UPPER(E103)="CONDICIÓN", H103, "") -> 0 | AC103: =IF(UPPER(E103)="CONDICIÓN", 10, 0) -> 10 | AD103: =IF(UPPER(E103)="CONDICIÓN", I103, "") -> 0
A104: ÁREA DE SOPORTE | L104: =ROW(A104) -> 104 | AO104: =SUM(Q105:Q112) -> 0 | AP104: =SUM(R105:R112) -> 0 | AQ104: =SUM(S105:S112) -> 40 | AR104: =SUM(T105:T112) -> 0 | AS104: =SUM(U105:U112) -> 40 | AT104: 0 | AU104: 0 | AV104: 0 | AW104: 0 | AX104: 0 | AY104: 10 | AZ104: 0 | BA104: 10 | BB104: 0 | BC104: 0 | BD104: 0 | BE104: 0 | BF104: 0 | BG104: 10 | BH104: 0 | BI104: 10 | BJ104: 0 | BK104: 0 | BL104: 0
A105: AMBIENTES | B105: =B1 -> Anx: | C105: =C$1 -> Requerido: | D105: m² Util: | E105: Tipo: | F105: BUENO: | G105: MALO: | J105: Calif: | K105: Observaciones: | AO105: =SUM(Q106:Q109) -> 0 | AP105: =SUM(R106:R109) -> 0 | AQ105: =SUM(S106:S109) -> 40 | AR105: =SUM(T106:T109) -> 0 | AS105: =SUM(U106:U109) -> 40 | AT105: 0 | AU105: 0 | AV105: 0 | AW105: 0 | AX105: 0 | AY105: 0 | AZ105: 0 | BA105: 0 | BB105: 0 | BC105: 0 | BD105: 0 | BE105: 0 | BF105: 0 | BG105: 0 | BH105: 0 | BI105: 0 | BJ105: 0 | BK105: 0 | BL105: 0
A106: Zona de Refrigeradores y Congeladores | C106: 1 | D106: - | E106: Condición | F106: 0 | G106: 0 | H106: =IF(AND(F106>=C106,F106>0),10,0) -> 0 | I106: =IF(AND(G106>=C106,G106>0),10,0) -> 0 | J106: =IF(AND(F106=0,G106=0),0,IF(AND(F106>0,G106>0),10,IF(AND(F106=0,G106>0),-10,IF(AND(F106>0,G106=0),10)))) -> 0 | S106: =IF(UPPER(E106)="CONDICIÓN", 10, 0) -> 10 | T106: =IF(UPPER(E106)="CONDICIÓN", H106, "") -> 0 | U106: =IF(UPPER(E106)="CONDICIÓN", 10, 0) -> 10 | V106: =IF(UPPER(E106)="CONDICIÓN", I106, "") -> 0
A107: Bodega o almacenamiento de Material | C107: 1 | D107: - | E107: Condición | F107: 0 | G107: 0 | H107: 0 | I107: 0 | J107: 0 | S107: 10 | T107: 0 | U107: 10 | V107: 0
A108: Usado. (para lavado y esterilización de material) | C108: 1 | D108: - | E108: Condición | F108: 0 | G108: 0 | H108: 0 | I108: 0 | J108: 0 | S108: 10 | T108: 0 | U108: 10 | V108: 0
A109: Cuarto de Limpieza - se justifica si esta centralizado para todos los servicios | C109: 1 | D109: - | E109: Condición | F109: 0 | G109: 0 | H109: 0 | I109: 0 | J109: =IF(AND(F109=0,G109=0),0,IF(AND(F109>0,G109>0),10,IF(AND(F109=0,G109>0),-10,IF(AND(F109>0,G109=0),10)))) -> 0 | S109: 10 | T109: 0 | U109: 10 | V109: 0
A110: INSTALACIONES | B110: =B1 -> Anx: | C110: =C$1 -> Requerido: | D110: m² Util: | E110: Tipo: | F110: BUENO: | G110: MALO: | J110: Calif: | K110: Observaciones: | AO110: =SUM(Q111:Q112) -> 0 | AP110: =SUM(R111:R112) -> 0 | AQ110: =SUM(S111:S112) -> 0 | AR110: =SUM(T111:T112) -> 0 | AS110: =SUM(U111:U112) -> 0 | AT110: 0 | AU110: 0 | AV110: 0 | AW110: 0 | AX110: 0 | AY110: 10 | AZ110: 0 | BA110: 10 | BB110: 0 | BC110: 0 | BD110: 0 | BE110: 0 | BF110: 0 | BG110: 10 | BH110: 0 | BI110: 10 | BJ110: 0 | BK110: 0 | BL110: 0
A111: Estructura General | B111: EG_01 | C111: 1 | D111: - | E111: Condición | F111: 0 | G111: 0 | H111: =IF(AND(F111>=C111,F111>0),10,0) -> 0 | I111: =IF(AND(G111>=C111,G111>0),10,0) -> 0 | J111: =IF(AND(F111=0,G111=0),0,IF(AND(F111>0,G111>0),10,IF(AND(F111=0,G111>0),-10,IF(AND(F111>0,G111=0),10)))) -> 0 | AI111: =IF(UPPER(E111)="CONDICIÓN", 10, 0) -> 10 | AJ111: =IF(UPPER(E111)="CONDICIÓN", H111, "") -> 0 | AK111: =IF(UPPER(E111)="CONDICIÓN", 10, 0) -> 10 | AL111: =IF(UPPER(E111)="CONDICIÓN", I111, "") -> 0
A112: Instalaciones Generales | B112: IG_01 | C112: 1 | D112: - | E112: Condición | F112: 0 | G112: 0 | H112: 0 | I112: 0 | J112: 0 | AA112: =IF(UPPER(E112)="CONDICIÓN", 10, 0) -> 10 | AB112: =IF(UPPER(E112)="CONDICIÓN", H112, "") -> 0 | AC112: =IF(UPPER(E112)="CONDICIÓN", 10, 0) -> 10 | AD112: =IF(UPPER(E112)="CONDICIÓN", I112, "") -> 0
A113: ÁREA ADMINISTRATIVA Y DE PERSONAL | L113: =ROW(A113) -> 113 | AO113: =SUM(Q114:Q118) -> 0 | AP113: =SUM(R114:R118) -> 0 | AQ113: =SUM(S114:S118) -> 10 | AR113: =SUM(T114:T118) -> 0 | AS113: =SUM(U114:U118) -> 10 | AT113: 0 | AU113: 0 | AV113: 0 | AW113: 0 | AX113: 0 | AY113: =SUM(AA114:AA118) -> 10 | AZ113: =SUM(AB114:AB118) -> 0 | BA113: 0 | BB113: 0 | BC113: 0 | BD113: 0 | BE113: 0 | BF113: 0 | BG113: 10 | BH113: 0 | BI113: 0 | BJ113: 0 | BK113: 0 | BL113: 0
A114: AMBIENTES | B114: =B1 -> Anx: | C114: =C$1 -> Requerido: | D114: m² Util: | E114: Tipo: | F114: BUENO: | G114: MALO: | J114: Calif: | K114: Observaciones: | AO114: =SUM(Q115:Q115) -> 0 | AP114: =SUM(R115:R115) -> 0 | AQ114: =SUM(S115:S115) -> 10 | AR114: =SUM(T115:T115) -> 0 | AS114: =SUM(U115:U115) -> 10 | AT114: 0 | AU114: 0 | AV114: 0 | AW114: 0 | AX114: 0 | AY114: 0 | AZ114: 0 | BA114: 0 | BB114: 0 | BC114: 0 | BD114: 0 | BE114: 0 | BF114: 0 | BG114: 0 | BH114: 0 | BI114: 0 | BJ114: 0 | BK114: 0 | BL114: 0
A115: Despacho de Responsable de Servicio | C115: 1 | D115: - | E115: Condición | F115: 0 | G115: 0 | H115: =IF(AND(F115>=C115,F115>0),10,0) -> 0 | I115: =IF(AND(G115>=C115,G115>0),10,0) -> 0 | J115: =IF(AND(F115=0,G115=0),0,IF(AND(F115>0,G115>0),10,IF(AND(F115=0,G115>0),-10,IF(AND(F115>0,G115=0),10)))) -> 0 | S115: =IF(UPPER(E115)="CONDICIÓN", 10, 0) -> 10 | T115: =IF(UPPER(E115)="CONDICIÓN", H115, "") -> 0 | U115: =IF(UPPER(E115)="CONDICIÓN", 10, 0) -> 10 | V115: =IF(UPPER(E115)="CONDICIÓN", I115, "") -> 0
A116: INSTALACIONES | B116: =B1 -> Anx: | C116: =C$1 -> Requerido: | D116: m² Util: | E116: Tipo: | F116: BUENO: | G116: MALO: | J116: Calif: | K116: Observaciones: | AO116: =SUM(Q117:Q118) -> 0 | AP116: =SUM(R117:R118) -> 0 | AQ116: =SUM(S117:S118) -> 0 | AR116: =SUM(T117:T118) -> 0 | AS116: =SUM(U117:U118) -> 0 | AT116: 0 | AU116: 0 | AV116: 0 | AW116: 0 | AX116: 0 | AY116: =SUM(AA117:AA118) -> 10 | AZ116: =SUM(AB117:AB118) -> 0 | BA116: 0 | BB116: 0 | BC116: 0 | BD116: 0 | BE116: 0 | BF116: 0 | BG116: =SUM(AI117:AI118) -> 10 | BH116: =SUM(AJ117:AJ118) -> 0 | BI116: 0 | BJ116: 0 | BK116: 0 | BL116: 0
A117: Estructura General | B117: EG_01 | C117: 1 | D117: - | E117: Condición | F117: 0 | G117: 0 | H117: =IF(AND(F117>=C117,F117>0),10,0) -> 0 | I117: =IF(AND(G117>=C117,G117>0),10,0) -> 0 | J117: 0 | AI117: =IF(UPPER(E117)="CONDICIÓN", 10, 0) -> 10 | AJ117: =IF(UPPER(E117)="CONDICIÓN", H117, "") -> 0
A118: Instalaciones Generales | B118: IG_01 | C118: 1 | D118: - | E118: Condición | F118: 0 | G118: 0 | H118: 0 | I118: 0 | J118: 0 | AA118: =IF(UPPER(E118)="CONDICIÓN", 10, 0) -> 10 | AB118: =IF(UPPER(E118)="CONDICIÓN", H118, "") -> 0
A119: APOYO TERAPÉUTICO | L119: =ROW(A119) -> 119 | AO119: =SUM(Q120:Q127) -> 20 | AP119: =SUM(R120:R127) -> 0 | AQ119: =SUM(S120:S127) -> 0 | AR119: =SUM(T120:T127) -> 0 | AS119: =SUM(U120:U127) -> 0 | AT119: 0 | AU119: 0 | AV119: 0 | AW119: 10 | AX119: 0 | AY119: 0 | AZ119: 0 | BA119: 0 | BB119: 0 | BC119: 0 | BD119: 0 | BE119: 10 | BF119: 0 | BG119: 0 | BH119: 0 | BI119: 0 | BJ119: 0 | BK119: 0 | BL119: 0
A120: DOTACIÓN DE MEDICAMENTOS Y DISPOSITIVOS MÉDICOS (FARMACIA) | L120: =ROW(A120) -> 120 | AO120: =SUM(Q121:Q127) -> 20 | AP120: =SUM(R121:R127) -> 0 | AQ120: =SUM(S121:S127) -> 0 | AR120: =SUM(T121:T127) -> 0 | AS120: =SUM(U121:U127) -> 0 | AT120: 0 | AU120: 0 | AV120: 0 | AW120: 10 | AX120: 0 | AY120: 0 | AZ120: 0 | BA120: 0 | BB120: 0 | BC120: 0 | BD120: 0 | BE120: 10 | BF120: 0 | BG120: 0 | BH120: 0 | BI120: 0 | BJ120: 0 | BK120: 0 | BL120: 0
A121: ÁREA DE FARMACIA | L121: =ROW(A121) -> 121 | AO121: =SUM(Q122:Q127) -> 20 | AP121: =SUM(R122:R127) -> 0 | AQ121: =SUM(S122:S127) -> 0 | AR121: =SUM(T122:T127) -> 0 | AS121: =SUM(U122:U127) -> 0 | AT121: 0 | AU121: 0 | AV121: 0 | AW121: 10 | AX121: 0 | AY121: 0 | AZ121: 0 | BA121: 0 | BB121: 0 | BC121: 0 | BD121: 0 | BE121: 10 | BF121: 0 | BG121: 0 | BH121: 0 | BI121: 0 | BJ121: 0 | BK121: 0 | BL121: 0
A122: AMBIENTES | B122: =B1 -> Anx: | C122: =C$1 -> Requerido: | D122: m² Util: | E122: Tipo: | F122: BUENO: | G122: MALO: | J122: Calif: | K122: Observaciones: | AO122: =SUM(Q123:Q124) -> 20 | AP122: =SUM(R123:R124) -> 0 | AQ122: =SUM(S123:S124) -> 0 | AR122: =SUM(T123:T124) -> 0 | AS122: =SUM(U123:U124) -> 0 | AT122: 0 | AU122: 0 | AV122: 0 | AW122: 0 | AX122: 0 | AY122: 0 | AZ122: 0 | BA122: 0 | BB122: 0 | BC122: 0 | BD122: 0 | BE122: 0 | BF122: 0 | BG122: 0 | BH122: 0 | BI122: 0 | BJ122: 0 | BK122: 0 | BL122: 0
A123: Dispensación | C123: 1 | D123: - | E123: Requerido | F123: 0 | G123: 0 | H123: =IF(AND(F123>=C123,F123>0),10,0) -> 0 | I123: =IF(AND(G123>=C123,G123>0),10,0) -> 0 | J123: =IF(AND(F123=0,G123=0),0,IF(AND(F123>0,G123>0),10,IF(AND(F123=0,G123>0),-10,IF(AND(F123>0,G123=0),10)))) -> 0 | Q123: =IF(UPPER(E123)="REQUERIDO", 10, "") -> 10 | R123: =IF(UPPER(E123)="REQUERIDO", J123, "") -> 0
A124: Bodega | C124: 1 | D124: - | E124: Requerido | F124: 0 | G124: 0 | H124: 0 | I124: 0 | J124: 0 | Q124: 10 | R124: 0
A125: INSTALACIONES | B125: =B1 -> Anx: | C125: =C$1 -> Requerido: | D125: m² Util: | E125: Tipo: | F125: BUENO: | G125: MALO: | J125: Calif: | K125: Observaciones: | AO125: =SUM(Q126:Q127) -> 0 | AP125: =SUM(R126:R127) -> 0 | AQ125: =SUM(S126:S127) -> 0 | AR125: =SUM(T126:T127) -> 0 | AS125: =SUM(U126:U127) -> 0 | AT125: 0 | AU125: 0 | AV125: 0 | AW125: 10 | AX125: 0 | AY125: 0 | AZ125: 0 | BA125: 0 | BB125: 0 | BC125: 0 | BD125: 0 | BE125: 10 | BF125: 0 | BG125: 0 | BH125: 0 | BI125: 0 | BJ125: 0 | BK125: 0 | BL125: 0
A126: Estructura General | B126: EG_01 | C126: 1 | D126: . | E126: Requerido | F126: 0 | G126: 0 | H126: =IF(AND(F126>=C126,F126>0),10,0) -> 0 | I126: =IF(AND(G126>=C126,G126>0),10,0) -> 0 | J126: 0 | AG126: =IF(UPPER(E126)="REQUERIDO", 10, "") -> 10 | AH126: =IF(UPPER(E126)="REQUERIDO", J126, "") -> 0
A127: Instalaciones Generales | B127: IG_01 | C127: 1 | D127: - | E127: Requerido | F127: 0 | G127: 0 | H127: 0 | I127: 0 | J127: 0 | Y127: =IF(UPPER(E127)="REQUERIDO", 10, "") -> 10 | Z127: =IF(UPPER(E127)="REQUERIDO", J127, "") -> 0
A128: ADMINISTRATIVO | L128: =ROW(A128) -> 128 | AO128: =SUM(Q129:Q142) -> 50 | AP128: =SUM(R129:R142) -> 0 | AQ128: =SUM(S129:S142) -> 30 | AR128: =SUM(T129:T142) -> 0 | AS128: =SUM(U129:U142) -> 30 | AT128: 0 | AU128: 0 | AV128: 0 | AW128: 10 | AX128: 0 | AY128: 0 | AZ128: 0 | BA128: 0 | BB128: 0 | BC128: 0 | BD128: 0 | BE128: 10 | BF128: 0 | BG128: 0 | BH128: 0 | BI128: 0 | BJ128: 0 | BK128: 0 | BL128: 0
A129: ADMINISTRACIÓN TÉCNICA | L129: =ROW(A129) -> 129 | AO129: =SUM(Q130:Q142) -> 50 | AP129: =SUM(R130:R142) -> 0 | AQ129: =SUM(S130:S142) -> 30 | AR129: =SUM(T130:T142) -> 0 | AS129: =SUM(U130:U142) -> 30 | AT129: 0 | AU129: 0 | AV129: 0 | AW129: 10 | AX129: 0 | AY129: 0 | AZ129: 0 | BA129: 0 | BB129: 0 | BC129: 0 | BD129: 0 | BE129: 10 | BF129: 0 | BG129: 0 | BH129: 0 | BI129: 0 | BJ129: 0 | BK129: 0 | BL129: 0
A130: ÁREA TÉCNICA | L130: =ROW(A130) -> 130 | AO130: =SUM(Q131:Q142) -> 50 | AP130: =SUM(R131:R142) -> 0 | AQ130: =SUM(S131:S142) -> 30 | AR130: =SUM(T131:T142) -> 0 | AS130: =SUM(U131:U142) -> 30 | AT130: 0 | AU130: 0 | AV130: 0 | AW130: 10 | AX130: 0 | AY130: 0 | AZ130: 0 | BA130: 0 | BB130: 0 | BC130: 0 | BD130: 0 | BE130: 10 | BF130: 0 | BG130: 0 | BH130: 0 | BI130: 0 | BJ130: 0 | BK130: 0 | BL130: 0
A131: AMBIENTES | B131: =B1 -> Anx: | C131: =C$1 -> Requerido: | D131: m² Util: | E131: Tipo: | F131: BUENO: | G131: MALO: | J131: Calif: | K131: Observaciones: | AO131: =SUM(Q132:Q139) -> 50 | AP131: =SUM(R132:R139) -> 0 | AQ131: =SUM(S132:S139) -> 30 | AR131: =SUM(T132:T139) -> 0 | AS131: =SUM(U132:U139) -> 30 | AT131: 0 | AU131: 0 | AV131: 0 | AW131: 0 | AX131: 0 | AY131: 0 | AZ131: 0 | BA131: 0 | BB131: 0 | BC131: 0 | BD131: 0 | BE131: 0 | BF131: 0 | BG131: 0 | BH131: 0 | BI131: 0 | BJ131: 0 | BK131: 0 | BL131: 0
A132: Despacho del Director (Puede ser un consultorio médico de uso exclusivo del director [Nefrólogo]) | C132: 1 | D132: - | E132: Requerido | F132: 0 | G132: 0 | H132: =IF(AND(F132>=C132,F132>0),10,0) -> 0 | I132: =IF(AND(G132>=C132,G132>0),10,0) -> 0 | J132: =IF(AND(F132=0,G132=0),0,IF(AND(F132>0,G132>0),10,IF(AND(F132=0,G132>0),-10,IF(AND(F132>0,G132=0),10)))) -> 0 | Q132: =IF(UPPER(E132)="REQUERIDO", 10, "") -> 10 | R132: =IF(UPPER(E132)="REQUERIDO", J132, "") -> 0
A133: Sala de espera | C133: 1 | D133: - | E133: Condición | F133: 0 | G133: 0 | H133: 0 | I133: 0 | J133: 0 | S133: =IF(UPPER(E133)="CONDICIÓN", 10, 0) -> 10 | T133: =IF(UPPER(E133)="CONDICIÓN", H133, "") -> 0 | U133: =IF(UPPER(E133)="CONDICIÓN", 10, 0) -> 10 | V133: =IF(UPPER(E133)="CONDICIÓN", I133, "") -> 0
A134: Secretaría (no exclusiva de la Dirección, puede encontrarse en el área de Admisión, Información y Recepción) | C134: 1 | D134: - | E134: Requerido | F134: 0 | G134: 0 | H134: 0 | I134: 0 | J134: 0 | Q134: =IF(UPPER(E134)="REQUERIDO", 10, "") -> 10 | R134: =IF(UPPER(E134)="REQUERIDO", J134, "") -> 0
A135: Despacho de Jefe de Enfermeras | C135: 1 | D135: - | E135: Requerido | F135: 0 | G135: 0 | H135: 0 | I135: 0 | J135: 0 | Q135: =IF(UPPER(E135)="REQUERIDO", 10, "") -> 10 | R135: =IF(UPPER(E135)="REQUERIDO", J135, "") -> 0
A136: Oficina de Trabajo Social (Puede compartir con los Consultorios de Psicología y Nutrición, únicamente cuando esta se encuentre en consulta externa. Es un área de uso exclusivo que debe asegurar la privacidad del usuario) | C136: 1 | D136: - | E136: Requerido | F136: 0 | G136: 0 | H136: 0 | I136: 0 | J136: 0 | Q136: =IF(UPPER(E136)="REQUERIDO", 10, "") -> 10 | R136: =IF(UPPER(E136)="REQUERIDO", J136, "") -> 0
A137: Despacho de Responsable de Talento Humano (Puede estar en un ambiente compartido con la Zona de Trabajo de técnico financiero, debe demostrarse la gestión) | C137: 1 | D137: - | E137: Condición | F137: 0 | G137: 0 | H137: 0 | I137: 0 | J137: 0 | S137: =IF(UPPER(E137)="CONDICIÓN", 10, 0) -> 10 | T137: =IF(UPPER(E137)="CONDICIÓN", H137, "") -> 0 | U137: =IF(UPPER(E137)="CONDICIÓN", 10, 0) -> 10 | V137: =IF(UPPER(E137)="CONDICIÓN", I137, "") -> 0
A138: Zona de trabajo de Técnico financiero | C138: 1 | D138: - | E138: Condición | F138: 0 | G138: 0 | H138: =IF(AND(F138>=C138,F138>0),10,0) -> 0 | I138: 0 | J138: 0 | S138: 10 | T138: 0 | U138: 10 | V138: 0
A139: Baño de personal | C139: 2 | D139: - | E139: Requerido | F139: 0 | G139: 0 | H139: =IF(AND(F139>=C139,F139>0),10,0) -> 0 | I139: 0 | J139: =IF(AND(OR(F139=0,F139<C139),G139=0),0,IF(AND(OR(F139=0,F139<C139),G139>=C139),-10,IF(C139=0,0,IF(F139>=C139,10,0)))) -> 0 | Q139: =IF(UPPER(E139)="REQUERIDO", 10, "") -> 10 | R139: =IF(UPPER(E139)="REQUERIDO", J139, "") -> 0
A140: INSTALACIONES | B140: =B1 -> Anx: | C140: =C$1 -> Requerido: | D140: m² Util: | E140: Tipo: | F140: BUENO: | G140: MALO: | J140: Calif: | K140: Observaciones: | AO140: =SUM(Q141:Q142) -> 0 | AP140: =SUM(R141:R142) -> 0 | AQ140: =SUM(S141:S142) -> 0 | AR140: =SUM(T141:T142) -> 0 | AS140: =SUM(U141:U142) -> 0 | AT140: 0 | AU140: 0 | AV140: 0 | AW140: 10 | AX140: 0 | AY140: 0 | AZ140: 0 | BA140: 0 | BB140: 0 | BC140: 0 | BD140: 0 | BE140: 10 | BF140: 0 | BG140: 0 | BH140: 0 | BI140: 0 | BJ140: 0 | BK140: 0 | BL140: 0
A141: Estructura General | B141: EG_01 | C141: 1 | D141: . | E141: Requerido | F141: 0 | G141: 0 | H141: =IF(AND(F141>=C141,F141>0),10,0) -> 0 | I141: 0 | J141: 0 | AG141: =IF(UPPER(E141)="REQUERIDO", 10, "") -> 10 | AH141: =IF(UPPER(E141)="REQUERIDO", J141, "") -> 0
A142: Instalaciones Generales | B142: IG_01 | C142: 1 | D142: - | E142: Requerido | F142: 0 | G142: 0 | H142: 0 | I142: 0 | J142: 0 | Y142: =IF(UPPER(E142)="REQUERIDO", 10, "") -> 10 | Z142: =IF(UPPER(E142)="REQUERIDO", J142, "") -> 0
A143: GENERAL | L143: =ROW(A143) -> 143 | AO143: =SUM(Q144:Q186) -> 70 | AP143: =SUM(R144:R186) -> 0 | AQ143: =SUM(S144:S186) -> 100 | AR143: =SUM(T144:T186) -> 0 | AS143: =SUM(U144:U186) -> 100 | AT143: 0 | AU143: 0 | AV143: 0 | AW143: 40 | AX143: 0 | AY143: 10 | AZ143: 0 | BA143: 10 | BB143: 0 | BC143: 0 | BD143: 0 | BE143: 40 | BF143: 0 | BG143: 10 | BH143: 0 | BI143: 10 | BJ143: 0 | BK143: 0 | BL143: 0
A144: SERVICIOS INTERNOS DE APOYO | L144: =ROW(A144) -> 144 | AO144: =SUM(Q145:Q186) -> 70 | AP144: =SUM(R145:R186) -> 0 | AQ144: =SUM(S145:S186) -> 100 | AR144: =SUM(T145:T186) -> 0 | AS144: =SUM(U145:U186) -> 100 | AT144: 0 | AU144: 0 | AV144: 0 | AW144: 40 | AX144: 0 | AY144: 10 | AZ144: 0 | BA144: 10 | BB144: 0 | BC144: 0 | BD144: 0 | BE144: 40 | BF144: 0 | BG144: 10 | BH144: 0 | BI144: 10 | BJ144: 0 | BK144: 0 | BL144: 0
A145: ÁREA DE APOYO Y ALMACENAMIENTO ( SUMINSTROS E INSUMOS) PARA EL ESTABLECIMIENTO | L145: =ROW(A145) -> 145 | AO145: =SUM(Q146:Q151) -> 10 | AP145: =SUM(R146:R151) -> 0 | AQ145: =SUM(S146:S151) -> 10 | AR145: =SUM(T146:T151) -> 0 | AS145: =SUM(U146:U151) -> 10 | AT145: 0 | AU145: 0 | AV145: 0 | AW145: 10 | AX145: 0 | AY145: 0 | AZ145: 0 | BA145: 0 | BB145: 0 | BC145: 0 | BD145: 0 | BE145: 10 | BF145: 0 | BG145: 0 | BH145: 0 | BI145: 0 | BJ145: 0 | BK145: 0 | BL145: 0
A146: AMBIENTES | B146: =B1 -> Anx: | C146: =C$1 -> Requerido: | D146: m² Util: | E146: Tipo: | F146: BUENO: | G146: MALO: | J146: Calif: | K146: Observaciones: | AO146: =SUM(Q147:Q148) -> 10 | AP146: =SUM(R147:R148) -> 0 | AQ146: =SUM(S147:S148) -> 10 | AR146: =SUM(T147:T148) -> 0 | AS146: =SUM(U147:U148) -> 10 | AT146: 0 | AU146: 0 | AV146: 0 | AW146: 0 | AX146: 0 | AY146: 0 | AZ146: 0 | BA146: 0 | BB146: 0 | BC146: 0 | BD146: 0 | BE146: 0 | BF146: 0 | BG146: 0 | BH146: 0 | BI146: 0 | BJ146: 0 | BK146: 0 | BL146: 0
A147: Recepción - Admisión | C147: 1 | D147: - | E147: Condición | F147: 0 | G147: 0 | H147: =IF(AND(F147>=C147,F147>0),10,0) -> 0 | I147: =IF(AND(G147>=C147,G147>0),10,0) -> 0 | J147: =IF(AND(F147=0,G147=0),0,IF(AND(F147>0,G147>0),10,IF(AND(F147=0,G147>0),-10,IF(AND(F147>0,G147=0),10)))) -> 0 | S147: =IF(UPPER(E147)="CONDICIÓN", 10, 0) -> 10 | T147: =IF(UPPER(E147)="CONDICIÓN", H147, "") -> 0 | U147: =IF(UPPER(E147)="CONDICIÓN", 10, 0) -> 10 | V147: =IF(UPPER(E147)="CONDICIÓN", I147, "") -> 0
A148: Bodega General | C148: 1 | D148: - | E148: Requerido | F148: 0 | G148: 0 | H148: 0 | I148: 0 | J148: 0 | Q148: =IF(UPPER(E148)="REQUERIDO", 10, "") -> 10 | R148: =IF(UPPER(E148)="REQUERIDO", J148, "") -> 0
A149: INSTALACIONES | B149: =B1 -> Anx: | C149: =C$1 -> Requerido: | D149: m² Util: | E149: Tipo: | F149: BUENO: | G149: MALO: | J149: Calif: | K149: Observaciones: | AO149: =SUM(Q150:Q151) -> 0 | AP149: =SUM(R150:R151) -> 0 | AQ149: =SUM(AA150:AA151) -> 0 | AR149: =SUM(T150:T151) -> 0 | AS149: =SUM(U150:U151) -> 0 | AT149: 0 | AU149: =SUM(AE150:AE151) -> 0 | AV149: =SUM(X150:X151) -> 0 | AW149: 10 | AX149: 0 | AY149: =SUM(AI150:AI151) -> 0 | AZ149: =SUM(AB150:AB151) -> 0 | BA149: 0 | BB149: 0 | BC149: =SUM(AM150:AM151) -> 0 | BD149: =SUM(AF150:AF151) -> 0 | BE149: 10 | BF149: 0 | BG149: =SUM(AQ150:AQ151) -> 0 | BH149: =SUM(AJ150:AJ151) -> 0 | BI149: 0 | BJ149: 0 | BK149: =SUM(AU150:AU151) -> 0 | BL149: =SUM(AN150:AN151) -> 0
A150: Estructura General | B150: EG_01 | C150: 1 | D150: - | E150: Requerido | F150: 0 | G150: 0 | H150: =IF(AND(F150>=C150,F150>0),10,0) -> 0 | I150: =IF(AND(G150>=C150,G150>0),10,0) -> 0 | J150: 0 | AG150: =IF(UPPER(E150)="REQUERIDO", 10, "") -> 10 | AH150: =IF(UPPER(E150)="REQUERIDO", J150, "") -> 0
A151: Instalaciones Generales | B151: IG_01 | C151: 1 | D151: - | E151: Requerido | F151: 0 | G151: 0 | H151: 0 | I151: 0 | J151: 0 | Y151: =IF(UPPER(E151)="REQUERIDO", 10, "") -> 10 | Z151: =IF(UPPER(E151)="REQUERIDO", J151, "") -> 0
A152: ÁREA DEL PERSONAL | L152: =ROW(A152) -> 152 | AO152: =SUM(Q153:Q160) -> 20 | AP152: =SUM(R153:R160) -> 0 | AQ152: =SUM(S153:S160) -> 20 | AR152: =SUM(T153:T160) -> 0 | AS152: =SUM(U153:U160) -> 20 | AT152: 0 | AU152: 0 | AV152: 0 | AW152: 10 | AX152: 0 | AY152: 0 | AZ152: 0 | BA152: 0 | BB152: 0 | BC152: 0 | BD152: 0 | BE152: 10 | BF152: 0 | BG152: 0 | BH152: 0 | BI152: 0 | BJ152: 0 | BK152: 0 | BL152: 0
A153: AMBIENTES | B153: =B1 -> Anx: | C153: =C$1 -> Requerido: | D153: m² Util: | E153: Tipo: | F153: BUENO: | G153: MALO: | J153: Calif: | K153: Observaciones: | AO153: =SUM(Q154:Q157) -> 20 | AP153: =SUM(Z154:Z157) -> 0 | AQ153: =SUM(S154:S157) -> 20 | AR153: =SUM(T154:T157) -> 0 | AS153: =SUM(U154:U157) -> 20 | AT153: =SUM(AD154:AD157) -> 0 | AU153: =SUM(W154:W157) -> 0 | AV153: 0 | AW153: 0 | AX153: =SUM(AH154:AH157) -> 0 | AY153: =SUM(AA154:AA157) -> 0 | AZ153: 0 | BA153: 0 | BB153: =SUM(AL154:AL157) -> 0 | BC153: =SUM(AE154:AE157) -> 0 | BD153: 0 | BE153: 0 | BF153: =SUM(AP154:AP157) -> 0 | BG153: =SUM(AI154:AI157) -> 0 | BH153: 0 | BI153: 0 | BJ153: =SUM(AT154:AT157) -> 0 | BK153: =SUM(AM154:AM157) -> 0 | BL153: 0
A154: Vestidor | C154: 2 | D154: - | E154: Requerido | F154: 0 | G154: 0 | H154: =IF(AND(F154>=C154,F154>0),10,0) -> 0 | I154: =IF(AND(G154>=C154,G154>0),10,0) -> 0 | J154: =IF(AND(OR(F154=0,F154<C154),G154=0),0,IF(AND(OR(F154=0,F154<C154),G154>=C154),-10,IF(C154=0,0,IF(F154>=C154,10,0)))) -> 0 | Q154: =IF(UPPER(E154)="REQUERIDO", 10, "") -> 10 | R154: =IF(UPPER(E154)="REQUERIDO", J154, "") -> 0
A155: Baño de vestidor | C155: 2 | D155: - | E155: Requerido | F155: 0 | G155: 0 | H155: 0 | I155: 0 | J155: =IF(AND(OR(F155=0,F155<C155),G155=0),0,IF(AND(OR(F155=0,F155<C155),G155>=C155),-10,IF(C155=0,0,IF(F155>=C155,10,0)))) -> 0 | Q155: =IF(UPPER(E155)="REQUERIDO", 10, "") -> 10 | R155: =IF(UPPER(E155)="REQUERIDO", J155, "") -> 0
A156: Cafetería | C156: 1 | D156: - | E156: Condición | F156: 0 | G156: 0 | H156: 0 | I156: 0 | J156: =IF(AND(F156=0,G156=0),0,IF(AND(F156>0,G156>0),10,IF(AND(F156=0,G156>0),-10,IF(AND(F156>0,G156=0),10)))) -> 0 | S156: =IF(UPPER(E156)="CONDICIÓN", 10, 0) -> 10 | T156: =IF(UPPER(E156)="CONDICIÓN", H156, "") -> 0 | U156: =IF(UPPER(E156)="CONDICIÓN", 10, 0) -> 10 | V156: =IF(UPPER(E156)="CONDICIÓN", I156, "") -> 0
A157: Sala de reuniones | C157: 1 | D157: - | E157: Condición | F157: 0 | G157: 0 | H157: 0 | I157: 0 | J157: 0 | S157: 10 | T157: 0 | U157: 10 | V157: 0
A158: INSTALACIONES | B158: =B1 -> Anx: | C158: =C$1 -> Requerido: | D158: m² Util: | E158: Tipo: | F158: =F$1 -> BUENO: | G158: MALO: | J158: Calif: | K158: Observaciones: | AO158: =SUM(Q159:Q160) -> 0 | AP158: =SUM(R159:R160) -> 0 | AQ158: =SUM(S159:S160) -> 0 | AR158: =SUM(T159:T160) -> 0 | AS158: =SUM(U159:U160) -> 0 | AT158: 0 | AU158: 0 | AV158: 0 | AW158: 10 | AX158: 0 | AY158: 0 | AZ158: 0 | BA158: 0 | BB158: 0 | BC158: 0 | BD158: 0 | BE158: 10 | BF158: 0 | BG158: 0 | BH158: 0 | BI158: 0 | BJ158: 0 | BK158: 0 | BL158: 0
A159: Estructura General | B159: EG_01 | C159: 1 | D159: . | E159: Requerido | F159: 0 | G159: 0 | H159: =IF(AND(F159>=C159,F159>0),10,0) -> 0 | I159: =IF(AND(G159>=C159,G159>0),10,0) -> 0 | J159: 0 | AG159: =IF(UPPER(E159)="REQUERIDO", 10, "") -> 10 | AH159: =IF(UPPER(E159)="REQUERIDO", J159, "") -> 0
A160: Instalaciones Generales | B160: IG_01 | C160: 1 | D160: - | E160: Requerido | F160: 0 | G160: 0 | H160: 0 | I160: 0 | J160: 0 | Y160: =IF(UPPER(E160)="REQUERIDO", 10, "") -> 10 | Z160: =IF(UPPER(E160)="REQUERIDO", J160, "") -> 0
A161: LIMPIEZA | L161: =ROW(A161) -> 161 | AO161: =SUM(Q162:Q169) -> 10 | AP161: =SUM(R162:R169) -> 0 | AQ161: =SUM(S162:S169) -> 30 | AR161: =SUM(T162:T169) -> 0 | AS161: =SUM(U162:U169) -> 30 | AT161: 0 | AU161: 0 | AV161: 0 | AW161: 10 | AX161: 0 | AY161: 0 | AZ161: 0 | BA161: 0 | BB161: 0 | BC161: 0 | BD161: 0 | BE161: 10 | BF161: 0 | BG161: 0 | BH161: 0 | BI161: 0 | BJ161: 0 | BK161: 0 | BL161: 0
A162: AMBIENTES | B162: =B1 -> Anx: | C162: =C$1 -> Requerido: | D162: m² Util: | E162: Tipo: | F162: BUENO: | G162: MALO: | J162: Calif: | K162: Observaciones: | AO162: =SUM(Q163:Q166) -> 10 | AP162: =SUM(R163:R166) -> 0 | AQ162: =SUM(S163:S166) -> 30 | AR162: =SUM(T163:T166) -> 0 | AS162: =SUM(U163:U166) -> 30 | AT162: 0 | AU162: 0 | AV162: 0 | AW162: 0 | AX162: 0 | AY162: 0 | AZ162: 0 | BA162: 0 | BB162: 0 | BC162: 0 | BD162: 0 | BE162: 0 | BF162: 0 | BG162: 0 | BH162: 0 | BI162: 0 | BJ162: 0 | BK162: 0 | BL162: 0
A163: Bodega (Puede encontrarse dentro de la bodega general, pero en un área diferenciada) | C163: 1 | D163: - | E163: Requerido | F163: 0 | G163: 0 | H163: =IF(AND(F163>=C163,F163>0),10,0) -> 0 | I163: =IF(AND(G163>=C163,G163>0),10,0) -> 0 | J163: =IF(AND(F163=0,G163=0),0,IF(AND(F163>0,G163>0),10,IF(AND(F163=0,G163>0),-10,IF(AND(F163>0,G163=0),10)))) -> 0 | Q163: =IF(UPPER(E163)="REQUERIDO", 10, "") -> 10 | R163: =IF(UPPER(E163)="REQUERIDO", J163, "") -> 0
A164: Cuarto de Limpieza (será requerido en el caso de no contar con cuartos de limpieza en los servicios que lo requieran) | C164: 1 | D164: - | E164: Condición | F164: 0 | G164: 0 | H164: 0 | I164: 0 | J164: 0 | S164: =IF(UPPER(E164)="CONDICIÓN", 10, 0) -> 10 | T164: =IF(UPPER(E164)="CONDICIÓN", H164, "") -> 0 | U164: =IF(UPPER(E164)="CONDICIÓN", 10, 0) -> 10 | V164: =IF(UPPER(E164)="CONDICIÓN", I164, "") -> 0
A165: Vestidor (Será requerido en el caso de que en el vestidor del área de personal no se ha previsto un espacio exclusivo para el personal de limpieza) | C165: 1 | D165: - | E165: Condición | F165: 0 | G165: 0 | H165: 0 | I165: 0 | J165: 0 | S165: 10 | T165: 0 | U165: 10 | V165: 0
A166: Baño de vestidor | C166: 1 | D166: - | E166: Condición | F166: 0 | G166: 0 | H166: 0 | I166: 0 | J166: 0 | S166: 10 | T166: 0 | U166: 10 | V166: 0 | Y166: =IF(UPPER(E166)="REQUERIDO", 10, "") ->  | Z166: =IF(UPPER(E166)="REQUERIDO", J166, "") -> 
A167: INSTALACIONES | B167: =B1 -> Anx: | C167: =C$1 -> Requerido: | D167: m² Util: | E167: Tipo: | F167: BUENO: | G167: MALO: | J167: Calif: | K167: Observaciones: | AO167: =SUM(Q168:Q169) -> 0 | AP167: =SUM(R168:R169) -> 0 | AQ167: =SUM(S168:S169) -> 0 | AR167: =SUM(T168:T169) -> 0 | AS167: =SUM(U168:U169) -> 0 | AT167: 0 | AU167: 0 | AV167: 0 | AW167: 10 | AX167: 0 | AY167: 0 | AZ167: 0 | BA167: 0 | BB167: 0 | BC167: 0 | BD167: 0 | BE167: 10 | BF167: 0 | BG167: 0 | BH167: 0 | BI167: 0 | BJ167: 0 | BK167: 0 | BL167: 0
A168: Estructura General | B168: EG_01 | C168: 1 | D168: - | E168: Requerido | F168: 0 | G168: 0 | H168: =IF(AND(F168>=C168,F168>0),10,0) -> 0 | I168: =IF(AND(G168>=C168,G168>0),10,0) -> 0 | J168: 0 | AG168: =IF(UPPER(E168)="REQUERIDO", 10, "") -> 10 | AH168: =IF(UPPER(E168)="REQUERIDO", J168, "") -> 0
A169: Instalaciones Generales | B169: IG_01 | C169: 1 | D169: - | E169: Requerido | F169: 0 | G169: 0 | H169: 0 | I169: 0 | J169: 0 | Y169: =IF(UPPER(E169)="REQUERIDO", 10, "") -> 10 | Z169: =IF(UPPER(E169)="REQUERIDO", J169, "") -> 0
A170: LAVANDERIA | L170: =ROW(A170) -> 170 | AO170: =SUM(Q171:Q178) -> 0 | AP170: =SUM(R171:R178) -> 0 | AQ170: =SUM(S171:S178) -> 40 | AR170: =SUM(T171:T178) -> 0 | AS170: =SUM(U171:U178) -> 40 | AT170: 0 | AU170: 0 | AV170: 0 | AW170: 0 | AX170: 0 | AY170: 10 | AZ170: 0 | BA170: 10 | BB170: 0 | BC170: 0 | BD170: 0 | BE170: 0 | BF170: 0 | BG170: 10 | BH170: 0 | BI170: 10 | BJ170: 0 | BK170: 0 | BL170: 0
A171: AMBIENTES | B171: =B10 -> Anx: | C171: =C$1 -> Requerido: | D171: m² Util: | E171: Tipo: | F171: BUENO: | G171: MALO: | J171: Calif: | K171: Observaciones: | AO171: =SUM(Q172:Q175) -> 0 | AP171: =SUM(R172:R175) -> 0 | AQ171: =SUM(S172:S175) -> 40 | AR171: =SUM(T172:T175) -> 0 | AS171: =SUM(U172:U175) -> 40 | AT171: 0 | AU171: 0 | AV171: 0 | AW171: 0 | AX171: 0 | AY171: 0 | AZ171: 0 | BA171: 0 | BB171: 0 | BC171: 0 | BD171: 0 | BE171: 0 | BF171: 0 | BG171: 0 | BH171: 0 | BI171: 0 | BJ171: 0 | BK171: 0 | BL171: 0
A172: Recepción y clasificación de ropa usada | C172: 1 | D172: - | E172: Condición | F172: 0 | G172: 0 | H172: =IF(AND(F172>=C172,F172>0),10,0) -> 0 | I172: =IF(AND(G172>=C172,G172>0),10,0) -> 0 | J172: =IF(AND(F172=0,G172=0),0,IF(AND(F172>0,G172>0),10,IF(AND(F172=0,G172>0),-10,IF(AND(F172>0,G172=0),10)))) -> 0 | S172: =IF(UPPER(E172)="CONDICIÓN", 10, 0) -> 10 | T172: =IF(UPPER(E172)="CONDICIÓN", H172, "") -> 0 | U172: =IF(UPPER(E172)="CONDICIÓN", 10, 0) -> 10 | V172: =IF(UPPER(E172)="CONDICIÓN", I172, "") -> 0
A173: Lavado | C173: 1 | D173: - | E173: Condición | F173: 0 | G173: 0 | H173: 0 | I173: 0 | J173: 0 | S173: 10 | T173: 0 | U173: 10 | V173: 0
A174: Planchado | C174: 1 | D174: - | E174: Condición | F174: 0 | G174: 0 | H174: 0 | I174: 0 | J174: 0 | S174: 10 | T174: 0 | U174: 10 | V174: 0
A175: Bodega general de ropería | C175: 1 | D175: - | E175: Condición | F175: 0 | G175: 0 | H175: 0 | I175: 0 | J175: 0 | S175: 10 | T175: 0 | U175: 10 | V175: 0 | Y175: =IF(UPPER(E175)="REQUERIDO", 10, "") ->  | Z175: =IF(UPPER(E175)="REQUERIDO", J175, "") -> 
A176: INSTALACIONES | B176: =B10 -> Anx: | C176: =C$1 -> Requerido: | D176: m² Util: | E176: Tipo: | F176: BUENO: | G176: MALO: | J176: Calif: | K176: Observaciones: | AO176: =SUM(Q177:Q178) -> 0 | AP176: =SUM(R177:R178) -> 0 | AQ176: =SUM(S177:S178) -> 0 | AR176: =SUM(T177:T178) -> 0 | AS176: =SUM(U177:U178) -> 0 | AT176: 0 | AU176: 0 | AV176: 0 | AW176: 0 | AX176: 0 | AY176: 10 | AZ176: 0 | BA176: 10 | BB176: 0 | BC176: 0 | BD176: 0 | BE176: 0 | BF176: 0 | BG176: 10 | BH176: 0 | BI176: 10 | BJ176: 0 | BK176: 0 | BL176: 0
A177: Estructura General | B177: EG_01 | C177: 1 | D177: - | E177: Condición | F177: 0 | G177: 0 | H177: =IF(AND(F177>=C177,F177>0),10,0) -> 0 | I177: =IF(AND(G177>=C177,G177>0),10,0) -> 0 | J177: 0 | AI177: =IF(UPPER(E177)="CONDICIÓN", 10, 0) -> 10 | AJ177: =IF(UPPER(E177)="CONDICIÓN", H177, "") -> 0 | AK177: =IF(UPPER(E177)="CONDICIÓN", 10, 0) -> 10 | AL177: =IF(UPPER(E177)="CONDICIÓN", I177, "") -> 0
A178: Instalaciones Generales | B178: IG_01 | C178: 1 | D178: - | E178: Condición | F178: 0 | G178: 0 | H178: 0 | I178: 0 | J178: 0 | AA178: =IF(UPPER(E178)="CONDICIÓN", 10, 0) -> 10 | AB178: =IF(UPPER(E178)="CONDICIÓN", H178, "") -> 0 | AC178: =IF(UPPER(E178)="CONDICIÓN", 10, 0) -> 10 | AD178: =IF(UPPER(E178)="CONDICIÓN", I178, "") -> 0
A179: ALMACENAMIENTO FINAL DE DESECHOS | AO179: =SUM(Q180:Q186) -> 30 | AP179: =SUM(R180:R186) -> 0 | AQ179: =SUM(S180:S186) -> 0 | AR179: 0 | AS179: 0 | AT179: 0 | AU179: =SUM(W180:W186) -> 0 | AV179: =SUM(X180:X186) -> 0 | AW179: 10 | AX179: 0 | AY179: =SUM(AA180:AA186) -> 0 | AZ179: =SUM(AB180:AB186) -> 0 | BA179: 0 | BB179: 0 | BC179: =SUM(AE180:AE186) -> 0 | BD179: =SUM(AF180:AF186) -> 0 | BE179: 10 | BF179: 0 | BG179: =SUM(AI180:AI186) -> 0 | BH179: =SUM(AJ180:AJ186) -> 0 | BI179: 0 | BJ179: 0 | BK179: =SUM(AM180:AM186) -> 0 | BL179: =SUM(AN180:AN186) -> 0
A180: AMBIENTES | B180: =B1 -> Anx: | C180: =C$1 -> Requerido: | D180: m² Util: | E180: Tipo: | F180: BUENO: | G180: MALO: | J180: Calif: | K180: Observaciones: | AO180: =SUM(Q181:Q187) -> 30 | AP180: =SUM(R181:R187) -> 0 | AQ180: =SUM(S181:S187) -> 0 | AR180: 0 | AS180: 0 | AT180: 0 | AU180: 0 | AV180: 0 | AW180: =SUM(Y181:Y187) -> 10 | AX180: 0 | AY180: 0 | AZ180: 0 | BA180: =SUM(AC181:AC187) -> 0 | BB180: 0 | BC180: 0 | BD180: 0 | BE180: =SUM(AG181:AG187) -> 10 | BF180: 0 | BG180: 0 | BH180: 0 | BI180: =SUM(AK181:AK187) -> 0 | BJ180: 0 | BK180: 0 | BL180: 0
A181: Área de Almacenamiento de Desechos no peligrosos - Comunes | C181: 1 | D181: - | E181: Requerido | F181: 0 | G181: 0 | H181: =IF(AND(F181>=C181,F181>0),10,0) -> 0 | I181: =IF(AND(G181>=C181,G181>0),10,0) -> 0 | J181: =IF(AND(F181=0,G181=0),0,IF(AND(F181>0,G181>0),10,IF(AND(F181=0,G181>0),-10,IF(AND(F181>0,G181=0),10)))) -> 0 | Q181: =IF(UPPER(E181)="REQUERIDO", 10, "") -> 10 | R181: =IF(UPPER(E181)="REQUERIDO", J181, "") -> 0
A182: Área de Almacenamiento de Desechos Peligrosos- Infecciosos | C182: 1 | D182: - | E182: Requerido | F182: 0 | G182: 0 | H182: 0 | I182: 0 | J182: 0 | Q182: =IF(UPPER(E182)="REQUERIDO", 10, "") -> 10 | R182: =IF(UPPER(E182)="REQUERIDO", J182, "") -> 0
A183: Área de Desechos Peligrosos- Especiales | C183: 1 | D183: - | E183: Requerido | F183: 0 | G183: 0 | H183: 0 | I183: 0 | J183: 0 | Q183: =IF(UPPER(E183)="REQUERIDO", 10, "") -> 10 | R183: =IF(UPPER(E183)="REQUERIDO", J183, "") -> 0
A184: INSTALACIONES | B184: =B1 -> Anx: | C184: =C$1 -> Requerido: | D184: m² Util: | E184: Tipo: | F184: BUENO: | G184: MALO: | J184: Calif: | K184: Observaciones: | AO184: =SUM(Q185:Q186) -> 0 | AP184: =SUM(R185:R186) -> 0 | AQ184: =SUM(S185:S186) -> 0 | AR184: =SUM(T185:T186) -> 0 | AS184: =SUM(U185:U186) -> 0 | AT184: 0 | AU184: 0 | AV184: 0 | AW184: 10 | AX184: 0 | AY184: 0 | AZ184: 0 | BA184: 0 | BB184: 0 | BC184: 0 | BD184: 0 | BE184: 10 | BF184: 0 | BG184: 0 | BH184: 0 | BI184: 0 | BJ184: 0 | BK184: 0 | BL184: 0
A185: Estructura General | B185: EG_01 | C185: 1 | D185: - | E185: Requerido | F185: 0 | G185: 0 | H185: =IF(AND(F185>=C185,F185>0),10,0) -> 0 | I185: =IF(AND(G185>=C185,G185>0),10,0) -> 0 | J185: 0 | AG185: =IF(UPPER(E185)="REQUERIDO", 10, "") -> 10 | AH185: =IF(UPPER(E185)="REQUERIDO", J185, "") -> 0
A186: Instalaciones Generales | B186: IG_01 | C186: 1 | D186: - | E186: Requerido | F186: 0 | G186: 0 | H186: 0 | I186: 0 | J186: 0 | Y186: =IF(UPPER(E186)="REQUERIDO", 10, "") -> 10 | Z186: =IF(UPPER(E186)="REQUERIDO", J186, "") -> 0
A187: NOTA GENERAL.- Para construcciones nuevas, las áreas se calcularán según el tipo del establecimiento y las demandas funcionales del espacio, respetando las normas nacionales existentes (INEN, Código Ecuatoriano de Construcción, Ordenanzas, etc.) y las internacionales que apliquen cuando las nacionales no son suficientes. Tomar en cuenta equipamiento y personal que lo maneja así como la cantidad de usuarios del espacio en los momentos críticos o de mayor demanda.
A188: INSTALACIONES DEL LOCAL | L188: =ROW(A188) -> 188 | AO188: =SUM(Q190:Q218) -> 0 | AP188: =SUM(R190:R218) -> 0 | AQ188: =SUM(S190:S218) -> 0 | AR188: =SUM(T190:T218) -> 0 | AS188: =SUM(U190:U218) -> 0 | AT188: 0 | AU188: 0 | AV188: 0 | AW188: =SUM(Y190:Y218) -> 160 | AX188: 0 | AY188: 60 | AZ188: 0 | BA188: 50 | BB188: 0 | BC188: 0 | BD188: 0 | BE188: 0 | BF188: 0 | BG188: 0 | BH188: 0 | BI188: 0 | BJ188: 0 | BK188: 0 | BL188: =SUM(AN190:AN218) -> 0
A189: ESTRUCTURA GENERAL | AO189: =SUM(Q190) -> 0 | AP189: =SUM(R190) -> 0 | AQ189: =SUM(S190) -> 0 | AR189: =SUM(T190) -> 0 | AS189: =SUM(U190) -> 0 | AT189: 0 | AU189: 0 | AV189: 0 | AW189: 10 | AX189: 0 | AY189: 0 | AZ189: 0 | BA189: 0 | BB189: 0 | BC189: 0 | BD189: 0 | BE189: 0 | BF189: 0 | BG189: 0 | BH189: 0 | BI189: 0 | BJ189: 0 | BK189: 0 | BL189: 0
A190: Áreas adecuadas para el tránsito de sillas de rueda | C190: 1 | D190: - | E190: Requerido | F190: 0 | G190: 0 | H190: =IF(AND(F190>=C190,F190>0),10,0) -> 0 | I190: =IF(AND(G190>=C190,G190>0),10,0) -> 0 | J190: =IF(AND(F190=0,G190=0),0,IF(AND(F190>0,G190>0),10,IF(AND(F190=0,G190>0),-10,IF(AND(F190>0,G190=0),10)))) -> 0 | Y190: =IF(UPPER(E190)="REQUERIDO", 10, "") -> 10 | Z190: =IF(UPPER(E190)="REQUERIDO", J190, "") -> 0
A191: INSTALACIONES ELÉCTRICAS GENERALES (ILUMINACIÓN Y FUERZA) | AO191: =SUM(Q192:Q196) -> 0 | AP191: =SUM(R192:R196) -> 0 | AQ191: =SUM(S192:S196) -> 0 | AR191: =SUM(T192:T196) -> 0 | AS191: =SUM(U192:U196) -> 0 | AT191: 0 | AU191: 0 | AV191: 0 | AW191: 40 | AX191: 0 | AY191: 10 | AZ191: 0 | BA191: 10 | BB191: 0 | BC191: 0 | BD191: 0 | BE191: 0 | BF191: 0 | BG191: 0 | BH191: 0 | BI191: 0 | BJ191: 0 | BK191: 0 | BL191: 0
A192: Red de tomas de energía | C192: 1 | D192: - | E192: Requerido | F192: 0 | G192: 0 | H192: =IF(AND(F192>=C192,F192>0),10,0) -> 0 | I192: =IF(AND(G192>=C192,G192>0),10,0) -> 0 | J192: 0 | Y192: =IF(UPPER(E192)="REQUERIDO", 10, "") -> 10 | Z192: =IF(UPPER(E192)="REQUERIDO", J192, "") -> 0
A193: Red de instalaciones para iluminación | C193: 1 | D193: - | E193: Requerido | F193: 0 | G193: 0 | H193: 0 | I193: 0 | J193: 0 | Y193: =IF(UPPER(E193)="REQUERIDO", 10, "") -> 10 | Z193: =IF(UPPER(E193)="REQUERIDO", J193, "") -> 0
A194: Acometidas Eléctricas (tableros de control - interruptores termomagnéticos-) | C194: 1 | D194: - | E194: Requerido | F194: 0 | G194: 0 | H194: 0 | I194: 0 | J194: 0 | Y194: =IF(UPPER(E194)="REQUERIDO", 10, "") -> 10 | Z194: =IF(UPPER(E194)="REQUERIDO", J194, "") -> 0
A195: Sistema de soporte de energía eléctrica de emergencia. (Generación o respaldo de baterías generales o individuales) | C195: 1 | D195: - | E195: Requerido | F195: 0 | G195: 0 | H195: 0 | I195: 0 | J195: 0 | Y195: =IF(UPPER(E195)="REQUERIDO", 10, "") -> 10 | Z195: =IF(UPPER(E195)="REQUERIDO", J195, "") -> 0
A196: Instalaciones de pararrayos | C196: 1 | D196: - | E196: Condición | F196: 0 | G196: 0 | H196: 0 | I196: 0 | J196: 0 | AA196: =IF(UPPER(E196)="CONDICIÓN", 10, 0) -> 10 | AB196: =IF(UPPER(E196)="CONDICIÓN", H196, "") -> 0 | AC196: =IF(UPPER(E196)="CONDICIÓN", 10, 0) -> 10 | AD196: =IF(UPPER(E196)="CONDICIÓN", I196, "") -> 0
A197: INSTALACIONES ELÉCTRONICAS | AO197: =SUM(Q198:Q199) -> 0 | AP197: =SUM(R198:R199) -> 0 | AQ197: =SUM(S198:S199) -> 0 | AR197: =SUM(T198:T199) -> 0 | AS197: =SUM(U198:U199) -> 0 | AT197: 0 | AU197: 0 | AV197: 0 | AW197: 10 | AX197: 0 | AY197: 10 | AZ197: 0 | BA197: 10 | BB197: 0 | BC197: 0 | BD197: 0 | BE197: 0 | BF197: 0 | BG197: 0 | BH197: 0 | BI197: 0 | BJ197: 0 | BK197: 0 | BL197: 0
A198: Sensores y alarmas para incendios | C198: 1 | D198: - | E198: Requerido | F198: 0 | G198: 0 | H198: =IF(AND(F198>=C198,F198>0),10,0) -> 0 | I198: =IF(AND(G198>=C198,G198>0),10,0) -> 0 | J198: 0 | Y198: =IF(UPPER(E198)="REQUERIDO", 10, "") -> 10 | Z198: =IF(UPPER(E198)="REQUERIDO", J198, "") -> 0
A199: Sistema de audio centralizado | C199: 1 | D199: - | E199: Condición | F199: 0 | G199: 0 | H199: 0 | I199: 0 | J199: 0 | AA199: =IF(UPPER(E199)="CONDICIÓN", 10, 0) -> 10 | AB199: =IF(UPPER(E199)="CONDICIÓN", H199, "") -> 0 | AC199: =IF(UPPER(E199)="CONDICIÓN", 10, 0) -> 10 | AD199: =IF(UPPER(E199)="CONDICIÓN", I199, "") -> 0
A200: INSTALACIONES DE TELECOMUNICACIONES | AO200: =SUM(Q201:Q202) -> 0 | AP200: =SUM(R201:R202) -> 0 | AQ200: =SUM(S201:S202) -> 0 | AR200: =SUM(T201:T202) -> 0 | AS200: =SUM(U201:U202) -> 0 | AT200: 0 | AU200: 0 | AV200: 0 | AW200: 20 | AX200: 0 | AY200: 0 | AZ200: 0 | BA200: 0 | BB200: 0 | BC200: 0 | BD200: 0 | BE200: 0 | BF200: 0 | BG200: 0 | BH200: 0 | BI200: 0 | BJ200: 0 | BK200: 0 | BL200: 0
... 159 more rows

Sheet Equipamiento
A1: FILTROS: | B1: Anx: | C1: Cant x Espacio: | D1: Requerido: | E1: Tipo: | F1: Funcional: | G1: No Funcional: | J1: Calif: | K1: Observaciones:
A2: =Menu!$B$4 -> CENTRO ESPECIALIZADO EN SALUD RENAL | Q2: REQ | S2: COND+ | U2: COND- | W2: DES | Y2: REQ | AA2: COND+ | AC2: COND- | AE2: DES
A3: EQUIPAMIENTO | Q3: MOBILIARIO | Y3: TOTAL MOBILIARIO
A4: ADMINISTRATIVO | Y4: =SUM(Q5:Q23) -> 100 | Z4: =SUM(R5:R23) -> 0 | AA4: =SUM(S5:S23) -> 40 | AB4: 0 | AC4: =SUM(U5:U23) -> 40 | AD4: 0 | AE4: 0 | AF4: 0
A5: ADMISIÓN Y ESTADÍSTICA | Y5: =SUM(Q6:Q23) -> 100 | Z5: =SUM(R6:R23) -> 0 | AA5: =SUM(S6:S23) -> 40 | AB5: =SUM(T6:T23) -> 0 | AC5: 40 | AD5: 0 | AE5: 0 | AF5: 0
A6: ÁREA TÉCNICA | Y6: =SUM(Q7:Q23) -> 100 | Z6: =SUM(R7:R23) -> 0 | AA6: =SUM(S7:S23) -> 40 | AB6: =SUM(T7:T23) -> 0 | AC6: 40 | AD6: 0 | AE6: 0 | AF6: 0
A7: AMBIENTES | Y7: =SUM(Q8:Q23) -> 100 | Z7: =SUM(R8:R23) -> 0 | AA7: =SUM(S8:S23) -> 40 | AB7: =SUM(T8:T23) -> 0 | AC7: 40 | AD7: 0 | AE7: 0 | AF7: 0
A8: Admisión, Información y Recepción | B8: =B1 -> Anx: | C8: =C$1 -> Cant x Espacio: | D8: Requerido: | E8: Tipo: | F8: Funcional: | G8: No Funcional: | J8: Calif: | K8: Observaciones: | L8: =Infraestructura!$F$8 -> 0 | M8: =Infraestructura!$G$8 -> 0
A9: Mostrador / escritorio/Mesa de despacho | B9: EQ_01 | C9: 1 | D9: =IF(AND($L$8=0,$M$8=0),0,IF(AND($L$8>0,$M$8>0),($L$8+$M$8)*C9,IF(AND($L$8=0,$M$8>0),C9*$M$8,$L$8*C9))) -> 0 | E9: Requerido | F9: 0 | G9: 0 | H9: =IF(AND(F9>=D9,D9>0,F9>=1),10,0) -> 0 | I9: =IF(AND(G9>=D9,D9>0,G9>=1),10,0) -> 0 | J9: =IF(AND(OR(F9=0,F9<D9),G9=0),0,IF(AND(OR(F9=0,F9<D9),G9>=D9),-10,IF(D9=0,0,IF(F9>=D9,10,0)))) -> 0 | Q9: =IF(UPPER(E9)="REQUERIDO", 10, "") -> 10 | R9: =IF(UPPER(E9)="REQUERIDO", J9, "") -> 0
A10: Armario/Archivador | C10: 1 | D10: =IF(AND($L$8=0,$M$8=0),0,IF(AND($L$8>0,$M$8>0),($L$8+$M$8)*C10,IF(AND($L$8=0,$M$8>0),C10*$M$8,$L$8*C10))) -> 0 | E10: Requerido | F10: 0 | G10: 0 | H10: =IF(AND(F10>=D10,D10>0,F10>=1),10,0) -> 0 | I10: =IF(AND(G10>=D10,D10>0,G10>=1),10,0) -> 0 | J10: =IF(AND(OR(F10=0,F10<D10),G10=0),0,IF(AND(OR(F10=0,F10<D10),G10>=D10),-10,IF(D10=0,0,IF(F10>=D10,10,0)))) -> 0 | Q10: =IF(UPPER(E10)="REQUERIDO", 10, "") -> 10 | R10: =IF(UPPER(E10)="REQUERIDO", J10, "") -> 0
A11: Computador completo (Portátil o de escritorio) | B11: EQ_02 | C11: 1 | D11: 0 | E11: Requerido | F11: 0 | G11: 0 | H11: =IF(AND(F11>=D11,D11>0,F11>=1),10,0) -> 0 | I11: 0 | J11: 0 | Q11: =IF(UPPER(E11)="REQUERIDO", 10, "") -> 10 | R11: =IF(UPPER(E11)="REQUERIDO", J11, "") -> 0
A12: Basurero | C12: 1 | D12: 0 | E12: Requerido | F12: 0 | G12: 0 | H12: 0 | I12: 0 | J12: 0 | Q12: 10 | R12: =IF(UPPER(E12)="REQUERIDO", J12, "") -> 0
A13: Silla | C13: 1 | D13: 0 | E13: Requerido | F13: 0 | G13: 0 | H13: 0 | I13: 0 | J13: 0 | Q13: 10 | R13: 0
A14: Tablero de avisos | C14: 1 | D14: 0 | E14: Requerido | F14: 0 | G14: 0 | H14: 0 | I14: 0 | J14: 0 | Q14: 10 | R14: 0
A15: Teléfono | C15: 1 | D15: 0 | E15: Requerido | F15: 0 | G15: 0 | H15: 0 | I15: 0 | J15: 0 | Q15: 10 | R15: 0
A16: Archivo | B16: =B1 -> Anx: | C16: =C$1 -> Cant x Espacio: | D16: Requerido: | E16: Tipo: | F16: =F$1 -> Funcional: | G16: No Funcional: | J16: Calif: | K16: Observaciones: | L16: =Infraestructura!$F$9 -> 0 | M16: =Infraestructura!$G$9 -> 0
A17: Armario/Archivador | C17: 1 | D17: =IF(AND($L$16=0,$M$16=0),0,IF(AND($L$16>0,$M$16>0),($L$16+$M$16)*C17,IF(AND($L$16=0,$M$16>0),C17*$M$16,$L$16*C17))) -> 0 | E17: Requerido | F17: 0 | G17: 0 | H17: =IF(AND(F17>=D17,D17>0,F17>=1),10,0) -> 0 | I17: 0 | J17: =IF(AND(OR(F17=0,F17<D17),G17=0),0,IF(AND(OR(F17=0,F17<D17),G17>=D17),-10,IF(D17=0,0,IF(F17>=D17,10,0)))) -> 0 | Q17: 10 | R17: =IF(UPPER(E17)="REQUERIDO", J17, "") -> 0
A18: Escalera pata de gallo / Gradilla | C18: 1 | D18: =IF(AND($L$16=0,$M$16=0),0,IF(AND($L$16>0,$M$16>0),($L$16+$M$16)*C18,IF(AND($L$16=0,$M$16>0),C18*$M$16,$L$16*C18))) -> 0 | E18: Condición | F18: 0 | G18: 0 | H18: =IF(AND(F18>=D18,D18>0,F18>=1),10,0) -> 0 | I18: 0 | J18: =IF(AND(OR(F18=0,F18<D18),G18=0),0,IF(AND(OR(F18=0,F18<D18),G18>=D18),-10,IF(D18=0,0,IF(F18>=D18,10,0)))) -> 0 | S18: =IF(UPPER(E18)="CONDICIÓN", 10, "") -> 10 | T18: =IF(UPPER(E18)="CONDICIÓN", H18, "") -> 0 | U18: =IF(UPPER(E18)="CONDICIÓN", 10, "") -> 10 | V18: =IF(UPPER(E18)="CONDICIÓN", I18, "") -> 0
A19: Escritorio/ Mesa de despacho | B19: EQ_01 | C19: 1 | D19: 0 | E19: Condición | F19: 0 | G19: 0 | H19: 0 | I19: 0 | J19: 0 | S19: =IF(UPPER(E19)="CONDICIÓN", 10, "") -> 10 | T19: =IF(UPPER(E19)="CONDICIÓN", H19, "") -> 0 | U19: =IF(UPPER(E19)="CONDICIÓN", 10, "") -> 10 | V19: =IF(UPPER(E19)="CONDICIÓN", I19, "") -> 0
A20: Computador completo (Portátil o de Escritorio) | B20: EQ_02 | C20: 1 | D20: 0 | E20: Condición | F20: 0 | G20: 0 | H20: 0 | I20: 0 | J20: 0 | S20: 10 | T20: 0 | U20: 10 | V20: 0
A21: Silla | C21: 1 | D21: 0 | E21: Condición | F21: 0 | G21: 0 | H21: 0 | I21: 0 | J21: 0 | S21: 10 | T21: 0 | U21: 10 | V21: 0
A22: Basurero | C22: 1 | D22: 0 | E22: Requerido | F22: 0 | G22: 0 | H22: 0 | I22: 0 | J22: 0 | Q22: =IF(UPPER(E22)="REQUERIDO", 10, "") -> 10 | R22: 0
A23: Extintor de incendios portátil | C23: 1 | D23: 0 | E23: Requerido | F23: 0 | G23: 0 | H23: 0 | I23: 0 | J23: 0 | Q23: 10 | R23: 0
A24: ASISTENCIAL | Y24: =SUM(Q25:Q108) -> 470 | Z24: =SUM(R25:R108) -> 0 | AA24: =SUM(S25:S108) -> 50 | AB24: 0 | AC24: 50 | AD24: 0 | AE24: 20 | AF24: 0
A25: CONSULTA EXTERNA | Y25: =SUM(Q26:Q108) -> 470 | Z25: =SUM(R26:R108) -> 0 | AA25: =SUM(S26:S108) -> 50 | AB25: 0 | AC25: 50 | AD25: 0 | AE25: 20 | AF25: 0
A26: ÁREA DE ATENCIÓN DE CONSULTA | Y26: =SUM(Q27:Q108) -> 470 | Z26: =SUM(R27:R108) -> 0 | AA26: =SUM(S27:S108) -> 50 | AB26: 0 | AC26: 50 | AD26: 0 | AE26: 20 | AF26: 0
A27: AMBIENTES | Y27: =SUM(Q28:Q33) -> 50 | Z27: =SUM(R28:R33) -> 0 | AA27: =SUM(S28:S33) -> 0 | AB27: 0 | AC27: 0 | AD27: 0 | AE27: 0 | AF27: 0
A28: Sala de Espera | B28: =B1 -> Anx: | C28: =C$1 -> Cant x Espacio: | D28: Requerido: | E28: Tipo: | F28: Funcional: | G28: No Funcional: | J28: Calif: | K28: Observaciones: | L28: =Infraestructura!$F$17 -> 0 | M28: =Infraestructura!$G$17 -> 0
A29: Banca/sillas | C29: 2 | D29: =IF(AND($L$28=0,$M$28=0),0,IF(AND($L$28>0,$M$28>0),($L$28+$M$28)*C29,IF(AND($L$28=0,$M$28>0),C29*$M$28,$L$28*C29))) -> 0 | E29: Requerido | F29: 0 | G29: 0 | H29: =IF(AND(F29>=D29,D29>0,F29>=1),10,0) -> 0 | I29: =IF(AND(G29>=D29,D29>0,G29>=1),10,0) -> 0 | J29: =IF(AND(OR(F29=0,F29<D29),G29=0),0,IF(AND(OR(F29=0,F29<D29),G29>=D29),-10,IF(D29=0,0,IF(F29>=D29,10,0)))) -> 0 | Q29: =IF(UPPER(E29)="REQUERIDO", 10, "") -> 10 | R29: =IF(UPPER(E29)="REQUERIDO", J29, "") -> 0
A30: Basurero | C30: 1 | D30: =IF(AND($L$28=0,$M$28=0),0,IF(AND($L$28>0,$M$28>0),($L$28+$M$28)*C30,IF(AND($L$28=0,$M$28>0),C30*$M$28,$L$28*C30))) -> 0 | E30: Requerido | F30: 0 | G30: 0 | H30: 0 | I30: 0 | J30: 0 | Q30: =IF(UPPER(E30)="REQUERIDO", 10, "") -> 10 | R30: =IF(UPPER(E30)="REQUERIDO", J30, "") -> 0
A31: Reloj de pared | C31: 1 | D31: 0 | E31: Requerido | F31: 0 | G31: 0 | H31: 0 | I31: 0 | J31: 0 | Q31: 10 | R31: 0
A32: Extintor de incendios portátil | C32: 1 | D32: 0 | E32: Requerido | F32: 0 | G32: 0 | H32: 0 | I32: 0 | J32: 0 | Q32: 10 | R32: 0
A33: Sistema Audiovisual de Información | B33: EQ_03 | C33: 1 | D33: 0 | E33: Requerido | F33: 0 | G33: 0 | H33: 0 | I33: =IF(AND(G33>=D33,D33>0,G33>=1),10,0) -> 0 | J33: 0 | Q33: 10 | R33: 0
A34: Baños/Baterías Sanitarias | B34: =B1 -> Anx: | C34: =C$1 -> Cant x Espacio: | D34: Requerido: | E34: Tipo: | F34: Funcional: | G34: No Funcional: | J34: Calif: | K34: Observaciones: | L34: =Infraestructura!$F$18 -> 0 | M34: =Infraestructura!$G$18 -> 0 | Y34: =SUM(Q35:Q43) -> 80 | Z34: =SUM(R35:R43) -> 0 | AA34: =SUM(S35:S43) -> 0 | AB34: 0 | AC34: 0 | AD34: 0 | AE34: 10 | AF34: 0
A35: Inodoro | B35: EQ_01 | C35: 1 | D35: =IF(AND($L$34=0,$M$34=0),0,IF(AND($L$34>0,$M$34>0),($L$34+$M$34)*C35,IF(AND($L$34=0,$M$34>0),C35*$M$34,$L$34*C35))) -> 0 | E35: Requerido | F35: 0 | G35: 0 | H35: =IF(AND(F35>=D35,D35>0,F35>=1),10,0) -> 0 | I35: =IF(AND(G35>=D35,D35>0,G35>=1),10,0) -> 0 | J35: 0 | Q35: 10 | R35: 0
A36: Dispensador de papel higiénico | B36: EQ_02 | C36: 1 | D36: =IF(AND($L$34=0,$M$34=0),0,IF(AND($L$34>0,$M$34>0),($L$34+$M$34)*C36,IF(AND($L$34=0,$M$34>0),C36*$M$34,$L$34*C36))) -> 0 | E36: Requerido | F36: 0 | G36: 0 | H36: 0 | I36: 0 | J36: 0 | Q36: 10 | R36: 0
A37: Lavabo | C37: 1 | D37: =IF(AND($L$34=0,$M$34=0),0,IF(AND($L$34>0,$M$34>0),($L$34+$M$34)*C37,IF(AND($L$34=0,$M$34>0),C37*$M$34,$L$34*C37))) -> 0 | E37: Requerido | F37: 0 | G37: 0 | H37: 0 | I37: 0 | J37: 0 | Q37: 10 | R37: 0
A38: Dispensador de jabón | C38: 1 | D38: =IF(AND($L$34=0,$M$34=0),0,IF(AND($L$34>0,$M$34>0),($L$34+$M$34)*C38,IF(AND($L$34=0,$M$34>0),C38*$M$34,$L$34*C38))) -> 0 | E38: Requerido | F38: 0 | G38: 0 | H38: 0 | I38: 0 | J38: 0 | Q38: 10 | R38: 0
A39: Dispensador de papel toalla | C39: 1 | D39: =IF(AND($L$34=0,$M$34=0),0,IF(AND($L$34>0,$M$34>0),($L$34+$M$34)*C39,IF(AND($L$34=0,$M$34>0),C39*$M$34,$L$34*C39))) -> 0 | E39: Requerido | F39: 0 | G39: 0 | H39: 0 | I39: 0 | J39: 0 | Q39: 10 | R39: 0
A40: Espejo empotrado | B40: EQ_05 | C40: 1 | D40: =IF(AND($L$34=0,$M$34=0),0,IF(AND($L$34>0,$M$34>0),($L$34+$M$34)*C40,IF(AND($L$34=0,$M$34>0),C40*$M$34,$L$34*C40))) -> 0 | E40: Requerido | F40: 0 | G40: 0 | H40: 0 | I40: 0 | J40: 0 | Q40: 10 | R40: 0
A41: Barras de apoyo | C41: 1 | D41: =IF(AND($L$34=0,$M$34=0),0,IF(AND($L$34>0,$M$34>0),($L$34+$M$34)*C41,IF(AND($L$34=0,$M$34>0),C41*$M$34,$L$34*C41))) -> 0 | E41: Deseable | F41: 0 | G41: 0 | H41: 0 | I41: 0 | J41: 0 | W41: =IF(UPPER(E41)="DESEABLE", 10, "") -> 10 | X41: =IF(UPPER(E41)="DESEABLE", J41, "") -> 0
A42: Gancho doble | C42: 1 | D42: 0 | E42: Requerido | F42: 0 | G42: 0 | H42: 0 | I42: 0 | J42: 0 | Q42: 10 | R42: 0
A43: Basurero | C43: 2 | D43: =IF(AND($L$34=0,$M$34=0),0,IF(AND($L$34>0,$M$34>0),($L$34+$M$34)*C43,IF(AND($L$34=0,$M$34>0),C43*$M$34,$L$34*C43))) -> 0 | E43: Requerido | F43: 0 | G43: 0 | H43: 0 | I43: 0 | J43: 0 | L43: bueno | M43: malo | Q43: 10 | R43: 0
A44: Enfermería (Se vuelve requerido en el caso de contar con más de 5 consultorios para profesionales médicos) | B44: =B1 -> Anx: | C44: =C$1 -> Cant x Espacio: | D44: Requerido: | E44: Tipo: | F44: Funcional: | G44: No Funcional: | J44: Calif: | K44: Observaciones: | L44: =Infraestructura!$F$19 -> 0 | M44: =Infraestructura!G19 -> 0 | Y44: =SUM(Q44:Q65) -> 0 | Z44: =SUM(R44:R65) -> 0 | AA44: =SUM(S44:S65) -> 0 | AB44: 0 | AC44: 0 | AD44: 0 | AE44: 0 | AF44: 0
A45: Escritorio/Mesa de despacho | B45: EQ_01 | C45: 1 | D45: =IF(AND($L$44=0,$M$44=0),0,IF(AND($L$44>0,$M$44>0),($L$44+$M$44)*C45,IF(AND($L$44=0,$M$44>0),C45*$M$44,$L$44*C45))) -> 0 | E45: =IF(D45>0, "Requerido", "Sin Infraestructura") -> Sin Infraestructura | F45: 0 | G45: 0 | H45: =IF(AND(F45>=D45,D45>0,F45>=1),10,0) -> 0 | I45: 0 | J45: 0
A46: Computador completo (Portátil o de Escritorio) | B46: EQ_02 | C46: 1 | D46: =IF(AND($L$44=0,$M$44=0),0,IF(AND($L$44>0,$M$44>0),($L$44+$M$44)*C46,IF(AND($L$44=0,$M$44>0),C46*$M$44,$L$44*C46))) -> 0 | E46: =IF(D46>0, "Condición", "Sin Infraestructura") -> Sin Infraestructura | F46: 0 | G46: 0 | H46: 0 | I46: 0 | J46: 0 | S46: =IF(UPPER(E46)="CONDICIÓN", 10, "") ->  | T46: =IF(UPPER(E46)="CONDICIÓN", H46, "") ->  | U46: =IF(UPPER(E46)="CONDICIÓN", 10, "") ->  | V46: =IF(UPPER(E46)="CONDICIÓN", I46, "") -> 
A47: Armario/Vitrina/Archivador | C47: 1 | D47: 0 | E47: =IF(D47>0, "Requerido", "Sin Infraestructura") -> Sin Infraestructura | F47: 0 | G47: 0 | H47: 0 | I47: 0 | J47: 0
A48: Báscula + tallímetro | C48: 1 | D48: 0 | E48: Sin Infraestructura | F48: 0 | G48: 0 | H48: 0 | I48: 0 | J48: 0
A49: Cinta métrica | C49: 1 | D49: 0 | E49: Sin Infraestructura | F49: 0 | G49: 0 | H49: 0 | I49: 0 | J49: 0
A50: Set de recipientes para el manejo de desechos peligrosos y no peligrosos | B50: EQ_07 | C50: 1 | D50: 0 | E50: Sin Infraestructura | F50: 0 | G50: 0 | H50: 0 | I50: 0 | J50: 0
A51: Camilla de exploración | C51: 1 | D51: 0 | E51: =IF(D51>0, "Condición", "Sin Infraestructura") -> Sin Infraestructura | F51: 0 | G51: 0 | H51: 0 | I51: 0 | J51: 0 | S51: =IF(UPPER(E51)="CONDICIÓN", 10, "") ->  | T51: =IF(UPPER(E51)="CONDICIÓN", H51, "") ->  | U51: =IF(UPPER(E51)="CONDICIÓN", 10, "") ->  | V51: =IF(UPPER(E51)="CONDICIÓN", I51, "") -> 
A52: Escabel | C52: 1 | D52: 0 | E52: =IF(D52>0, "Condición", "Sin Infraestructura") -> Sin Infraestructura | F52: 0 | G52: 0 | H52: 0 | I52: 0 | J52: 0
A53: Coche de curaciones | B53: EQ_08 | C53: 1 | D53: 0 | E53: Sin Infraestructura | F53: 0 | G53: 0 | H53: 0 | I53: 0 | J53: 0
A54: Lámpara examen rodable | C54: 1 | D54: 0 | E54: Sin Infraestructura | F54: 0 | G54: 0 | H54: 0 | I54: 0 | J54: 0
A55: Mesa auxiliar | C55: 1 | D55: 0 | E55: Sin Infraestructura | F55: 0 | G55: 0 | H55: 0 | I55: 0 | J55: 0
A56: Dispensador de papel toalla | C56: 1 | D56: 0 | E56: Sin Infraestructura | F56: 0 | G56: 0 | H56: 0 | I56: 0 | J56: 0
A57: Dispensador de jabón | C57: 1 | D57: 0 | E57: Sin Infraestructura | F57: 0 | G57: 0 | H57: 0 | I57: 0 | J57: 0
A58: Lavabo | C58: 1 | D58: 0 | E58: Sin Infraestructura | F58: 0 | G58: 0 | H58: 0 | I58: 0 | J58: 0
A59: Estetoscopio para adultos | C59: 1 | D59: 0 | E59: Sin Infraestructura | F59: 0 | G59: 0 | H59: 0 | I59: 0 | J59: 0
A60: Tensiómetro para adultos | C60: 1 | D60: 0 | E60: Sin Infraestructura | F60: 0 | G60: 0 | H60: 0 | I60: 0 | J60: 0
A61: Tensiómetro pediátrico | C61: 1 | D61: 0 | E61: =IF(D61>0, "Condición", "Sin Infraestructura") -> Sin Infraestructura | F61: 0 | G61: 0 | H61: 0 | I61: 0 | J61: 0 | S61: =IF(UPPER(E61)="CONDICIÓN", 10, "") ->  | T61: =IF(UPPER(E61)="CONDICIÓN", H61, "") ->  | U61: =IF(UPPER(E61)="CONDICIÓN", 10, "") ->  | V61: =IF(UPPER(E61)="CONDICIÓN", I61, "") -> 
A62: Estetoscopio pediátrico | C62: 1 | D62: 0 | E62: =IF(D62>0, "Condición", "Sin Infraestructura") -> Sin Infraestructura | F62: 0 | G62: 0 | H62: 0 | I62: 0 | J62: 0
A63: Termómetro | C63: 1 | D63: 0 | E63: Sin Infraestructura | F63: 0 | G63: 0 | H63: 0 | I63: 0 | J63: 0
A64: Silla confidente | C64: 2 | D64: 0 | E64: Sin Infraestructura | F64: 0 | G64: 0 | H64: 0 | I64: 0 | J64: 0
A65: Silla | C65: 1 | D65: 0 | E65: Sin Infraestructura | F65: 0 | G65: 0 | H65: =IF(AND(F65>=D65,D65>0,F65>=1),10,0) -> 0 | I65: 0 | J65: 0
A66: Consultorio Médico | B66: =B1 -> Anx: | C66: =C$1 -> Cant x Espacio: | D66: Requerido: | E66: Tipo: | F66: Funcional: | G66: No Funcional: | J66: Calif: | K66: Observaciones: | L66: =Infraestructura!$F$20 -> 0 | M66: =Infraestructura!$G$20 -> 0 | Y66: =SUM(Q66:Q88) -> 170 | Z66: =SUM(R66:R88) -> 0 | AA66: =SUM(S66:S88) -> 40 | AB66: 0 | AC66: 40 | AD66: 0 | AE66: 10 | AF66: 0
A67: Escritorio/Mesa de despacho | B67: EQ_01 | C67: 1 | D67: =IF(AND($L$66=0,$M$66=0),0,IF(AND($L$66>0,$M$66>0),($L$66+$M$66)*C67,IF(AND($L$66=0,$M$66>0),C67*$M$66,$L$66*C67))) -> 0 | E67: Requerido | F67: 0 | G67: 0 | H67: =IF(AND(F67>=D67,D67>0,F67>=1),10,0) -> 0 | I67: 0 | J67: 0 | Q67: 10 | R67: 0
A68: Computador completo (portátil o de escritorio) | B68: EQ_02 | C68: 1 | D68: =IF(AND($L$66=0,$M$66=0),0,IF(AND($L$66>0,$M$66>0),($L$66+$M$66)*C68,IF(AND($L$66=0,$M$66>0),C68*$M$66,$L$66*C68))) -> 0 | E68: Requerido | F68: 0 | G68: 0 | H68: 0 | I68: 0 | J68: 0 | Q68: 10 | R68: 0
A69: Armario/Archivador/Vitrina | C69: 1 | D69: 0 | E69: Requerido | F69: 0 | G69: 0 | H69: 0 | I69: 0 | J69: 0 | Q69: 10 | R69: 0
A70: Báscula + tallímetro | C70: 1 | D70: 0 | E70: Requerido | F70: 0 | G70: 0 | H70: 0 | I70: 0 | J70: 0 | Q70: 10 | R70: 0
A71: Camilla de exploración | C71: 1 | D71: 0 | E71: Requerido | F71: 0 | G71: 0 | H71: 0 | I71: 0 | J71: 0 | Q71: 10 | R71: 0
A72: Escabel | C72: 1 | D72: 0 | E72: Condición | F72: 0 | G72: 0 | H72: 0 | I72: 0 | J72: 0 | S72: =IF(UPPER(E72)="CONDICIÓN", 10, "") -> 10 | T72: =IF(UPPER(E72)="CONDICIÓN", H72, "") -> 0 | U72: =IF(UPPER(E72)="CONDICIÓN", 10, "") -> 10 | V72: =IF(UPPER(E72)="CONDICIÓN", I72, "") -> 0
A73: Perchero de pie/Gancho doble | C73: 1 | D73: 0 | E73: Deseable | F73: 0 | G73: 0 | H73: 0 | I73: 0 | J73: 0 | W73: =IF(UPPER(E73)="DESEABLE", 10, "") -> 10 | X73: =IF(UPPER(E73)="DESEABLE", J73, "") -> 0
A74: Set de diagnóstico | B74: EQ_10 | C74: 1 | D74: 0 | E74: Requerido | F74: 0 | G74: 0 | H74: 0 | I74: 0 | J74: 0 | Q74: 10 | R74: 0
A75: Coche de curaciones | B75: EQ_09 | C75: 1 | D75: 0 | E75: Condición | F75: 0 | G75: 0 | H75: 0 | I75: 0 | J75: 0 | S75: =IF(UPPER(E75)="CONDICIÓN", 10, "") -> 10 | T75: =IF(UPPER(E75)="CONDICIÓN", H75, "") -> 0 | U75: =IF(UPPER(E75)="CONDICIÓN", 10, "") -> 10 | V75: =IF(UPPER(E75)="CONDICIÓN", I75, "") -> 0
A76: Dispensador de papel toalla | C76: 1 | D76: 0 | E76: Requerido | F76: 0 | G76: 0 | H76: 0 | I76: 0 | J76: 0 | Q76: 10 | R76: 0
A77: Dispensador de jabón | C77: 1 | D77: 0 | E77: Requerido | F77: 0 | G77: 0 | H77: 0 | I77: 0 | J77: 0 | Q77: 10 | R77: 0
A78: Lavabo | C78: 1 | D78: 0 | E78: Requerido | F78: 0 | G78: 0 | H78: 0 | I78: 0 | J78: 0 | Q78: 10 | R78: 0
A79: Tensiómetro para adultos | C79: 1 | D79: 0 | E79: Requerido | F79: 0 | G79: 0 | H79: 0 | I79: 0 | J79: 0 | Q79: 10 | R79: 0
A80: Estetoscopio para adultos | C80: 1 | D80: 0 | E80: Requerido | F80: 0 | G80: 0 | H80: 0 | I80: 0 | J80: 0 | Q80: 10 | R80: 0
A81: Tensiómetro pediátrico | C81: 1 | D81: 0 | E81: Condición | F81: 0 | G81: 0 | H81: 0 | I81: 0 | J81: 0 | S81: =IF(UPPER(E81)="CONDICIÓN", 10, "") -> 10 | T81: =IF(UPPER(E81)="CONDICIÓN", H81, "") -> 0 | U81: =IF(UPPER(E81)="CONDICIÓN", 10, "") -> 10 | V81: =IF(UPPER(E81)="CONDICIÓN", I81, "") -> 0
A82: Estetoscopio pediátrico | C82: 1 | D82: 0 | E82: Condición | F82: 0 | G82: 0 | H82: 0 | I82: 0 | J82: 0 | S82: 10 | T82: 0 | U82: 10 | V82: 0
A83: Termómetro | C83: 1 | D83: 0 | E83: Requerido | F83: 0 | G83: 0 | H83: 0 | I83: 0 | J83: 0 | Q83: 10 | R83: 0
A84: Negatoscopio / Equipo para visualización de imágenes | C84: 1 | D84: 0 | E84: Requerido | F84: 0 | G84: 0 | H84: 0 | I84: 0 | J84: 0 | Q84: 10 | R84: 0
A85: Lámpara de examen rodable | C85: 1 | D85: 0 | E85: Requerido | F85: 0 | G85: 0 | H85: 0 | I85: 0 | J85: 0 | Q85: 10 | R85: 0
A86: Set de recipientes para el manejo de desechos peligrosos y no peligrosos | B86: EQ_07 | C86: 1 | D86: 0 | E86: Requerido | F86: 0 | G86: 0 | H86: 0 | I86: 0 | J86: 0 | Q86: 10 | R86: 0
A87: Silla confidente | C87: 2 | D87: 0 | E87: Requerido | F87: 0 | G87: 0 | H87: 0 | I87: 0 | J87: 0 | Q87: 10 | R87: 0
A88: Silla | C88: 1 | D88: 0 | E88: Requerido | F88: 0 | G88: 0 | H88: 0 | I88: 0 | J88: 0 | Q88: 10 | R88: 0
A89: Consultorio de Psicología (Puede compartir con la Oficina de Trabajo Social y el Consultorio de Nutrición, pero debe asegurarse la privacidad del paciente mediante horarios diferenciados en cada prestación) | B89: =B1 -> Anx: | C89: =C$1 -> Cant x Espacio: | D89: Requerido: | E89: Tipo: | F89: Funcional: | G89: No Funcional: | J89: Calif: | K89: Observaciones: | L89: =Infraestructura!$F$21 -> 0 | M89: =Infraestructura!$G$21 -> 0 | Y89: =SUM(Q89:Q96) -> 70 | Z89: =SUM(R89:R96) -> 0 | AA89: =SUM(S89:S96) -> 0 | AB89: 0 | AC89: 0 | AD89: 0 | AE89: 0 | AF89: 0
A90: Escritorio/Mesa de despacho | B90: EQ_01 | C90: 1 | D90: =IF(AND($L$89=0,$M$89=0),0,IF(AND($L$89>0,$M$89>0),($L$89+$M$89)*C90,IF(AND($L$89=0,$M$89>0),C90*$M$89,$L$89*C90))) -> 0 | E90: Requerido | F90: 0 | G90: 0 | H90: =IF(AND(F90>=D90,D90>0,F90>=1),10,0) -> 0 | I90: 0 | J90: 0 | Q90: 10 | R90: 0
A91: Computador completo (Portátil o de escritorio) | B91: EQ_02 | C91: 1 | D91: =IF(AND($L$89=0,$M$89=0),0,IF(AND($L$89>0,$M$89>0),($L$89+$M$89)*C91,IF(AND($L$89=0,$M$89>0),C91*$M$89,$L$89*C91))) -> 0 | E91: Requerido | F91: 0 | G91: 0 | H91: 0 | I91: 0 | J91: 0 | Q91: 10 | R91: 0
A92: Armario/Vitrina/Archivador | C92: 1 | D92: =IF(AND($L$89=0,$M$89=0),0,IF(AND($L$89>0,$M$89>0),($L$89+$M$89)*C92,IF(AND($L$89=0,$M$89>0),C92*$M$89,$L$89*C92))) -> 0 | E92: Requerido | F92: 0 | G92: 0 | H92: 0 | I92: 0 | J92: 0 | Q92: 10 | R92: 0
A93: Basurero | C93: 1 | D93: 0 | E93: Requerido | F93: 0 | G93: 0 | H93: 0 | I93: 0 | J93: =IF(AND(OR(F93=0,F93<D93),G93=0),0,IF(AND(OR(F93=0,F93<D93),G93>=D93),-10,IF(D93=0,0,IF(F93>=D93,10,0)))) -> 0 | Q93: 10 | R93: 0
A94: Dispensador para solución hidroalcohólica | C94: 1 | D94: 0 | E94: Requerido | F94: 0 | G94: 0 | H94: 0 | I94: 0 | J94: 0 | Q94: =IF(UPPER(E94)="REQUERIDO", 10, "") -> 10 | R94: =IF(UPPER(E94)="REQUERIDO", J94, "") -> 0
A95: Silla confidente | C95: 2 | D95: 0 | E95: Requerido | F95: 0 | G95: 0 | H95: 0 | I95: 0 | J95: 0 | Q95: 10 | R95: 0
A96: Silla | C96: 1 | D96: =IF(AND($L$89=0,$M$89=0),0,IF(AND($L$89>0,$M$89>0),($L$89+$M$89)*C96,IF(AND($L$89=0,$M$89>0),C96*$M$89,$L$89*C96))) -> 0 | E96: Requerido | F96: 0 | G96: 0 | H96: 0 | I96: 0 | J96: 0 | Q96: 10 | R96: 0
A97: Consultorio de Nutrición (Puede compartir con la Oficina de Trabajo Social y el Consultorio de Psicología, pero debe asegurarse la privacidad del paciente mediante horarios diferenciados en cada prestación) | B97: =B1 -> Anx: | C97: =C$1 -> Cant x Espacio: | D97: Requerido: | E97: Tipo: | F97: Funcional: | G97: No Funcional: | J97: Calif: | K97: Observaciones: | L97: =Infraestructura!$F$22 -> 0 | M97: =Infraestructura!$G$22 -> 0 | Y97: =SUM(Q97:Q108) -> 100 | Z97: =SUM(R97:R108) -> 0 | AA97: =SUM(S97:S108) -> 10 | AB97: 0 | AC97: 10 | AD97: 0 | AE97: 0 | AF97: 0
A98: Escritorio/Mesa de despacho | B98: EQ_01 | C98: 1 | D98: =IF(AND($L$97=0,$M$97=0),0,IF(AND($L$97>0,$M$97>0),($L$97+$M$97)*C98,IF(AND($L$97=0,$M$97>0),C98*$M$97,$L$97*C98))) -> 0 | E98: Requerido | F98: 0 | G98: 0 | H98: =IF(AND(F98>=D98,D98>0,F98>=1),10,0) -> 0 | I98: 0 | J98: 0 | Q98: 10 | R98: 0
A99: Computador completo (Portátil o de escritorio) | B99: EQ_02 | C99: 1 | D99: =IF(AND($L$97=0,$M$97=0),0,IF(AND($L$97>0,$M$97>0),($L$97+$M$97)*C99,IF(AND($L$97=0,$M$97>0),C99*$M$97,$L$97*C99))) -> 0 | E99: Requerido | F99: 0 | G99: 0 | H99: 0 | I99: =IF(AND(G99>=D99,D99>0,G99>=1),10,0) -> 0 | J99: 0 | Q99: 10 | R99: 0
A100: Armario/Vitrina/Archivador | C100: 1 | D100: =IF(AND($L$97=0,$M$97=0),0,IF(AND($L$97>0,$M$97>0),($L$97+$M$97)*C100,IF(AND($L$97=0,$M$97>0),C100*$M$97,$L$97*C100))) -> 0 | E100: Requerido | F100: 0 | G100: 0 | H100: 0 | I100: 0 | J100: 0 | Q100: 10 | R100: 0
A101: Plicómetro | C101: 1 | D101: =IF(AND($L$97=0,$M$97=0),0,IF(AND($L$97>0,$M$97>0),($L$97+$M$97)*C101,IF(AND($L$97=0,$M$97>0),C101*$M$97,$L$97*C101))) -> 0 | E101: Requerido | F101: 0 | G101: 0 | H101: 0 | I101: 0 | J101: 0 | Q101: 10 | R101: 0
A102: Cinta métrica | C102: 1 | D102: 0 | E102: Requerido | F102: 0 | G102: 0 | H102: 0 | I102: 0 | J102: 0 | Q102: 10 | R102: 0
A103: Báscula + tallimetro | C103: 1 | D103: =IF(AND($L$97=0,$M$97=0),0,IF(AND($L$97>0,$M$97>0),($L$97+$M$97)*C103,IF(AND($L$97=0,$M$97>0),C103*$M$97,$L$97*C103))) -> 0 | E103: Requerido | F103: 0 | G103: 0 | H103: 0 | I103: 0 | J103: 0 | Q103: 10 | R103: 0
A104: Balanza de impedancia | C104: 1 | D104: 0 | E104: Condición | F104: 0 | G104: 0 | H104: 0 | I104: 0 | J104: 0 | S104: =IF(UPPER(E104)="CONDICIÓN", 10, "") -> 10 | T104: =IF(UPPER(E104)="CONDICIÓN", H104, "") -> 0 | U104: =IF(UPPER(E104)="CONDICIÓN", 10, "") -> 10 | V104: =IF(UPPER(E104)="CONDICIÓN", I104, "") -> 0
A105: Silla confidente | C105: 2 | D105: 0 | E105: Requerido | F105: 0 | G105: 0 | H105: 0 | I105: 0 | J105: 0 | Q105: 10 | R105: 0
A106: Silla | C106: 1 | D106: 0 | E106: Requerido | F106: 0 | G106: 0 | H106: 0 | I106: 0 | J106: 0 | Q106: 10 | R106: 0
A107: Basurero | C107: 1 | D107: 0 | E107: Requerido | F107: 0 | G107: 0 | H107: 0 | I107: 0 | J107: 0 | Q107: 10 | R107: 0
A108: Dispensador para solución hidroalcohólica | C108: 1 | D108: 0 | E108: Requerido | F108: 0 | G108: 0 | H108: 0 | I108: 0 | J108: 0 | Q108: 10 | R108: 0
A109: APOYO TERAPÉUTICO | Y109: =SUM(Q110:Q256) -> 500 | Z109: 0 | AA109: 30 | AB109: 0 | AC109: 30 | AD109: 0 | AE109: 0 | AF109: 0
A110: ATENCIÓN DE APOYO TERAPÉUTICO | Y110: =SUM(Q111:Q256) -> 500 | Z110: 0 | AA110: 30 | AB110: 0 | AC110: 30 | AD110: 0 | AE110: 0 | AF110: 0
A111: ÁREA DE PROCEDIMIENTOS | Y111: =SUM(Q112:Q144) -> 0 | Z111: =SUM(R112:R144) -> 0 | AA111: =SUM(S112:S144) -> 0 | AB111: 0 | AC111: 0 | AD111: 0 | AE111: 0 | AF111: 0
A112: AMBIENTES | L112: bueno | M112: malo | Y112: =SUM(Q113:Q115) -> 0 | Z112: =SUM(R113:R115) -> 0 | AA112: =SUM(S113:S115) -> 0 | AB112: 0 | AC112: 0 | AD112: 0 | AE112: 0 | AF112: 0
A113: Área de Lavado de Manos | B113: =B1 -> Anx: | C113: =C$1 -> Cant x Espacio: | D113: Requerido: | E113: Tipo: | F113: Funcional: | G113: No Funcional: | J113: Calif: | K113: Observaciones: | L113: =Infraestructura!$F$30 -> 0 | M113: =Infraestructura!G30 -> 0
A114: Lavado Quirúrgico | C114: 1 | D114: =IF(AND($L$113=0,$M$113=0),0,IF(AND($L$113>0,$M$113>0),($L$113+$M$113)*C114,IF(AND($L$113=0,$M$113>0),C114*$M$113,$L$113*C114))) -> 0 | E114: =IF(D114>0, "Requerido", "Sin Infraestructura") -> Sin Infraestructura | F114: 0 | G114: 0 | H114: =IF(AND(F114>=D114,D114>0,F114>=1),10,0) -> 0 | I114: =IF(AND(G114>=D114,D114>0,G114>=1),10,0) -> 0 | J114: =IF(AND(OR(F114=0,F114<D114),G114=0),0,IF(AND(OR(F114=0,F114<D114),G114>=D114),-10,IF(D114=0,0,IF(F114>=D114,10,0)))) -> 0 | Q114: =IF(UPPER(E114)="REQUERIDO", 10, "") ->  | R114: =IF(UPPER(E114)="REQUERIDO", J114, "") -> 
A115: Dispensador de jabón | C115: 1 | D115: =IF(AND($L$113=0,$M$113=0),0,IF(AND($L$113>0,$M$113>0),($L$113+$M$113)*C115,IF(AND($L$113=0,$M$113>0),C115*$M$113,$L$113*C115))) -> 0 | E115: =IF(D115>0, "Requerido", "Sin Infraestructura") -> Sin Infraestructura | F115: 0 | G115: 0 | H115: 0 | I115: 0 | J115: 0 | Q115: =IF(UPPER(E115)="REQUERIDO", 10, "") ->  | R115: =IF(UPPER(E115)="REQUERIDO", J115, "") -> 
A116: Sala de procedimientos (Debe existir acuerdo con un establecimiento que cuente con atención en centro quirúrgico para realización y reparación de accesos vasculares y/o inserción de catéteres peritoneales, en caso de no haber convenio se hará requerido) | B116: =B1 -> Anx: | C116: =C$1 -> Cant x Espacio: | D116: Requerido: | E116: Tipo: | F116: Funcional: | G116: No Funcional: | J116: Calif: | K116: Observaciones: | L116: =Infraestructura!$F$31 -> 0 | M116: =Infraestructura!G31 -> 0 | Y116: =SUM(Q117:Q138) -> 0 | Z116: =SUM(R117:R138) -> 0 | AA116: =SUM(S117:S138) -> 0 | AB116: 0 | AC116: 0 | AD116: 0 | AE116: 0 | AF116: 0
A117: Camilla de exploración/Mesa de operaciones | C117: 1 | D117: =IF(AND($L$116=0,$M$116=0),0,IF(AND($L$116>0,$M$116>0),($L$116+$M$116)*C117,IF(AND($L$116=0,$M$116>0),C117*$M$116,$L$116*C117))) -> 0 | E117: =IF(D117>0, "Requerido", "Sin Infraestructura") -> Sin Infraestructura | F117: 0 | G117: 0 | H117: =IF(AND(F117>=D117,D117>0,F117>=1),10,0) -> 0 | I117: 0 | J117: 0 | Q117: =IF(UPPER(E117)="REQUERIDO", 10, "") ->  | R117: =IF(UPPER(E117)="REQUERIDO", J117, "") -> 
A118: Porta sueros | C118: 1 | D118: =IF(AND($L$116=0,$M$116=0),0,IF(AND($L$116>0,$M$116>0),($L$116+$M$116)*C118,IF(AND($L$116=0,$M$116>0),C118*$M$116,$L$116*C118))) -> 0 | E118: =IF(D118>0, "Requerido", "Sin Infraestructura") -> Sin Infraestructura | F118: 0 | G118: 0 | H118: 0 | I118: 0 | J118: 0 | Q118: =IF(UPPER(E118)="REQUERIDO", 10, "") ->  | R118: =IF(UPPER(E118)="REQUERIDO", J118, "") -> 
A119: Tensiómetro para adultos | C119: 1 | D119: 0 | E119: =IF(D119>0, "Requerido", "Sin Infraestructura") -> Sin Infraestructura | F119: 0 | G119: 0 | H119: 0 | I119: 0 | J119: 0
A120: Estetoscopio para adultos | C120: 1 | D120: 0 | E120: =IF(D120>0, "Requerido", "Sin Infraestructura") -> Sin Infraestructura | F120: 0 | G120: 0 | H120: 0 | I120: 0 | J120: 0
A121: Tensiómetro pediátrico | C121: 1 | D121: 0 | E121: =IF(D121>0, "Condición", "Sin Infraestructura") -> Sin Infraestructura | F121: 0 | G121: 0 | H121: 0 | I121: 0 | J121: 0 | S121: =IF(UPPER(E121)="CONDICIÓN", 10, "") ->  | T121: =IF(UPPER(E121)="CONDICIÓN", H121, "") ->  | U121: =IF(UPPER(E121)="CONDICIÓN", 10, "") ->  | V121: =IF(UPPER(E121)="CONDICIÓN", I121, "") -> 
A122: Estetoscopio pediátrico | C122: 1 | D122: 0 | E122: =IF(D122>0, "Condición", "Sin Infraestructura") -> Sin Infraestructura | F122: 0 | G122: 0 | H122: 0 | I122: 0 | J122: 0
A123: Coche de paro completo y reanimación | B123: EQ_09 | C123: 1 | D123: 0 | E123: =IF(D123>0, "Condición", "Sin Infraestructura") -> Sin Infraestructura | F123: 0 | G123: 0 | H123: 0 | I123: 0 | J123: 0
A124: Desfibrilador | C124: 1 | D124: 0 | E124: =IF(D124>0, "Condición", "Sin Infraestructura") -> Sin Infraestructura | F124: 0 | G124: 0 | H124: 0 | I124: 0 | J124: 0
A125: Electrocardiógrafo | C125: 1 | D125: 0 | E125: Sin Infraestructura | F125: 0 | G125: 0 | H125: 0 | I125: 0 | J125: 0
A126: Equipo de oxígeno portátil | C126: 1 | D126: 0 | E126: Sin Infraestructura | F126: 0 | G126: 0 | H126: 0 | I126: 0 | J126: 0
A127: Aspirador de secreciones portátil | C127: 1 | D127: 0 | E127: Sin Infraestructura | F127: 0 | G127: 0 | H127: 0 | I127: 0 | J127: 0
A128: Lámpara quirúrgica básica cielítica portátil o fija/Lámpara de examen rodable | C128: 1 | D128: 0 | E128: =IF(D128>0, "Requerido", "Sin Infraestructura") -> Sin Infraestructura | F128: 0 | G128: 0 | H128: 0 | I128: 0 | J128: 0
A129: Monitor de parámetros vitales | C129: 1 | D129: 0 | E129: =IF(D129>0, "Condición", "Sin Infraestructura") -> Sin Infraestructura | F129: 0 | G129: 0 | H129: 0 | I129: 0 | J129: 0 | S129: =IF(UPPER(E129)="CONDICIÓN", 10, "") ->  | T129: =IF(UPPER(E129)="CONDICIÓN", H129, "") ->  | U129: =IF(UPPER(E129)="CONDICIÓN", 10, "") ->  | V129: =IF(UPPER(E129)="CONDICIÓN", I129, "") -> 
A130: Silla/taburete giratorio | C130: 1 | D130: 0 | E130: Sin Infraestructura | F130: 0 | G130: 0 | H130: 0 | I130: 0 | J130: 0
A131: Coche de curaciones | B131: EQ_08 | C131: 1 | D131: 0 | E131: Sin Infraestructura | F131: 0 | G131: 0 | H131: 0 | I131: 0 | J131: 0
A132: Mesa mayo | C132: 1 | D132: 0 | E132: Sin Infraestructura | F132: 0 | G132: 0 | H132: 0 | I132: 0 | J132: 0
A133: Equipo de cirugía general - cirugía mayor | B133: EQ_30 | C133: 1 | D133: 0 | E133: =IF(D133>0, "Condición", "Sin Infraestructura") -> Sin Infraestructura | F133: 0 | G133: 0 | H133: 0 | I133: 0 | J133: 0 | S133: =IF(UPPER(E133)="CONDICIÓN", 10, "") ->  | T133: =IF(UPPER(E133)="CONDICIÓN", H133, "") ->  | U133: =IF(UPPER(E133)="CONDICIÓN", 10, "") ->  | V133: =IF(UPPER(E133)="CONDICIÓN", I133, "") -> 
A134: Equipo de cirugía para accesos vasculares | B134: EQ_23 | C134: 1 | D134: 0 | E134: =IF(D134>0, "Condición", "Sin Infraestructura") -> Sin Infraestructura | F134: 0 | G134: 0 | H134: 0 | I134: 0 | J134: 0
A135: Mesa para instrumental | C135: 1 | D135: 0 | E135: Sin Infraestructura | F135: 0 | G135: 0 | H135: 0 | I135: 0 | J135: 0
A136: Soporte bajo rodado, una cubeta acero inoxidable | C136: 1 | D136: 0 | E136: Sin Infraestructura | F136: 0 | G136: 0 | H136: 0 | I136: 0 | J136: 0
A137: Set de recipientes para el manejo de desechos peligrosos y no peligrosos | B137: EQ_07 | C137: 1 | D137: 0 | E137: Sin Infraestructura | F137: 0 | G137: 0 | H137: 0 | I137: 0 | J137: 0
A138: Flujómetro para O2 con humidificador | C138: 1 | D138: =IF(AND($L$116=0,$M$116=0),0,IF(AND($L$116>0,$M$116>0),($L$116+$M$116)*C138,IF(AND($L$116=0,$M$116>0),C138*$M$116,$L$116*C138))) -> 0 | E138: =IF(D138>0, "Condición", "Sin Infraestructura") -> Sin Infraestructura | F138: 0 | G138: 0 | H138: 0 | I138: 0 | J138: 0 | S138: =IF(UPPER(E138)="CONDICIÓN", 10, "") ->  | T138: =IF(UPPER(E138)="CONDICIÓN", H138, "") ->  | U138: =IF(UPPER(E138)="CONDICIÓN", 10, "") ->  | V138: =IF(UPPER(E138)="CONDICIÓN", I138, "") -> 
A139: Zona de esterilización | B139: =B1 -> Anx: | C139: =C$1 -> Cant x Espacio: | D139: Requerido: | E139: Tipo: | F139: Funcional: | G139: No Funcional: | J139: Calif: | K139: Observaciones: | L139: =Infraestructura!$F$32 -> 0 | M139: =Infraestructura!G32 -> 0 | Y139: =SUM(Q140:Q144) -> 0 | Z139: =SUM(R140:R144) -> 0 | AA139: =SUM(S140:S144) -> 0 | AB139: 0 | AC139: 0 | AD139: 0 | AE139: 0 | AF139: 0
A140: Esterilizador a vapor / calor seco | C140: 1 | D140: =IF(AND($L$139=0,$M$139=0),0,IF(AND($L$139>0,$M$139>0),($L$139+$M$139)*C140,IF(AND($L$139=0,$M$139>0),C140*$M$139,$L$139*C140))) -> 0 | E140: =IF(D140>0, "Requerido", "Sin Infraestructura") -> Sin Infraestructura | F140: 0 | G140: 0 | H140: =IF(AND(F140>=D140,D140>0,F140>=1),10,0) -> 0 | I140: 0 | J140: 0 | Q140: =IF(UPPER(E140)="REQUERIDO", 10, "") ->  | R140: =IF(UPPER(E140)="REQUERIDO", J140, "") -> 
A141: Dispensador de papel toalla | C141: 1 | D141: =IF(AND($L$139=0,$M$139=0),0,IF(AND($L$139>0,$M$139>0),($L$139+$M$139)*C141,IF(AND($L$139=0,$M$139>0),C141*$M$139,$L$139*C141))) -> 0 | E141: =IF(D141>0, "Requerido", "Sin Infraestructura") -> Sin Infraestructura | F141: 0 | G141: 0 | H141: 0 | I141: 0 | J141: 0 | Q141: =IF(UPPER(E141)="REQUERIDO", 10, "") ->  | R141: =IF(UPPER(E141)="REQUERIDO", J141, "") -> 
A142: Dispensador de jabón | C142: 1 | D142: =IF(AND($L$139=0,$M$139=0),0,IF(AND($L$139>0,$M$139>0),($L$139+$M$139)*C142,IF(AND($L$139=0,$M$139>0),C142*$M$139,$L$139*C142))) -> 0 | E142: =IF(D142>0, "Requerido", "Sin Infraestructura") -> Sin Infraestructura | F142: 0 | G142: 0 | H142: 0 | I142: 0 | J142: 0
A143: Basurero | C143: 1 | D143: 0 | E143: =IF(D143>0, "Requerido", "Sin Infraestructura") -> Sin Infraestructura | F143: 0 | G143: 0 | H143: 0 | I143: 0 | J143: 0
A144: Mesón con fregadero | C144: 1 | D144: =IF(AND($L$139=0,$M$139=0),0,IF(AND($L$139>0,$M$139>0),($L$139+$M$139)*C144,IF(AND($L$139=0,$M$139>0),C144*$M$139,$L$139*C144))) -> 0 | E144: =IF(D144>0, "Requerido", "Sin Infraestructura") -> Sin Infraestructura | F144: 0 | G144: 0 | H144: 0 | I144: 0 | J144: 0
A145: ÁREA DE SOPORTE Y SUMINISTROS | Y145: =SUM(Q147:Q157) -> 40 | Z145: =SUM(R147:R157) -> 0 | AA145: =SUM(S147:S157) -> 0 | AB145: 0 | AC145: 0 | AD145: 0 | AE145: 0 | AF145: 0
A146: (Esta área funcional debe estar centralizada y no debe estar en contacto con las áreas de tratamiento)
A147: AMBIENTES | Y147: =SUM(Q148:Q152) -> 40 | Z147: =SUM(R148:R152) -> 0 | AA147: =SUM(S148:S152) -> 0 | AB147: 0 | AC147: 0 | AD147: 0 | AE147: 0 | AF147: 0
A148: Cuarto de limpieza | B148: =B1 -> Anx: | C148: =C$1 -> Cant x Espacio: | D148: Requerido: | E148: Tipo: | F148: Funcional: | G148: No Funcional: | J148: Calif: | K148: Observaciones: | L148: =Infraestructura!$F$39 -> 0 | M148: =Infraestructura!$G$39 -> 0
A149: Coche de limpieza | C149: 1 | D149: =IF(AND($L$148=0,$M$148=0),0,IF(AND($L$148>0,$M$148>0),($L$148+$M$148)*C149,IF(AND($L$148=0,$M$148>0),C149*$M$148,$L$148*C149))) -> 0 | E149: Requerido | F149: 0 | G149: 0 | H149: =IF(AND(F149>=D149,D149>0,F149>=1),10,0) -> 0 | I149: =IF(AND(G149>=D149,D149>0,G149>=1),10,0) -> 0 | J149: =IF(AND(OR(F149=0,F149<D149),G149=0),0,IF(AND(OR(F149=0,F149<D149),G149>=D149),-10,IF(D149=0,0,IF(F149>=D149,10,0)))) -> 0 | Q149: =IF(UPPER(E149)="REQUERIDO", 10, "") -> 10 | R149: =IF(UPPER(E149)="REQUERIDO", J149, "") -> 0
A150: Stock de Insumos de Limpieza | B150: EQ_05 | C150: 1 | D150: =IF(AND($L$148=0,$M$148=0),0,IF(AND($L$148>0,$M$148>0),($L$148+$M$148)*C150,IF(AND($L$148=0,$M$148>0),C150*$M$148,$L$148*C150))) -> 0 | E150: Requerido | F150: 0 | G150: 0 | H150: 0 | I150: 0 | J150: 0 | Q150: =IF(UPPER(E150)="REQUERIDO", 10, "") -> 10 | R150: =IF(UPPER(E150)="REQUERIDO", J150, "") -> 0
A151: Estantería básica | C151: 1 | D151: =IF(AND($L$148=0,$M$148=0),0,IF(AND($L$148>0,$M$148>0),($L$148+$M$148)*C151,IF(AND($L$148=0,$M$148>0),C151*$M$148,$L$148*C151))) -> 0 | E151: Requerido | F151: 0 | G151: 0 | H151: 0 | I151: 0 | J151: 0 | Q151: =IF(UPPER(E151)="REQUERIDO", 10, "") -> 10 | R151: =IF(UPPER(E151)="REQUERIDO", J151, "") -> 0
A152: Lavadero con poza profunda para el preparado y enjuague de los útiles de limpieza | C152: 1 | D152: =IF(AND($L$148=0,$M$148=0),0,IF(AND($L$148>0,$M$148>0),($L$148+$M$148)*C152,IF(AND($L$148=0,$M$148>0),C152*$M$148,$L$148*C152))) -> 0 | E152: Requerido | F152: 0 | G152: 0 | H152: 0 | I152: 0 | J152: 0 | Q152: =IF(UPPER(E152)="REQUERIDO", 10, "") -> 10 | R152: =IF(UPPER(E152)="REQUERIDO", J152, "") -> 0
A153: Almacenamiento intermedio o temporal de desechos | B153: =B1 -> Anx: | C153: =C$1 -> Cant x Espacio: | D153: Requerido: | E153: Tipo: | F153: Funcional: | G153: No Funcional: | J153: Calif: | K153: Observaciones: | L153: =Infraestructura!$F$40 -> 0 | M153: =Infraestructura!G40 -> 0 | Y153: =SUM(Q154:Q154) -> 0 | Z153: =SUM(R154:R154) -> 0 | AA153: =SUM(S154:S154) -> 0 | AB153: 0 | AC153: 0 | AD153: 0 | AE153: 0 | AF153: 0
A154: Set de recipientes para el manejo de desechos peligrosos y no peligrosos | B154: EQ_07 | C154: 1 | D154: =IF(AND($L$153=0,$M$153=0),0,IF(AND($L$153>0,$M$153>0),($L$153+$M$153)*C154,IF(AND($L$153=0,$M$153>0),C154*$M$153,$L$153*C154))) -> 0 | E154: =IF(D154>0, "Requerido", "Sin Infraestructura") -> Sin Infraestructura | F154: 0 | G154: 0 | H154: =IF(AND(F154>=D154,D154>0,F154>=1),10,0) -> 0 | I154: 0 | J154: 0 | Q154: =IF(UPPER(E154)="REQUERIDO", 10, "") ->  | R154: =IF(UPPER(E154)="REQUERIDO", J154, "") -> 
A155: Lencería | B155: =B1 -> Anx: | C155: =C$1 -> Cant x Espacio: | D155: Requerido: | E155: Tipo: | F155: Funcional: | G155: No Funcional: | J155: Calif: | K155: Observaciones: | L155: =Infraestructura!$F$41 -> 0 | M155: =Infraestructura!G41 -> 0 | Y155: =SUM(Q156:Q157) -> 0 | Z155: =SUM(R156:R157) -> 0 | AA155: =SUM(S156:S157) -> 0 | AB155: 0 | AC155: 0 | AD155: 0 | AE155: 0 | AF155: 0
A156: Estantería básica | C156: 1 | D156: =IF(AND($L$155=0,$M$155=0),0,IF(AND($L$155>0,$M$155>0),($L$155+$M$155)*C156,IF(AND($L$155=0,$M$155>0),C156*$M$155,$L$155*C156))) -> 0 | E156: =IF(D156>0,"Requerido","Sin Infraestructura") -> Sin Infraestructura | F156: 0 | G156: 0 | H156: =IF(AND(F156>=D156,D156>0,F156>=1),10,0) -> 0 | I156: 0 | J156: 0 | Q156: =IF(UPPER(E156)="REQUERIDO", 10, "") ->  | R156: =IF(UPPER(E156)="REQUERIDO", J156, "") -> 
A157: Coche de ropa limpia | C157: 1 | D157: =IF(AND($L$155=0,$M$155=0),0,IF(AND($L$155>0,$M$155>0),($L$155+$M$155)*C157,IF(AND($L$155=0,$M$155>0),C157*$M$155,$L$155*C157))) -> 0 | E157: =IF(D157>0,"Requerido","Sin Infraestructura") -> Sin Infraestructura | F157: 0 | G157: 0 | H157: 0 | I157: 0 | J157: =IF(AND(OR(F157=0,F157<D157),G157=0),0,IF(AND(OR(F157=0,F157<D157),G157>=D157),-10,IF(D157=0,0,IF(F157>=D157,10,0)))) -> 0 | Q157: =IF(UPPER(E157)="REQUERIDO", 10, "") ->  | R157: =IF(UPPER(E157)="REQUERIDO", J157, "") -> 
A158: ÁREA DE TRATAMIENTO DE HEMODIÁLISIS | Y158: =SUM(Q160:Q189) -> 250 | Z158: 0 | AA158: 30 | AB158: 0 | AC158: 30 | AD158: 0 | AE158: 0 | AF158: 0
A159: Estación de enfermería | B159: =B1 -> Anx: | C159: =C$1 -> Cant x Espacio: | D159: Requerido: | E159: Tipo: | F159: Funcional: | G159: No Funcional: | J159: Calif: | K159: Observaciones: | L159: =Infraestructura!$F$47 -> 0 | M159: =Infraestructura!$G$47 -> 0 | Y159: =SUM(Q160:Q174) -> 130 | Z159: =SUM(R160:R174) -> 0 | AA159: =SUM(S160:S174) -> 20 | AB159: 0 | AC159: 20 | AD159: 0 | AE159: 0 | AF159: 0
A160: Mostrador/Escritorio | B160: EQ_01 | C160: 1 | D160: =IF(AND($L$159=0,$M$159=0),0,IF(AND($L$159>0,$M$159>0),($L$159+$M$159)*C160,IF(AND($L$159=0,$M$159>0),C160*$M$159,$L$159*C160))) -> 0 | E160: Requerido | F160: 0 | G160: 0 | H160: =IF(AND(F160>=D160,D160>0,F160>=1),10,0) -> 0 | I160: =IF(AND(G160>=D160,D160>0,G160>=1),10,0) -> 0 | J160: =IF(AND(OR(F160=0,F160<D160),G160=0),0,IF(AND(OR(F160=0,F160<D160),G160>=D160),-10,IF(D160=0,0,IF(F160>=D160,10,0)))) -> 0 | Q160: =IF(UPPER(E160)="REQUERIDO", 10, "") -> 10 | R160: =IF(UPPER(E160)="REQUERIDO", J160, "") -> 0
A161: Computador completo (Portátil o de escritorio) | B161: EQ_02 | C161: 1 | D161: =IF(AND($L$159=0,$M$159=0),0,IF(AND($L$159>0,$M$159>0),($L$159+$M$159)*C161,IF(AND($L$159=0,$M$159>0),C161*$M$159,$L$159*C161))) -> 0 | E161: Requerido | F161: 0 | G161: 0 | H161: 0 | I161: 0 | J161: 0 | Q161: =IF(UPPER(E161)="REQUERIDO", 10, "") -> 10 | R161: =IF(UPPER(E161)="REQUERIDO", J161, "") -> 0
A162: Coche de curaciones | B162: EQ_08 | C162: 1 | D162: 0 | E162: Requerido | F162: 0 | G162: 0 | H162: 0 | I162: 0 | J162: 0 | Q162: 10 | R162: 0
A163: Coche de paro completo y reanimación | B163: EQ_09 | C163: 1 | D163: 0 | E163: Requerido | F163: 0 | G163: 0 | H163: 0 | I163: 0 | J163: 0 | Q163: 10 | R163: 0
A164: Desfibrilador | C164: 1 | D164: 0 | E164: Requerido | F164: 0 | G164: 0 | H164: 0 | I164: 0 | J164: 0 | Q164: 10 | R164: 0
A165: Electrocardiógrafo | C165: 1 | D165: 0 | E165: Requerido | F165: 0 | G165: 0 | H165: 0 | I165: 0 | J165: 0 | Q165: 10 | R165: 0
A166: Equipo de oxígeno portátil | C166: 1 | D166: 0 | E166: Requerido | F166: 0 | G166: 0 | H166: 0 | I166: 0 | J166: =IF(AND(OR(F166=0,F166<D166),G166=0),0,IF(AND(OR(F166=0,F166<D166),G166>=D166),-10,IF(D166=0,0,IF(F166>=D166,10,0)))) -> 0 | Q166: 10 | R166: 0
A167: Estetoscopio para adultos | C167: 1 | D167: 0 | E167: Requerido | F167: 0 | G167: 0 | H167: 0 | I167: 0 | J167: 0 | Q167: 10 | R167: 0
A168: Tensiómetro para adultos | C168: 1 | D168: 0 | E168: Requerido | F168: 0 | G168: 0 | H168: 0 | I168: 0 | J168: 0 | Q168: 10 | R168: 0
A169: Tensiómetro pediátrico | C169: 1 | D169: 0 | E169: Condición | F169: 0 | G169: 0 | H169: 0 | I169: 0 | J169: 0 | S169: =IF(UPPER(E169)="CONDICIÓN", 10, "") -> 10 | T169: =IF(UPPER(E169)="CONDICIÓN", H169, "") -> 0 | U169: =IF(UPPER(E169)="CONDICIÓN", 10, "") -> 10 | V169: =IF(UPPER(E169)="CONDICIÓN", I169, "") -> 0
A170: Estetoscopio pediátrico | C170: 1 | D170: =IF(AND($L$159=0,$M$159=0),0,IF(AND($L$159>0,$M$159>0),($L$159+$M$159)*C170,IF(AND($L$159=0,$M$159>0),C170*$M$159,$L$159*C170))) -> 0 | E170: Condición | F170: 0 | G170: 0 | H170: 0 | I170: 0 | J170: =IF(AND(OR(F170=0,F170<D170),G170=0),0,IF(AND(OR(F170=0,F170<D170),G170>=D170),-10,IF(D170=0,0,IF(F170>=D170,10,0)))) -> 0 | S170: 10 | T170: 0 | U170: 10 | V170: 0
A171: Aspirador de secreciones portátil | C171: 1 | D171: 0 | E171: Requerido | F171: 0 | G171: 0 | H171: 0 | I171: 0 | J171: =IF(AND(OR(F171=0,F171<D171),G171=0),0,IF(AND(OR(F171=0,F171<D171),G171>=D171),-10,IF(D171=0,0,IF(F171>=D171,10,0)))) -> 0 | Q171: 10 | R171: 0
A172: Set de recipientes para el manejo de desechos peligrosos y no peligrosos | B172: EQ_07 | C172: 1 | D172: 0 | E172: Requerido | F172: 0 | G172: 0 | H172: 0 | I172: 0 | J172: =IF(AND(OR(F172=0,F172<D172),G172=0),0,IF(AND(OR(F172=0,F172<D172),G172>=D172),-10,IF(D172=0,0,IF(F172>=D172,10,0)))) -> 0 | Q172: 10 | R172: 0
A173: Silla | C173: 1 | D173: 0 | E173: Requerido | F173: 0 | G173: 0 | H173: 0 | I173: 0 | J173: 0 | Q173: 10 | R173: 0
A174: Teléfono | C174: 1 | D174: 0 | E174: Requerido | F174: 0 | G174: 0 | H174: 0 | I174: 0 | J174: =IF(AND(OR(F174=0,F174<D174),G174=0),0,IF(AND(OR(F174=0,F174<D174),G174>=D174),-10,IF(D174=0,0,IF(F174>=D174,10,0)))) -> 0 | Q174: 10 | R174: 0
A175: Sala de Hemodiálisis - Compartido | B175: =B1 -> Anx: | C175: =C$1 -> Cant x Espacio: | D175: Requerido: | E175: Tipo: | F175: Funcional: | G175: No Funcional: | J175: Calif: | K175: Observaciones: | L175: =Infraestructura!$F$48 -> 0 | M175: =Infraestructura!$G$48 -> 0 | Y175: =SUM(Q176:Q184) -> 90 | Z175: =SUM(R176:R184) -> 0 | AA175: =SUM(S176:S184) -> 0 | AB175: 0 | AC175: 0 | AD175: 0 | AE175: 0 | AF175: 0
A176: Mesa auxiliar | C176: 1 | D176: =IF(AND($L$175=0,$M$175=0),0,IF(AND($L$175>0,$M$175>0),($L$175+$M$175)*C176,IF(AND($L$175=0,$M$175>0),C176*$M$175,$L$175*C176))) -> 0 | E176: Requerido | F176: 0 | G176: 0 | H176: =IF(AND(F176>=D176,D176>0,F176>=1),10,0) -> 0 | I176: 0 | J176: =IF(AND(OR(F176=0,F176<D176),G176=0),0,IF(AND(OR(F176=0,F176<D176),G176>=D176),-10,IF(D176=0,0,IF(F176>=D176,10,0)))) -> 0 | Q176: =IF(UPPER(E176)="REQUERIDO", 10, "") -> 10 | R176: =IF(UPPER(E176)="REQUERIDO", J176, "") -> 0
A177: Lavabo | C177: 1 | D177: =IF(AND($L$175=0,$M$175=0),0,IF(AND($L$175>0,$M$175>0),($L$175+$M$175)*C177,IF(AND($L$175=0,$M$175>0),C177*$M$175,$L$175*C177))) -> 0 | E177: Requerido | F177: 0 | G177: 0 | H177: 0 | I177: 0 | J177: 0 | Q177: =IF(UPPER(E177)="REQUERIDO", 10, "") -> 10 | R177: =IF(UPPER(E177)="REQUERIDO", J177, "") -> 0
A178: Dispensador de papel toalla | C178: 1 | D178: 0 | E178: Requerido | F178: 0 | G178: 0 | H178: 0 | I178: 0 | J178: 0 | Q178: 10 | R178: 0
A179: Dispensador de jabón | C179: 1 | D179: 0 | E179: Requerido | F179: 0 | G179: 0 | H179: 0 | I179: 0 | J179: 0 | Q179: 10 | R179: 0
A180: Basurero | C180: 1 | D180: 0 | E180: Requerido | F180: 0 | G180: 0 | H180: 0 | I180: 0 | J180: 0 | Q180: 10 | R180: 0
A181: Sistema Audiovisual de Información | B181: EQ_03 | C181: 1 | D181: 0 | E181: Requerido | F181: 0 | G181: 0 | H181: 0 | I181: 0 | J181: 0 | Q181: 10 | R181: 0
A182: Balanza electrónica | C182: 1 | D182: 0 | E182: Requerido | F182: 0 | G182: 0 | H182: 0 | I182: 0 | J182: 0 | Q182: 10 | R182: 0
A183: Flujómetro para O2 con humidificador | C183: 1 | D183: 0 | E183: Requerido | F183: 0 | G183: 0 | H183: 0 | I183: 0 | J183: 0 | Q183: 10 | R183: 0
A184: Máquina de hemodiálisis de resguardo/Back up | C184: 1 | D184: 0 | E184: Requerido | F184: 0 | G184: 0 | H184: 0 | I184: 0 | J184: 0 | Q184: 10 | R184: 0
A185: Sala de Hemodiálisis - Por puestos | B185: =B1 -> Anx: | C185: =C$1 -> Cant x Espacio: | D185: Requerido: | E185: Tipo: | F185: Funcional: | G185: No Funcional: | J185: Calif: | K185: Observaciones: | L185: =Infraestructura!$F$49 -> 0 | M185: =Infraestructura!$G$49 -> 0 | Y185: =SUM(Q186:Q189) -> 30 | Z185: =SUM(R186:R189) -> 0 | AA185: =SUM(S186:S189) -> 10 | AB185: 0 | AC185: 10 | AD185: 0 | AE185: 0 | AF185: 0
A186: Sillón para diálisis | C186: 1 | D186: =IF(AND($L$185=0,$M$185=0),0,IF(AND($L$185>0,$M$185>0),($L$185+$M$185)*C186,IF(AND($L$185=0,$M$185>0),C186*$M$185,$L$185*C186))) -> 0 | E186: Requerido | F186: 0 | G186: 0 | H186: =IF(AND(F186>=D186,D186>0,F186>=1),10,0) -> 0 | I186: 0 | J186: 0 | Q186: =IF(UPPER(E186)="REQUERIDO", 10, "") -> 10 | R186: =IF(UPPER(E186)="REQUERIDO", J186, "") -> 0
A187: Máquina de hemodiálisis | C187: 1 | D187: =IF(AND($L$185=0,$M$185=0),0,IF(AND($L$185>0,$M$185>0),($L$185+$M$185)*C187,IF(AND($L$185=0,$M$185>0),C187*$M$185,$L$185*C187))) -> 0 | E187: Requerido | F187: 0 | G187: 0 | H187: 0 | I187: 0 | J187: 0 | Q187: =IF(UPPER(E187)="REQUERIDO", 10, "") -> 10 | R187: =IF(UPPER(E187)="REQUERIDO", J187, "") -> 0
A188: Máquina de Hemodialfiltración | C188: 1 | D188: 0 | E188: Condición | F188: 0 | G188: 0 | H188: 0 | I188: 0 | J188: 0 | S188: =IF(UPPER(E188)="CONDICIÓN", 10, "") -> 10 | T188: =IF(UPPER(E188)="CONDICIÓN", H188, "") -> 0 | U188: =IF(UPPER(E188)="CONDICIÓN", 10, "") -> 10 | V188: =IF(UPPER(E188)="CONDICIÓN", I188, "") -> 0
A189: Set de recipientes para el manejo de desechos peligrosos y no peligrosos | B189: EQ_07 | C189: 1 | D189: 0 | E189: Requerido | F189: 0 | G189: 0 | H189: 0 | I189: 0 | J189: 0 | Q189: =IF(UPPER(E189)="REQUERIDO", 10, "") -> 10 | R189: =IF(UPPER(E189)="REQUERIDO", J189, "") -> 0
A190: ÁREA TÉCNICA DE APOYO | Y190: =SUM(Q191:Q201) -> 80 | Z190: =SUM(R191:R201) -> 0 | AA190: =SUM(S191:S201) -> 0 | AB190: 0 | AC190: 0 | AD190: 0 | AE190: 0 | AF190: 0
A191: AMBIENTES | Y191: =SUM(Q192:Q197) -> 50 | Z191: =SUM(R192:R197) -> 0 | AA191: =SUM(S192:S197) -> 0 | AB191: 0 | AC191: 0 | AD191: 0 | AE191: 0 | AF191: 0
A192: Limpio | B192: =B1 -> Anx: | C192: =C$1 -> Cant x Espacio: | D192: Requerido: | E192: Tipo: | F192: Funcional: | G192: No Funcional: | J192: Calif: | K192: Observaciones: | L192: =Infraestructura!$F$55 -> 0 | M192: =Infraestructura!$G$55 -> 0
A193: Mesón con lavabo | C193: 1 | D193: =IF(AND($L$192=0,$M$192=0),0,IF(AND($L$192>0,$M$192>0),($L$192+$M$192)*C193,IF(AND($L$192=0,$M$192>0),C193*$M$192,$L$192*C193))) -> 0 | E193: Requerido | F193: 0 | G193: 0 | H193: =IF(AND(F193>=D193,D193>0,F193>=1),10,0) -> 0 | I193: =IF(AND(G193>=D193,D193>0,G193>=1),10,0) -> 0 | J193: =IF(AND(OR(F193=0,F193<D193),G193=0),0,IF(AND(OR(F193=0,F193<D193),G193>=D193),-10,IF(D193=0,0,IF(F193>=D193,10,0)))) -> 0 | Q193: =IF(UPPER(E193)="REQUERIDO", 10, "") -> 10 | R193: =IF(UPPER(E193)="REQUERIDO", J193, "") -> 0
A194: Dispensador de papel toalla | C194: 1 | D194: =IF(AND($L$192=0,$M$192=0),0,IF(AND($L$192>0,$M$192>0),($L$192+$M$192)*C194,IF(AND($L$192=0,$M$192>0),C194*$M$192,$L$192*C194))) -> 0 | E194: Requerido | F194: 0 | G194: 0 | H194: 0 | I194: 0 | J194: 0 | Q194: 10 | R194: 0
A195: Dispensador de jabón | C195: 1 | D195: =IF(AND($L$192=0,$M$192=0),0,IF(AND($L$192>0,$M$192>0),($L$192+$M$192)*C195,IF(AND($L$192=0,$M$192>0),C195*$M$192,$L$192*C195))) -> 0 | E195: Requerido | F195: 0 | G195: 0 | H195: 0 | I195: 0 | J195: 0 | Q195: 10 | R195: 0
A196: Armario/Vitrina/Estantería | C196: 1 | D196: =IF(AND($L$192=0,$M$192=0),0,IF(AND($L$192>0,$M$192>0),($L$192+$M$192)*C196,IF(AND($L$192=0,$M$192>0),C196*$M$192,$L$192*C196))) -> 0 | E196: Requerido | F196: 0 | G196: 0 | H196: 0 | I196: 0 | J196: 0 | Q196: 10 | R196: 0
A197: Basurero | C197: 1 | D197: =IF(AND($L$192=0,$M$192=0),0,IF(AND($L$192>0,$M$192>0),($L$192+$M$192)*C197,IF(AND($L$192=0,$M$192>0),C197*$M$192,$L$192*C197))) -> 0 | E197: Requerido | F197: 0 | G197: 0 | H197: 0 | I197: 0 | J197: 0 | Q197: 10 | R197: 0
A198: Usado | B198: =B1 -> Anx: | C198: =C$1 -> Cant x Espacio: | D198: =D$1 -> Requerido: | E198: Tipo: | F198: Funcional: | G198: No Funcional: | J198: Calif: | K198: Observaciones: | L198: =Infraestructura!$F$56 -> 0 | M198: =Infraestructura!$G$56 -> 0 | Y198: =SUM(Q199:Q201) -> 30 | Z198: =SUM(R199:R201) -> 0 | AA198: =SUM(S199:S201) -> 0 | AB198: 0 | AC198: 0 | AD198: 0 | AE198: 0 | AF198: 0
A199: Estantería | C199: 1 | D199: =IF(AND($L$198=0,$M$198=0),0,IF(AND($L$198>0,$M$198>0),($L$198+$M$198)*C199,IF(AND($L$198=0,$M$198>0),C199*$M$198,$L$198*C199))) -> 0 | E199: Requerido | F199: 0 | G199: 0 | H199: =IF(AND(F199>=D199,D199>0,F199>=1),10,0) -> 0 | I199: 0 | J199: 0 | Q199: =IF(UPPER(E199)="REQUERIDO", 10, "") -> 10 | R199: =IF(UPPER(E199)="REQUERIDO", J199, "") -> 0
A200: Basurero | C200: 2 | D200: =IF(AND($L$198=0,$M$198=0),0,IF(AND($L$198>0,$M$198>0),($L$198+$M$198)*C200,IF(AND($L$198=0,$M$198>0),C200*$M$198,$L$198*C200))) -> 0 | E200: Requerido | F200: 0 | G200: 0 | H200: 0 | I200: 0 | J200: 0 | Q200: =IF(UPPER(E200)="REQUERIDO", 10, "") -> 10 | R200: =IF(UPPER(E200)="REQUERIDO", J200, "") -> 0
... 486 more rows

Sheet Norma
A1: FILTROS: | B1: Anx: | C1: Cantidad Mínima: | D1: Tipo: | E1: Posee: | F1: No Posee: | I1: Calif: | J1: Observaciones:
A2: =Menu!$B$4 -> CENTRO ESPECIALIZADO EN SALUD RENAL | X2: REQ | Z2: COND+ | AB2: COND-
A3: NORMAS | K3: =ROW(A3) -> 3 | X3: =SUM(P4:P321) -> 1760 | Y3: 0 | Z3: 1150 | AA3: 0 | AB3: 1110 | AC3: 0
A4: ADMINISTRATIVO | K4: =ROW(A4) -> 4 | X4: =SUM(P5:P24) -> 130 | Y4: =SUM(Q5:Q24) -> 0 | Z4: =SUM(R5:R24) -> 50 | AA4: 0 | AB4: 40 | AC4: 0
A5: ADMISIÓN Y ESTADISTICA | K5: 5 | X5: =SUM(P6:P24) -> 130 | Y5: =SUM(Q6:Q24) -> 0 | Z5: =SUM(R6:R24) -> 50 | AA5: 0 | AB5: 40 | AC5: 0
A6: Admisión, Información y Recepción | B6: =B1 -> Anx: | C6: =C$1 -> Cantidad Mínima: | D6: Tipo: | E6: Posee: | F6: No Posee: | I6: Calif: | J6: Observaciones: | P6: REQ | R6: COND+ | T6: COND- | X6: =SUM(P7:P24) -> 130 | Y6: =SUM(Q7:Q24) -> 0 | Z6: =SUM(R7:R24) -> 50 | AA6: 0 | AB6: 40 | AC6: 0
A7: Instructivo para el Llenado del Registro Diario Automatizado de Consultas y Atenciones Ambulatorias (RDACAA). 2013 | C7: 1 | D7: Condición | E7: 0 | F7: 0 | G7: =IF(AND(E7>=C7,E7>0),10,0) -> 0 | H7: =IF(AND(F7>=C7,F7>0),10,0) -> 0 | I7: =IF(AND(E7=0,F7=0),0,IF(AND(E7>0,F7>0),10,IF(AND(E7=0,F7>0),-10,IF(AND(E7>0,F7=0),10)))) -> 0 | R7: =IF(UPPER(D7)="CONDICIÓN", 10, "") -> 10 | S7: =IF(UPPER(D7)="CONDICIÓN", G7, "") -> 0 | T7: =IF(UPPER(D7)="CONDICIÓN", 10, "") -> 10 | U7: =IF(UPPER(D7)="CONDICIÓN", H7, "") -> 0
A8: Manual de Instalación del Tarjetero índice | C8: 1 | D8: Condición | E8: 0 | F8: 0 | G8: =IF(AND(E8>=C8,E8>0),10,0) -> 0 | H8: =IF(AND(F8>=C8,F8>0),10,0) -> 0 | I8: =IF(AND(E8=0,F8=0),0,IF(AND(E8>0,F8>0),10,IF(AND(E8=0,F8>0),-10,IF(AND(E8>0,F8=0),10)))) -> 0 | R8: =IF(UPPER(D8)="CONDICIÓN", 10, "") -> 10 | S8: =IF(UPPER(D8)="CONDICIÓN", G8, "") -> 0 | T8: =IF(UPPER(D8)="CONDICIÓN", 10, "") -> 10 | U8: =IF(UPPER(D8)="CONDICIÓN", H8, "") -> 0
A9: Manual del Usuario del Tarjetero Indice | C9: 1 | D9: Condición | E9: 0 | F9: 0 | G9: 0 | H9: 0 | I9: 0 | R9: 10 | S9: =IF(UPPER(D9)="CONDICIÓN", G9, "") -> 0 | T9: 10 | U9: 0
A10: Manual de Manejo, Archivo de las Historias Clínicas | C10: 1 | D10: Requerido | E10: 0 | F10: 0 | G10: 0 | H10: 0 | I10: 0 | P10: =IF(UPPER(D10)="REQUERIDO", 10, "") -> 10 | Q10: =IF(UPPER(D10)="REQUERIDO", I10, "") -> 0
A11: Norma Técnica: Subsistema de Referencia, Derivación, Contrareferencia, Referencia inversa y Transferencia del Sistema Nacional de Salud. 2014 | C11: 1 | D11: Requerido | E11: 0 | F11: 0 | G11: 0 | H11: 0 | I11: 0 | P11: 10 | Q11: 0
A12: Políticas Uso de Servicios de Red y Servicios Informáticos del Ministerio de Salud Pública | C12: 1 | D12: Condición | E12: 0 | F12: 0 | G12: 0 | H12: 0 | I12: 0 | R12: =IF(UPPER(D12)="CONDICIÓN", 10, "") -> 10 | S12: =IF(UPPER(D12)="CONDICIÓN", G12, "") -> 0 | T12: =IF(UPPER(D12)="CONDICIÓN", 10, "") -> 10 | U12: =IF(UPPER(D12)="CONDICIÓN", H12, "") -> 0
A13: Modelo de Gestión de requerimientos e inconformidades ciudadanas para mejorar los servicios de salud a nivel nacional | C13: 1 | D13: Condición | E13: 0 | F13: 0 | G13: 0 | H13: 0 | I13: 0 | R13: =IF(UPPER(D13)="CONDICIÓN", 10, "") -> 10 | S13: =IF(UPPER(D13)="CONDICIÓN", G13, "") -> 0
A14: Reglamento de Señalización de Seguridad para Establecimientos de Salud | C14: 1 | D14: Requerido | E14: 0 | F14: 0 | G14: 0 | H14: 0 | I14: 0 | P14: 10 | Q14: 0
A15: Registro de Indicadores de Morbilidad y Mortalidad | C15: 1 | D15: Requerido | E15: 0 | F15: 0 | G15: 0 | H15: 0 | I15: 0 | P15: 10 | Q15: 0
A16: Acuerdo Ministerial 5212: Tipología Sustitutiva para Homologar los Establecimientos de Salud por Niveles de Atención y Servicios de Apoyo del Sistema Nacional de Salud | C16: 1 | D16: Requerido | E16: 0 | F16: 0 | G16: 0 | H16: 0 | I16: 0 | P16: 10 | Q16: 0
A17: Manual de Normas de Bioseguridad para la Red de Servicios de Salud en el Ecuador | C17: 1 | D17: Requerido | E17: 0 | F17: 0 | G17: 0 | H17: 0 | I17: 0 | P17: 10 | Q17: 0
A18: Norma Técnica: Atención Integral en Violencia de Género. 2014 | C18: 1 | D18: Requerido | E18: 0 | F18: 0 | G18: 0 | H18: 0 | I18: 0 | P18: 10 | Q18: 0
A19: Protocolos de Procedimientos de Limpieza | C19: 1 | D19: Requerido | E19: 0 | F19: 0 | G19: 0 | H19: 0 | I19: 0 | P19: 10 | Q19: 0
A20: Registro de limpieza del área funcional del Establecimiento | C20: 1 | D20: Requerido | E20: 0 | F20: 0 | G20: 0 | H20: 0 | I20: 0 | P20: 10 | Q20: 0
A21: Registro de Mantenimiento de Equipos: Preventivo y/o Correctivo | C21: 1 | D21: Requerido | E21: 0 | F21: 0 | G21: 0 | H21: 0 | I21: 0 | P21: 10 | Q21: 0
A22: Acuerdo Ministerial 115: Manual de Seguridad del Paciente- Usuario | C22: 1 | D22: Requerido | E22: 0 | F22: 0 | G22: 0 | H22: 0 | I22: 0 | P22: 10 | Q22: 0
A23: Acuerdo Ministerial 5186: Reglamento Interministerial para la Gestión Integral de Desechos Sanitarios | C23: 1 | D23: Requerido | E23: 0 | F23: 0 | G23: 0 | H23: 0 | I23: 0 | P23: 10 | Q23: 0
A24: Registro de Sistema de Información y Análisis Estadístico que Incluya: Consultas, Interconsultas, Procedimientos, Índice de Infecciones, Morbimortalidad, Manejo de Accesos Vasculare y/o Catéteres Peritoneales, Anemia, Hipertensión Arterial, Enfermedad Ósea, Nutrición, Atención Psicológica, Trabajo Social y Complicaciones de la hemodiálisis y/o Diálisis Peritoneal | C24: 1 | D24: Requerido | E24: 0 | F24: 0 | G24: 0 | H24: 0 | I24: 0 | P24: 10 | Q24: 0
A25: ASISTENCIAL | K25: =ROW(A25) -> 25 | X25: =SUM(P26:P149) -> 650 | Y25: =SUM(Q26:Q149) -> 0 | Z25: =SUM(R26:R149) -> 540 | AA25: =SUM(S26:S149) -> 0 | AB25: 520 | AC25: 0
A26: CONSULTA EXTERNA | K26: 26 | X26: =SUM(P27:P149) -> 650 | Y26: =SUM(Q27:Q149) -> 0 | Z26: =SUM(R27:R149) -> 540 | AA26: 0 | AB26: 520 | AC26: 0
A27: Enfermería (En el caso de contar con la prestación, las condiciones se vuelven requeridas) | B27: =B1 -> Anx: | C27: =C$1 -> Cantidad Mínima: | D27: Tipo: | E27: Posee: | F27: No Posee: | I27: Calif: | J27: Observaciones: | X27: =SUM(P28:P65) -> 0 | Y27: =SUM(Q28:Q65) -> 0 | Z27: 380 | AA27: =SUM(S28:S65) -> 0 | AB27: 360 | AC27: =SUM(U28:U65) -> 0
A28: Instructivo para el Llenado del Registro Diario Automatizado de Consultas y Atenciones Ambulatorias (RDACAA). 2013 | C28: 1 | D28: Condición | E28: 0 | F28: 0 | G28: =IF(AND(E28>=C28,E28>0),10,0) -> 0 | H28: =IF(AND(F28>=C28,F28>0),10,0) -> 0 | I28: =IF(AND(E28=0,F28=0),0,IF(AND(E28>0,F28>0),10,IF(AND(E28=0,F28>0),-10,IF(AND(E28>0,F28=0),10)))) -> 0 | R28: =IF(UPPER(D28)="CONDICIÓN", 10, "") -> 10 | S28: =IF(UPPER(D28)="CONDICIÓN", G28, "") -> 0 | T28: =IF(UPPER(D28)="CONDICIÓN", 10, "") -> 10 | U28: =IF(UPPER(D28)="CONDICIÓN", H28, "") -> 0
A29: Clasificación Estadística Internacional de Enfermedades y Problemas Relacionados con la Salud. Décima Revisión - CIE10 | C29: 1 | D29: Condición | E29: 0 | F29: 0 | G29: 0 | H29: 0 | I29: 0 | R29: 10 | S29: 0 | T29: 10 | U29: 0
A30: Reglamento a la Ley Organica de Salud | C30: 1 | D30: Condición | E30: 0 | F30: 0 | G30: 0 | H30: 0 | I30: 0 | R30: 10 | S30: 0 | T30: 10 | U30: 0
A31: Guía para la adecuación cultural de los servicios de salud. 2006 | C31: 1 | D31: Condición | E31: 0 | F31: 0 | G31: 0 | H31: 0 | I31: 0 | R31: 10 | S31: 0 | T31: 10 | U31: 0
A32: Manual del modelo de atención integral en salud - MAIS. 2013 | C32: 1 | D32: Condición | E32: 0 | F32: 0 | G32: 0 | H32: 0 | I32: 0 | R32: 10 | S32: 0 | T32: 10 | U32: 0
A33: Ley Derechos y Amparo al Paciente | C33: 1 | D33: Condición | E33: 0 | F33: 0 | G33: 0 | H33: 0 | I33: 0 | R33: 10 | S33: 0 | T33: 10 | U33: 0
A34: Cuadro nacional de medicamentos básicos y registro terapéutico. 9na revisión | C34: 1 | D34: Condición | E34: 0 | F34: 0 | G34: 0 | H34: 0 | I34: 0 | R34: 10 | S34: 0 | T34: 10 | U34: 0
A35: Acuerdo Ministerial 4693: Reforma a la 9na. Revisión del Cuadro Nacional de Medicamentos Básicos y Registro Terapéutico | C35: 1 | D35: Condición | E35: 0 | F35: 0 | G35: 0 | H35: 0 | I35: 0 | R35: 10 | S35: 0 | T35: 10 | U35: 0
A36: Modelo de gestión de aplicación de consentimiento informado en práctica asistencial. 2015 | C36: 1 | D36: Condición | E36: 0 | F36: 0 | G36: 0 | H36: 0 | I36: 0 | R36: 10 | S36: 0 | T36: 10 | U36: 0
A37: Guía de Práctica Clínica: Cuidados Paliativos. 2014 | C37: 1 | D37: Condición | E37: 0 | F37: 0 | G37: 0 | H37: 0 | I37: 0 | R37: 10 | S37: 0 | T37: 10 | U37: 0
A38: Norma de atención Cuidados Paliativos. 2015 | C38: 1 | D38: Condición | E38: 0 | F38: 0 | G38: 0 | H38: 0 | I38: 0 | R38: 10 | S38: 0 | T38: 10 | U38: 0
A39: Guía de cuidados paliativos para el ciudadano | C39: 1 | D39: Condición | E39: 0 | F39: 0 | G39: 0 | H39: 0 | I39: 0 | R39: 10 | S39: 0 | T39: 10 | U39: 0
A40: Manual de procedimientos de Enfermería | C40: 1 | D40: Condición | E40: 0 | F40: 0 | G40: 0 | H40: 0 | I40: 0 | R40: 10 | S40: 0 | T40: 10 | U40: 0
A41: Guía de Práctica Clínica: Lupus eritematoso sistémico (LES). 2013 | C41: 1 | D41: Condición | E41: 0 | F41: 0 | G41: 0 | H41: 0 | I41: 0 | R41: 10 | S41: 0 | T41: 10 | U41: 0
A42: Guía de Práctica Clínica: Transfusión de sangre y sus componentes. 2013 | C42: 1 | D42: Condición | E42: 0 | F42: 0 | G42: 0 | H42: 0 | I42: 0 | R42: 10 | S42: 0 | T42: 10 | U42: 0
A43: Guía de Práctica Clínica: Prevención, Diagnóstico, Tratamiento y Control de la Tuberculosis. 2015 | C43: 1 | D43: Condición | E43: 0 | F43: 0 | G43: 0 | H43: 0 | I43: 0 | R43: 10 | S43: 0 | T43: 10 | U43: 0
A44: Manual de Normas y Procedimientos para el Control de la Tuberculosis en Ecuador. 2010 | C44: 1 | D44: Condición | E44: 0 | F44: 0 | G44: 0 | H44: 0 | I44: 0 | R44: 10 | S44: 0 | T44: 10 | U44: 0
A45: Guía de atención integral de adultos y Adolescentes con infección por VIH/SIDA. 2012 | C45: 1 | D45: Condición | E45: 0 | F45: 0 | G45: 0 | H45: 0 | I45: 0 | R45: 10 | S45: 0 | T45: 10 | U45: 0
A46: Normas y protocolos de atención integral de salud de las y los adultos mayores - 1. 2010 | C46: 1 | D46: Condición | E46: 0 | F46: 0 | G46: 0 | H46: 0 | I46: 0 | R46: 10 | S46: 0 | T46: 10 | U46: 0
A47: Normas y protocolos de atención integral de salud de las y los adultos mayores - 2. 2010 | C47: 1 | D47: Condición | E47: 0 | F47: 0 | G47: 0 | H47: 0 | I47: 0 | R47: 10 | S47: 0 | T47: 10 | U47: 0
A48: Normas y protocolos de atención integral de salud de las y los adultos mayores - 3. 2010 | C48: 1 | D48: Condición | E48: 0 | F48: 0 | G48: 0 | H48: 0 | I48: 0 | R48: 10 | S48: 0 | T48: 10 | U48: 0
A49: Manual para cuidadores de la persona adulta mayor dependiente | C49: 1 | D49: Condición | E49: 0 | F49: 0 | G49: 0 | H49: 0 | I49: 0 | R49: 10 | S49: 0 | T49: 10 | U49: 0
A50: Normas de atención integral a la niñez. 2011 | C50: 1 | D50: Condición | E50: 0 | F50: 0 | G50: 0 | H50: 0 | I50: 0 | R50: 10 | S50: 0 | T50: 10 | U50: 0
A51: Normas y procedimientos para la atención integral de salud a adolescentes. 2009 | C51: 1 | D51: Condición | E51: 0 | F51: 0 | G51: 0 | H51: 0 | I51: 0 | R51: 10 | S51: 0 | T51: 10 | U51: 0
A52: Guía de Supervisión: Salud de Adolescentes. 2014 | C52: 1 | D52: Condición | E52: 0 | F52: 0 | G52: 0 | H52: 0 | I52: 0 | R52: 10 | S52: 0 | T52: 10 | U52: 0
A53: Promoción de la Salud Mental: Manejo del Estrés | C53: 1 | D53: Condición | E53: 0 | F53: 0 | G53: 0 | H53: 0 | I53: 0 | R53: 10 | S53: 0 | T53: 10 | U53: 0
A54: Guía de Abordaje del Tabaquismo en Atención Primaria de Salud | C54: 1 | D54: Condición | E54: 0 | F54: 0 | G54: 0 | H54: 0 | I54: 0 | R54: 10 | S54: 0 | T54: 10 | U54: 0
A55: Manual de procedimientos de antropometría y determinación de la presión arterial. 2012 | C55: 1 | D55: Condición | E55: 0 | F55: 0 | G55: 0 | H55: 0 | I55: 0 | R55: =IF(UPPER(D55)="CONDICIÓN", 10, "") -> 10 | S55: =IF(UPPER(D55)="CONDICIÓN", G55, "") -> 0
A56: Acuerdo Ministerial 114: Vigilancia epidemiológica de las enfermedades crónicas no transmisibles | C56: 1 | D56: Condición | E56: 0 | F56: 0 | G56: 0 | H56: 0 | I56: 0 | R56: =IF(UPPER(D56)="CONDICIÓN", 10, "") -> 10 | S56: =IF(UPPER(D56)="CONDICIÓN", G56, "") -> 0 | T56: =IF(UPPER(D56)="CONDICIÓN", 10, "") -> 10 | U56: =IF(UPPER(D56)="CONDICIÓN", H56, "") -> 0
A57: Acuerdo Ministerial 1124: Instructivo para el uso de la Receta Médica. | C57: 1 | D57: Condición | E57: 0 | F57: 0 | G57: 0 | H57: 0 | I57: 0 | R57: 10 | S57: 0 | T57: 10 | U57: 0
A58: Acuerdo Ministerial 4912: Reforma al Reglamento para la Gestión del Suministro de Medicamentos y Control Administrativo Financiero, y el Instructivo para el uso de la Receta Médica. | C58: 1 | D58: Condición | E58: 0 | F58: 0 | G58: 0 | H58: 0 | I58: 0 | R58: 10 | S58: =IF(UPPER(D58)="CONDICIÓN", G58, "") -> 0 | T58: 10 | U58: 0
A59: Acuerdo Ministerial 115: Manual de Seguridad del Paciente- Usuario | C59: 1 | D59: Condición | E59: 0 | F59: 0 | G59: 0 | H59: 0 | I59: 0 | R59: =IF(UPPER(D59)="CONDICIÓN", 10, "") -> 10 | S59: =IF(UPPER(D59)="CONDICIÓN", G59, "") -> 0
A60: Acuerdo Ministerial 5186: Reglamento Interministerial para la Gestión Integral de Desechos Sanitarios | C60: 1 | D60: Condición | E60: 0 | F60: 0 | G60: 0 | H60: 0 | I60: 0 | R60: 10 | S60: =IF(UPPER(D60)="CONDICIÓN", G60, "") -> 0 | T60: =IF(UPPER(D60)="CONDICIÓN", 10, "") -> 10 | U60: =IF(UPPER(D60)="CONDICIÓN", H60, "") -> 0
A61: Manual de lencería sanitaria para los establecimientos de salud pertenecientes al MSP. 2014 | C61: 1 | D61: Condición | E61: 0 | F61: 0 | G61: 0 | H61: 0 | I61: 0 | R61: 10 | S61: =IF(UPPER(D61)="CONDICIÓN", G61, "") -> 0 | T61: 10 | U61: 0
A62: Manual de Normas de Bioseguridad para la Red de Servicios de Salud en el Ecuador | C62: 1 | D62: Condición | E62: 0 | F62: 0 | G62: 0 | H62: 0 | I62: 0 | R62: 10 | S62: =IF(UPPER(D62)="CONDICIÓN", G62, "") -> 0 | T62: 10 | U62: 0
A63: Protocolos de Procedimientos de Limpieza, Desinfección y Esterilización | C63: 1 | D63: Condición | E63: 0 | F63: 0 | G63: 0 | H63: 0 | I63: 0 | R63: 10 | S63: 0 | T63: 10 | U63: 0
A64: Registro de limpieza y desinfección del área funcional del Establecimiento | C64: 1 | D64: Condición | E64: 0 | F64: 0 | G64: 0 | H64: 0 | I64: 0 | R64: 10 | S64: 0 | T64: 10 | U64: 0
A65: Registro de Mantenimiento de Equipos: Preventivo y/o Correctivo | C65: 1 | D65: Condición | E65: 0 | F65: 0 | G65: 0 | H65: 0 | I65: 0 | R65: 10 | S65: 0 | T65: 10 | U65: 0
A66: Consultorio Médico | B66: =B1 -> Anx: | C66: =C$1 -> Cantidad Mínima: | D66: Tipo: | E66: Posee: | F66: No Posee: | I66: Calif: | J66: Observaciones: | X66: =SUM(P67:P102) -> 290 | Y66: =SUM(Q67:Q102) -> 0 | Z66: 70 | AA66: 0
A67: Instructivo para el Llenado del Registro Diario Automatizado de Consultas y Atenciones Ambulatorias (RDACAA). 2013 | C67: 1 | D67: Condición | E67: 0 | F67: 0 | G67: =IF(AND(E67>=C67,E67>0),10,0) -> 0 | H67: =IF(AND(F67>=C67,F67>0),10,0) -> 0 | I67: 0 | R67: =IF(UPPER(D67)="CONDICIÓN", 10, "") -> 10 | S67: =IF(UPPER(D67)="CONDICIÓN", G67, "") -> 0 | T67: =IF(UPPER(D67)="CONDICIÓN", 10, "") -> 10 | U67: =IF(UPPER(D67)="CONDICIÓN", H67, "") -> 0
A68: Clasificación Estadística Internacional de Enfermedades y Problemas Relacionados con la Salud. Décima Revisión - CIE10 | C68: 1 | D68: Requerido | E68: 0 | F68: 0 | G68: 0 | H68: 0 | I68: 0 | P68: =IF(UPPER(D68)="REQUERIDO", 10, "") -> 10 | Q68: =IF(UPPER(D68)="REQUERIDO", I68, "") -> 0
A69: Reglamento a la Ley Organica de Salud | C69: 1 | D69: Requerido | E69: 0 | F69: 0 | G69: 0 | H69: 0 | I69: 0 | P69: 10 | Q69: 0
A70: Guía para la adecuación cultural de los servicios de salud. 2006 | C70: 1 | D70: Requerido | E70: 0 | F70: 0 | G70: 0 | H70: 0 | I70: 0 | P70: 10 | Q70: 0
A71: Manual del modelo de atención integral en salud - MAIS. 2013 | C71: 1 | D71: Requerido | E71: 0 | F71: 0 | G71: 0 | H71: 0 | I71: 0 | P71: 10 | Q71: 0
A72: Ley Derechos y Amparo al Paciente | C72: 1 | D72: Requerido | E72: 0 | F72: 0 | G72: 0 | H72: 0 | I72: 0 | P72: 10 | Q72: 0
A73: Ley de sustancias estupefacientes y Psicotrópicas | C73: 1 | D73: Requerido | E73: 0 | F73: 0 | G73: 0 | H73: 0 | I73: 0 | P73: 10 | Q73: 0
A74: Cuadro nacional de medicamentos básicos y registro terapéutico. 9na revisión | C74: 1 | D74: Requerido | E74: 0 | F74: 0 | G74: 0 | H74: 0 | I74: 0 | P74: 10 | Q74: 0
A75: Acuerdo Ministerial 4693: Reforma a la 9na. Revisión del Cuadro Nacional de Medicamentos Básicos y Registro Terapéutico | C75: 1 | D75: Requerido | E75: 0 | F75: 0 | G75: 0 | H75: 0 | I75: 0 | P75: 10 | Q75: 0
A76: Norma Técnica: Subsistema de Referencia, Derivación, Contrareferencia, Referencia inversa y Transferencia del Sistema Nacional de Salud. 2014 | C76: 1 | D76: Requerido | E76: 0 | F76: 0 | G76: 0 | H76: 0 | I76: 0 | P76: 10 | Q76: 0
A77: Registro de Evolución de la Atención Médica y Procedimientos Efectuados | C77: 1 | D77: Requerido | E77: 0 | F77: 0 | G77: 0 | H77: 0 | I77: 0 | P77: 10 | Q77: 0
A78: Registro de Indicadores para la Satisfacción del Usuario | C78: 1 | D78: Requerido | E78: 0 | F78: 0 | G78: 0 | H78: 0 | I78: 0 | P78: 10 | Q78: 0
A79: Guía de Práctica Clínica: Cuidados Paliativos. 2014 | C79: 1 | D79: Requerido | E79: 0 | F79: 0 | G79: 0 | H79: 0 | I79: 0 | P79: 10 | Q79: 0
A80: Guía de Práctica Clínica: Lupus eritematoso sistémico (LES). 2013 | C80: 1 | D80: Requerido | E80: 0 | F80: 0 | G80: 0 | H80: 0 | I80: 0 | P80: 10 | Q80: 0
A81: Guía de Práctica Clínica: Transfusión de sangre y sus componentes. 2013 | C81: 1 | D81: Requerido | E81: 0 | F81: 0 | G81: 0 | H81: 0 | I81: 0 | P81: 10 | Q81: 0
A82: Guía de atención integral de adultos y Adolescentes con infección por VIH/SIDA. 2012 | C82: 1 | D82: Condición | E82: 0 | F82: 0 | G82: 0 | H82: 0 | I82: 0 | R82: =IF(UPPER(D82)="CONDICIÓN", 10, "") -> 10 | S82: =IF(UPPER(D82)="CONDICIÓN", G82, "") -> 0 | T82: =IF(UPPER(D82)="CONDICIÓN", 10, "") -> 10 | U82: =IF(UPPER(D82)="CONDICIÓN", H82, "") -> 0
A83: Guía de Práctica Clínica: Prevención, Diagnóstico, Tratamiento y Control de la Tuberculosis. 2015 | C83: 1 | D83: Requerido | E83: 0 | F83: 0 | G83: 0 | H83: 0 | I83: 0 | P83: 10 | Q83: 0
A84: Protocolo: Atención integral del consumo nocivo de alcohol, tabaco y otras drogas. 2016 | C84: 1 | D84: Requerido | E84: 0 | F84: 0 | G84: 0 | H84: 0 | I84: 0 | P84: 10 | Q84: 0
A85: Manual de Normas y Procedimientos para el Control de la Tuberculosis en Ecuador. 2010 | C85: 1 | D85: Requerido | E85: 0 | F85: 0 | G85: 0 | H85: 0 | I85: 0 | P85: 10 | Q85: 0
A86: Normas y protocolos para la alimentación y nutrición en la atención integral a personas que viven con VIH/SIDA. 2010 | C86: 1 | D86: Condición | E86: 0 | F86: 0 | G86: 0 | H86: 0 | I86: 0 | R86: =IF(UPPER(D86)="CONDICIÓN", 10, "") -> 10 | S86: =IF(UPPER(D86)="CONDICIÓN", G86, "") -> 0 | T86: =IF(UPPER(D86)="CONDICIÓN", 10, "") -> 10 | U86: =IF(UPPER(D86)="CONDICIÓN", H86, "") -> 0
A87: Norma de atención Cuidados Paliativos. 2015 | C87: 1 | D87: Requerido | E87: 0 | F87: 0 | G87: 0 | H87: 0 | I87: 0 | P87: 10 | Q87: 0
A88: Guía de cuidados paliativos para el ciudadano | C88: 1 | D88: Requerido | E88: 0 | F88: 0 | G88: 0 | H88: 0 | I88: 0 | P88: 10 | Q88: 0
A89: Normas y protocolos de atención integral de salud de las y los adultos mayores - 1. 2010 | C89: 1 | D89: Requerido | E89: 0 | F89: 0 | G89: 0 | H89: 0 | I89: 0 | P89: 10 | Q89: 0
A90: Normas y protocolos de atención integral de salud de las y los adultos mayores - 2. 2010 | C90: 1 | D90: Requerido | E90: 0 | F90: 0 | G90: 0 | H90: 0 | I90: 0 | P90: 10 | Q90: 0
A91: Normas y protocolos de atención integral de salud de las y los adultos mayores - 3. 2010 | C91: 1 | D91: Requerido | E91: 0 | F91: 0 | G91: 0 | H91: 0 | I91: 0 | P91: 10 | Q91: 0
A92: Normas y procedimientos para la atención integral de salud a adolescentes. 2009 | C92: 1 | D92: Condición | E92: 0 | F92: 0 | G92: 0 | H92: 0 | I92: =IF(AND(E92=0,F92=0),0,IF(AND(E92>0,F92>0),10,IF(AND(E92=0,F92>0),-10,IF(AND(E92>0,F92=0),10)))) -> 0 | R92: =IF(UPPER(D92)="CONDICIÓN", 10, "") -> 10 | S92: =IF(UPPER(D92)="CONDICIÓN", G92, "") -> 0 | T92: =IF(UPPER(D92)="CONDICIÓN", 10, "") -> 10 | U92: =IF(UPPER(D92)="CONDICIÓN", H92, "") -> 0
A93: Guía de Supervisión: Salud de Adolescentes. 2014 | C93: 1 | D93: Condición | E93: 0 | F93: 0 | G93: 0 | H93: 0 | I93: 0 | R93: 10 | S93: 0 | T93: 10 | U93: 0
A94: Manual de procedimientos de antropometría y determinación de la presión arterial. 2012 | C94: 1 | D94: Requerido | E94: 0 | F94: 0 | G94: 0 | H94: 0 | I94: 0 | P94: 10 | Q94: 0
A95: Acuerdo Ministerial 1124: Instructivo para el uso de la Receta Médica. | C95: 1 | D95: Condición | E95: 0 | F95: 0 | G95: 0 | H95: 0 | I95: 0 | R95: =IF(UPPER(D95)="CONDICIÓN", 10, "") -> 10 | S95: =IF(UPPER(D95)="CONDICIÓN", G95, "") -> 0 | T95: =IF(UPPER(D95)="CONDICIÓN", 10, "") -> 10 | U95: =IF(UPPER(D95)="CONDICIÓN", H95, "") -> 0
A96: Acuerdo Ministerial 4912: Reforma al Reglamento para la Gestión del Suministro de Medicamentos y Control Administrativo Financiero, y el Instructivo para el uso de la Receta Médica. | C96: 1 | D96: Condición | E96: 0 | F96: 0 | G96: 0 | H96: 0 | I96: 0 | R96: 10 | S96: 0 | T96: 10 | U96: 0
A97: Acuerdo Ministerial 115: Manual de Seguridad del Paciente- Usuario | C97: 1 | D97: Requerido | E97: 0 | F97: 0 | G97: 0 | H97: 0 | I97: 0 | P97: 10 | Q97: 0
A98: Acuerdo Ministerial 5186: Reglamento Interministerial para la Gestión Integral de Desechos Sanitarios | C98: 1 | D98: Requerido | E98: 0 | F98: 0 | G98: 0 | H98: 0 | I98: 0 | P98: 10 | Q98: 0
A99: Manual de Normas de Bioseguridad para la Red de Servicios de Salud en el Ecuador | C99: 1 | D99: Requerido | E99: 0 | F99: 0 | G99: 0 | H99: 0 | I99: 0 | P99: 10 | Q99: 0
A100: Protocolos de Procedimientos de Limpieza, Desinfección y Esterilización | C100: 1 | D100: Requerido | E100: 0 | F100: 0 | G100: 0 | H100: 0 | I100: 0 | P100: 10 | Q100: 0
A101: Registro de limpieza y desinfección del área funcional del Establecimiento | C101: 1 | D101: Requerido | E101: 0 | F101: 0 | G101: 0 | H101: 0 | I101: 0 | P101: 10 | Q101: 0
A102: Registro de Mantenimiento de Equipos: Preventivo y/o Correctivo | C102: 1 | D102: Requerido | E102: 0 | F102: 0 | G102: 0 | H102: 0 | I102: 0 | P102: 10 | Q102: 0
A103: Consultorio de Psicología | B103: =B1 -> Anx: | C103: =C$1 -> Cantidad Mínima: | D103: Tipo: | E103: Posee: | F103: No Posee: | I103: Calif: | J103: Observaciones: | X103: =SUM(P104:P127) -> 190 | Y103: =SUM(Q104:Q127) -> 0 | Z103: 50 | AA103: 0
A104: Instructivo para el Llenado del Registro Diario Automatizado de Consultas y Atenciones Ambulatorias (RDACAA). 2013 | C104: 1 | D104: Condición | E104: 0 | F104: 0 | G104: =IF(AND(E104>=C104,E104>0),10,0) -> 0 | H104: =IF(AND(F104>=C104,F104>0),10,0) -> 0 | I104: 0 | R104: =IF(UPPER(D104)="CONDICIÓN", 10, "") -> 10 | S104: =IF(UPPER(D104)="CONDICIÓN", G104, "") -> 0 | T104: =IF(UPPER(D104)="CONDICIÓN", 10, "") -> 10 | U104: =IF(UPPER(D104)="CONDICIÓN", H104, "") -> 0
A105: Clasificación Estadística Internacional de Enfermedades y Problemas Relacionados con la Salud. Décima Revisión - CIE10 | C105: 1 | D105: Requerido | E105: 0 | F105: 0 | G105: 0 | H105: 0 | I105: 0 | P105: =IF(UPPER(D105)="REQUERIDO", 10, "") -> 10 | Q105: =IF(UPPER(D105)="REQUERIDO", I105, "") -> 0
A106: Reglamento a la Ley Organica de Salud | C106: 1 | D106: Requerido | E106: 0 | F106: 0 | G106: 0 | H106: 0 | I106: 0 | P106: 10 | Q106: 0
A107: Guía para la adecuación cultural de los servicios de salud. 2006 | C107: 1 | D107: Requerido | E107: 0 | F107: 0 | G107: 0 | H107: 0 | I107: 0 | P107: 10 | Q107: 0
A108: Manual del modelo de atención integral en salud - MAIS. 2013 | C108: 1 | D108: Requerido | E108: 0 | F108: 0 | G108: 0 | H108: 0 | I108: 0 | P108: 10 | Q108: 0
A109: Ley Derechos y Amparo al Paciente | C109: 1 | D109: Requerido | E109: 0 | F109: 0 | G109: 0 | H109: 0 | I109: 0 | P109: 10 | Q109: 0
A110: Ley de sustancias estupefacientes y Psicotrópicas | C110: 1 | D110: Requerido | E110: 0 | F110: 0 | G110: 0 | H110: 0 | I110: 0 | P110: 10 | Q110: 0
A111: Cuadro nacional de medicamentos básicos y registro terapéutico. 9na revisión | C111: 1 | D111: Requerido | E111: 0 | F111: 0 | G111: 0 | H111: 0 | I111: 0 | P111: 10 | Q111: 0
A112: Acuerdo Ministerial 4693: Reforma a la 9na. Revisión del Cuadro Nacional de Medicamentos Básicos y Registro Terapéutico | C112: 1 | D112: Requerido | E112: 0 | F112: 0 | G112: 0 | H112: 0 | I112: 0 | P112: 10 | Q112: 0
A113: Norma Técnica: Subsistema de Referencia, Derivación, Contrareferencia, Referencia inversa y Transferencia del Sistema Nacional de Salud. 2014 | C113: 1 | D113: Requerido | E113: 0 | F113: 0 | G113: 0 | H113: 0 | I113: 0 | P113: 10 | Q113: 0
A114: Fundamentos de la Prevención en Materia de Drogas | C114: 1 | D114: Condición | E114: 0 | F114: 0 | G114: 0 | H114: 0 | I114: 0 | R114: =IF(UPPER(D114)="CONDICIÓN", 10, "") -> 10 | S114: =IF(UPPER(D114)="CONDICIÓN", G114, "") -> 0 | T114: =IF(UPPER(D114)="CONDICIÓN", 10, "") -> 10 | U114: =IF(UPPER(D114)="CONDICIÓN", H114, "") -> 0
A115: Guía de Abordaje del Tabaquismo en Atención Primaria de Salud | C115: 1 | D115: Condición | E115: 0 | F115: 0 | G115: 0 | H115: 0 | I115: 0 | R115: 10 | S115: 0 | T115: 10 | U115: 0
A116: Protocolo: Atención integral del consumo nocivo de alcohol, tabaco y otras drogas. 2016 | C116: 1 | D116: Requerido | E116: 0 | F116: 0 | G116: 0 | H116: 0 | I116: 0 | P116: 10 | Q116: 0
A117: Guía de Práctica Clínica: Lupus eritematoso sistémico (LES). 2013 | C117: 1 | D117: Requerido | E117: 0 | F117: 0 | G117: 0 | H117: 0 | I117: 0 | P117: 10 | Q117: 0
A118: Plan Estratégico Nacional de Salud Mental 2015 - 2017 | C118: 1 | D118: Requerido | E118: 0 | F118: 0 | G118: 0 | H118: 0 | I118: 0 | P118: 10 | Q118: 0
A119: Modelo de Atención de Salud Mental, en el Marco del Modelo de Atención Integral de Salud (MAIS) - con enfoque familiar, comunitario e intercultural | C119: 1 | D119: Requerido | E119: 0 | F119: 0 | G119: 0 | H119: 0 | I119: 0 | P119: 10 | Q119: 0
A120: Acuerdo Ministerial 1124: Instructivo para el uso de la Receta Médica. | C120: 1 | D120: Condición | E120: 0 | F120: 0 | G120: 0 | H120: 0 | I120: 0 | R120: =IF(UPPER(D120)="CONDICIÓN", 10, "") -> 10 | S120: =IF(UPPER(D120)="CONDICIÓN", G120, "") -> 0 | T120: =IF(UPPER(D120)="CONDICIÓN", 10, "") -> 10 | U120: =IF(UPPER(D120)="CONDICIÓN", H120, "") -> 0
A121: Acuerdo Ministerial 4912: Reforma al Reglamento para la Gestión del Suministro de Medicamentos y Control Administrativo Financiero, y el Instructivo para el uso de la Receta Médica. | C121: 1 | D121: Condición | E121: 0 | F121: 0 | G121: 0 | H121: 0 | I121: 0 | R121: 10 | S121: 0 | T121: 10 | U121: 0
A122: Acuerdo Ministerial 115: Manual de Seguridad del Paciente- Usuario | C122: 1 | D122: Requerido | E122: 0 | F122: 0 | G122: 0 | H122: 0 | I122: 0 | P122: 10 | Q122: 0
A123: Acuerdo Ministerial 5186: Reglamento Interministerial para la Gestión Integral de Desechos Sanitarios | C123: 1 | D123: Requerido | E123: 0 | F123: 0 | G123: 0 | H123: 0 | I123: 0 | P123: 10 | Q123: 0
A124: Manual de Normas de Bioseguridad para la Red de Servicios de Salud en el Ecuador | C124: 1 | D124: Requerido | E124: 0 | F124: 0 | G124: 0 | H124: 0 | I124: 0 | P124: 10 | Q124: 0
A125: Protocolos de Procedimientos de Limpieza, Desinfección y Esterilización | C125: 1 | D125: Requerido | E125: 0 | F125: 0 | G125: 0 | H125: 0 | I125: 0 | P125: 10 | Q125: 0
A126: Registro de limpieza y desinfección del área funcional del Establecimiento | C126: 1 | D126: Requerido | E126: 0 | F126: 0 | G126: 0 | H126: 0 | I126: 0 | P126: 10 | Q126: 0
A127: Registro de Mantenimiento de Equipos: Preventivo y/o Correctivo | C127: 1 | D127: Requerido | E127: 0 | F127: 0 | G127: 0 | H127: 0 | I127: 0 | P127: 10 | Q127: 0
A128: Consultorio de Nutrición | B128: =B1 -> Anx: | C128: =C$1 -> Cantidad Mínima: | D128: Tipo: | E128: Posee: | F128: No Posee: | I128: Calif: | J128: Observaciones: | X128: =SUM(P129:P149) -> 170 | Y128: =SUM(Q129:Q149) -> 0 | Z128: 40 | AA128: 0
A129: Instructivo para el Llenado del Registro Diario Automatizado de Consultas y Atenciones Ambulatorias (RDACAA). 2013 | C129: 1 | D129: Condición | E129: 0 | F129: 0 | G129: =IF(AND(E129>=C129,E129>0),10,0) -> 0 | H129: =IF(AND(F129>=C129,F129>0),10,0) -> 0 | I129: 0 | R129: =IF(UPPER(D129)="CONDICIÓN", 10, "") -> 10 | S129: =IF(UPPER(D129)="CONDICIÓN", G129, "") -> 0 | T129: =IF(UPPER(D129)="CONDICIÓN", 10, "") -> 10 | U129: =IF(UPPER(D129)="CONDICIÓN", H129, "") -> 0
A130: Clasificación Estadística Internacional de Enfermedades y Problemas Relacionados con la Salud. Décima Revisión - CIE10 | C130: 1 | D130: Requerido | E130: 0 | F130: 0 | G130: 0 | H130: 0 | I130: 0 | P130: =IF(UPPER(D130)="REQUERIDO", 10, "") -> 10 | Q130: =IF(UPPER(D130)="REQUERIDO", I130, "") -> 0
A131: Reglamento a la Ley Organica de Salud | C131: 1 | D131: Requerido | E131: 0 | F131: 0 | G131: 0 | H131: 0 | I131: 0 | P131: 10 | Q131: 0
A132: Guía para la adecuación cultural de los servicios de salud. 2006 | C132: 1 | D132: Requerido | E132: 0 | F132: 0 | G132: 0 | H132: 0 | I132: 0 | P132: 10 | Q132: 0
A133: Manual del modelo de atención integral en salud - MAIS. 2013 | C133: 1 | D133: Requerido | E133: 0 | F133: 0 | G133: 0 | H133: 0 | I133: 0 | P133: 10 | Q133: 0
A134: Ley Derechos y Amparo al Paciente | C134: 1 | D134: Requerido | E134: 0 | F134: 0 | G134: 0 | H134: 0 | I134: 0 | P134: 10 | Q134: 0
A135: Cuadro nacional de medicamentos básicos y registro terapéutico. 9na revisión | C135: 1 | D135: Requerido | E135: 0 | F135: 0 | G135: 0 | H135: 0 | I135: 0 | P135: 10 | Q135: 0
A136: Acuerdo Ministerial 4693: Reforma a la 9na. Revisión del Cuadro Nacional de Medicamentos Básicos y Registro Terapéutico | C136: 1 | D136: Requerido | E136: 0 | F136: 0 | G136: 0 | H136: 0 | I136: 0 | P136: 10 | Q136: 0
A137: Norma Técnica: Subsistema de Referencia, Derivación, Contrareferencia, Referencia inversa y Transferencia del Sistema Nacional de Salud. 2014 | C137: 1 | D137: Requerido | E137: 0 | F137: 0 | G137: 0 | H137: 0 | I137: 0 | P137: 10 | Q137: 0
A138: Normas y protocolos para la alimentación y nutrición en la atención integral a personas que viven con VIH/SIDA. 2010 | C138: 1 | D138: Condición | E138: 0 | F138: 0 | G138: 0 | H138: 0 | I138: 0 | R138: =IF(UPPER(D138)="CONDICIÓN", 10, "") -> 10 | S138: =IF(UPPER(D138)="CONDICIÓN", G138, "") -> 0 | T138: =IF(UPPER(D138)="CONDICIÓN", 10, "") -> 10 | U138: =IF(UPPER(D138)="CONDICIÓN", H138, "") -> 0
A139: Introducción a la Guía de actividad Física dirigido al personal de salud I. 2011 | C139: 1 | D139: Requerido | E139: 0 | F139: 0 | G139: 0 | H139: 0 | I139: 0 | P139: 10 | Q139: 0
A140: Guía de actividad Física dirigido al personal de salud II. 2011 | C140: 1 | D140: Requerido | E140: 0 | F140: 0 | G140: 0 | H140: 0 | I140: 0 | P140: 10 | Q140: 0
A141: Manual de procedimientos de antropometría y determinación de la presión arterial. 2012 | C141: 1 | D141: Requerido | E141: 0 | F141: 0 | G141: 0 | H141: 0 | I141: 0 | P141: 10 | Q141: 0
A142: Acuerdo Ministerial 1124: Instructivo para el uso de la Receta Médica. | C142: 1 | D142: Condición | E142: 0 | F142: 0 | G142: 0 | H142: 0 | I142: 0 | R142: =IF(UPPER(D142)="CONDICIÓN", 10, "") -> 10 | S142: =IF(UPPER(D142)="CONDICIÓN", G142, "") -> 0 | T142: =IF(UPPER(D142)="CONDICIÓN", 10, "") -> 10 | U142: =IF(UPPER(D142)="CONDICIÓN", H142, "") -> 0
A143: Acuerdo Ministerial 4912: Reforma al Reglamento para la Gestión del Suministro de Medicamentos y Control Administrativo Financiero, y el Instructivo para el uso de la Receta Médica. | C143: 1 | D143: Condición | E143: 0 | F143: 0 | G143: 0 | H143: 0 | I143: 0 | R143: 10 | S143: 0 | T143: 10 | U143: 0
A144: Acuerdo Ministerial 115: Manual de Seguridad del Paciente- Usuario | C144: 1 | D144: Requerido | E144: 0 | F144: 0 | G144: 0 | H144: 0 | I144: 0 | P144: 10 | Q144: 0
A145: Acuerdo Ministerial 5186: Reglamento Interministerial para la Gestión Integral de Desechos Sanitarios | C145: 1 | D145: Requerido | E145: 0 | F145: 0 | G145: 0 | H145: 0 | I145: 0 | P145: 10 | Q145: 0
A146: Manual de Normas de Bioseguridad para la Red de Servicios de Salud en el Ecuador | C146: 1 | D146: Requerido | E146: 0 | F146: 0 | G146: 0 | H146: 0 | I146: 0 | P146: 10 | Q146: 0
A147: Protocolos de Procedimientos de Limpieza, Desinfección y Esterilización | C147: 1 | D147: Requerido | E147: 0 | F147: 0 | G147: 0 | H147: 0 | I147: 0 | P147: 10 | Q147: 0
A148: Registro de limpieza y desinfección del área funcional del Establecimiento | C148: 1 | D148: Requerido | E148: 0 | F148: 0 | G148: 0 | H148: 0 | I148: 0 | P148: 10 | Q148: 0
A149: Registro de Mantenimiento de Equipos: Preventivo y/o Correctivo | C149: 1 | D149: Requerido | E149: 0 | F149: 0 | G149: 0 | H149: 0 | I149: 0 | P149: 10 | Q149: 0
A150: APOYO TERAPEÚTICO | K150: =ROW(A150) -> 150 | X150: =SUM(P151:P220) -> 230 | Y150: =SUM(Q151:Q220) -> 0 | Z150: =SUM(R151:R220) -> 430 | AA150: 0 | AB150: 420 | AC150: 0
A151: ATENCIÓN DE APOYO TERAPÉUTICO | K151: =ROW(A151) -> 151 | X151: =SUM(P152:P220) -> 230 | Y151: =SUM(Q152:Q220) -> 0 | Z151: =SUM(R152:R220) -> 430 | AA151: 0 | AB151: 420 | AC151: 0
A152: Área de Procedimientos | B152: =B1 -> Anx: | C152: =C$1 -> Cantidad Mínima: | D152: Tipo: | E152: Posee: | F152: No Posee: | I152: Calif: | J152: Observaciones: | X152: =SUM(P153:P164) -> 0 | Y152: =SUM(Q153:Q164) -> 0 | Z152: =SUM(R153:R164) -> 120 | AA152: 0 | AB152: 110 | AC152: 0
A153: Instructivo para el Llenado del Registro Diario Automatizado de Consultas y Atenciones Ambulatorias (RDACAA). 2013 | C153: 1 | D153: Condición | E153: 0 | F153: 0 | G153: =IF(AND(E153>=C153,E153>0),10,0) -> 0 | H153: =IF(AND(F153>=C153,F153>0),10,0) -> 0 | I153: =IF(AND(E153=0,F153=0),0,IF(AND(E153>0,F153>0),10,IF(AND(E153=0,F153>0),-10,IF(AND(E153>0,F153=0),10)))) -> 0 | R153: =IF(UPPER(D153)="CONDICIÓN", 10, "") -> 10 | S153: =IF(UPPER(D153)="CONDICIÓN", G153, "") -> 0 | T153: =IF(UPPER(D153)="CONDICIÓN", 10, "") -> 10 | U153: =IF(UPPER(D153)="CONDICIÓN", H153, "") -> 0
A154: Norma Técnica: Subsistema de Referencia, Derivación, Contrareferencia, Referencia inversa y Transferencia del Sistema Nacional de Salud. 2014 | C154: 1 | D154: Condición | E154: 0 | F154: 0 | G154: 0 | H154: 0 | I154: 0 | R154: 10 | S154: 0 | T154: 10 | U154: 0
A155: Modelo de gestión de aplicación de consentimiento informado en práctica asistencial. 2015 | C155: 1 | D155: Condición | E155: 0 | F155: 0 | G155: 0 | H155: 0 | I155: 0 | R155: 10 | S155: 0 | T155: 10 | U155: 0
A156: Lista de Verificación de la Seguridad de la Cirugía | C156: 1 | D156: Condición | E156: 0 | F156: 0 | G156: 0 | H156: 0 | I156: 0 | R156: 10 | S156: 0 | T156: 10 | U156: 0
A157: Manual de Aplicación de la lista OMS de verificación de la seguridad de la cirugía. 2009 | C157: 1 | D157: Condición | E157: 0 | F157: 0 | G157: 0 | H157: 0 | I157: 0 | R157: 10 | S157: 0 | T157: 10 | U157: 0
A158: La Cirugía Segura Salva Vidas. 2013 | C158: 1 | D158: Condición | E158: 0 | F158: 0 | G158: 0 | H158: 0 | I158: 0 | R158: 10 | S158: 0 | T158: 10 | U158: 0
A159: Acuerdo Ministerial 115: Manual de Seguridad del Paciente- Usuario | C159: 1 | D159: Condición | E159: 0 | F159: 0 | G159: 0 | H159: 0 | I159: 0 | R159: =IF(UPPER(D159)="CONDICIÓN", 10, "") -> 10 | S159: =IF(UPPER(D159)="CONDICIÓN", G159, "") -> 0
A160: Acuerdo Ministerial 5186: Reglamento Interministerial para la Gestión Integral de Desechos Sanitarios | C160: 1 | D160: Condición | E160: 0 | F160: 0 | G160: 0 | H160: 0 | I160: 0 | R160: =IF(UPPER(D160)="CONDICIÓN", 10, "") -> 10 | S160: =IF(UPPER(D160)="CONDICIÓN", G160, "") -> 0 | T160: =IF(UPPER(D160)="CONDICIÓN", 10, "") -> 10 | U160: =IF(UPPER(D160)="CONDICIÓN", H160, "") -> 0
A161: Manual de Normas de Bioseguridad para la Red de Servicios de Salud en el Ecuador | C161: 1 | D161: Condición | E161: 0 | F161: 0 | G161: 0 | H161: 0 | I161: 0 | R161: 10 | S161: =IF(UPPER(D161)="CONDICIÓN", G161, "") -> 0 | T161: 10 | U161: 0
A162: Protocolos de Procedimientos de Limpieza, Desinfección y Esterilización | C162: 1 | D162: Condición | E162: 0 | F162: 0 | G162: 0 | H162: 0 | I162: 0 | R162: 10 | S162: 0 | T162: 10 | U162: 0
A163: Registro de limpieza y desinfección del área funcional del Establecimiento | C163: 1 | D163: Condición | E163: 0 | F163: 0 | G163: 0 | H163: 0 | I163: 0 | R163: 10 | S163: 0 | T163: 10 | U163: 0
A164: Registro de Mantenimiento de Equipos: Preventivo y/o Correctivo | C164: 1 | D164: Condición | E164: 0 | F164: 0 | G164: 0 | H164: 0 | I164: 0 | R164: 10 | S164: 0 | T164: 10 | U164: 0
A165: Área de Tratamiento de Hemodiálisis | B165: =B1 -> Anx: | C165: =C$1 -> Cantidad Mínima: | D165: Tipo: | E165: Posee: | F165: No Posee: | I165: Calif: | J165: Observaciones: | X165: =SUM(P166:P192) -> 230 | Y165: =SUM(Q166:Q192) -> 0 | Z165: 40 | AA165: =SUM(S166:S192) -> 0 | AB165: 40 | AC165: =SUM(U166:U192) -> 0
A166: Instructivo para el Llenado del Registro Diario Automatizado de Consultas y Atenciones Ambulatorias (RDACAA). 2013 | C166: 1 | D166: Condición | E166: 0 | F166: 0 | G166: =IF(AND(E166>=C166,E166>0),10,0) -> 0 | H166: =IF(AND(F166>=C166,F166>0),10,0) -> 0 | I166: 0 | R166: =IF(UPPER(D166)="CONDICIÓN", 10, "") -> 10 | S166: =IF(UPPER(D166)="CONDICIÓN", G166, "") -> 0 | T166: =IF(UPPER(D166)="CONDICIÓN", 10, "") -> 10 | U166: =IF(UPPER(D166)="CONDICIÓN", H166, "") -> 0
A167: Clasificación Estadística Internacional de Enfermedades y Problemas Relacionados con la Salud. Décima Revisión - CIE10 | C167: 1 | D167: Requerido | E167: 0 | F167: 0 | G167: 0 | H167: 0 | I167: 0 | P167: =IF(UPPER(D167)="REQUERIDO", 10, "") -> 10 | Q167: =IF(UPPER(D167)="REQUERIDO", I167, "") -> 0
A168: Reglamento a la Ley Organica de Salud | C168: 1 | D168: Requerido | E168: 0 | F168: 0 | G168: 0 | H168: 0 | I168: 0 | P168: 10 | Q168: 0
A169: Guía para la adecuación cultural de los servicios de salud. 2006 | C169: 1 | D169: Requerido | E169: 0 | F169: 0 | G169: 0 | H169: 0 | I169: 0 | P169: 10 | Q169: 0
A170: Manual del modelo de atención integral en salud - MAIS. 2013 | C170: 1 | D170: Requerido | E170: 0 | F170: 0 | G170: 0 | H170: 0 | I170: 0 | P170: 10 | Q170: 0
A171: Ley Derechos y Amparo al Paciente | C171: 1 | D171: Requerido | E171: 0 | F171: 0 | G171: 0 | H171: 0 | I171: 0 | P171: 10 | Q171: 0
A172: Ley de sustancias estupefacientes y Psicotrópicas | C172: 1 | D172: Requerido | E172: 0 | F172: 0 | G172: 0 | H172: 0 | I172: 0 | P172: 10 | Q172: 0
A173: Cuadro nacional de medicamentos básicos y registro terapéutico. 9na revisión | C173: 1 | D173: Requerido | E173: 0 | F173: 0 | G173: 0 | H173: 0 | I173: 0 | P173: 10 | Q173: 0
A174: Acuerdo Ministerial 4693: Reforma a la 9na. Revisión del Cuadro Nacional de Medicamentos Básicos y Registro Terapéutico | C174: 1 | D174: Requerido | E174: 0 | F174: 0 | G174: 0 | H174: 0 | I174: 0 | P174: 10 | Q174: 0
A175: Norma Técnica: Subsistema de Referencia, Derivación, Contrareferencia, Referencia inversa y Transferencia del Sistema Nacional de Salud. 2014 | C175: 1 | D175: Requerido | E175: 0 | F175: 0 | G175: 0 | H175: 0 | I175: 0 | P175: 10 | Q175: 0
A176: Protocolo de procedimientos de Hemodiálisis | C176: 1 | D176: Requerido | E176: 0 | F176: 0 | G176: 0 | H176: 0 | I176: 0 | P176: 10 | Q176: 0
A177: Registro de Evolución de la Atención Médica y Procedimientos Efectuados | C177: 1 | D177: Requerido | E177: 0 | F177: 0 | G177: 0 | H177: 0 | I177: 0 | P177: 10 | Q177: 0
A178: Registro de Indicadores para la Satisfacción del Usuario | C178: 1 | D178: Requerido | E178: 0 | F178: 0 | G178: 0 | H178: 0 | I178: 0 | P178: 10 | Q178: 0
A179: Guía de Práctica Clínica: Transfusión de sangre y sus componentes. 2013 | C179: 1 | D179: Requerido | E179: 0 | F179: 0 | G179: 0 | H179: 0 | I179: 0 | P179: 10 | Q179: 0
A180: Guía de atención integral de adultos y Adolescentes con infección por VIH/SIDA. 2012 | C180: 1 | D180: Condición | E180: 0 | F180: 0 | G180: 0 | H180: 0 | I180: 0 | R180: =IF(UPPER(D180)="CONDICIÓN", 10, "") -> 10 | S180: =IF(UPPER(D180)="CONDICIÓN", G180, "") -> 0 | T180: =IF(UPPER(D180)="CONDICIÓN", 10, "") -> 10 | U180: =IF(UPPER(D180)="CONDICIÓN", H180, "") -> 0
A181: Normas y protocolos de atención integral de salud de las y los adultos mayores - 1. 2010 | C181: 1 | D181: Requerido | E181: 0 | F181: 0 | G181: 0 | H181: 0 | I181: 0 | P181: 10 | Q181: 0 | R181: =IF(UPPER(D181)="CONDICIÓN", 10, "") ->  | S181: =IF(UPPER(D181)="CONDICIÓN", I181, "") -> 
A182: Normas y protocolos de atención integral de salud de las y los adultos mayores - 2. 2010 | C182: 1 | D182: Requerido | E182: 0 | F182: 0 | G182: 0 | H182: 0 | I182: 0 | P182: 10 | Q182: 0
A183: Normas y protocolos de atención integral de salud de las y los adultos mayores - 3. 2010 | C183: 1 | D183: Requerido | E183: 0 | F183: 0 | G183: 0 | H183: 0 | I183: 0 | P183: 10 | Q183: 0
A184: Normas y procedimientos para la atención integral de salud a adolescentes. 2009 | C184: 1 | D184: Condición | E184: 0 | F184: 0 | G184: 0 | H184: 0 | I184: 0 | R184: 10 | S184: =IF(UPPER(D184)="CONDICIÓN", G184, "") -> 0 | T184: =IF(UPPER(D184)="CONDICIÓN", 10, "") -> 10 | U184: =IF(UPPER(D184)="CONDICIÓN", H184, "") -> 0
A185: Guía de Supervisión: Salud de Adolescentes. 2014 | C185: 1 | D185: Condición | E185: 0 | F185: 0 | G185: 0 | H185: 0 | I185: 0 | R185: 10 | S185: 0 | T185: 10 | U185: 0
A186: Manual de procedimientos de antropometría y determinación de la presión arterial. 2012 | C186: 1 | D186: Requerido | E186: 0 | F186: 0 | G186: 0 | H186: 0 | I186: 0 | P186: 10 | Q186: 0
A187: Acuerdo Ministerial 115: Manual de Seguridad del Paciente- Usuario | C187: 1 | D187: Requerido | E187: 0 | F187: 0 | G187: 0 | H187: 0 | I187: 0 | P187: 10 | Q187: 0
A188: Acuerdo Ministerial 5186: Reglamento Interministerial para la Gestión Integral de Desechos Sanitarios | C188: 1 | D188: Requerido | E188: 0 | F188: 0 | G188: 0 | H188: 0 | I188: 0 | P188: 10 | Q188: 0
A189: Manual de Normas de Bioseguridad para la Red de Servicios de Salud en el Ecuador | C189: 1 | D189: Requerido | E189: 0 | F189: 0 | G189: 0 | H189: 0 | I189: 0 | P189: 10 | Q189: 0
A190: Protocolos de Procedimientos de Limpieza, Desinfección y Esterilización | C190: 1 | D190: Requerido | E190: 0 | F190: 0 | G190: 0 | H190: 0 | I190: 0 | P190: 10 | Q190: 0
A191: Registro de limpieza y desinfección del área funcional del Establecimiento | C191: 1 | D191: Requerido | E191: 0 | F191: 0 | G191: 0 | H191: 0 | I191: 0 | P191: 10 | Q191: 0
A192: Registro de Mantenimiento de Equipos: Preventivo y/o Correctivo | C192: 1 | D192: Requerido | E192: 0 | F192: 0 | G192: 0 | H192: 0 | I192: 0 | P192: 10 | Q192: 0
A193: Área de Diálisis Peritoneal | B193: =B1 -> Anx: | C193: =C$1 -> Cantidad Mínima: | D193: Tipo: | E193: Posee: | F193: No Posee: | I193: Calif: | J193: Observaciones: | X193: =SUM(P194:P220) -> 0 | Y193: =SUM(Q194:Q220) -> 0 | Z193: 270 | AA193: =SUM(S194:S220) -> 0 | AB193: 270 | AC193: =SUM(U194:U220) -> 0
A194: Instructivo para el Llenado del Registro Diario Automatizado de Consultas y Atenciones Ambulatorias (RDACAA). 2013 | C194: 1 | D194: Condición | E194: 0 | F194: 0 | G194: =IF(AND(E194>=C194,E194>0),10,0) -> 0 | H194: =IF(AND(F194>=C194,F194>0),10,0) -> 0 | I194: 0 | R194: =IF(UPPER(D194)="CONDICIÓN", 10, "") -> 10 | S194: =IF(UPPER(D194)="CONDICIÓN", G194, "") -> 0 | T194: =IF(UPPER(D194)="CONDICIÓN", 10, "") -> 10 | U194: =IF(UPPER(D194)="CONDICIÓN", H194, "") -> 0
A195: Clasificación Estadística Internacional de Enfermedades y Problemas Relacionados con la Salud. Décima Revisión - CIE10 | C195: 1 | D195: Condición | E195: 0 | F195: 0 | G195: 0 | H195: 0 | I195: 0 | R195: 10 | S195: 0 | T195: 10 | U195: 0
A196: Reglamento a la Ley Organica de Salud | C196: 1 | D196: Condición | E196: 0 | F196: 0 | G196: 0 | H196: 0 | I196: 0 | R196: 10 | S196: 0 | T196: 10 | U196: 0
A197: Guía para la adecuación cultural de los servicios de salud. 2006 | C197: 1 | D197: Condición | E197: 0 | F197: 0 | G197: 0 | H197: 0 | I197: 0 | R197: 10 | S197: 0 | T197: 10 | U197: 0
A198: Manual del modelo de atención integral en salud - MAIS. 2013 | C198: 1 | D198: Condición | E198: 0 | F198: 0 | G198: 0 | H198: 0 | I198: 0 | R198: 10 | S198: 0 | T198: 10 | U198: 0
A199: Ley Derechos y Amparo al Paciente | C199: 1 | D199: Condición | E199: 0 | F199: 0 | G199: 0 | H199: 0 | I199: 0 | R199: 10 | S199: 0 | T199: 10 | U199: 0
A200: Ley de sustancias estupefacientes y Psicotrópicas | C200: 1 | D200: Condición | E200: 0 | F200: 0 | G200: 0 | H200: 0 | I200: 0 | R200: 10 | S200: 0 | T200: 10 | U200: 0
... 179 more rows

Sheet TalentoHumano
A1: FILTROS: | B1: Anx: | C1: Cantidad mínima: | D1: Por Puestos; Pacientes;Servicios; Turnos: | E1: Tipo: | F1: Cumple: | G1: No Cumple: | J1: Calif: | K1: Observaciones: | M1: TIPO DE PERSONAL
A2: =Menu!$B$4 -> CENTRO ESPECIALIZADO EN SALUD RENAL | Q2: ADMINISTRATIVO | Y2: ASISTENCIALES | AK2: ADMINISTRATIVOS | AS2: ASISTENCIALES
A3: TALENTO HUMANO | L3: =ROW(A3) -> 3 | Q3: REQ | S3: COND+ | U3: COND- | W3: DES | Y3: REQ | AA3: COND+ | AC3: COND- | AE3: DES | AK3: =SUM(Q4:Q50) -> 70 | AL3: =SUM(R4:R50) -> 0 | AM3: =SUM(S4:S50) -> 10 | AN3: =SUM(T4:T50) -> 0 | AO3: 10 | AP3: 0 | AQ3: 0 | AR3: 0 | AS3: 90 | AT3: =SUM(Z4:Z50) -> 0 | AU3: 60 | AV3: =SUM(AB4:AB50) -> 0 | AW3: 60 | AX3: 0 | AY3: 0 | AZ3: 0
A4: ADMINISTRATIVO | L4: =ROW(A4) -> 4 | AK4: =SUM(Q5:Q7) -> 10 | AL4: =SUM(R5:R7) -> 0 | AM4: =SUM(S5:S7) -> 0 | AN4: 0 | AO4: 0 | AP4: 0 | AQ4: 0 | AR4: 0 | AS4: 0 | AT4: 0 | AU4: 0 | AV4: 0 | AW4: 0 | AX4: 0 | AY4: 0 | AZ4: 0
A5: ADMISIÓN Y ESTADISTICA | L5: 5 | AK5: =SUM(Q6:Q7) -> 10 | AL5: =SUM(R6:R7) -> 0 | AM5: =SUM(S6:S7) -> 0 | AN5: 0 | AO5: 0 | AP5: 0 | AQ5: 0 | AR5: 0 | AS5: 0 | AT5: 0 | AU5: 0 | AV5: 0 | AW5: 0 | AX5: 0 | AY5: 0 | AZ5: 0
A6: Recepción, Admisión e Información | B6: =B1 -> Anx: | C6: =C$1 -> Cantidad mínima: | D6: Por Puestos; Pacientes;Servicios; Turnos: | E6: Tipo: | F6: Cumple: | G6: No Cumple: | J6: Calif: | K6: Observaciones: | AK6: =SUM(Q7) -> 10 | AL6: =SUM(R7) -> 0 | AM6: 0 | AN6: 0 | AO6: 0 | AP6: 0 | AQ6: 0 | AR6: 0 | AS6: 0 | AT6: 0 | AU6: 0 | AV6: 0 | AW6: 0 | AX6: 0 | AY6: 0 | AZ6: 0
A7: Analista de Admisiones y Estadísticas | C7: 1 | E7: Requerido | F7: 0 | G7: 0 | H7: =IF(AND(F7>=C7,F7>0),10,0) -> 0 | I7: =IF(AND(G7>=C7,G7>0),10,0) -> 0 | J7: =IF(AND(F7=0,G7=0),0,IF(AND(F7>0,G7>0),10,IF(AND(F7=0,G7>0),-10,IF(AND(F7>0,G7=0),10)))) -> 0 | M7: ADMINISTRATIVO | Q7: =IF(UPPER(E7)="REQUERIDO", 10, "") -> 10 | R7: =IF(UPPER(E7)="REQUERIDO", J7, "") -> 0
A8: ASISTENCIAL | L8: =ROW(A8) -> 8 | AK8: =SUM(Q9:Q14) -> 0 | AL8: =SUM(R9:R14) -> 0 | AM8: =SUM(S9:S14) -> 0 | AN8: 0 | AO8: 0 | AP8: 0 | AQ8: 0 | AR8: 0 | AS8: 30 | AT8: =SUM(Z9:Z14) -> 0 | AU8: 10 | AV8: 0 | AW8: 10 | AX8: 0 | AY8: 0 | AZ8: 0
A9: CONSULTA EXTERNA | L9: =ROW(A9) -> 9 | AK9: =SUM(Q10:Q14) -> 0 | AL9: =SUM(R10:R14) -> 0 | AM9: =SUM(S10:S14) -> 0 | AN9: 0 | AO9: 0 | AP9: 0 | AQ9: 0 | AR9: 0 | AS9: 30 | AT9: 0 | AU9: 10 | AV9: 0 | AW9: 10 | AX9: 0 | AY9: 0 | AZ9: 0
A10: Área de Atención de Consulta | B10: =B1 -> Anx: | C10: =C$1 -> Cantidad mínima: | D10: Por Puestos; Pacientes;Servicios; Turnos: | E10: Tipo: | F10: Cumple: | G10: No Cumple: | J10: Calif: | K10: Observaciones: | AK10: =SUM(Q11:Q14) -> 0 | AL10: =SUM(R11:R14) -> 0 | AM10: =SUM(S11:S14) -> 0 | AN10: 0 | AO10: 0 | AP10: 0 | AQ10: 0 | AR10: 0 | AS10: 30 | AT10: 0 | AU10: 10 | AV10: 0 | AW10: 10 | AX10: 0 | AY10: 0 | AZ10: 0
A11: Licenciada/o en Enfermería | C11: 1 | E11: Condición | F11: 0 | G11: 0 | H11: =IF(AND(F11>=C11,F11>0),10,0) -> 0 | I11: =IF(AND(G11>=C11,G11>0),10,0) -> 0 | J11: =IF(AND(F11=0,G11=0),0,IF(AND(F11>0,G11>0),10,IF(AND(F11=0,G11>0),-10,IF(AND(F11>0,G11=0),10)))) -> 0 | M11: ASISTENCIAL | AA11: =IF(UPPER(E11)="CONDICIÓN", 10, "") -> 10 | AB11: =IF(UPPER(E11)="CONDICIÓN", H11, "") -> 0 | AC11: =IF(UPPER(E11)="CONDICIÓN", 10, "") -> 10 | AD11: =IF(UPPER(E11)="CONDICIÓN", I11, "") -> 0
A12: Médico Especialista en Nefrología | C12: 1 | E12: Requerido | F12: 0 | G12: 0 | H12: 0 | I12: 0 | J12: 0 | M12: ASISTENCIAL | Y12: =IF(UPPER(E12)="REQUERIDO", 10, "") -> 10 | Z12: =IF(UPPER(E12)="REQUERIDO", J12, "") -> 0
A13: Psicologo Clínico | C13: 1 | E13: Requerido | F13: 0 | G13: 0 | H13: 0 | I13: 0 | J13: 0 | M13: ASISTENCIAL | Y13: =IF(UPPER(E13)="REQUERIDO", 10, "") -> 10 | Z13: =IF(UPPER(E13)="REQUERIDO", J13, "") -> 0
A14: Nutricionista | C14: 1 | E14: Requerido | F14: 0 | G14: 0 | H14: 0 | I14: 0 | J14: 0 | M14: ASISTENCIAL | Y14: =IF(UPPER(E14)="REQUERIDO", 10, "") -> 10 | Z14: =IF(UPPER(E14)="REQUERIDO", J14, "") -> 0
A15: APOYO TERAPEÚTICO | L15: =ROW(A15) -> 15 | AK15: =SUM(Q16:Q27) -> 0 | AL15: =SUM(R16:R27) -> 0 | AM15: =SUM(S16:S27) -> 0 | AN15: 0 | AO15: 0 | AP15: 0 | AQ15: 0 | AR15: 0 | AS15: =SUM(Y16:Y27) -> 30 | AT15: =SUM(Z16:Z27) -> 0 | AU15: 50 | AV15: 0 | AW15: 50 | AX15: 0 | AY15: 0 | AZ15: 0
A16: ATENCIÓN DE APOYO TERAPÉUTICO | L16: =ROW(A16) -> 16 | AK16: =SUM(Q17:Q27) -> 0 | AL16: =SUM(R17:R27) -> 0 | AM16: =SUM(S17:S27) -> 0 | AN16: 0 | AO16: 0 | AP16: 0 | AQ16: 0 | AR16: 0 | AS16: 30 | AT16: 0 | AU16: 50 | AV16: 0 | AW16: 50 | AX16: 0 | AY16: 0 | AZ16: 0
A17: Área de Procedimientos | B17: =B1 -> Anx: | C17: =C$1 -> Cantidad mínima: | D17: Por Puestos; Pacientes;Servicios; Turnos: | E17: Tipo: | F17: Cumple: | G17: No Cumple: | J17: Calif: | K17: Observaciones: | AK17: =SUM(Q18:Q21) -> 0 | AL17: =SUM(R18:R21) -> 0 | AM17: =SUM(S18:S21) -> 0 | AN17: 0 | AO17: 0 | AP17: 0 | AQ17: 0 | AR17: 0 | AS17: 0 | AT17: 0 | AU17: 40 | AV17: 0 | AW17: 40 | AX17: 0 | AY17: 0 | AZ17: 0
A18: Médico Especialista en Cirugía Vascular | C18: 1 | E18: Condición | F18: 0 | G18: 0 | H18: =IF(AND(F18>=C18,F18>0),10,0) -> 0 | I18: =IF(AND(G18>=C18,G18>0),10,0) -> 0 | J18: =IF(AND(F18=0,G18=0),0,IF(AND(F18>0,G18>0),10,IF(AND(F18=0,G18>0),-10,IF(AND(F18>0,G18=0),10)))) -> 0 | M18: ASISTENCIAL | AA18: =IF(UPPER(E18)="CONDICIÓN", 10, "") -> 10 | AB18: =IF(UPPER(E18)="CONDICIÓN", H18, "") -> 0 | AC18: =IF(UPPER(E18)="CONDICIÓN", 10, "") -> 10 | AD18: =IF(UPPER(E18)="CONDICIÓN", I18, "") -> 0
A19: Médico Especialista en Cirugía Digestiva o en Cirugía General con experiencia en colocación de catéteres peritoneales | C19: 1 | E19: Condición | F19: 0 | G19: 0 | H19: 0 | I19: 0 | J19: 0 | M19: ASISTENCIAL | AA19: 10 | AB19: 0 | AC19: 10 | AD19: 0
A20: Licenciada/o en Enfermería con experiencia en instrumentación | C20: 1 | E20: Condición | F20: 0 | G20: 0 | H20: 0 | I20: 0 | J20: 0 | M20: ASISTENCIAL | AA20: 10 | AB20: 0 | AC20: 10 | AD20: 0
A21: Auxiliar o Asistente de Enfermería | C21: 1 | E21: Condición | F21: 0 | G21: 0 | H21: 0 | I21: 0 | J21: 0 | M21: ASISTENCIAL | AA21: 10 | AB21: 0 | AC21: 10 | AD21: 0
A22: Área de Tratamiento de Hemodiálisis | B22: =B1 -> Anx: | C22: =C$1 -> Cantidad mínima: | D22: Por Puestos; Pacientes;Servicios; Turnos: | E22: Tipo: | F22: Cumple: | G22: No Cumple: | J22: Calif: | K22: Observaciones: | AK22: =SUM(Q23:Q25) -> 0 | AL22: =SUM(R23:R25) -> 0 | AM22: =SUM(S23:S25) -> 0 | AN22: 0 | AO22: 0 | AP22: 0 | AQ22: =SUM(W23:W25) -> 0 | AR22: =SUM(X23:X25) -> 0 | AS22: 30 | AT22: 0 | AU22: =SUM(AA23:AA25) -> 0 | AV22: =SUM(AB23:AB25) -> 0 | AW22: 0 | AX22: 0 | AY22: =SUM(AE23:AE25) -> 0 | AZ22: =SUM(AF23:AF25) -> 0
A23: Médico Tratante especialista en Nefrología o cualquier Médico con experiencia mínima de 2 años en servicios de diálisis y/o emergencia y/o terapia intensiva y/o formación en diálisis certificada por Universidades acreditadas, notarizados) (1 profesional por turno) | C23: =ROUNDUP(D23/1,0) -> 0 | D23: 0 | E23: Requerido | F23: 0 | G23: 0 | H23: =IF(AND(F23>=D23,D23>0,F23>=1),10,0) -> 0 | I23: =IF(AND(G23>=D23,D23>0,G23>=1),10,0) -> 0 | J23: 0 | M23: ASISTENCIAL | Y23: =IF(UPPER(E23)="REQUERIDO", 10, "") -> 10 | Z23: =IF(UPPER(E23)="REQUERIDO", J23, "") -> 0
A24: Licenciada/o en Enfermería con experiencia mínima de 1 año en servicios de diálisis y/o emergencia y/o terapia intensiva y/o formación en diálisis certificada por Universidades acreditadas, notarizados) (1 profesional por cada 7 puestos) | C24: =ROUNDUP(D24/7,0) -> 0 | D24: 0 | E24: Requerido | F24: 0 | G24: 0 | H24: =IF(AND(F24>=D24,D24>0,F24>=1),10,0) -> 0 | I24: =IF(AND(G24>=D24,D24>0,G24>=1),10,0) -> 0 | J24: 0 | M24: ASISTENCIAL | Y24: =IF(UPPER(E24)="REQUERIDO", 10, "") -> 10 | Z24: =IF(UPPER(E24)="REQUERIDO", J24, "") -> 0
A25: Auxiliar o Asistente de Enfermería (1 por cada 14 puestos) (personal de enfermería con experiencia en diálisis) | C25: =ROUNDUP(D25/14,0) -> 0 | D25: 0 | E25: Requerido | F25: 0 | G25: 0 | H25: =IF(AND(F25>=D25,D25>0,F25>=1),10,0) -> 0 | I25: =IF(AND(G25>=D25,D25>0,G25>=1),10,0) -> 0 | J25: 0 | M25: ASISTENCIAL | Y25: =IF(UPPER(E25)="REQUERIDO", 10, "") -> 10 | Z25: =IF(UPPER(E25)="REQUERIDO", J25, "") -> 0
A26: Área de Diálisis Peritoneal | B26: =B1 -> Anx: | C26: =C$1 -> Cantidad mínima: | D26: Por Puestos; Pacientes;Servicios; Turnos: | E26: Tipo: | F26: Cumple: | G26: No Cumple: | J26: Calif: | K26: Observaciones: | AK26: =SUM(Q27) -> 0 | AL26: =SUM(R27) -> 0 | AM26: =SUM(S27) -> 0 | AN26: 0 | AO26: 0 | AP26: 0 | AQ26: 0 | AR26: 0 | AS26: 0 | AT26: 0 | AU26: 10 | AV26: 0 | AW26: 10 | AX26: 0 | AY26: 0 | AZ26: 0
A27: Licenciada/o en Enfermería con experiencia mínima de 1 año en servicios de diálisis y/o emergencia y/o terapia intensiva y/o formación en diálisis certificada por Universidades acreditadas, notarizados) (1 profesional por cada 50 pacientes) | C27: =ROUNDUP(D27/50,0) -> 0 | D27: 0 | E27: Condición | F27: 0 | G27: 0 | H27: =IF(AND(F27>=C27,C27>0,F27>=1),10,0) -> 0 | I27: =IF(AND(G27>=C27,C27>0,G27>=1),10,0) -> 0 | J27: 0 | M27: ASISTENCIAL | AA27: =IF(UPPER(E27)="CONDICIÓN", 10, "") -> 10 | AB27: =IF(UPPER(E27)="CONDICIÓN", H27, "") -> 0 | AC27: =IF(UPPER(E27)="CONDICIÓN", 10, "") -> 10 | AD27: =IF(UPPER(E27)="CONDICIÓN", I27, "") -> 0
A28: APOYO DIAGNÓSTICO | L28: =ROW(A28) -> 28 | AK28: =SUM(Q29:Q32) -> 0 | AL28: =SUM(R29:R32) -> 0 | AM28: =SUM(S29:S32) -> 10 | AN28: =SUM(T29:T32) -> 0 | AO28: 10 | AP28: 0 | AQ28: 0 | AR28: 0 | AS28: =SUM(Y29:Y32) -> 10 | AT28: 0 | AU28: 0 | AV28: 0 | AW28: 0 | AX28: 0 | AY28: 0 | AZ28: 0
A29: DIAGNÓSTICO EN LABORATORIO (LABORATORIO DE ANÁLISIS CLÍNICO) | L29: =ROW(A29) -> 29 | AK29: =SUM(Q30:Q32) -> 0 | AL29: =SUM(R30:R32) -> 0 | AM29: =SUM(S30:S32) -> 10 | AN29: 0 | AO29: 10 | AP29: 0 | AQ29: 0 | AR29: 0 | AS29: 10 | AT29: 0 | AU29: 0 | AV29: 0 | AW29: 0 | AX29: 0 | AY29: 0 | AZ29: 0
A30: Área de Análisis | B30: =B1 -> Anx: | C30: =C$1 -> Cantidad mínima: | D30: Por Puestos; Pacientes;Servicios; Turnos: | E30: Tipo: | F30: Cumple: | G30: No Cumple: | J30: Calif: | K30: Observaciones: | AK30: =SUM(Q31:Q32) -> 0 | AL30: =SUM(R31:R32) -> 0 | AM30: =SUM(S31:S32) -> 10 | AN30: 0 | AO30: 10 | AP30: 0 | AQ30: 0 | AR30: 0 | AS30: =SUM(Y31:Y32) -> 10 | AT30: =SUM(Z31:Z32) -> 0 | AU30: 0 | AV30: 0 | AW30: 0 | AX30: 0 | AY30: 0 | AZ30: 0
A31: Tecnólogo /Licenciado en Laboratorio Clínico | C31: 1 | E31: Requerido | F31: 0 | G31: 0 | H31: =IF(AND(F31>=C31,F31>0),10,0) -> 0 | I31: =IF(AND(G31>=C31,G31>0),10,0) -> 0 | J31: =IF(AND(F31=0,G31=0),0,IF(AND(F31>0,G31>0),10,IF(AND(F31=0,G31>0),-10,IF(AND(F31>0,G31=0),10)))) -> 0 | M31: ASISTENCIAL | Y31: =IF(UPPER(E31)="REQUERIDO", 10, "") -> 10 | Z31: =IF(UPPER(E31)="REQUERIDO", J31, "") -> 0
A32: Auxiliar de Laboratorio | C32: 1 | E32: Condición | F32: 0 | G32: 0 | H32: 0 | I32: =IF(AND(G32>=C32,G32>0),10,0) -> 0 | J32: 0 | M32: ADMINISTRATIVO | S32: =IF(UPPER(E32)="CONDICIÓN", 10, "") -> 10 | T32: =IF(UPPER(E32)="CONDICIÓN", H32, "") -> 0 | U32: =IF(UPPER(E32)="CONDICIÓN", 10, "") -> 10 | V32: =IF(UPPER(E32)="CONDICIÓN", I32, "") -> 0
A33: APOYO TERAPEÚTICO | L33: =ROW(A33) -> 33 | AK33: =SUM(Q34:Q37) -> 10 | AL33: =SUM(R34:R37) -> 0 | AM33: =SUM(S34:S37) -> 0 | AN33: 0 | AO33: 0 | AP33: 0 | AQ33: 0 | AR33: 0 | AS33: 10 | AT33: 0 | AU33: 0 | AV33: 0 | AW33: 0 | AX33: 0 | AY33: 0 | AZ33: 0
A34: DOTACIÓN DE MEDICAMENTOS Y DISPOSITIVOS MÉDICOS (FARMACIA) | L34: =ROW(A34) -> 34 | AK34: =SUM(Q35:Q37) -> 10 | AL34: =SUM(R35:R37) -> 0 | AM34: =SUM(S35:S37) -> 0 | AN34: 0 | AO34: 0 | AP34: 0 | AQ34: 0 | AR34: 0 | AS34: 10 | AT34: 0 | AU34: 0 | AV34: 0 | AW34: 0 | AX34: 0 | AY34: 0 | AZ34: 0
A35: Dispensación | B35: =B1 -> Anx: | C35: =C$1 -> Cantidad mínima: | D35: Por Puestos; Pacientes;Servicios; Turnos: | E35: Tipo: | F35: Cumple: | G35: No Cumple: | J35: Calif: | K35: Observaciones: | AK35: =SUM(Q36:Q37) -> 10 | AL35: =SUM(R36:R37) -> 0 | AM35: =SUM(S36:S37) -> 0 | AN35: 0 | AO35: 0 | AP35: 0 | AQ35: 0 | AR35: 0 | AS35: 10 | AT35: 0 | AU35: 0 | AV35: 0 | AW35: 0 | AX35: 0 | AY35: 0 | AZ35: 0
A36: Químico / Bioquímico/Farmacéutico | C36: 1 | E36: Requerido | F36: 0 | G36: 0 | H36: =IF(AND(F36>=C36,F36>0),10,0) -> 0 | I36: =IF(AND(G36>=C36,G36>0),10,0) -> 0 | J36: =IF(AND(F36=0,G36=0),0,IF(AND(F36>0,G36>0),10,IF(AND(F36=0,G36>0),-10,IF(AND(F36>0,G36=0),10)))) -> 0 | M36: ADMINISTRATIVO | Q36: =IF(UPPER(E36)="REQUERIDO", 10, "") -> 10 | R36: =IF(UPPER(E36)="REQUERIDO", J36, "") -> 0
A37: Asistente de Farmacia | C37: 1 | E37: Requerido | F37: 0 | G37: 0 | H37: 0 | I37: =IF(AND(G37>=C37,G37>0),10,0) -> 0 | J37: 0 | M37: ASISTENCIAL | Y37: =IF(UPPER(E37)="REQUERIDO", 10, "") -> 10 | Z37: =IF(UPPER(E37)="REQUERIDO", J37, "") -> 0
A38: ADMINISTRATIVO | L38: =ROW(A38) -> 38 | AK38: =SUM(Q39:Q44) -> 30 | AL38: =SUM(R39:R44) -> 0 | AM38: =SUM(S39:S44) -> 0 | AN38: 0 | AO38: 0 | AP38: 0 | AQ38: 0 | AR38: 0 | AS38: 10 | AT38: 0 | AU38: 0 | AV38: 0 | AW38: 0 | AX38: 0 | AY38: 0 | AZ38: 0
A39: ADMINISTRACIÓN TÉCNICA | L39: =ROW(A39) -> 39 | AK39: =SUM(Q40:Q44) -> 30 | AL39: =SUM(R40:R44) -> 0 | AM39: =SUM(S40:S44) -> 0 | AN39: 0 | AO39: 0 | AP39: 0 | AQ39: 0 | AR39: 0 | AS39: 10 | AT39: 0 | AU39: 0 | AV39: 0 | AW39: 0 | AX39: 0 | AY39: 0 | AZ39: 0
A40: Área Técnica | B40: =B1 -> Anx: | C40: =C$1 -> Cantidad mínima: | D40: Por Puestos; Pacientes;Servicios; Turnos: | E40: Tipo: | F40: Cumple: | G40: No Cumple: | J40: Calif: | K40: Observaciones: | AK40: =SUM(Q41:Q44) -> 30 | AL40: =SUM(R41:R44) -> 0 | AM40: =SUM(S41:S44) -> 0 | AN40: 0 | AO40: 0 | AP40: 0 | AQ40: 0 | AR40: 0 | AS40: 10 | AT40: 0 | AU40: 0 | AV40: 0 | AW40: 0 | AX40: 0 | AY40: 0 | AZ40: 0
A41: Director Médico (Médico espcialista en Nefrología) | C41: 1 | E41: Requerido | F41: 0 | G41: 0 | H41: =IF(AND(F41>=C41,F41>0),10,0) -> 0 | I41: =IF(AND(G41>=C41,G41>0),10,0) -> 0 | J41: =IF(AND(F41=0,G41=0),0,IF(AND(F41>0,G41>0),10,IF(AND(F41=0,G41>0),-10,IF(AND(F41>0,G41=0),10)))) -> 0 | M41: ADMINISTRATIVO | Q41: =IF(UPPER(E41)="REQUERIDO", 10, "") -> 10 | R41: =IF(UPPER(E41)="REQUERIDO", J41, "") -> 0
A42: Secretaria | C42: 1 | E42: Requerido | F42: 0 | G42: 0 | H42: 0 | I42: 0 | J42: =IF(AND(F42=0,G42=0),0,IF(AND(F42>0,G42>0),10,IF(AND(F42=0,G42>0),-10,IF(AND(F42>0,G42=0),10)))) -> 0 | M42: ADMINISTRATIVO | Q42: 10 | R42: 0
A43: Trabajador Social | C43: 1 | E43: Requerido | F43: 0 | G43: 0 | H43: 0 | I43: 0 | J43: 0 | M43: ASISTENCIAL | Y43: =IF(UPPER(E43)="REQUERIDO", 10, "") -> 10 | Z43: =IF(UPPER(E43)="REQUERIDO", J43, "") -> 0
A44: Jefe de Enfermería (Lcda/o en Enfermería con experiencia mínima de 2 años en servicios de diálisis y/o emergencia y/o terapia intensiva y/o formación en diálisis certificada por Universidades acreditadas, notarizados) | C44: 1 | E44: Requerido | F44: 0 | G44: 0 | H44: 0 | I44: 0 | J44: 0 | M44: ADMINISTRATIVO | Q44: 10 | R44: 0
A45: GENERAL | L45: =ROW(A45) -> 45 | AK45: =SUM(Q46:Q50) -> 20 | AL45: =SUM(R46:R50) -> 0 | AM45: =SUM(S46:S50) -> 0 | AN45: 0 | AO45: 0 | AP45: 0 | AQ45: 0 | AR45: 0 | AS45: 0 | AT45: 0 | AU45: 0 | AV45: 0 | AW45: 0 | AX45: 0 | AY45: 0 | AZ45: 0
A46: SERVICIOS INTERNOS DE APOYO | L46: =ROW(A46) -> 46 | AK46: =SUM(Q47:Q50) -> 20 | AL46: =SUM(R47:R50) -> 0 | AM46: =SUM(S47:S50) -> 0 | AN46: 0 | AO46: 0 | AP46: 0 | AQ46: 0 | AR46: 0 | AS46: 0 | AT46: 0 | AU46: 0 | AV46: 0 | AW46: 0 | AX46: 0 | AY46: 0 | AZ46: 0
A47: Área de Apoyo y almacenamiento ( suministros e insumos) para el establecimiento | B47: =B1 -> Anx: | C47: =C$1 -> Cantidad mínima: | D47: Por Puestos; Pacientes;Servicios; Turnos: | E47: Tipo: | F47: Cumple: | G47: No Cumple: | J47: Calif: | K47: Observaciones: | AK47: =SUM(Q48:Q48) -> 10 | AL47: =SUM(R48:R48) -> 0 | AM47: =SUM(S48:S48) -> 0 | AN47: 0 | AO47: 0 | AP47: 0 | AQ47: 0 | AR47: 0 | AS47: 0 | AT47: 0 | AU47: 0 | AV47: 0 | AW47: 0 | AX47: 0 | AY47: 0 | AZ47: 0
A48: Auxiliar de Servicios | C48: 1 | E48: Requerido | F48: 0 | G48: 0 | H48: =IF(AND(F48>=C48,F48>0),10,0) -> 0 | I48: =IF(AND(G48>=C48,G48>0),10,0) -> 0 | J48: =IF(AND(F48=0,G48=0),0,IF(AND(F48>0,G48>0),10,IF(AND(F48=0,G48>0),-10,IF(AND(F48>0,G48=0),10)))) -> 0 | M48: ADMINISTRATIVO | Q48: =IF(UPPER(E48)="REQUERIDO", 10, "") -> 10 | R48: =IF(UPPER(E48)="REQUERIDO", J48, "") -> 0
A49: Limpieza | B49: =B1 -> Anx: | C49: =C$1 -> Cantidad mínima: | D49: Por Puestos; Pacientes;Servicios; Turnos: | E49: Tipo: | F49: Cumple: | G49: No Cumple: | J49: Calif: | K49: Observaciones: | AK49: =SUM(Q50:Q50) -> 10 | AL49: =SUM(R50:R50) -> 0 | AM49: =SUM(S50:S50) -> 0 | AN49: 0 | AO49: 0 | AP49: 0 | AQ49: 0 | AR49: 0 | AS49: 0 | AT49: 0 | AU49: 0 | AV49: 0 | AW49: 0 | AX49: 0 | AY49: 0 | AZ49: 0
A50: Auxiliar de Servicios | C50: 1 | E50: Requerido | F50: 0 | G50: 0 | H50: =IF(AND(F50>=C50,F50>0),10,0) -> 0 | I50: =IF(AND(G50>=C50,G50>0),10,0) -> 0 | J50: =IF(AND(F50=0,G50=0),0,IF(AND(F50>0,G50>0),10,IF(AND(F50=0,G50>0),-10,IF(AND(F50>0,G50=0),10)))) -> 0 | M50: ADMINISTRATIVO | Q50: =IF(UPPER(E50)="REQUERIDO", 10, "") -> 10 | R50: =IF(UPPER(E50)="REQUERIDO", J50, "") -> 0 | AK50: REQ | AM50: COND | AO50: COND - | AQ50: DES | AS50: REQ | AU50: COND | AW50: COND- | AY50: DES
A51: TOTALES PARCIALES: | AA51: TOTAL GENERAL: | AK51: =(+TalentoHumano!AK3) -> 70 | AL51: =(+TalentoHumano!AL3) -> 0 | AM51: =(+TalentoHumano!AM3) -> 10 | AN51: =(+TalentoHumano!AN3) -> 0 | AO51: =(+TalentoHumano!AO3) -> 10 | AP51: =(+TalentoHumano!AP3) -> 0 | AQ51: =(+TalentoHumano!AQ3) -> 0 | AR51: =(+TalentoHumano!AR3) -> 0 | AS51: =(+TalentoHumano!AS3) -> 90 | AT51: =(+TalentoHumano!AT3) -> 0 | AU51: =(+TalentoHumano!AU3) -> 60 | AV51: =(+TalentoHumano!AV3) -> 0 | AW51: =(+TalentoHumano!AW3) -> 60 | AX51: =(+TalentoHumano!AX3) -> 0 | AY51: =(+TalentoHumano!AY3) -> 0 | AZ51: =(+TalentoHumano!AZ3) -> 0
A52: ADMINISTRATIVOS: | C52: % Obtenido: | D52: % Obtenido: | E52: % Obtenido: | F52: % A Cumplir: | G52: % Final: | Z52: 3 | AA52: TALENTO HUMANO | AK52: =AK3*100/AK51 -> 100 | AL52: =AL3*100/AK51 -> 0 | AM52: =AM3*100/AM51 -> 100 | AN52: =AN3*100/AM51 -> 0 | AO52: =AO3*100/AO51 -> 100 | AP52: =AP3*100/AO51 -> 0 | AQ52: =AQ3*100/AQ51 ->  | AR52: =AR3*100/AQ51 ->  | AS52: =AS3*100/AS51 -> 100 | AT52: =AT3*100/AS51 -> 0 | AU52: =AU3*100/AU51 -> 100 | AV52: =AV3*100/AU51 -> 0 | AW52: =AW3*100/AW51 -> 100 | AX52: =AX3*100/AW51 -> 0 | AY52: =AY3*100/AY51 ->  | AZ52: =AZ3*100/AY51 -> 
A53: =AA52 -> TALENTO HUMANO | C53: =TalentoHumano!$AL$52*30/100/100 -> 0 | F53: =TalentoHumano!$AK$52*30/100/100 -> 0.3 | G53: =IF(TalentoHumano!$C$53=TalentoHumano!$F$53, "CUMPLE", "NO CUMPLE") -> NO CUMPLE | Z53: 4 | AA53: ADMINISTRATIVO | AK53: =AK4*100/AK51 -> 14.28571429 | AL53: =AL4*100/AK51 -> 0 | AM53: =AM4*100/AM51 -> 0 | AN53: =AN4*100/AM51 -> 0 | AO53: =AO4*100/AO51 -> 0 | AP53: =AP4*100/AO51 -> 0 | AQ53: =AQ4*100/AQ51 ->  | AR53: =AR4*100/AQ51 ->  | AS53: =AS4*100/AS51 -> 0 | AT53: =AT4*100/AS51 -> 0 | AU53: =AU4*100/AU51 -> 0 | AV53: =AV4*100/AU51 -> 0 | AW53: =AW4*100/AW51 -> 0 | AX53: =AX4*100/AW51 -> 0 | AY53: =AY4*100/AY51 ->  | AZ53: =AZ4*100/AY51 -> 
A54: ADMINISTRATIVO | D54: =TalentoHumano!$AL$53*30/100/100 -> 0 | F54: =TalentoHumano!$AK$53*30/100/100 -> 0.04285714286 | G54: =IF(D54=F54, "CUMPLE", "NO CUMPLE") -> NO CUMPLE | Z54: 5 | AA54: ADMISIÓN Y ESTADISTICA | AK54: =AK5*100/AK51 -> 14.28571429 | AL54: =AL5*100/AK51 -> 0 | AM54: =AM5*100/AM51 -> 0 | AN54: =AN5*100/AM51 -> 0 | AO54: =AO5*100/AO51 -> 0 | AP54: =AP5*100/AO51 -> 0 | AQ54: =AQ5*100/AQ51 ->  | AR54: =AR5*100/AQ51 ->  | AS54: =AS5*100/AS51 -> 0 | AT54: =AT5*100/AS51 -> 0 | AU54: =AU5*100/AU51 -> 0 | AV54: =AV5*100/AU51 -> 0 | AW54: =AW5*100/AW51 -> 0 | AX54: =AX5*100/AW51 -> 0 | AY54: =AY5*100/AY51 ->  | AZ54: =AZ5*100/AY51 -> 
A55: ADMISIÓN Y ESTADISTICA | E55: =TalentoHumano!$AL$54*30/100/100 -> 0 | F55: =TalentoHumano!$AK$54*30/100/100 -> 0.04285714286 | G55: =IF(E55=F55, "CUMPLE", "NO CUMPLE") -> NO CUMPLE | Z55: 8 | AA55: ASISTENCIAL | AK55: =AK8*100/AK51 -> 0 | AL55: =AL8*100/AK51 -> 0 | AM55: =AM8*100/AM51 -> 0 | AN55: =AN8*100/AM51 -> 0 | AO55: =AO8*100/AO51 -> 0 | AP55: =AP8*100/AO51 -> 0 | AQ55: =AQ8*100/AQ51 ->  | AR55: =AR8*100/AQ51 ->  | AS55: =AS8*100/AS51 -> 33.33333333 | AT55: =AT8*100/AS51 -> 0 | AU55: =AU8*100/AU51 -> 16.66666667 | AV55: =AV8*100/AU51 -> 0 | AW55: =AW8*100/AW51 -> 16.66666667 | AX55: =AX8*100/AW51 -> 0 | AY55: =AY8*100/AY51 ->  | AZ55: =AZ8*100/AY51 -> 
A56: ASISTENCIAL | D56: =TalentoHumano!$AL$55*30/100/100 -> 0 | F56: =TalentoHumano!$AK$55*30/100/100 -> 0 | G56: =IF(D56=F56, "CUMPLE", "NO CUMPLE") -> CUMPLE | Z56: 9 | AA56: CONSULTA EXTERNA | AK56: =AK9*100/AK51 -> 0 | AL56: =AL9*100/AK51 -> 0 | AM56: =AM9*100/AM51 -> 0 | AN56: =AN9*100/AM51 -> 0 | AO56: =AO9*100/AO51 -> 0 | AP56: =AP9*100/AO51 -> 0 | AQ56: =AQ9*100/AQ51 ->  | AR56: =AR9*100/AQ51 ->  | AS56: =AS9*100/AS51 -> 33.33333333 | AT56: =AT9*100/AS51 -> 0 | AU56: =AU9*100/AU51 -> 16.66666667 | AV56: =AV9*100/AU51 -> 0 | AW56: =AW9*100/AW51 -> 16.66666667 | AX56: =AX9*100/AW51 -> 0 | AY56: =AY9*100/AY51 ->  | AZ56: =AZ9*100/AY51 -> 
A57: CONSULTA EXTERNA | E57: =TalentoHumano!$AL$56*30/100/100 -> 0 | F57: =TalentoHumano!$AK$56*30/100/100 -> 0 | G57: =IF(E57=F57, "CUMPLE", "NO CUMPLE") -> CUMPLE | Z57: 15 | AA57: APOYO TERAPEUTICO | AK57: =AK15*100/AK51 -> 0 | AL57: =AL15*100/AK51 -> 0 | AM57: =AM15*100/AM51 -> 0 | AN57: =AN15*100/AM51 -> 0 | AO57: =AO15*100/AO51 -> 0 | AP57: =AP15*100/AO51 -> 0 | AQ57: =AQ15*100/AQ51 ->  | AR57: =AR15*100/AQ51 ->  | AS57: =AS15*100/AS51 -> 33.33333333 | AT57: =AT15*100/AS51 -> 0 | AU57: =AU15*100/AU51 -> 83.33333333 | AV57: =AV15*100/AU51 -> 0 | AW57: =AW15*100/AW51 -> 83.33333333 | AX57: =AX15*100/AW51 -> 0 | AY57: =AY15*100/AY51 ->  | AZ57: =AZ15*100/AY51 -> 
A58: APOYO TERAPEUTICO | D58: =TalentoHumano!$AL$57*30/100/100 -> 0 | F58: =TalentoHumano!$AK$57*30/100/100 -> 0 | G58: =IF(D58=F58, "CUMPLE", "NO CUMPLE") -> CUMPLE | Z58: 16 | AA58: ATENCIÓN DE APOYO TERAPÉUTICO | AK58: =AK16*100/AK51 -> 0 | AL58: =AL16*100/AK51 -> 0 | AM58: =AM16*100/AM51 -> 0 | AN58: =AN16*100/AM51 -> 0 | AO58: =AO16*100/AO51 -> 0 | AP58: =AP16*100/AO51 -> 0 | AQ58: =AQ16*100/AQ51 ->  | AR58: =AR16*100/AQ51 ->  | AS58: =AS16*100/AS51 -> 33.33333333 | AT58: =AT16*100/AS51 -> 0 | AU58: =AU16*100/AU51 -> 83.33333333 | AV58: =AV16*100/AU51 -> 0 | AW58: =AW16*100/AW51 -> 83.33333333 | AX58: =AX16*100/AW51 -> 0 | AY58: =AY16*100/AY51 ->  | AZ58: =AZ16*100/AY51 -> 
A59: ATENCIÓN DE APOYO TERAPÉUTICO | E59: =TalentoHumano!$AL$58*30/100/100 -> 0 | F59: =TalentoHumano!$AK$58*30/100/100 -> 0 | G59: =IF(E59=F59, "CUMPLE", "NO CUMPLE") -> CUMPLE | Z59: 28 | AA59: APOYO DIAGNÓSTICO | AK59: =AK28*100/AK51 -> 0 | AL59: =AL28*100/AK51 -> 0 | AM59: =AM28*100/AM51 -> 100 | AN59: =AN28*100/AM51 -> 0 | AO59: =AO28*100/AO51 -> 100 | AP59: =AP28*100/AO51 -> 0 | AQ59: =AQ28*100/AQ51 ->  | AR59: =AR28*100/AQ51 ->  | AS59: =AS28*100/AS51 -> 11.11111111 | AT59: =AT28*100/AS51 -> 0 | AU59: =AU28*100/AU51 -> 0 | AV59: =AV28*100/AU51 -> 0 | AW59: =AW28*100/AW51 -> 0 | AX59: =AX28*100/AW51 -> 0 | AY59: =AY28*100/AY51 ->  | AZ59: =AZ28*100/AY51 -> 
A60: APOYO DIAGNÓSTICO | D60: =TalentoHumano!$AL$59*30/100/100 -> 0 | F60: =TalentoHumano!$AK$59*30/100/100 -> 0 | G60: =IF(D60=F60, "CUMPLE", "NO CUMPLE") -> CUMPLE | Z60: 29 | AA60: DIAGNÓSTICO EN LABORATORIO (LABORATORIO DE ANÁLISIS CLÍNICO) | AK60: =AK29*100/AK51 -> 0 | AL60: =AL29*100/AK51 -> 0 | AM60: =AM29*100/AM51 -> 100 | AN60: =AN29*100/AM51 -> 0 | AO60: =AO29*100/AO51 -> 100 | AP60: =AP29*100/AO51 -> 0 | AQ60: =AQ29*100/AQ51 ->  | AR60: =AR29*100/AQ51 ->  | AS60: =AS29*100/AS51 -> 11.11111111 | AT60: =AT29*100/AS51 -> 0 | AU60: =AU29*100/AU51 -> 0 | AV60: =AV29*100/AU51 -> 0 | AW60: =AW29*100/AW51 -> 0 | AX60: =AX29*100/AW51 -> 0 | AY60: =AY29*100/AY51 ->  | AZ60: =AZ29*100/AY51 -> 
A61: DIAGNÓSTICO EN LABORATORIO (LABORATORIO DE ANÁLISIS CLÍNICO) | E61: =TalentoHumano!$AL$60*30/100/100 -> 0 | F61: =TalentoHumano!$AK$60*30/100/100 -> 0 | G61: =IF(E61=F61, "CUMPLE", "NO CUMPLE") -> CUMPLE | Z61: 33 | AA61: APOYO TERAPÉUTICO | AK61: =AK33*100/AK51 -> 14.28571429 | AL61: =AL33*100/AK51 -> 0 | AM61: =AM33*100/AM51 -> 0 | AN61: =AN33*100/AM51 -> 0 | AO61: =AO33*100/AO51 -> 0 | AP61: =AP33*100/AO51 -> 0 | AQ61: =AQ33*100/AQ51 ->  | AR61: =AR33*100/AQ51 ->  | AS61: =AS33*100/AS51 -> 11.11111111 | AT61: =AT33*100/AS51 -> 0 | AU61: =AU33*100/AU51 -> 0 | AV61: =AV33*100/AU51 -> 0 | AW61: =AW33*100/AW51 -> 0 | AX61: =AX33*100/AW51 -> 0 | AY61: =AY33*100/AY51 ->  | AZ61: =AZ33*100/AY51 -> 
A62: APOYO TERAPÉUTICO | D62: =TalentoHumano!$AL$61*30/100/100 -> 0 | F62: =TalentoHumano!$AK$61*30/100/100 -> 0.04285714286 | G62: =IF(D62=F62, "CUMPLE", "NO CUMPLE") -> NO CUMPLE | Z62: 34 | AA62: DOTACIÓN DE MEDICAMENTOS Y DISPOSITIVOS MÉDICOS (FARMACIA) | AK62: =AK34*100/AK51 -> 14.28571429 | AL62: =AL34*100/AK51 -> 0 | AM62: =AM34*100/AM51 -> 0 | AN62: =AN34*100/AM51 -> 0 | AO62: =AO34*100/AO51 -> 0 | AP62: =AP34*100/AO51 -> 0 | AQ62: =AQ34*100/AQ51 ->  | AR62: =AR34*100/AQ51 ->  | AS62: =AS34*100/AS51 -> 11.11111111 | AT62: =AT34*100/AS51 -> 0 | AU62: =AU34*100/AU51 -> 0 | AV62: =AV34*100/AU51 -> 0 | AW62: =AW34*100/AW51 -> 0 | AX62: =AX34*100/AW51 -> 0 | AY62: =AY34*100/AY51 ->  | AZ62: =AZ34*100/AY51 -> 
A63: DOTACIÓN DE MEDICAMENTOS Y DISPOSITIVOS MÉDICOS (FARMACIA) | E63: =TalentoHumano!$AL$62*30/100/100 -> 0 | F63: =TalentoHumano!$AK$62*30/100/100 -> 0.04285714286 | G63: =IF(E63=F63, "CUMPLE", "NO CUMPLE") -> NO CUMPLE | Z63: 38 | AA63: ADMINISTRATIVO | AK63: =AK38*100/AK51 -> 42.85714286 | AL63: =AL38*100/AK51 -> 0 | AM63: =AM38*100/AM51 -> 0 | AN63: =AN38*100/AM51 -> 0 | AO63: =AO38*100/AO51 -> 0 | AP63: =AP38*100/AO51 -> 0 | AQ63: =AQ38*100/AQ51 ->  | AR63: =AR38*100/AQ51 ->  | AS63: =AS38*100/AS51 -> 11.11111111 | AT63: =AT38*100/AS51 -> 0 | AU63: =AU38*100/AU51 -> 0 | AV63: =AV38*100/AU51 -> 0 | AW63: =AW38*100/AW51 -> 0 | AX63: =AX38*100/AW51 -> 0 | AY63: =AY38*100/AY51 ->  | AZ63: =AZ38*100/AY51 -> 
A64: ADMINISTRATIVO | D64: =TalentoHumano!$AL$63*30/100/100 -> 0 | F64: =TalentoHumano!$AK$63*30/100/100 -> 0.1285714286 | G64: =IF(D64=F64, "CUMPLE", "NO CUMPLE") -> NO CUMPLE | Z64: 39 | AA64: ADMINISTRACIÓN TÉCNICA | AK64: =AK39*100/AK51 -> 42.85714286 | AL64: =AL39*100/AK51 -> 0 | AM64: =AM39*100/AM51 -> 0 | AN64: =AN39*100/AM51 -> 0 | AO64: =AO39*100/AO51 -> 0 | AP64: =AP39*100/AO51 -> 0 | AQ64: =AQ39*100/AQ51 ->  | AR64: =AR39*100/AQ51 ->  | AS64: =AS39*100/AS51 -> 11.11111111 | AT64: =AT39*100/AS51 -> 0 | AU64: =AU39*100/AU51 -> 0 | AV64: =AV39*100/AU51 -> 0 | AW64: =AW39*100/AW51 -> 0 | AX64: =AX39*100/AW51 -> 0 | AY64: =AY39*100/AY51 ->  | AZ64: =AZ39*100/AY51 -> 
A65: ADMINISTRACIÓN TÉCNICA | E65: =TalentoHumano!$AL$64*30/100/100 -> 0 | F65: =TalentoHumano!$AK$64*30/100/100 -> 0.1285714286 | G65: =IF(E65=F65, "CUMPLE", "NO CUMPLE") -> NO CUMPLE | Z65: 45 | AA65: GENERAL | AK65: =AK45*100/AK51 -> 28.57142857 | AL65: =AL45*100/AK51 -> 0 | AM65: =AM45*100/AM51 -> 0 | AN65: =AN40*100/AM51 -> 0 | AO65: =AO45*100/AO51 -> 0 | AP65: =AP45*100/AO51 -> 0 | AQ65: =AQ45*100/AQ51 ->  | AR65: =AR45*100/AQ51 ->  | AS65: =AS45*100/AS51 -> 0 | AT65: =AT45*100/AS51 -> 0 | AU65: =AU45*100/AU51 -> 0 | AV65: =AV45*100/AU51 -> 0 | AW65: =AW45*100/AW51 -> 0 | AX65: =AX45*100/AW51 -> 0 | AY65: =AY45*100/AY51 ->  | AZ65: =AZ40*100/AY51 -> 
A66: GENERAL | D66: =TalentoHumano!$AL$65*30/100/100 -> 0 | F66: =TalentoHumano!$AK$65*30/100/100 -> 0.08571428571 | G66: =IF(D66=F66, "CUMPLE", "NO CUMPLE") -> NO CUMPLE | Z66: 46 | AA66: SERVICIOS INTERNOS DE APOYO | AK66: =AK46*100/AK51 -> 28.57142857 | AL66: =AL46*100/AK51 -> 0 | AM66: =AM46*100/AM51 -> 0 | AN66: =AN46*100/AM51 -> 0 | AO66: =AO46*100/AO52 -> 0 | AP66: =AP46*100/AO51 -> 0 | AQ66: =AQ46*100/AQ51 ->  | AR66: =AR46*100/AQ51 ->  | AS66: =AS46*100/AS52 -> 0 | AT66: =AT46*100/AS51 -> 0 | AU66: =AU46*100/AU51 -> 0 | AV66: =AV46*100/AU51 -> 0 | AW66: =AW46*100/AW52 -> 0 | AX66: =AX46*100/AW51 -> 0 | AY66: =AY46*100/AY51 ->  | AZ66: =AZ46*100/AY51 -> 
A67: =AA66 -> SERVICIOS INTERNOS DE APOYO | E67: =TalentoHumano!$AL$66*30/100/100 -> 0 | F67: =TalentoHumano!$AK$66*30/100/100 -> 0.08571428571 | G67: =IF(E67=F67, "CUMPLE", "NO CUMPLE") -> NO CUMPLE
A68: TOTAL ADMINISTRATIVOS: | F68: 0.3000000119 | G68: =C53 -> 0
A69: ASISTENCIALES: | C69: % Obtenido: | D69: % Obtenido: | E69: % Obtenido: | F69: % A Cumplir: | G69: % Final:
A70: TALENTO HUMANO | C70: =TalentoHumano!$AT$52*70/100/100 -> 0 | F70: =TalentoHumano!AS52*70/100/100 -> 0.7 | G70: =IF(TalentoHumano!$C$70=TalentoHumano!$F$70, "CUMPLE", "NO CUMPLE") -> NO CUMPLE
A71: ADMINISTRATIVO | D71: =TalentoHumano!$AT$53*70/100/100 -> 0 | F71: =TalentoHumano!AS53*70/100/100 -> 0 | G71: =IF(D71=F71, "CUMPLE", "NO CUMPLE") -> CUMPLE
A72: ADMISIÓN Y ESTADISTICA | E72: =TalentoHumano!$AT$54*70/100/100 -> 0 | F72: =TalentoHumano!AS54*70/100/100 -> 0 | G72: =IF(E72=F72, "CUMPLE", "NO CUMPLE") -> CUMPLE
A73: ASISTENCIAL | D73: =TalentoHumano!$AT$55*70/100/100 -> 0 | F73: =TalentoHumano!AS55*70/100/100 -> 0.2333333333 | G73: =IF(D73=F73, "CUMPLE", "NO CUMPLE") -> NO CUMPLE
A74: CONSULTA EXTERNA | E74: =TalentoHumano!$AT$56*70/100/100 -> 0 | F74: =TalentoHumano!AS56*70/100/100 -> 0.2333333333 | G74: =IF(E74=F74, "CUMPLE", "NO CUMPLE") -> NO CUMPLE
A75: APOYO TERAPEUTICO | D75: =TalentoHumano!$AT$57*70/100/100 -> 0 | F75: =TalentoHumano!AS57*70/100/100 -> 0.2333333333 | G75: =IF(D75=F75, "CUMPLE", "NO CUMPLE") -> NO CUMPLE
A76: ATENCIÓN DE APOYO TERAPÉUTICO | E76: =TalentoHumano!$AT$58*70/100/100 -> 0 | F76: =TalentoHumano!AS58*70/100/100 -> 0.2333333333 | G76: =IF(E76=F76, "CUMPLE", "NO CUMPLE") -> NO CUMPLE
A77: APOYO DIAGNÓSTICO | D77: =TalentoHumano!$AT$59*70/100/100 -> 0 | F77: =TalentoHumano!AS59*70/100/100 -> 0.07777777778 | G77: =IF(D77=F77, "CUMPLE", "NO CUMPLE") -> NO CUMPLE
A78: DIAGNÓSTICO EN LABORATORIO (LABORATORIO DE ANÁLISIS CLÍNICO) | E78: =TalentoHumano!$AT$60*70/100/100 -> 0 | F78: =TalentoHumano!AS60*70/100/100 -> 0.07777777778 | G78: =IF(E78=F78, "CUMPLE", "NO CUMPLE") -> NO CUMPLE
A79: APOYO TERAPÉUTICO | D79: =TalentoHumano!$AT$61*70/100/100 -> 0 | F79: =TalentoHumano!AS61*70/100/100 -> 0.07777777778 | G79: =IF(D79=F79, "CUMPLE", "NO CUMPLE") -> NO CUMPLE
A80: DOTACIÓN DE MEDICAMENTOS Y DISPOSITIVOS MÉDICOS (FARMACIA) | E80: =TalentoHumano!$AT$62*70/100/100 -> 0 | F80: =TalentoHumano!AS62*70/100/100 -> 0.07777777778 | G80: =IF(E80=F80, "CUMPLE", "NO CUMPLE") -> NO CUMPLE
A81: ADMINISTRATIVO | D81: =TalentoHumano!$AT$63*70/100/100 -> 0 | F81: =TalentoHumano!AS63*70/100/100 -> 0.07777777778 | G81: =IF(D81=F81, "CUMPLE", "NO CUMPLE") -> NO CUMPLE
A82: ADMINISTRACIÓN TÉCNICA | E82: =TalentoHumano!$AT$64*70/100/100 -> 0 | F82: =TalentoHumano!AS64*70/100/100 -> 0.07777777778 | G82: =IF(E82=F82, "CUMPLE", "NO CUMPLE") -> NO CUMPLE
A83: GENERAL | D83: =TalentoHumano!$AT$65*70/100/100 -> 0 | F83: =TalentoHumano!AS65*70/100/100 -> 0 | G83: =IF(D83=F83, "CUMPLE", "NO CUMPLE") -> CUMPLE
A84: SERVICIOS INTERNOS DE APOYO | E84: =TalentoHumano!$AT$66*70/100/100 -> 0 | F84: =TalentoHumano!AS66*70/100/100 -> 0 | G84: =IF(E84=F84, "CUMPLE", "NO CUMPLE") -> CUMPLE
A85: TOTAL ASISTENCIALES: | F85: 0.6999999881 | G85: =C70 -> 0
A86: TOTALES ITEMS REQUERIDOS:
A87: TOTAL ITEMS REQUERIDOS: | F87: 0.35 | G87: =(G68+G85)*0.35 -> 0
A88: TOTALES CONDICIONADOS +:
A89: ADMINISTRATIVOS: | C89: % Obtenido: | D89: % Obtenido: | E89: % Obtenido: | F89: % A Cumplir: | G89: % Final:
A90: TALENTO HUMANO | C90: =TalentoHumano!$AN$52*30/100/100 -> 0 | F90: =TalentoHumano!AM52*30/100/100 -> 0.3 | G90: =IF(TalentoHumano!$C$53=TalentoHumano!$F$53, "CUMPLE", "NO CUMPLE") -> NO CUMPLE
A91: ADMINISTRATIVO | D91: =TalentoHumano!$AN$53*30/100/100 -> 0 | F91: =TalentoHumano!AM53*30/100/100 -> 0 | G91: =IF(D91=F91, "CUMPLE", "NO CUMPLE") -> CUMPLE
A92: ADMISIÓN Y ESTADISTICA | E92: =TalentoHumano!$AN$54*30/100/100 -> 0 | F92: =TalentoHumano!AM54*30/100/100 -> 0 | G92: =IF(E92=F92, "CUMPLE", "NO CUMPLE") -> CUMPLE
A93: ASISTENCIAL | D93: =TalentoHumano!$AN$55*30/100/100 -> 0 | F93: =TalentoHumano!AM55*30/100/100 -> 0 | G93: =IF(D93=F93, "CUMPLE", "NO CUMPLE") -> CUMPLE
A94: CONSULTA EXTERNA | E94: =TalentoHumano!$AN$56*30/100/100 -> 0 | F94: =TalentoHumano!AM56*30/100/100 -> 0 | G94: =IF(E94=F94, "CUMPLE", "NO CUMPLE") -> CUMPLE
A95: APOYO TERAPEUTICO | D95: =TalentoHumano!$AN$57*30/100/100 -> 0 | F95: =TalentoHumano!AM57*30/100/100 -> 0 | G95: =IF(D95=F95, "CUMPLE", "NO CUMPLE") -> CUMPLE
A96: ATENCIÓN DE APOYO TERAPÉUTICO | E96: =TalentoHumano!$AN$58*30/100/100 -> 0 | F96: =TalentoHumano!AM58*30/100/100 -> 0 | G96: =IF(E96=F96, "CUMPLE", "NO CUMPLE") -> CUMPLE
A97: APOYO DIAGNÓSTICO | D97: =TalentoHumano!$AN$59*30/100/100 -> 0 | F97: =TalentoHumano!AM59*30/100/100 -> 0.3 | G97: =IF(D97=F97, "CUMPLE", "NO CUMPLE") -> NO CUMPLE
A98: DIAGNÓSTICO EN LABORATORIO (LABORATORIO DE ANÁLISIS CLÍNICO) | E98: =TalentoHumano!$AN$60*30/100/100 -> 0 | F98: =TalentoHumano!AM60*30/100/100 -> 0.3 | G98: =IF(E98=F98, "CUMPLE", "NO CUMPLE") -> NO CUMPLE
A99: APOYO TERAPÉUTICO | D99: =TalentoHumano!$AN$61*30/100/100 -> 0 | F99: =TalentoHumano!AM61*30/100/100 -> 0 | G99: =IF(D99=F99, "CUMPLE", "NO CUMPLE") -> CUMPLE
A100: DOTACIÓN DE MEDICAMENTOS Y DISPOSITIVOS MÉDICOS (FARMACIA) | E100: =TalentoHumano!$AN$62*30/100/100 -> 0 | F100: =TalentoHumano!AM62*30/100/100 -> 0 | G100: =IF(E100=F100, "CUMPLE", "NO CUMPLE") -> CUMPLE
A101: ADMINISTRATIVO | D101: =TalentoHumano!$AN$63*30/100/100 -> 0 | F101: =TalentoHumano!AM63*30/100/100 -> 0 | G101: =IF(D101=F101, "CUMPLE", "NO CUMPLE") -> CUMPLE
A102: ADMINISTRACIÓN TÉCNICA | E102: =TalentoHumano!$AN$64*30/100/100 -> 0 | F102: =TalentoHumano!AM64*30/100/100 -> 0 | G102: =IF(E102=F102, "CUMPLE", "NO CUMPLE") -> CUMPLE
A103: GENERAL | D103: =TalentoHumano!$AN$65*30/100/100 -> 0 | F103: =TalentoHumano!AM65*30/100/100 -> 0 | G103: =IF(D103=F103, "CUMPLE", "NO CUMPLE") -> CUMPLE
A104: SERVICIOS INTERNOS DE APOYO | E104: =TalentoHumano!$AN$66*30/100/100 -> 0 | F104: =TalentoHumano!AM66*30/100/100 -> 0 | G104: =IF(E104=F104, "CUMPLE", "NO CUMPLE") -> CUMPLE
A105: TOTAL ADMINISTRATIVOS: | F105: 0.3000000119 | G105: =C90 -> 0
A106: ASISTENCIALES: | C106: % Obtenido: | D106: % Obtenido: | E106: % Obtenido: | F106: % A Cumplir: | G106: % Final:
A107: TALENTO HUMANO | C107: =TalentoHumano!$AV$52*70/100/100 -> 0 | F107: =AU52*70/100/100 -> 0.7 | G107: =IF(C107=F107, "CUMPLE", "NO CUMPLE") -> NO CUMPLE
A108: ADMINISTRATIVO | D108: =TalentoHumano!$AV$53*70/100/100 -> 0 | F108: =AU53*70/100/100 -> 0 | G108: =IF(D108=F108, "CUMPLE", "NO CUMPLE") -> CUMPLE
A109: ADMISIÓN Y ESTADISTICA | E109: =TalentoHumano!$AV$54*70/100/100 -> 0 | F109: =AU54*70/100/100 -> 0 | G109: =IF(D109=F109, "CUMPLE", "NO CUMPLE") -> CUMPLE
A110: ASISTENCIAL | D110: =TalentoHumano!$AV$55*70/100/100 -> 0 | F110: =AU55*70/100/100 -> 0.1166666667 | G110: NO CUMPLE
A111: CONSULTA EXTERNA | E111: =TalentoHumano!$AV$56*70/100/100 -> 0 | F111: =AU56*70/100/100 -> 0.1166666667 | G111: =IF(E111=F111, "CUMPLE", "NO CUMPLE") -> NO CUMPLE
A112: APOYO TERAPEUTICO | D112: =TalentoHumano!$AV$57*70/100/100 -> 0 | F112: 0.5833333333 | G112: NO CUMPLE
A113: ATENCIÓN DE APOYO TERAPÉUTICO | E113: =TalentoHumano!$AV$58*70/100/100 -> 0 | F113: 0.5833333333 | G113: =IF(E113=F113, "CUMPLE", "NO CUMPLE") -> NO CUMPLE
A114: APOYO DIAGNÓSTICO | D114: =TalentoHumano!$AV$59*70/100/100 -> 0 | F114: 0 | G114: CUMPLE
A115: DIAGNÓSTICO EN LABORATORIO (LABORATORIO DE ANÁLISIS CLÍNICO) | E115: =TalentoHumano!$AV$60*70/100/100 -> 0 | F115: 0 | G115: =IF(E115=F115, "CUMPLE", "NO CUMPLE") -> CUMPLE
A116: APOYO TERAPÉUTICO | D116: =TalentoHumano!$AV$61*70/100/100 -> 0 | F116: 0 | G116: CUMPLE
A117: DOTACIÓN DE MEDICAMENTOS Y DISPOSITIVOS MÉDICOS (FARMACIA) | E117: =TalentoHumano!$AV$62*70/100/100 -> 0 | F117: 0 | G117: CUMPLE
A118: ADMINISTRATIVO | D118: =TalentoHumano!$AV$63*70/100/100 -> 0 | F118: 0 | G118: CUMPLE
A119: ADMINISTRACIÓN TÉCNICA | E119: =TalentoHumano!$AV$64*70/100/100 -> 0 | F119: 0 | G119: CUMPLE
A120: GENERAL | D120: =TalentoHumano!$AV$65*70/100/100 -> 0 | F120: 0 | G120: CUMPLE
A121: SERVICIOS INTERNOS DE APOYO | E121: =TalentoHumano!$AV$66*70/100/100 -> 0 | F121: 0 | G121: CUMPLE
A122: TOTAL ASISTENCIALES: | F122: 0.6999999881 | G122: =C107 -> 0
A123: TOTALES ITEMS CONDICIONADOS+:
A124: TOTAL ITEMS CONDICIONADOS: | F124: 0.35 | G124: =(G105+G122)*0.35 -> 0
A125: TOTALES CONDICIONADOS -:
A126: ADMINISTRATIVOS: | C126: % Obtenido: | D126: % Obtenido: | E126: % Obtenido: | F126: % A Cumplir: | G126: % Final:
A127: TALENTO HUMANO | C127: =-TalentoHumano!$AP$52*30/100/100 -> 0 | F127: =-AO52*30/100/100 -> -0.3 | G127: =IF(C127=F127, "CUMPLE", "NO CUMPLE") -> NO CUMPLE
A128: ADMINISTRATIVO | D128: =-TalentoHumano!AP53*30/100/100 -> 0 | F128: =-AO53*30/100/100 -> 0 | G128: =IF(D128=F128, "CUMPLE", "NO CUMPLE") -> CUMPLE
A129: ADMISIÓN Y ESTADISTICA | E129: =-TalentoHumano!AP54*30/100/100 -> 0 | F129: =-AO54*30/100/100 -> 0 | G129: =IF(E129=F129, "CUMPLE", "NO CUMPLE") -> CUMPLE
A130: ASISTENCIAL | D130: =-TalentoHumano!AP55*30/100/100 -> 0 | F130: =-AO55*30/100/100 -> 0 | G130: =IF(D130=F130, "CUMPLE", "NO CUMPLE") -> CUMPLE
A131: CONSULTA EXTERNA | E131: =-TalentoHumano!AP56*30/100/100 -> 0 | F131: 0 | G131: =IF(E131=F131, "CUMPLE", "NO CUMPLE") -> CUMPLE
A132: APOYO TERAPEUTICO | D132: =-TalentoHumano!AP57*30/100/100 -> 0 | F132: 0 | G132: =IF(D132=F132, "CUMPLE", "NO CUMPLE") -> CUMPLE
A133: ATENCIÓN DE APOYO TERAPÉUTICO | E133: =-TalentoHumano!AP58*30/100/100 -> 0 | F133: 0 | G133: =IF(E133=F133, "CUMPLE", "NO CUMPLE") -> CUMPLE
A134: APOYO DIAGNÓSTICO | D134: =-TalentoHumano!AP59*30/100/100 -> 0 | F134: =-AO59*30/100/100 -> -0.3 | G134: =IF(D134=F134, "CUMPLE", "NO CUMPLE") -> NO CUMPLE
A135: DIAGNÓSTICO EN LABORATORIO (LABORATORIO DE ANÁLISIS CLÍNICO) | E135: =-TalentoHumano!AP60*30/100/100 -> 0 | F135: -0.3 | G135: =IF(E135=F135, "CUMPLE", "NO CUMPLE") -> NO CUMPLE
A136: APOYO TERAPÉUTICO | D136: =-TalentoHumano!AP61*30/100/100 -> 0 | F136: 0 | G136: =IF(D136=F136, "CUMPLE", "NO CUMPLE") -> CUMPLE
A137: DOTACIÓN DE MEDICAMENTOS Y DISPOSITIVOS MÉDICOS (FARMACIA) | E137: =-TalentoHumano!AP62*30/100/100 -> 0 | F137: 0 | G137: =IF(E137=F137, "CUMPLE", "NO CUMPLE") -> CUMPLE
A138: ADMINISTRATIVO | D138: =-TalentoHumano!AP63*30/100/100 -> 0 | F138: 0 | G138: =IF(D138=F138, "CUMPLE", "NO CUMPLE") -> CUMPLE
A139: ADMINISTRACIÓN TÉCNICA | E139: =-TalentoHumano!AP64*30/100/100 -> 0 | F139: 0 | G139: =IF(E139=F139, "CUMPLE", "NO CUMPLE") -> CUMPLE
A140: GENERAL | D140: =-TalentoHumano!AP65*30/100/100 -> 0 | F140: 0 | G140: =IF(D140=F140, "CUMPLE", "NO CUMPLE") -> CUMPLE
A141: SERVICIOS INTERNOS DE APOYO | E141: =-TalentoHumano!AP66*30/100/100 -> 0 | F141: 0 | G141: =IF(E141=F141, "CUMPLE", "NO CUMPLE") -> CUMPLE
A142: TOTAL ADMINISTRATIVOS: | F142: 0.3000000119 | G142: =C127 -> 0
A143: ASISTENCIALES: | C143: % Obtenido: | D143: % Obtenido: | E143: % Obtenido: | F143: % A Cumplir: | G143: % Final:
A144: TALENTO HUMANO | C144: =-TalentoHumano!$AX$52*70/100/100 -> 0 | F144: =-AW52*70/100/100 -> -0.7 | G144: =IF(C144=F144, "CUMPLE", "NO CUMPLE") -> NO CUMPLE
A145: ADMINISTRATIVO | D145: =-TalentoHumano!AX53*70/100/100 -> 0 | F145: =-AW53*70/100/100 -> 0 | G145: =IF(D145=F145, "CUMPLE", "NO CUMPLE") -> CUMPLE
A146: ADMISIÓN Y ESTADISTICA | E146: =-TalentoHumano!AX54*70/100/100 -> 0 | F146: =-AW54*70/100/100 -> 0 | G146: =IF(E146=F146, "CUMPLE", "NO CUMPLE") -> CUMPLE
A147: ASISTENCIAL | D147: =-TalentoHumano!$AX$55*70/100/100 -> 0 | F147: =-AW55*70/100/100 -> -0.1166666667 | G147: =IF(D147=F147, "CUMPLE", "NO CUMPLE") -> NO CUMPLE
A148: CONSULTA EXTERNA | E148: =-TalentoHumano!AX56*70/100/100 -> 0 | F148: -0.1166666667 | G148: =IF(E148=F148, "CUMPLE", "NO CUMPLE") -> NO CUMPLE
A149: APOYO TERAPEUTICO | D149: =-TalentoHumano!AX57*70/100/100 -> 0 | F149: -0.5833333333 | G149: =IF(D149=F149, "CUMPLE", "NO CUMPLE") -> NO CUMPLE
A150: ATENCIÓN DE APOYO TERAPÉUTICO | E150: =-TalentoHumano!AX58*70/100/100 -> 0 | F150: -0.5833333333 | G150: =IF(E150=F150, "CUMPLE", "NO CUMPLE") -> NO CUMPLE
A151: APOYO DIAGNÓSTICO | D151: =-TalentoHumano!AX59*70/100/100 -> 0 | F151: 0 | G151: =IF(D151=F151, "CUMPLE", "NO CUMPLE") -> CUMPLE
A152: DIAGNÓSTICO EN LABORATORIO (LABORATORIO DE ANÁLISIS CLÍNICO) | E152: =-TalentoHumano!AX60*70/100/100 -> 0 | F152: 0 | G152: =IF(E152=F152, "CUMPLE", "NO CUMPLE") -> CUMPLE
A153: APOYO TERAPÉUTICO | D153: =-TalentoHumano!AX61*70/100/100 -> 0 | F153: 0 | G153: =IF(D153=F153, "CUMPLE", "NO CUMPLE") -> CUMPLE
A154: DOTACIÓN DE MEDICAMENTOS Y DISPOSITIVOS MÉDICOS (FARMACIA) | E154: =-TalentoHumano!AX62*70/100/100 -> 0 | F154: 0 | G154: =IF(E154=F154, "CUMPLE", "NO CUMPLE") -> CUMPLE
A155: ADMINISTRATIVO | D155: =-TalentoHumano!AX63*70/100/100 -> 0 | F155: 0 | G155: =IF(D155=F155, "CUMPLE", "NO CUMPLE") -> CUMPLE
A156: ADMINISTRACIÓN TÉCNICA | E156: =-TalentoHumano!AX64*70/100/100 -> 0 | F156: 0 | G156: =IF(E156=F156, "CUMPLE", "NO CUMPLE") -> CUMPLE
A157: GENERAL | D157: =-TalentoHumano!AX65*70/100/100 -> 0 | F157: 0 | G157: =IF(D157=F157, "CUMPLE", "NO CUMPLE") -> CUMPLE
A158: SERVICIOS INTERNOS DE APOYO | E158: =-TalentoHumano!AX66*70/100/100 -> 0 | F158: 0 | G158: =IF(E158=F158, "CUMPLE", "NO CUMPLE") -> CUMPLE
A159: TOTAL ASISTENCIALES: | F159: 0.6999999881 | G159: =C144 -> 0
A160: TOTALES ITEMS CONDICIONADOS+:
A161: TOTAL CONDICIONADOS: | F161: -0.35 | G161: =(G142+G159)*0.35 -> 0
A162: TOTALES COMPONENTE:
A163: TOTAL % REQUERIDO: | F163: 0.349999994 | G163: =G87 -> 0
A164: TOTAL % DESEABLE: | F164: 0.349999994 | G164: =35/100 -> 0.35
A165: TOTAL % CONDICIÓN: | F165: 0.349999994 | G165: =G161+G124 -> 0

Sheet Reportes1 (hidden)
A1: MATRIZ DE LICENCIAMIENTO:
A2: =Menu!B4 -> CENTRO ESPECIALIZADO EN SALUD RENAL
A3: ENTIDAD DEL SISTEMA:
A4: NOMBRE UNIDAD OPERATIVA:
A5: CÓDIGO: | D5: dgdg
A6: REGION: | D6: INSULAR
A7: PROVINCIA: | D7: GALAPAGOS
A8: CANTON: | D8: ISABELA
A9: PARROQUIA:
A10: ZONA:
A11: DIRECCIÓN:
C12: TELÉFONO:
A13: AREA/DISTRITO:
A14: RESPONSABLE:
A15: CORREO ELECTRÓNICO:
A16: FECHA:
A18: RESULTADOS TOTALES
A19: COMPONENTE: | C19: % A Cumplir | D19: % Requerido | E19: % Opcional | F19: % Deseable | G19: % Condición | H19: RESULTADOS
A20: INFRAESTRUCTURA | C20: =30/100 -> 0.3 | D20: =Infraestructura!$G$361 -> 0 | E20: =Infraestructura!$G$362 -> 0 | F20: =Infraestructura!$G$363 -> 0.3 | G20: =Infraestructura!$G$364 -> 0
A21: EQUIPAMIENTO | C21: =30/100 -> 0.3 | D21: =Equipamiento!$G$684 -> 0 | E21: =Equipamiento!$G$685 -> 0 | F21: =Equipamiento!$G$686 -> 0 | G21: =Equipamiento!$G$687 -> 0 | H21: =IF(D24<0.7, "NO LICENCIA", IF(D24<0.85,"LICENCIA CONDICIONADA", IF(D24<=1, "SI LICENCIA", ""))) -> NO LICENCIA
A22: TALENTO HUMANO | C22: =35/100 -> 0.35 | D22: =TalentoHumano!$G$163 -> 0 | E22: =TalentoHumano!#REF! ->  | F22: =TalentoHumano!$G$164 -> 0.35 | G22: =TalentoHumano!$G$165 -> 0
A23: NORMA TECNICA | C23: =5/100 -> 0.05 | D23: =Norma!$I$377 -> 0 | E23: =Norma!$I$378 -> 0 | F23: =Norma!$I$379 -> 0.05 | G23: =Norma!#REF! -> 
A24: Total: | C24: =SUM(C20:C23) -> 1 | D24: =SUM(D20:D23) -> 0 | E24: =SUM(E20:E23) ->  | F24: =SUM(F20:F23) -> 0.7 | G24: =SUM(G20:G23) -> 

Sheet Reportes
A5: MATRIZ DE LICENCIAMIENTO:
A6: CALIFICACIÓN POR SERVICIOS
A7: CENTRO ESPECIALIZADO EN SALUD RENAL
A8: ENTIDAD DEL SISTEMA: | D8: Privada
A9: ESTABLECIMIENTO DE SALUD:
A10: CODIGO/RUC:
A11: REGION:
A12: PROVINCIA:
A13: CANTON:
A14: PARROQUIA:
A15: DISTRIBUCIÓN ZONAL SENPLADES: | D15: 1
A16: DIRECCIÓN:
A17: AREA/DISTRITO:
A18: TELÉFONO:
A19: RESPRESENTANTE LEGAL / CORREO ELECTRÓNICO UNIDAD OPERATIVA: | D19: /
A20: FECHA:
A21: COMPONENTES: | B21: INFRAESTRUCTURA | E21: EQUIPAMIENTO | H21: NORMA | K21: TALENTO HUMANO | N21: CALIFICACIÓN POR SERVICIO
B22: REQUERIDOS | D22: TOTAL | E22: REQUERIDOS | G22: TOTAL | H22: REQUERIDOS | J22: TOTAL | K22: REQUERIDOS | M22: TOTAL
A23: PORCENTAJES SERVICIOS | B23: % A CUMPLIR | C23: % OBTENIDO | D23: % CALIFICACIÓN | E23: % A CUMPLIR | F23: % OBTENIDO | G23: % CALIFICACIÓN | H23: % A CUMPLIR | I23: % OBTENIDO | J23: % CALIFICACIÓN | K23: % A CUMPLIR | L23: % OBTENIDO | M23: % CALIFICACIÓN | N23: % ÍNDICE GLOBAL DE LICENCIAMEINTO POR SERVICIO | O23: CALIFICACIÓN POR SERVICIO
A24: ADMINISTRATIVO | B24: =(Infraestructura!F221*85) -> 2.833333333 | C24: =(Infraestructura!C221*85) -> 0 | D24: =(C24*100/B24)*0.3 -> 0 | E24: =Equipamiento!F576*85 -> 4.619565217 | F24: =Equipamiento!C576*85 -> 0 | G24: =(F24*100/E24)*0.3 -> 0 | H24: =(Norma!F325*85) -> 6.278409091 | I24: =(Norma!D325*85) -> 0 | J24: =(I24*100/H24)*0.05 -> 0 | K24: =(TalentoHumano!F54+TalentoHumano!F71)*85 -> 3.642857143 | L24: =(TalentoHumano!D54+TalentoHumano!D71)*85 -> 0 | M24: =(L24*100/K24)*0.35 -> 0 | N24: =(D24+G24+J24+M24)*0.85/100 -> 0 | O24: =IF(N24<0.7, "NO LICENCIA", IF(N24<0.85,"LICENCIA CONDICIONADA", IF(N24<=1, "SI LICENCIA", ""))) -> NO LICENCIA
A25: ADMISIÓN Y ESTADÍSTICA | B25: =(Infraestructura!F222*85) -> 2.833333333 | C25: =(Infraestructura!D222*85) -> 0 | D25: =(C25*100/B25)*0.3 -> 0 | E25: =Equipamiento!F577*85 -> 4.619565217 | F25: =(Equipamiento!D577*85) -> 0 | G25: =(F25*100/E25)*0.3 -> 0 | H25: =(Norma!F326*85) -> 6.278409091 | I25: =(Norma!E326*85) -> 0 | J25: =(I25*100/H25)*0.05 -> 0 | K25: =(TalentoHumano!F55+TalentoHumano!F72)*85 -> 3.642857143 | L25: =(TalentoHumano!E55+TalentoHumano!E72)*85 -> 0 | M25: =(L25*100/K25)*0.35 -> 0 | N25: =(D25+G25+J25+M25)*0.85/100 -> 0
A26: ASISTENCIAL | B26: =(Infraestructura!F224*85) -> 7.083333333 | C26: =(Infraestructura!C224*85) -> 0 | D26: =(C26*100/B26)*0.3 -> 0 | E26: =Equipamiento!F579*85 -> 21.71195652 | F26: =Equipamiento!C579*85 -> 0 | G26: =(F26*100/E26)*0.3 -> 0 | H26: =(Norma!F327*85) -> 31.39204545 | I26: =(Norma!D327*85) -> 0 | J26: =(I26*100/H26)*0.05 -> 0 | K26: =(TalentoHumano!F56+TalentoHumano!F73)*85 -> 19.83333333 | L26: =(TalentoHumano!D56+TalentoHumano!D73)*85 -> 0 | M26: =(L26*100/K26)*0.35 -> 0 | N26: =(D26+G26+J26+M26)*0.85/100 -> 0 | O26: =IF(N26<0.7, "NO LICENCIA", IF(N26<0.85,"LICENCIA CONDICIONADA", IF(N26<=1, "SI LICENCIA", ""))) -> NO LICENCIA
A27: CONSULTA EXTERNA | B27: =(Infraestructura!F225*85) -> 7.083333333 | C27: =(Infraestructura!D225*85) -> 0 | D27: =(C27*100/B27)*0.3 -> 0 | E27: =Equipamiento!F580*85 -> 21.71195652 | F27: =Equipamiento!D580*85 -> 0 | G27: =(F27*100/E27)*0.3 -> 0 | H27: =(Norma!F328*85) -> 31.39204545 | I27: =(Norma!E328*85) -> 0 | J27: 0 | K27: =(TalentoHumano!F57+TalentoHumano!F74)*85 -> 19.83333333 | L27: =(TalentoHumano!E57+TalentoHumano!E74)*85 -> 0 | M27: 0 | N27: 0
A28: APOYO TERAPEÚTICO | B28: =(Infraestructura!F227*85) -> 11.33333333 | C28: =(Infraestructura!C227*85) -> 0 | D28: 0 | E28: =Equipamiento!F582*85 -> 23.09782609 | F28: =Equipamiento!C582*85 -> 0 | G28: =(F28*100/E28)*0.3 -> 0 | H28: =(Norma!F329*85) -> 11.10795455 | I28: =(Norma!D329*85) -> 0 | J28: 0 | K28: =(TalentoHumano!F58+TalentoHumano!F75)*85 -> 19.83333333 | L28: =(TalentoHumano!D58+TalentoHumano!D75)*85 -> 0 | M28: 0 | N28: =(D28+G28+J28+M28)*0.85/100 -> 0 | O28: =IF(N28<0.7, "NO LICENCIA", IF(N28<0.85,"LICENCIA CONDICIONADA", IF(N28<=1, "SI LICENCIA", ""))) -> NO LICENCIA
A29: ATENCION DE APOYO TERAPEÚTICO | B29: =(Infraestructura!F228*85) -> 11.33333333 | C29: =(Infraestructura!D228*85) -> 0 | D29: 0 | E29: =Equipamiento!F583*85 -> 23.09782609 | F29: =Equipamiento!D583*85 -> 0 | G29: =(F29*100/E29)*0.3 -> 0 | H29: =(Norma!F330*85) -> 11.10795455 | I29: =(Norma!E330*85) -> 0 | J29: 0 | K29: =(TalentoHumano!F59+TalentoHumano!F76)*85 -> 19.83333333 | L29: =(TalentoHumano!E59+TalentoHumano!E76)*85 -> 0 | M29: =(L29*100/K29)*0.35 -> 0 | N29: 0
A30: APOYO DIAGNÓSTICO | B30: =(Infraestructura!F236*85) -> 1.416666667 | C30: =(Infraestructura!C236*85) -> 0 | D30: 0 | E30: =Equipamiento!F591*85 -> 3.695652174 | F30: =Equipamiento!C591*85 -> 0 | G30: 0 | H30: =(Norma!F331*85) -> 4.346590909 | I30: =(Norma!D331*85) -> 0 | J30: 0 | K30: =(TalentoHumano!F60+TalentoHumano!F77)*85 -> 6.611111111 | L30: =(TalentoHumano!D60+TalentoHumano!D77)*85 -> 0 | M30: =(L30*100/K30)*0.35 -> 0 | N30: =(D30+G30+J30+M30)*0.85/100 -> 0 | O30: =IF(N30<0.7, "NO LICENCIA", IF(N30<0.85,"LICENCIA CONDICIONADA", IF(N30<=1, "SI LICENCIA", ""))) -> NO LICENCIA
A31: DIAGNÓSTICO EN LABORATORIO | B31: =(Infraestructura!F237*85) -> 1.416666667 | C31: =(Infraestructura!D237*85) -> 0 | D31: 0 | E31: =Equipamiento!F592*85 -> 3.695652174 | F31: =Equipamiento!D592*85 -> 0 | G31: 0 | H31: =(Norma!F332*85) -> 4.346590909 | I31: =(Norma!E332*85) -> 0 | J31: 0 | K31: =(TalentoHumano!F61+TalentoHumano!F78)*85 -> 6.611111111 | L31: =(TalentoHumano!E61+TalentoHumano!E78)*85 -> 0 | M31: =(L31*100/K31)*0.354 -> 0 | N31: 0
A32: APOYO TERAPEÚTICO | B32: =(Infraestructura!F242*85) -> 2.833333333 | C32: =Infraestructura!C242*85 -> 0 | D32: 0 | E32: =Equipamiento!F597*85 -> 7.391304348 | F32: =Equipamiento!C597*85 -> 0 | G32: 0 | H32: =(Norma!F333*85) -> 5.795454545 | I32: =Norma!D333*85 -> 0 | J32: 0 | K32: =(TalentoHumano!F62+TalentoHumano!F79)*85 -> 10.25396825 | L32: =(TalentoHumano!D62+TalentoHumano!D79)*85 -> 0 | M32: 0 | N32: 0 | O32: =IF(N32<0.7, "NO LICENCIA", IF(N32<0.85,"LICENCIA CONDICIONADA", IF(N32<=1, "SI LICENCIA", ""))) -> NO LICENCIA
A33: DOTACIÓN DE MEDICAMENTOS Y DISPOSITIVOS MÉDICOS (FARMACIA) | B33: =(Infraestructura!F243*85)*1 -> 2.833333333 | C33: =Infraestructura!D243*85 -> 0 | D33: 0 | E33: =Equipamiento!F598*85 -> 7.391304348 | F33: =Equipamiento!D598*85 -> 0 | G33: 0 | H33: =(Norma!F334*85) -> 5.795454545 | I33: =Norma!E334*85 -> 0 | J33: 0 | K33: =(TalentoHumano!F63+TalentoHumano!F80)*85 -> 10.25396825 | L33: =(TalentoHumano!E63+TalentoHumano!E80)*85 -> 0 | M33: 0 | N33: 0
A34: ADMINISTRATIVO | B34: =Infraestructura!F245*85 -> 7.083333333 | C34: =Infraestructura!C245*85 -> 0 | D34: 0 | E34: =Equipamiento!F600*85 -> 15.70652174 | F34: =Equipamiento!C600*85 -> 0 | G34: 0 | H34: =(Norma!F335*85) -> 23.18181818 | I34: =Norma!D335*85 -> 0 | J34: 0 | K34: =(TalentoHumano!F64+TalentoHumano!F81)*85 -> 17.53968254 | L34: =(TalentoHumano!D64+TalentoHumano!D81)*85 -> 0 | M34: 0 | N34: 0 | O34: =IF(N34<0.7, "NO LICENCIA", IF(N34<0.85,"LICENCIA CONDICIONADA", IF(N34<=1, "SI LICENCIA", ""))) -> NO LICENCIA
A35: ADMINISTRACIÓN TÉCNICA | B35: =Infraestructura!F246*85 -> 7.083333333 | C35: =Infraestructura!D246*85 -> 0 | D35: 0 | E35: =Equipamiento!F601*85 -> 15.70652174 | F35: =Equipamiento!D601*85 -> 0 | G35: 0 | H35: =(Norma!F336*85) -> 23.18181818 | I35: =Norma!E336*85 -> 0 | J35: 0 | K35: =(TalentoHumano!F65+TalentoHumano!F82)*85 -> 17.53968254 | L35: =(TalentoHumano!E65+TalentoHumano!E82)*85 -> 0 | M35: 0 | N35: 0
A36: GENERAL | B36: =Infraestructura!F248*85 -> 9.916666667 | C36: =Infraestructura!C248*85 -> 0 | D36: 0 | E36: =Equipamiento!F603*85 -> 8.777173913 | F36: =Equipamiento!C603*85 -> 0 | G36: 0 | H36: =(Norma!F337*85) -> 2.897727273 | I36: =Norma!D337*85 -> 0 | J36: 0 | K36: =(TalentoHumano!F66+TalentoHumano!F83)*85 -> 7.285714286 | L36: =(TalentoHumano!D66+TalentoHumano!D83)*85 -> 0 | M36: 0 | N36: =(D36+G36+J36+M36)*0.85/100 -> 0 | O36: =IF(N36<0.7, "NO LICENCIA", IF(N36<0.85,"LICENCIA CONDICIONADA", IF(N36<=1, "SI LICENCIA", ""))) -> NO LICENCIA
A37: SERVICIOS INTERNOS DE APOYO | B37: =Infraestructura!F249*85 -> 9.916666667 | C37: =Infraestructura!D249*85 -> 0 | D37: 0 | E37: =Equipamiento!F604*85 -> 8.777173913 | F37: =Equipamiento!D604*85 -> 0 | G37: 0 | H37: =(Norma!F338*85) -> 2.897727273 | I37: =Norma!E338*85 -> 0 | J37: 0 | K37: =(TalentoHumano!F67+TalentoHumano!F84)*85 -> 7.285714286 | L37: =(TalentoHumano!E67+TalentoHumano!E84)*85 -> 0 | M37: 0 | N37: =(D36+G36+J36+M36)*0.85/100 -> 0
A38: INSTALACIONES | B38: =Infraestructura!F257*85 -> 21.25 | C38: =Infraestructura!C257*85 -> 0 | D38: 0 | E38: - | F38: - | G38: - | H38: - | I38: - | J38: - | K38: - | L38: - | M38: - | N38: - | O38: -
A39: ESTRUCTURA GENERAL | B39: =Infraestructura!F260*85 -> 21.25 | C39: =Infraestructura!C260*85 -> 0 | D39: 0 | E39: - | F39: - | G39: - | H39: - | I39: - | J39: - | K39: - | L39: - | M39: - | N39: -
B40: =SUM(B24+B26+B28+B30+B32+B34+B36+B38+B39) -> 85 | C40: =SUM(C24+C26+C28+C30+C32+C34+C36+C38+C39) -> 0 | D40: =SUM(D24+D26+D28+D30+D32+D34+D36+D38+D39)/9 -> 0 | E40: =SUM(E24+E26+E28+E30+E32+E34+E36) -> 85 | F40: =SUM(F24+F26+F28+F30+F32+F34+F36) -> 0 | G40: =SUM(G24+G26+G28+G30+G32+G34+G36)/7 -> 0 | H40: =SUM(H24+H26+H28+H30+H32+H34+H36) -> 85 | I40: =SUM(I24+I26+I28+I30+I32+I34+I36) -> 0 | J40: =SUM(J24+J26+J28+J30+J32+J34+J36)/7 -> 0 | K40: =SUM(K24+K26+K28+K32+K34++K36) -> 78.38888889 | L40: =SUM(L24+L26+L28+L32+L34+L36) -> 0 | M40: =SUM(M24+M26+M28+M2+M32+M34+M36)/6 -> 0 | N40: =(N24+N26+N28+N32+N34+N36)/6 -> 0 | O40: =IF(N40<0.7, "NO LICENCIA", IF(N40<0.85,"LICENCIA CONDICIONADA", IF(N40<=1, "SI LICENCIA", ""))) -> NO LICENCIA
A41: % ÍNDICE GLOBAL DE LICENCIAMEINTO POR COMPONENTE | B41: % A CUMPLIR | C41: % OBTENIDO | E41: % A CUMPLIR | F41: % OBTENIDO | H41: % A CUMPLIR | I41: % OBTENIDO | K41: % A CUMPLIR | L41: % OBTENIDO | N41: % ÍNDICE GLOBAL DE LICENCIAMEINTO POR SERVICIO | O41: CALIFICACIÓN POR COMPONENTE
B42: 30 | C42: =D40 -> 0 | E42: 30 | F42: =G40 -> 0 | H42: 5 | I42: =J40 -> 0 | K42: 35 | L42: =M40 -> 0 | N42: =SUM(N24:N39)/14*100 -> 0 | O42: =IF(N42<70, "NO LICENCIA", IF(N42<85,"LICENCIA CONDICIONADA", IF(N42<=100, "SI LICENCIA", ""))) -> NO LICENCIA
B45: RESULTADOS DE ÍTEMS CONDICIONADOS | J45: RESULTADOS DE ÍTEMS DESEABLES
B46: COMPONENTE | C46: % A cumplir | E46: % Obtenido | G46: PUNTAJE TOTAL | J46: COMPONENTE | L46: % A cumplir | N46: % Obtenido
B47: INFRAESTRUCTURA | C47: =30 -> 30 | E47: =Infraestructura!G362*100 -> 0 | G47: =ROUND(IF(E51>J510,IF(E51=0,"0",IF(E51<=69,"5",IF(E51<=84,"10",(IF(E51<=100,"15"))))),IF(E51=0,"0",IF(E51>=-69,-5,IF(E51>=-84,-10,(IF(E51>=-100,-15)))))),0) -> 0 | J47: INFRAESTRUCTURA | L47: =30/100 -> 0.3 | N47: =Infraestructura!G362 -> 0
B48: EQUIPAMIENTO | C48: =30 -> 30 | E48: =Equipamiento!G686*100 -> 0 | J48: EQUIPAMIENTO | L48: =30/100 -> 0.3 | N48: =Equipamiento!G685 -> 0
B49: TALENTO HUMANO | C49: =35 -> 35 | E49: =TalentoHumano!G165*100 -> 0 | J49: TALENTO HUMANO | L49: =35/100 -> 0.35 | N49: =TalentoHumano!G164 -> 0.35
B50: NORMA TECNICA | C50: =5 -> 5 | E50: =Norma!I378*100 -> 0 | J50: NORMA TECNICA | L50: =5/100 -> 0.05 | N50: =Norma!I379 -> 0.05
B51: Total | C51: =SUM(C47:C50) -> 100 | E51: =E47+E48+E49+E50 -> 0 | J51: Total | L51: =SUM(L47:L50) -> 1 | N51: =SUM(N47:N50) -> 0.4
J54: CALIFICACIÓN OBTENIDA
G55: RESULTADO FINAL % ÍNDICE GLOBAL DE LICENCIAMIENTO | J55: =IF(N42>=85,"100",G47+N42) -> 0 | K55: =IF(J55<70,"NO LICENCIA",IF(AND(J55<=84,N26<=0.84),"Alto Riesgo NO puede funcionar",IF(AND(J55<=84,N28<=0.84),"Alto Riesgo NOO puede funcionar",IF(AND(J55<=84,N30<=0.84),"Alto Riesgo NOOO puede funcionar",IF(J55>84,"SI LICENCIA","LICENCIA CONDICIONADA"))))) -> NO LICENCIA

Sheet EG-01
B6: ESTRUCTURA GENERAL
B7: Areas generales no especializadas ( oficinas, salas de espera,reuniones, consultorios - area de entrevistas)
B9: ESTRUCTURA | C9: MATERIALES | D9: ACABADOS | E9: REVISIÓN
C10: ESTRUCTURA GENERAL | E10: PUNTOS CRITICOS | F10: PUNTOS NO CRITICOS
B11: PISOS | C11: RESISTENTE A TRÁFICO COMERCIAL. Ejemplo: PLACAS DE PIEDRA NATURAL PULIDA (GRANITO, MARMOL), PORCELANATO, CERÁMICA, GRANO DE MARMOL FUNDIDO Y PULIDO (MARMETON), PISOS DE MADERA DURA PULIDOS Y LACADOS (TABLON, DUELA, PARQUET, PISO FLOTANTE, ETC), PISO FLOTANTE, VINYL. | D11: SUPERFICIES CON TEXTURA UNIFORME, LISA,DE FACIL LIMPIEZA. | E11: DEFORMACIONES EVIDENTES, AFLOJAMIENTOS, FALTANTES CONTAMINACION EVIDENTE POR HONGOS O SUCIEDAD ACUMULADA. | F11: AFLOJAMIENTOS, GRIETAS, EROSIONES MENORES POR DESGASTE DE CIRCULACIÓN
B12: PAREDES | C12: RESISTENTES, ADECUADOS Y SEGUROS PARA LIMITAR UN AMBIENTE. Ejemplo: MAMPOSTERIAS VISTAS SELLADAS, MAMPOSTERIAS ENLUCIDAS Y ESTUCADAS, SELLADAS Y PINTADAS. TABLEROS PREFABRICADOS (MADERA AGLOMERADA-CARTON/YESO) EN SISTEMAS MODULARES CON ESTRUCTURA VISTA/OCULTA, SISTEMAS DE PUNTO FIJO Y VIDRIO TEMPLADO. | D12: SUPERFICIES CON TEXTURA UNIFORME, LISA, IMPERMEABLE, DE FACIL LIMPIEZA Y LAVABLE. | E12: DEFORMACIONES ESTRUCTURALES EVIDENTES, GRIETAS ESTRUCTURALES, CUARTEAMIENTOS, GRANDES DESPRENDIMIENTOS DE RECUBRIMIENTOS. HUMEDAD RECURRENTE CON DETERIORO DE PARED Y/O PISO, CONTAMINACION EVIDENTE POR HONGOS O SUCIEDAD ACUMULADA. | F12: DEFORMACIONES SUPERFICIALES, GRIETAS Y/O CUARTEAMIENTOS NO ESTRUCTURALES, DESPRENDIMIENTOS LIGEROS DE ESTUCADOS. HUMEDAD OCASIONAL.
B13: CIELOS RASOS | C13: ADECUADOS, SEGUROS Y RESISTENTES. TIPO CONTINUO (ENLUCIDOS, CARTON/YESO- GYPSUM BOARD CON ESTRUCTURA METALICA OCULTA) TIPO DESMONTABLE RETICULADO (ESTRUCTURA METÁLICA VISTA CON PANELES DE FIBRA MINERAL, YESO, ACERO PINTADO O INOXIDABLE). | D13: TEXTURA UNIFORME, COLOR CLARO, PREFERENTEMENTE BLANCO (PINTURA O COLOR NATURAL EN CASO DE ACERO INOXIDABLE O ALUMINIO ANODIZADO). | E13: DEFORMACIONES ESTRUCTURALES EVIDENTES, GRIETAS Y CUARTEAMIENTOS ESTRUCTURALES, DESPRENDIMIENTOS MAYORES, HUMEDAD RECURRENTE, POR FILTRACIONES Y GOTERAS, CON DETERIORO DE LOS MATERIALES DEL CIELO FALSO. CONTAMINACION EVIDENTE POR HONGOS O SUCIEDAD ACUMULADA. | F13: DEFORMACIONES MENORES, GRIETAS Y CUARTEAMIENTOS NO ESTRUCTURALES, DESPRENDIMIENTOS MENORES, HUMEDAD OCASIONAL, SUCIEDAD SUPERFICIAL.
B14: PUERTAS Y VENTANAS | C14: MARCOS DE PUERTAS: MADERA SÓLIDA O PERFILES METÁLICOS. HOJA DE PUERTA: MADERA SÓLIDA O TABLEROS DE PARTÍCULAS DE MADERA. VIDRIO DE SEGURIDAD TEMPLADO/LAMINADO, PANELES DE ALUMINIO. VENTANAS ESTRUCTURA: PERFILES DE ALUMINIO/PVC/ACERO INOXIDABLE. VIDRIO CON ESPESORES ADECUADOS SEGÚN DISEÑO. HERRAJES ADECUADOS A LA FUNCIÓN. | D14: TEXTURA UNIFORME, LISA, IMPERMEABLE, LAVABLE. | E14: DEFORMACIONES ESTRUCTURALES EVIDENTES, FISURAS Y ROTURAS ESTRUCTURALES, AUSENCIA PARCIAL O TOTAL, FALLAS ESTRUCTURALES DE FUNCIONAMIENTO EN ACCESORIOS (BISAGRAS, CERRADURAS, SISTEMAS DE CIERRE). CONTAMINACION EVIDENTE POR HONGOS O SUCIEDAD ACUMULADA. | F14: PROBLEMAS NO ESTRUCTURALES: DEFORMACIONES LIGERAS, FISURAS, TRIZAMIENTOS, ROTURAS, FALTANTES. CONTAMINACION OCASIONAL
B20: Áreas generales de cuartos de baño y baterias sanitarias Deben contar con suficiente ventilación natural (ventanas) o artificial (sistema de extracción mecánica de aire).
B22: ESTRUCTURA | C22: MATERIALES | D22: ACABADOS | E22: REVISIÓN
C23: USO GENERAL | E23: PUNTOS CRITICOS | F23: PUNTOS NO CRITICOS
B24: PISOS Con pendientes o caidas adecuadas para un desalojo de agua completo y rápido. | C24: RESISTENTE A TRÁFICO COMERCIAL. Ejemplo: PORCELANATO, CERÁMICA, GRANO DE MARMOL FUNDIDO Y PULIDO (MARMETON), VINYL. | D24: SUPERFICIES CON TEXTURA UNIFORME, LISA,LAVABLE Y DE FACIL LIMPIEZA. SUMIDEROS SUFICIENTES Y ADECUADOS. | E24: DEFORMACIONES EVIDENTES, AFLOJAMIENTOS, FALTANTES CONTAMINACION EVIDENTE POR HONGOS O SUCIEDAD ACUMULADA. | F24: AFLOJAMIENTOS, GRIETAS, EROSIONES MENORES POR DESGASTE DE CIRCULACIÓN
B25: PAREDES | C25: RESISTENTES, ADECUADOS Y SEGUROS PARA LIMITAR UN AMBIENTE. Ejemplo: MAMPOSTERIAS CON RECUBRIMIENTO DE CERÁMICA, PORCELANATO, VINYL HASTA UNA ALTURA MÍNIMA DE 1,00 m, EL RESTO DE ALTURA PUEDE SER ESTUCADA, SELLADA Y PINTADA. | D25: SUPERFICIES CON TEXTURA UNIFORME, LISA, IMPERMEABLE, DE FACIL LIMPIEZA Y LAVABLE. | E25: DEFORMACIONES ESTRUCTURALES EVIDENTES, GRIETAS ESTRUCTURALES, CUARTEAMIENTOS, GRANDES DESPRENDIMIENTOS DE RECUBRIMIENTOS. HUMEDAD RECURRENTE CON DETERIORO DE PARED Y/O PISO, CONTAMINACION EVIDENTE POR HONGOS O SUCIEDAD ACUMULADA. | F25: DEFORMACIONES SUPERFICIALES, GRIETAS Y/O CUARTEAMIENTOS NO ESTRUCTURALES, DESPRENDIMIENTOS LIGEROS DE ESTUCADOS. HUMEDAD OCASIONAL.
B26: CIELOS RASOS | C26: ADECUADOS, SEGUROS Y RESISTENTES. TIPO CONTINUO (ENLUCIDOS, CARTON/YESO- GYPSUM BOARD CON ESTRUCTURA METALICA OCULTA). TIPO DESMONTABLE RETICULADO (ESTRUCTURA METÁLICA VISTA CON PANELES DE FIBRA MINERAL, YESO, ACERO PINTADO O INOXIDABLE). | D26: TEXTURA UNIFORME, COLOR CLARO, PREFERENTEMENTE BLANCO (PINTURA O COLOR NATURAL EN CASO DE ACERO INOXIDABLE O ALUMINIO ANODIZADO). | E26: DEFORMACIONES ESTRUCTURALES EVIDENTES, GRIETAS Y CUARTEAMIENTOS ESTRUCTURALES, DESPRENDIMIENTOS MAYORES, HUMEDAD RECURRENTE, POR FILTRACIONES Y GOTERAS, CON DETERIORO DE LOS MATERIALES DEL CIELO FALSO. CONTAMINACION EVIDENTE POR HONGOS O SUCIEDAD ACUMULADA. | F26: DEFORMACIONES MENORES, GRIETAS Y CUARTEAMIENTOS NO ESTRUCTURALES, DESPRENDIMIENTOS MENORES, HUMEDAD OCASIONAL, SUCIEDAD SUPERFICIAL.
B27: PUERTAS Y VENTANAS Iluminación y ventilación debe cumplir con normativa de arquitectura según los espacios. | C27: MARCOS DE PUERTAS: MADERA SÓLIDA O PERFILES METÁLICOS. HOJA DE PUERTA: MADERA SÓLIDA O TABLEROS DE PARTÍCULAS DE MADERA. VIDRIO DE SEGURIDAD TEMPLADO/LAMINADO, PANELES DE ACERO Y/O ALUMINIO. VENTANAS ESTRUCTURA: PERFILES DE ALUMINIO/PVC/ACERO INOXIDABLE. VIDRIO CON ESPESORES ADECUADOS SEGÚN DISEÑO. HERRAJES ADECUADOS A LA FUNCIÓN. | D27: TEXTURA UNIFORME, LISA, IMPERMEABLE Y DE FACIL LIMPIEZA | E27: DEFORMACIONES ESTRUCTURALES EVIDENTES, FISURAS Y ROTURAS ESTRUCTURALES, AUSENCIA PARCIAL O TOTAL, FALLAS ESTRUCTURALES DE FUNCIONAMIENTO EN ACCESORIOS (BISAGRAS, CERRADURAS, SISTEMAS DE CIERRE). CONTAMINACION EVIDENTE POR HONGOS O SUCIEDAD ACUMULADA. | F27: PROBLEMAS NO ESTRUCTURALES: DEFORMACIONES LIGERAS, FISURAS, TRIZADURAS, ROTURAS, FALTANTES. CONTAMINACION OCASIONAL
B28: PIEZAS SANITARIAS | C28: PORCELANA ESMALTADA/ACERO INOXIDABLE GRIFERIA BRONCE/ACERO INOXIDABLE/CROMADO | D28: SUPERFICIES CON TEXTURA UNIFORME, LISA, IMPERMEABLE, LAVABLE. COLORES CLAROS, PREFERENTEMENTE BLANCO O NATURAL EN PIEZAS SANITARIAS. COLORES METALICOS/ESMALTADOS EN GRIFERIA | E28: FALTANTES, DESPORTILLADOS MAYORES, FISURAS ESTRUCTURALES, EROSIONES, CONTAMINACION EVIDENTE POR HONGOS O SUCIEDAD ACUMULADA. | F28: SEDIMENTOS, RAYONES, EROSIONES MENORES DEBIDO A DEPOSITOS CALCÁREOS,
B31: Áreas especializadas ( Laboratorios, esterilización, salas de procedimientos, Áreas de atención médica )
B33: ESTRUCTURA | C33: MATERIALES | D33: ACABADOS | E33: REVISIÓN
C34: USO GENERAL | E34: PUNTOS CRITICOS | F34: PUNTOS NO CRITICOS
B35: PISOS | C35: RESISTENTE A TRÁFICO COMERCIAL. Ejemplo: PORCELANATO, CERÁMICA, GRANO DE MARMOL FUNDIDO Y PULIDO (MARMETON), VINYL. PINTURA EPÓXICA | D35: SUPERFICIES CON TEXTURA UNIFORME, LISA,LAVABLE Y DE FACIL LIMPIEZA. SUMIDEROS SUFICIENTES Y ADECUADOS. | E35: DEFORMACIONES EVIDENTES, AFLOJAMIENTOS, FALTANTES CONTAMINACION EVIDENTE POR HONGOS O SUCIEDAD ACUMULADA. | F35: AFLOJAMIENTOS, GRIETAS, EROSIONES MENORES POR DESGASTE DE CIRCULACIÓN
B36: PAREDES | C36: RESISTENTES, ADECUADOS Y SEGUROS PARA LIMITAR UN AMBIENTE. Ejemplo: MAMPOSTERIAS CON RECUBRIMIENTO DE CERÁMICA, PORCELANATO, VINYL HASTA UNA ALTURA MÍNIMA DE 1,20 m, EL RESTO DE ALTURA PUEDE SER ESTUCADA, SELLADA Y PINTADA. SISTEMAS LIVIANOS PREFABRICADOS CON TABLEROS SELLADOS CONTRA HUMEDAD. (MADERA AGLOMERADA-CARTON-YESO)CON ESTRUCTURA VISTA/OCULTA, SISTEMAS DE PUNTO FIJO Y VIDRIO TEMPLADO. | D36: SUPERFICIES CON TEXTURA UNIFORME, LISA, IMPERMEABLE, DE FACIL LIMPIEZA Y LAVABLE. | E36: DEFORMACIONES ESTRUCTURALES EVIDENTES, GRIETAS ESTRUCTURALES, CUARTEAMIENTOS, GRANDES DESPRENDIMIENTOS DE RECUBRIMIENTOS. HUMEDAD RECURRENTE CON DETERIORO DE PARED Y/O PISO, CONTAMINACION EVIDENTE POR HONGOS O SUCIEDAD ACUMULADA. | F36: DEFORMACIONES SUPERFICIALES, GRIETAS Y/O CUARTEAMIENTOS NO ESTRUCTURALES, DESPRENDIMIENTOS LIGEROS DE ESTUCADOS. HUMEDAD OCASIONAL QUE NO PRESENTE HONGOS O SALES MINERALES.
B37: CIELOS RASOS | C37: ADECUADOS, SEGUROS Y RESISTENTES. TIPO CONTINUO (ENLUCIDOS, CARTON/YESO- GYPSUM BOARD CON ESTRUCTURA METALICA OCULTA). TIPO DESMONTABLE RETICULADO (ESTRUCTURA METÁLICA VISTA CON PANELES DE FIBRA MINERAL, YESO, ACERO PINTADO O INOXIDABLE). | D37: TEXTURA UNIFORME, COLOR CLARO, PREFERENTEMENTE BLANCO (PINTURA O COLOR NATURAL EN CASO DE ACERO INOXIDABLE O ALUMINIO ANODIZADO). EN ÁREAS HÚMEDAS DEBE ASEGURARSE ADEMÁS LAS CONDICIONES DE LAVABLE E IMPERMEABLE. | E37: DEFORMACIONES ESTRUCTURALES EVIDENTES, GRIETAS Y CUARTEAMIENTOS ESTRUCTURALES, DESPRENDIMIENTOS MAYORES, HUMEDAD RECURRENTE, POR FILTRACIONES Y GOTERAS, CON DETERIORO DE LOS MATERIALES DEL CIELO FALSO. CONTAMINACION EVIDENTE POR HONGOS O SUCIEDAD ACUMULADA. | F37: DEFORMACIONES MENORES, GRIETAS Y CUARTEAMIENTOS NO ESTRUCTURALES, DESPRENDIMIENTOS MENORES, HUMEDAD OCASIONAL, SUCIEDAD SUPERFICIAL.
B38: PUERTAS Y VENTANAS Iluminación y ventilación debe cumplir con normativa de arquitectura según los espacios. | C38: MARCOS DE PUERTAS: MADERA SÓLIDA O PERFILES METÁLICOS. HOJA DE PUERTA: MADERA SÓLIDA O TABLEROS DE PARTÍCULAS DE MADERA. VIDRIO DE SEGURIDAD TEMPLADO/LAMINADO, PANELES DE ACERO Y/O ALUMINIO. VENTANAS ESTRUCTURA: PERFILES DE ALUMINIO/PVC/ACERO INOXIDABLE. VIDRIO CON ESPESORES ADECUADOS SEGÚN DISEÑO. HERRAJES ADECUADOS A LA FUNCIÓN. | D38: TEXTURA UNIFORME, LISA, IMPERMEABLE Y DE FACIL LIMPIEZA | E38: DEFORMACIONES ESTRUCTURALES EVIDENTES, FISURAS Y ROTURAS ESTRUCTURALES, AUSENCIA PARCIAL O TOTAL, FALLAS ESTRUCTURALES DE FUNCIONAMIENTO EN ACCESORIOS (BISAGRAS, CERRADURAS, SISTEMAS DE CIERRE). CONTAMINACION EVIDENTE POR HONGOS O SUCIEDAD ACUMULADA. | F38: PROBLEMAS NO ESTRUCTURALES: DEFORMACIONES LIGERAS, FISURAS, TRIZADURAS, ROTURAS, FALTANTES. CONTAMINACION OCASIONAL
B41: Areas de servicios generales ( Bodegas, Almacenamiento intermedio y final de desechos)
B43: ESTRUCTURA | C43: MATERIALES | D43: ACABADOS | E43: REVISIÓN
C44: USO GENERAL | E44: PUNTOS CRITICOS | F44: PUNTOS NO CRITICOS
B45: PISOS | C45: RESISTENTE A TRÁFICO COMERCIAL. Ejemplo: MASILLADO PULIDO CON ENDURECEDOR, RECUBRIMIENTO EPÓXICO, PORCELANATO, VINYL. | D45: TEXTURA UNIFORME, LISA, IMPERMEABLE, LAVABLE. DETALLE DE CONTINUIDAD DE SUPERFICIE PISO - PARED, TIPO CURVA SANITARIA, DESEABLE EN TODOS LOS AMBIENTES, OBLIGATORIO EN ÁREAS CRÍTICAS. | E45: DEFORMACIONES EVIDENTES, AFLOJAMIENTOS, FALTANTES CONTAMINACION EVIDENTE POR HONGOS O SUCIEDAD ACUMULADA. | F45: AFLOJAMIENTOS, GRIETAS, EROSIONES MENORES POR DESGASTE DE CIRCULACIÓN
B46: PAREDES | C46: ADECUADOS, SEGUROS Y RESISTENTES PARA LIMITAR UN AMBIENTE. Ejemplo: MAMPOSTERIAS VISTAS O ENLUCIDAS Y ESTUCADAS, SELLADAS Y/O PINTADAS, TABLEROS PREFABRICADOS (MADERA AGLOMERADA-CARTON-YESO) EN SISTEMAS MODULARES CON ESTRUCTURA VISTA/OCULTA. | D46: TEXTURA UNIFORME, LISA, IMPERMEABLE, DE FACIL LIMPIEZA. | E46: DEFORMACIONES ESTRUCTURALES EVIDENTES, GRIETAS ESTRUCTURALES, CUARTEAMIENTOS, GRANDES DESPRENDIMIENTOS DE RECUBRIMIENTOS. HUMEDAD RECURRENTE CON DETERIORO DE PARED Y/O PISO, CONTAMINACION EVIDENTE POR HONGOS O SUCIEDAD ACUMULADA. | F46: DEFORMACIONES SUPERFICIALES, GRIETAS Y/O CUARTEAMIENTOS NO ESTRUCTURALES, DESPRENDIMIENTOS LIGEROS DE ESTUCADOS. HUMEDAD OCASIONAL QUE NO PRESENTE HONGOS O SALES MINERALES.
B47: CIELOS RASOS | C47: ADECUADOS, SEGUROS Y RESISTENTES. CONTINUOS (ENLUCIDOS, CARTON YESO- GYPSUM BOARD CON ESTRUCTURA METALICA OCULTA) O DESMONTABLES RETICULADOS (ESTRUCTURA METÁLICA VISTA CON PANELES DE FIBRA MINERAL, YESO, ACERO PINTADO O INOXIDABLE).SI NO HAY CIELOS RASOS LOS AMBIENTES DE BODEGAS DEBEN TENER CONDICIONES PARA EVITAR LA ENTRADA DE POLVO Y VECTORES ANIMALES, ADEMAS DE ASEGURAR CONDICIONES DE TEMPERATURA Y HUMEDAD ADECUADAS. LOS ALMACENAMIENTOS FINALES DE DESECHOS NO TIENEN CIELO RASO | D47: TEXTURA UNIFORME, COLOR CLARO, PREFERENTEMENTE BLANCO (PINTURA O COLORA NATURAL EN CASO DE ACERO INOXIDABLE O ALUMINIO ANODIZADO). | E47: DEFORMACIONES ESTRUCTURALES EVIDENTES, GRIETAS Y CUARTEAMIENTOS ESTRUCTURALES, DESPRENDIMIENTOS MAYORES, HUMEDAD RECURRENTE, POR FILTRACIONES Y GOTERAS, CON DETERIORO DE LOS MATERIALES DEL CIELO FALSO. CONTAMINACION EVIDENTE POR HONGOS O SUCIEDAD ACUMULADA. | F47: DEFORMACIONES MENORES, GRIETAS Y CUARTEAMIENTOS NO ESTRUCTURALES, DESPRENDIMIENTOS MENORES, HUMEDAD OCASIONAL, SUCIEDAD SUPERFICIAL.
B48: PUERTAS Y VENTANAS | C48: MARCOS DE PUERTAS: MADERA SÓLIDA O PERFILES METÁLICOS. HOJA DE PUERTA: MADERA SÓLIDA O TABLEROS DE PARTÍCULAS DE MADERA. VIDRIO DE SEGURIDAD TEMPLADO/LAMINADO. ESTRUCTURA: PERFILES DE ALUMINIO/PVC/ACERO. VIDRIO DE SEGURIDAD TEMPLADO/LAMINADO. ESPESORES ADECUADOS SEGÚN DISEÑO. HERRAJES ADECUADOS A LA FUNCIÓN. | D48: TEXTURA UNIFORME, LISA, IMPERMEABLE, LAVABLE. | E48: DEFORMACIONES ESTRUCTURALES EVIDENTES, FISURAS Y ROTURAS ESTRUCTURALES, AUSENCIA PARCIAL O TOTAL, FALLAS ESTRUCTURALES DE FUNCIONAMIENTO EN ACCESORIOS (BISAGRAS, CERRADURAS, SISTEMAS DE CIERRE). CONTAMINACION EVIDENTE POR HONGOS O SUCIEDAD ACUMULADA. | F48: PROBLEMAS NO ESTRUCTURALES: DEFORMACIONES LIGERAS, FISURAS, TRIZADURAS, ROTURAS, FALTANTES. CONTAMINACION OCASIONAL
B50: Áreas Especializadas (Áreas donde se emita radiación)
B52: ESTRUCTURA | C52: MATERIALES | D52: ACABADOS | E52: REVISIÓN
E53: PUNTOS CRITICOS | F53: PUNTOS NO CRITICOS
B54: PISOS | C54: RESISTENTE A TRÁFICO PESADO. Ejemplo: VINYL, PLACAS DE PIEDRA NATURAL PULIDA (GRANITO, MARMOL), PORCELANATO, CERÁMICA, GRANO DE MARMOL FUNDIDO Y PULIDO (MARMETON). | D54: TEXTURA UNIFORME, LISA, IMPERMEABLE, LAVABLE. DETALLE DE CONTINUIDAD DE SUPERFICIE PISO - PARED, TIPO CURVA SANITARIA, DESEABLE EN TODOS LOS AMBIENTES. | E54: DEFORMACIONES EVIDENTES, AFLOJAMIENTOS, GRIETAS, EROSIONES, FALTANTES CONTAMINACION EVIDENTE POR HONGOS O SUCIEDAD ACUMULADA. | F54: AFLOJAMIENTOS, GRIETAS, EROSIONES MENORES POR DESGASTE DE CIRCULACIÓN
B55: PAREDES | C55: ADECUADOS, SEGUROS Y RESISTENTES PARA EVITAR LA PROPAGACIÓN DE RADIACIONES EMITIDAS POR LOS EQUIPOS. HORMIGÓN ARMADO DE ALTA RESISTENCIA Y MAMPOSTERIAS, CON UN ESPESOR DE PARED CALCULADO SEGÙN LA CANTIDAD DE RADIACIÓN EMITIDA EN EL AMBIENTE. MAMPOSTERÍA LIVIANA O TABLEROS PREFABRICADOS RECUBIERTOS DE LÀMINAS DE PLOMO DE ESPESOR (min 2mm) DETERMINADO SEGÚN CÁLCULOS TÉCNICOS RELACIONADOS CON LA RADIACION EMITIDA. Ejemplo: LADRILLO, (Espesor>30cm), HORMIGÓN (Espesor>20cm), TERMINADO SUPERFICIAL ENLUCIDO/ ESTUCADO/PINTURA | D55: TEXTURA UNIFORME PREFERENTEMENTE LISA, IMPERMEABLE, LAVABLE. | E55: DEFORMACIONES EVIDENTES, GRIETAS, CUARTEAMIENTOS, DESPRENDIMIENTOS. HUMEDAD, CONTAMINACION EVIDENTE POR HONGOS O SUCIEDAD ACUMULADA. VERIFICAR POSIBLES FUGAS DE RADIACIONES | F55: DEFORMACIONES SUPERFICIALES, GRIETAS Y/O CUARTEAMIENTOS NO ESTRUCTURALES, DESPRENDIMIENTOS LIGEROS DE ESTUCADOS. HUMEDAD OCASIONAL QUE NO PRESENTE HONGOS O SALES MINERALES.
B56: CIELOS RASOS | C56: ADECUADOS, SEGUROS Y RESISTENTES. CONTINUOS (ENLUCIDOS, CARTON YESO- GYPSUM BOARD (CON LÁMINAS DE PLOMO DE ESPESOR DETERMINADO SEGÚN CÁLCULOS TÉCNICOS RELACIONADOS CON LA RADIACION EMITIDA) SOBRE ESTRUCTURA METALICA OCULTA O DESMONTABLES RETICULADOS (ESTRUCTURA METÁLICA VISTA CON PANELES DE FIBRA MINERAL). LA CUBIERTA DEL ESPACIO DEBE SER DE HORMIGÓN ARMADO CON ESPESOR ADECUADO PARA EVITAR EL PASO DE RADIACIONES. RECUBIERTOS DE LÀMINAS DE PLOMO DE ESPESOR DETERMINADO SEGÚN CÁLCULOS TÉCNICOS RELACIONADOS CON LA RADIACIÓN EMITIDA. | D56: TEXTURA UNIFORME, COLOR CLARO, PREFERENTEMENTE BLANCO. | E56: DEFORMACIONES EVIDENTES, GRIETAS, CUARTEAMIENTOS, DESPRENDIMIENTOS, HUMEDAD POR FILTRACIONES, GOTERAS, CONTAMINACION EVIDENTE POR HONGOS O SUCIEDAD ACUMULADA. | F56: DEFORMACIONES MENORES, GRIETAS Y CUARTEAMIENTOS NO ESTRUCTURALES, DESPRENDIMIENTOS MENORES, HUMEDAD OCASIONAL, SUCIEDAD SUPERFICIAL.
B57: PUERTAS Y VENTANAS | C57: PUERTAS DE MADERA TRATADA MACIZA CON AISLAMIENTO DE LÁMINA DE PLOMO DE 3MM EN FORMA DE REVESTIMIENTO O EMBUTIDAS EN FORMA DE SANDUCHE ENTRE TABLEROS DE MADERA. ACCESORIOS PARA USO PESADO, MARCO METÁLICO PREFORMADO RELLENO DE HORMIGÓN. VIDRIO EMPLOMADO SIN MARCO EXTERIOR, FIJACIÓN DIRECTA A LA MAMPOSTERÍA. NO SE RECOMIENDAN VENTANAS HACIA EL EXTERIOR | D57: TEXTURA UNIFORME, LISA, IMPERMEABLE, LAVABLE. | E57: DEFORMACIONES EVIDENTES,FISURAS, ROTURAS, FALLAS DE FUNCIONAMIENTO EN LA PUERTA Y LOS ACCESORIOS (BISAGRAS, CERRADURAS, SISTEMAS DE CIERRE AUTOMÁTICO). CONTAMINACION EVIDENTE POR HONGOS O SUCIEDAD ACUMULADA. | F57: PROBLEMAS NO ESTRUCTURALES: DEFORMACIONES LIGERAS, FISURAS, TRIZADURAS, ROTURAS, FALTANTES. CONTAMINACION OCASIONAL

Sheet IG-01
A5: INSTALACIONES GENERALES ( ANEXO Nº IG_01)
A7: INSTALACIONES | B7: MATERIALES | C7: ACABADOS | D7: REVISION
B8: ESTRUCTURA GENERAL | C8: ACCESORIOS FINALES | D8: PUNTOS CRITICOS | E8: PUNTOS NO CRITICOS
A9: ELECTRICAS (ILUMINACIÓN Y FUERZA) CIRCUITOS DIFERENCIADOS PROTEGIDOS CON INTERRUPTORES TERMOMAGNÉTICOS COLOCADOS EN LOS TABLEROS CORRESPONDIENTES Y ROTULADOS E IDENTIFICADOS CLARAMENTE | B9: CONDUCTORES DE COBRE CON RECUBRIMIENTO TERMOPLÁSTICO RESISTENTE CALIBRE No.14 PARA ILUMINACION CALIBRE No.14- 12 - 10 PARA FUERZA (TOMACORRIENTES) | C9: LAMPARAS FIJAS O SUSPENDIDAS ALTURA DE INTERRUPTORES hmin= 1,20 cm | D9: LUMINARIAS FALTANTES, QUEMADAS O DE DEFICIENTE FUNCIONAMIENTO. | E9: AFLOJAMIENTO DE CONTACTOS CONTAMINACION POR ACUMULACION DE SUCIEDAD (POLVO-GRASAS)
C10: PLACAS DE TOMACORRIENTES EN PARED h= 40 cm/h=1,20 m (sobre mesón). EN PISO PARA CONEXION DIRECTA DEL SILLÓN. | D10: PIEZAS FALTANTES / DAÑADAS POR CORTOCIRCUITOS, CABLES DESCUBIERTOS, AFLOJAMIENTO DE CONTACTOS | E10: ROTURAS DE PLACAS, CABLES DESCUBIERTOS, AFLOJAMIENTO DE CONTACTOS CONTAMINACION POR ACUMULACION DE SUCIEDAD (POLVO-GRASAS)
A11: HIDRAULICAS | B11: TUBERIA PVC-HIERRO GALVANIZADO-ACERO INOXIDABLE | C11: LLAVES METÁLICAS DE CIERRE HERMÉTICO | D11: FALTANTES | E11: AFLOJAMIENTOS, FILTRACIONES, CONTAMINACION EVIDENTE POR HONGOS O SARRO
A12: SANITARIAS | B12: TUBERÍA PVC | C12: UNIONES SELLADAS | D12: FALTANTES | E12: REFLUJO, TAPONAMIENTOS CONTAMINACION EVIDENTE POR HONGOS
A13: AIRE ACONDICIONADO/VENTILACION CENTRAL (si es que aplica) | B13: DUCTOS METALICOS GALVANIZADOS O DE PVC | C13: UNIONES SELLADAS, DUCTOS AISLADOS, | D13: FALTANTES, TAPONAMIENTOS DE DUCTOS O FILTROS, ROTURAS | E13: DETERIORO POR HUMEDAD, CONTAMINACION EVIDENTE POR HONGOS
A14: AIRE ACONDICIONADO/VENTILACIÓN INDIVIDUAL PARA CADA LOCAL (si es que aplica) | B14: DUCTOS METALICOS O DE PVC, DESAGUES | C14: UNIONES SELLADAS | D14: FALTANTES, TAPONAMIENTOS DE DUCTOS O FILTROS, ROTURAS | E14: DETERIORO POR HUMEDAD, CONTAMINACION EVIDENTE POR HONGOS
A15: AGUA CALIENTE PUEDE SER PROVISTA POR SISTEMAS CENTRALIZADOS (CALDEROS) O LOCALIZADOS (CALEFONES-CALENTADORES) ELÉCTRICOS, SOLARES, A GAS, DIESEL, (Si es que aplica) | B15: TUBERIAS METALICAS/PVC DE PRESIÓN | C15: UNIONES SOLDADAS/SELLADAS | D15: FALTANTES, FUGAS | E15: AFLOJAMIENTOS, FILTRACIONES, CONTAMINACION DE LOS SISTEMAS DE TUBERÍAS Y LOS ACCESORIOS
A16: REDES DE COMUNICACIÓN (CONEXIONES TELEFÓNICAS E INTERNET) | B16: CABLEADO MULTIPAR, ACCESORIOS ESPECÍFICOS | C16: PUNTOS DE SALIDA EN BUEN ESTADO Y ACCESORIOS ADECUADOS. PLACAS Y CONECTORES ESPECÍFICOS, ROUTERS Y/O MODEMS, SWITCHS TARJETAS CABLEADAS Y /O INALAMBRICAS | D16: FALTANTES, FUNCIONALIDAD Y ACCESO EXISTENTE A INTERNET. | E16: DETERIORO DE PIEZAS
A17: UPS (Si es que existe) | B17: EQUIPO ELECTRÓNICO UNIDAD DE PODER | C17: DESEABLE PARA TODOS LOS EQUIPOS ELECTRÓNICOS SENSIBLES Y QUE NO PUEDEN DEJAR DE FUNCIONAR SÚBITAMENTE. SI EL FABRICANTE O LA NECESIDAD FUNCIONAL LO EXIGEN PASA A SER REQUERIDO. | D17: CONEXIONES FLOJAS , CABLES O UNIONES MAL EJECUTADAS Y SIN PROTECCIÓN (AISLANTE) | E17: DETERIORO DE PIEZAS

Sheet EQ_01
B6: STOCK DE INSUMOS ADMINISTRATIVOS
B9: INSUMOS DE CADA STOCK
B10: DESCRIPCION | C10: NUMERO | D10: Observaciones
B12: CALCULADORA | C12: 1 | D12: Este items se sustituye si cuenta con la computadora
B13: GRAPADORA | C13: 1
B14: PERFORADORA | C14: 1
B15: SACAGRAPAS | C15: 1

Sheet EQ_02
B9: ELEMENTOS DE CADA EQUIPO
B10: DESCRIPCION | C10: NUMERO
B12: *CPU | C12: 1
B13: *MONITOR | C13: 1
B14: TECLADO Y MOUSE | C14: 1
B15: **IMPRESORA | C15: condición
B17: * Monitor con CPU incorporado sustituye a Items anteriores
B18: ** La impresora es una Condición si se encuentra compartida en red y se solicitará solo en los ambientes administrativos y en el Servicio de Farmacia

Sheet EQ_03
B7: SISTEMA AUDIOVISUAL DE INFORMACION
B9: ELEMENTOS DE CADA UNO DE LOS EQUIPOS
B10: DESCRIPCION | C10: NUMERO | D10: OBSERVACIONES
B12: PANTALLA DE TV | C12: 1
B13: DVD | C13: CONDICIÓN | D13: SE SUSTITUYE CUANDO TIENE INCORPORADO WIFI, EN RED (INTERNET)

Sheet EQ_05
B6: STOCK DE INSUMOS DE ASEO
B8: INSUMOS DE CADA STOCK
B9: DESCRIPCION | C9: NUMERO
B11: ESCOBAS | C11: CN
B12: TRAPEADORES | C12: CN
B13: LIMPIONES | C13: CN
B14: CEPILLOS | C14: CN
B15: DETERGENTE/JABON | C15: CN
B16: DESINFECTANTES | C16: CN
B17: CN: CANTIDAD NECESARIA

Sheet EQ_07
B6: SET PARA MANEJO DE DESECHOS PELIGROSOS Y NO PELIGROSOS
B9: ELEMENTOS DE CADA SET
B10: DESCRIPCION | C10: NUMERO
B12: RECIPIENTE PARA DESECHOS PELIGROSOS INFECCIOSOS | C12: CN
B13: RECIPIENTE PARA DESECHOS PELIGROSOS (QUÍMICOS/FARMACÉUTICOS/RADIACTIVOS) DEPENDERÁ DEL ÁREA FUNCIONAL QUE GESTIONE ESTE TIPO DE RESIDUOS | C13: CONDICIÓN
B14: RECIPIENTE PARA DESECHOS NO PELIGROSOS - COMUNES | C14: 1
B15: RECIPIENTE PARA DESECHOS PELIGROSOS - CORTOPUNZANTES | C15: CONDICIÓN
B16: CN: Cantidad Necesaria
B17: LA CANTIDAD, TIPO Y CARACTERISTICAS DEPENDEN DE LO ESTABLECIDO EN EL REGLAMENTO INTERMINISTERIAL DE GESTION INTEGRAL DE DESECHOS SANITARIOS N° 00005186

Sheet EQ_08
B6: INSTRUMENTAL DE COCHE DE CURACIONES
B8: INSTRUMENTAL DE CADA MESA
B9: DESCRIPCION | C9: NUMERO
B11: FRASCOS DE ANTISEPTICOS IDENTIFICADOS Y ROTULADOS | C11: 3
B12: PORTA TERMOMETROS | C12: 1
B13: SEMILUNAS | C13: 1
B14: TAMBOR PARA GASA | C14: 1
B15: TERMOMETROS | C15: CN
B16: TORUNDERO | C16: 1
B18: CN: CANTIDAD NECESARIA

Sheet EQ_09
B5: SE SOLICITARÁ EL REGISTRO DE LOS DISPOSITIVOS MEDICOS Y MEDICAMENTOS DE ACUERDO A LA GESTION DEL ÁREA FUNCIONAL DE ASISTENCIAL Y SEGÚN PERFIL EPIDEMIOLOGICO DEL ESTABLECIMIENTO DE SALUD
B7: COCHE DE PARO Y REANIMACIÓN ADULTO, PEDIATRICO Y NEONATAL
B9: ESPECIFICACIONES PARA CADA COCHE DE PARO
B10: DESCRIPCION | C10: NUMERO
B11: VIA RESPIRATORIA
B12: Kit =BOLSA DE REANIMACIÓN ADULTOS,PEDIATRICO Y NEONATAL CON JUEGO DE MASCARILLAS | C12: 1
B13: SET LARINGOSCOPIO HOJAS RECTAS PEDIÁTRICO Y NEONATAL | C13: 1
B14: SET LARINGOSCOPIO HOJAS CURVAS ADULTO Y PEDIÁTRICO | C14: 1
B15: JUEGO CANULAS DE GUEDEL 20 HASTA 60 PEDIATRICO | C15: 1
B16: JUEGO CANULAS DE GUEDEL 60 HASTA 120 ADULTO | C16: 1
B17: TUBOS ENDOTRAQUEALES 2.0 HASTA 4.0 SIN BAG NEONATAL | C17: 3 DE CADA NUMERO
B18: TUBOS ENDOTRAQUEALES 4.0 HASTA 6.5 CON BAG PEDIATRICO | C18: 3 DE CADA NUMERO
B19: TUBOS ENDOTRAQUEALES 5.0 HASTA 8.5 CON BAG ADULTO | C19: 3 DE CADA NUMERO
B20: FIJADORES DE TUBO ENDOTRAQUEAL NEO,PEDIA Y ADULTO | C20: 3
B21: TUBO TORACICO 14 HASTA EL 32 ADULTO Y PEDIATRICO | C21: 2 DE CADA NUMERO
B22: JUEGO MASCARILLA LARINGEA PEDIATRICO Y ADULTO NO DESCARTABLE | C22: 2
B23: JUEGO CONDUCTORES DE VÍA AEREA/GUIAS DE ENTUBACIÓN 6,8 HASTA 12 PEDIATRICO / ADULTO 12 Y 14 | C23: 1
B24: SONDAS DE SUCCIÓN PEDIATRICAS Y ADULTOS 8 HASTA 16 | C24: 3 DE CADA NUMERO
B25: SONDAS DE SUCCIÓN NEONATOLOGIA 4,5,6,7,8 | C25: 3 DE CADA NUMERO
B26: CATETER INTRAVENOSO PERIFERICO(CATLON) 14 A 16 ACCESO VASCULAR | C26: 2 POR CADA COCHE
B27: SONDAS NASOGASTRICAS 4 HASTA 10 NEONATOLOGIA | C27: 3 DE CADA NUMERO
B28: SONDAS NASOGASTRICAS ADULTO Y PEDIATRICO DESDE LA 10 HASTA LA 20 | C28: 3 DE CADA NUMERO
B29: CATETER INTRAVENOSO PERIFERICO(CATLON) 18,20,22,24 ADULTOS Y PEDIATRICO | C29: 5 DE CADA NUMERO
B30: CATETER INTRAVENOSO PERIFERICO(CATLON) 18,20,22,24, 26 Y 28NEONATOLOGIA | C30: 5 DE CADA NUMERO
B31: AGUJAS INTRAOSEAS CANTIDAD 2 | C31: DESEABLE
B32: PERILLA DE SUCCIÓN PARA NEONATOLOGIA | C32: 1
B33: TRAMPA DE LEE PARA NEONATOLOGIA | C33: 1
B34: JERINGUILLAS 1,3,5,10CC | C34: 5 DE CADA NUMERO
B35: LLAVES DE TRES VIAS | C35: 2
B36: GUANTES ESTERILES 6,6.5,7.5,8.5 | C36: 5 DE CADA NUMERO
B37: CAJA GUANTES DE MANEJO | C37: 1
B38: ESPARADRAPO | C38: 1
B39: TIJERA LISTER/BOTON(ANGULADA) PARA CORTAR LA ROPA | C39: 1
B40: EQUIPO DE PROTECCIÓN UNIVERSAL(BATA, GORRA, MASCARILLA Y GAFAS) | C40: 1
B41: MEDICAMENTOS E INSUMOS NECESARIOS
B43: MEDICAMENTOS PARA COCHE DE PARO Y REANIMACIÓN POLIVALENTE
B45: ITEM | C45: CODIGO ATC | D45: DESCRIPCIÓN | E45: FORMA FARMACÉUTICA | F45: CONCENTRACIÓN | G45: NIVEL DE ATENCIÓN | H45: CANTIDAD (unidades) | I45: NEONATOS/RECIEN NACIDOS-CANTIDAD (unidades)
B46: 5 | C46: A03BA01 | D46: Atropina | E46: Líquido parenteral | F46: 1 mg/mL | G46: I | H46: 5 | I46: N/A
B47: 6 | C47: B05XA02 | D47: Bicarbonato de sodio | E47: Líquido parenteral | F47: 1 mEq/mL (8,4%) | G47: I | H47: 15 | I47: 2
B48: 7 | C48: A12AA03 | D48: Calcio gluconato | E48: Líquido parenteral | F48: 10 % | G48: I | H48: 2 | I48: 2
B49: 9 | C49: B05BA03 | D49: Carbohidratos (Dextrosa en agua) | E49: Líquido parenteral | F49: 0.05 | G49: I | H49: 1 | I49: 1
B50: 10 | C50: B05CB01 | D50: Cloruro de sodio | E50: Líquido parenteral | F50: 0.9 % | G50: I | H50: 1 | I50: 1
B51: 11 | C51: N05BA01 | D51: Diazepam | E51: Líquido parenteral | F51: 5 mg/mL | G51: I | H51: 10 | I51: N/A
B52: 12 | C52: C01CA24 | D52: Epinefrina (adrenalina) | E52: Líquido parenteral | F52: 1 mg/mL | G52: I | H52: 10 | I52: 4
B53: 14 | C53: N03AA02 | D53: Fenobarbital | E53: Líquido parenteral | F53: 60 mg/mL | G53: I | H53: 5 | I53: 2
B54: 15 | C54: N01AH01 | D54: Fentanilo | E54: Líquido parenteral | F54: 0,5 mg/10 mL | H54: 2 | I54: 2
B55: 16 | C55: V03AB25 | D55: Flumazenil | E55: Líquido parenteral | F55: 0.1 mg/mL | G55: I | H55: 2 | I55: N/A
B56: 17 | C56: N01BB02 | D56: Lidocaína (sin epinefrina) | E56: Líquido parenteral * | F56: 2 % | G56: I | H56: 1 | I56: N/A
B57: 18 | C57: N01BB52 | D57: Lidocaína con epinefrina | E57: Líquido parenteral * | F57: 2 % + 1:200.000 | G57: I | H57: 1 | I57: N/A
B58: 22 | C58: V03AB15 | D58: Naloxona | E58: Líquido parenteral | F58: 0.4 mg/mL | G58: I | H58: 2 | I58: 2
B59: 25 | C59: B05XA05 | D59: Sulfato de magnesio | E59: Líquido parenteral | F59: 0.2 | G59: I | H59: 24 | I59: N/A

Sheet EQ_10
B7: SET DE DIAGNOSTICO
B9: ESPECIFICACIONES DE CADA EQUIPO
B10: DESCRIPCION | C10: NUMERO
B12: ESPEJO LARINGEO | C12: 1
B13: OFTALMOSCOPIO | C13: 1
B14: OTOSCOPIO | C14: 1
B15: ESTUCHE | C15: CONDICIÓN

Sheet EQ_23
B7: EQUIPO DE CIRUGÍA PARA ACCESOS VASCULARES
B10: INSTRUMENTAL DE CADA PAQUETE
B11: DESCRIPCION | C11: NUMERO
B13: CONTENEDOR | C13: 1
B14: PINZA DE CAMPO | C14: 6
B15: MANGO DE BISTURÍ N°3 | C15: 1
B16: PINZA ADSON ANATÓMICA 12 CM | C16: 1
B17: PINZA ADSON QUIRÚRGICA 12 CM | C17: 1
B18: GANCHO JOSEPH PARA PIEL, DOBLE AGUDO 16 CM | C18: 1
B19: GANCHO FRAZZIER PARA PIEL SENCILLO Y CON GARFIO | C19: 1
B20: SEPARADOR SENN PUNTA ROMA 17 CM | C20: 1
B21: TIJERA IRIS CURVAS 11 CM | C21: 1
